Workbook

Sheet Foglio1
A1: user_Country | B1: user_Affiliation | C1: user_Age | D1: user_id | E1: date | F1: question | G1: subquestion | H1: labels | I1: Platform on which software developers can learn | J1: Means to train quantum engineers | K1: Unknown yet | L1: Other known educational value | M1: Cat5 | N1: Cat6 | O1: Cat7 | P1: Cat8 | Q1: Cat9 | R1: Others | S1: explanation
A2: Germany | B2: Fraunhofer | C2: 29 | D2: 5852c089aef2c94c3a000367 | E2: 2017/3/31 12:17:16 | F2: 14 | G2: 1 | H2: Educational value
A3: United Kingdom | B3: University of Sussex | C3: 45 | D3: 5852c089aef2c94c3a00036b | E3: 2017/5/4 10:41:57 | F3: 14 | G3: 1 | H3: Educational value | I3: 100 | J3: 100 | L3: 100 | R3: General training in STEM subjects.
A4: Netherlands | B4: Atos | C4: 29 | D4: 5852c089aef2c94c3a00036d | E4: 2017/5/5 12:23:20 | F4: 14 | G4: 1 | H4: Educational value | I4: 85 | J4: 85 | K4: 0
A5: Switzerland | B5: IBM Zurich Research Laboratory | C5: 55 | D5: 5852c089aef2c94c3a00036f | E5: 2017/4/21 17:31:5 | F5: 14 | G5: 1 | H5: Educational value | I5: 80 | J5: 100 | K5: 0 | S5: People learn the basics at university- but they are not well aware of quantum computing and its opportunities.
A6: Italy | B6: CNR - SPIN | C6: 47 | D6: 5852c089aef2c94c3a000373 | E6: 2017/4/24 10:34:0 | F6: 14 | G6: 1 | H6: Educational value | I6: 40 | J6: 75 | K6: 75
A7: United Kingdom | B7: Hitachi | D7: 5852c089aef2c94c3a00037f | E7: 2017/4/21 9:4:13 | F7: 14 | G7: 1 | H7: Educational value | I7: 70 | J7: 90 | K7: 30
A8: United Kingdom | B8: University of Oxford | D8: 5852c089aef2c94c3a000385 | E8: 2017/5/12 16:42:13 | F8: 14 | G8: 1 | H8: Educational value | I8: 80 | J8: 80 | R8: I suspect that until/if there is a reasonable scale QC- small scale will only give a very basic training platform. But it might be useful for people to learn about Qubits etc. | S8: I'm guessing here - if you want to find out- a better way would be to do a survey of these different groups. I suspect that most of these are aware of QC- but probably not of the potential or anything much about it.
A9: Finland | B9: Aalto University | C9: 36 | D9: 5852c089aef2c94c3a00038b | E9: 2017/4/19 8:52:40 | F9: 14 | G9: 1 | H9: Educational value | I9: 100 | J9: 100
A10: Germany | B10: Karlsruhe Institute of Technology | C10: 38 | D10: 5852c089aef2c94c3a000391 | E10: 2017/3/29 20:15:29 | F10: 14 | G10: 1 | H10: Educational value
A11: United States | B11: Microsoft | C11: 49 | D11: 5852c140aef2c94c3a0003a3 | E11: 2017/4/19 6:22:42 | F11: 14 | G11: 1 | H11: Educational value | I11: 100 | J11: 100 | K11: 0 | L11: 0
A12: United Kingdom | B12: Lancaster University | C12: 37 | D12: 58dbcc590e349c2a60000076 | E12: 2017/3/29 15:46:55 | F12: 14 | G12: 1 | H12: Educational value | I12: 50 | J12: 50 | K12: 100
A13: Germany | B13: Saarland University | C13: 49 | D13: 58dbcd4e0e349c2a60000090 | E13: 2017/4/18 18:49:16 | F13: 14 | G13: 1 | H13: Educational value | I13: 70 | J13: 70
A14: United States | B14: Nokia Bell-Labs | C14: 50 | D14: 58dbce3a0e349c2a600000a3 | E14: 2017/4/19 15:41:1 | F14: 14 | G14: 1 | H14: Educational value | I14: 90 | J14: 90 | K14: 70 | L14: 0
A15: Singapore | B15: Center for Quantum Technologies | C15: 56 | D15: 58dbce4e0e349c2a600000a9 | E15: 2017/4/19 1:4:53 | F15: 14 | G15: 1 | H15: Educational value | I15: 50 | J15: 80 | K15: 60 | L15: 60 | R15: Interdisciplinary training | S15: Biologist
A16: Netherlands | B16: QuSoft/CWI/Univ of Amsterdam | C16: 50 | D16: 58dbce730e349c2a600000b5 | E16: 2017/3/29 15:16:5 | F16: 14 | G16: 1 | H16: Educational value
A17: United States | D17: 58dbd02b0e349c2a60000182 | E17: 2017/3/29 15:45:35 | F17: 14 | G17: 1 | H17: Educational value | I17: 80 | J17: 80 | K17: 60
A18: Poland | B18: ICFO | C18: 61 | D18: 58dbd03e0e349c2a60000193 | E18: 2017/4/20 11:9:15 | F18: 14 | G18: 1 | H18: Educational value | I18: 50 | J18: 50 | K18: 100 | L18: 0
A19: Netherlands | B19: University of Groningen | C19: 46 | D19: 58dbd0cc0e349c2a600001b7 | E19: 2017/3/30 8:26:6 | F19: 14 | G19: 1 | H19: Educational value | K19: 80
A20: United States | B20: University of Southern California | C20: 40 | D20: 58dbd2120e349c2a60000222 | E20: 2017/3/29 17:17:42 | F20: 14 | G20: 1 | H20: Educational value | I20: 90 | J20: 90
A21: Italy | B21: Universita Roma Tre | C21: 38 | D21: 58dbd49f0e349c2a60000327 | E21: 2017/5/5 13:51:13 | F21: 14 | G21: 1 | H21: Educational value | I21: 20 | J21: 70 | K21: 20
A22: Malta | B22: Physics | C22: 38 | D22: 58dbe0770e349c2a6000060b | E22: 2017/4/28 15:29:56 | F22: 14 | G22: 1 | H22: Educational value | I22: 100 | J22: 90
B23: ibm | D23: 58dbe2a90e349c2a60000637 | E23: 2017/3/29 16:40:2 | F23: 14 | G23: 1 | H23: Educational value
A24: United States | B24: Boston University- Dept. of ECE | C24: 58 | D24: 58dbe4610e349c2a600006e6 | E24: 2017/3/31 14:47:54 | F24: 14 | G24: 1 | H24: Educational value | I24: 60 | J24: 80 | K24: 100
A25: United States | C25: 45 | D25: 58dbec9f0e349c2a600007ec | E25: 2017/5/7 5:12:33 | F25: 14 | G25: 1 | H25: Educational value | I25: 70 | J25: 60 | R25: Better to have a remotely accessible machine (as already exists)
A26: Russian Federation | B26: Kazan Federal University- professor | C26: 63 | D26: 58dbfaea0e349c2a60000871 | E26: 2017/4/23 19:28:18 | F26: 14 | G26: 1 | H26: Educational value | I26: 50 | J26: 50
A27: United States | B27: Microsoft | C27: 59 | D27: 58dc04140e349c2a6000090f | E27: 2017/3/30 3:14:15 | F27: 14 | G27: 1 | H27: Educational value | I27: 80 | J27: 80 | K27: 40
A28: France | B28: CNRS - PCQC | C28: 39 | D28: 58dc0c680e349c2a60000954 | E28: 2017/3/29 19:58:37 | F28: 14 | G28: 1 | H28: Educational value | I28: 80 | J28: 80
A29: Canada | B29: D-Wave Systems Inc. | C29: 50 | D29: 58dc152d0e349c2a60000a48 | E29: 2017/3/29 20:35:47 | F29: 14 | G29: 1 | H29: Educational value
A30: United States | B30: Microsoft Research | C30: 36 | D30: 58dc19a20e349c2a60000ae0 | E30: 2017/3/29 21:38:46 | F30: 14 | G30: 1 | H30: Educational value | I30: 20 | J30: 100
A31: Italy | B31: Universita degli Studi di Milano- Dept. Comp. Sci. | C31: 51 | D31: 58dc29b80e349c2a60000d4c | E31: 2017/3/29 21:47:50 | F31: 14 | G31: 1 | H31: Educational value
A32: United States | B32: Sandia National Labs | C32: 40 | D32: 58dc2de20e349c2a60000dda | E32: 2017/3/29 22:18:34 | F32: 14 | G32: 1 | H32: Educational value | I32: 30 | J32: 100 | K32: 70
A33: Australia | B33: University of Sydney | C33: 33 | D33: 58dc31340e349c2a60000e24 | E33: 2017/3/29 23:20:6 | F33: 14 | G33: 1 | H33: Educational value | I33: 50 | J33: 100
A34: Spain | B34: Universitat Autonoma de Barcelona | C34: 47 | D34: 58dc3c050e349c2a60000f57 | E34: 2017/4/14 18:0:41 | F34: 14 | G34: 1 | H34: Educational value | I34: 60 | J34: 80 | K34: 60
A35: Singapore | B35: Centre for Quantum Technologies- National Universtiy of Singapore | C35: 40+ | D35: 58dc8f390e349c2a6000135a | E35: 2017/5/12 3:33:55 | F35: 14 | G35: 1 | H35: Educational value | I35: 70 | J35: 70
A36: United Kingdom | B36: University of Cambridge | C36: 38 | D36: 58dd39ba893db95b5c000583 | E36: 2017/4/1 16:13:28 | F36: 14 | G36: 1 | H36: Educational value | I36: 75 | J36: 65
A37: United Kingdom | B37: University College London | C37: 74 | D37: 58de3f1a893db95b5c000cac | E37: 2017/3/31 12:35:23 | F37: 14 | G37: 1 | H37: Educational value | I37: 80 | J37: 90 | K37: 70 | R37: Education in quantum processes and quantum chemistry | S37: Material Sciences
A38: Austria | B38: University of Innsbruck | C38: 36 | D38: 58ded299f2d9f720620004bb | E38: 2017/3/31 22:47:3 | F38: 14 | G38: 1 | H38: Educational value | I38: 80 | J38: 100 | K38: 50
A39: United Kingdom | B39: Loughborough University | C39: 53 | D39: 58def721f2d9f72062000604 | E39: 2017/4/24 11:14:58 | F39: 14 | G39: 1 | H39: Educational value | I39: 10 | J39: 80
A40: Canada | B40: Anyon Systems Inc. | C40: 33 | D40: 58e1129318298df04d00003b | E40: 2017/5/5 15:51:42 | F40: 14 | G40: 1 | H40: Educational value
A41: Spain | C41: 42 | D41: 58e205ac6c7ae40b360001b9 | E41: 2017/4/4 9:8:58 | F41: 14 | G41: 1 | H41: Educational value | I41: 80 | J41: 80 | K41: 80
A42: United Kingdom | B42: Innovate UK | C42: 34 | D42: 58e368997ceceb751a0007ec | E42: 2017/4/10 15:29:10 | F42: 14 | G42: 1 | H42: Educational value
A43: Sweden | B43: Chalmers University of Technology | C43: 39 | D43: 58e36a6b7ceceb751a000804 | E43: 2017/5/12 15:13:22 | F43: 14 | G43: 1 | H43: Educational value | I43: 100 | J43: 100
A44: Germany | B44: SAP | D44: 58e4f37f7b67cab57f0004f2 | E44: 2017/4/26 7:53:58 | F44: 14 | G44: 1 | H44: Educational value | I44: 75 | J44: 75 | R44: more than just training software developers to use quantum computers- they should also think differently. probably a new range of mathematic- on top of software engineering | S44: well known among physicists- not considered by computer scientists
A45: Germany | B45: JGU Mainz | C45: 38 | D45: 58e5f495ca034e7c6b00026d | E45: 2017/4/24 8:45:10 | F45: 14 | G45: 1 | H45: Educational value | I45: 80 | J45: 100
A46: United States | B46: Intel Corporation | C46: 45 | D46: 58ece8f41f375cbb71000563 | E46: 2017/4/11 14:48:26 | F46: 14 | G46: 1 | H46: Educational value | I46: 90 | K46: 90
A47: United States | B47: USC | C47: 49 | D47: 58f2bc26b46e82714e0000c2 | E47: 2017/4/16 1:1:47 | F47: 14 | G47: 1 | H47: Educational value
A48: Australia | B48: QxBranch | C48: 39 | D48: 58f597be16df98d816000218 | E48: 2017/4/18 5:39:42 | F48: 14 | G48: 1 | H48: Educational value | I48: 75 | J48: 100
A49: United States | B49: University Professor | D49: 58f5a1be16df98d81600027f | E49: 2017/4/30 22:2:49 | F49: 14 | G49: 1 | H49: Educational value | I49: 90 | J49: 100
A50: Italy | B50: Universita degli Studi di Napoli Federico II | C50: 42 | D50: 58f645e116df98d8160007d6 | E50: 2017/4/18 17:29:34 | F50: 14 | G50: 1 | H50: Educational value | I50: 100 | J50: 80 | K50: 90
A51: United States | B51: Quantum AI Laboratory- NASA Ames Research Center | C51: 34 | D51: 58f6466316df98d8160007e8 | E51: 2017/4/20 1:34:30 | F51: 14 | G51: 1 | H51: Educational value
A52: United States | B52: SSH | C52: 57 | D52: 58f6477516df98d816000823 | E52: 2017/4/18 17:25:18 | F52: 14 | G52: 1 | H52: Educational value | I52: 60 | J52: 70 | K52: 30
A53: United States | B53: MIT | C53: 56 | D53: 58f653ac16df98d816000a1a | E53: 2017/5/5 17:36:18 | F53: 14 | G53: 1 | H53: Educational value | I53: 70 | J53: 90
D54: 58f6545b16df98d816000a30 | E54: 2017/4/18 19:1:1 | F54: 14 | G54: 1 | H54: Educational value | I54: 90 | J54: 90
A55: Sweden | B55: Stockholm University | C55: 44 | D55: 58f6573c16df98d816000b1e | E55: 2017/5/12 23:19:9 | F55: 14 | G55: 1 | H55: Educational value | I55: 80 | J55: 90 | K55: 30
A56: Finland | B56: Aalto University | C56: 47 | D56: 58f667a816df98d816000dd3 | E56: 2017/4/18 20:18:52 | F56: 14 | G56: 1 | H56: Educational value | I56: 100 | J56: 100 | K56: 0
A57: United States | B57: Google | C57: 44 | D57: 58f6727b16df98d816000ea3 | E57: 2017/4/29 0:31:3 | F57: 14 | G57: 1 | H57: Educational value
A58: Israel | B58: Hebrew University of Jerusalem | C58: 61 | D58: 58f6fd33d1c989b104000632 | E58: 2017/4/19 6:25:16 | F58: 14 | G58: 1 | H58: Educational value
A59: France | B59: Nokia Bell Labs | D59: 58f7180cd1c989b1040007af | E59: 2017/4/20 10:26:40 | F59: 14 | G59: 1 | H59: Educational value | I59: 80 | J59: 80 | L59: 50 | R59: Develop a \quantum way-of-thinking\" in the brain of the future scientists and engineers"
A60: United Kingdom | B60: UCL | C60: 36 | D60: 58f75bb2d1c989b104000a11 | E60: 2017/4/19 14:37:28 | F60: 14 | G60: 1 | H60: Educational value | I60: 80 | J60: 60
A61: Sweden | B61: stockholm university | C61: 65 | D61: 58f75f9cd1c989b104000a4c | E61: 2017/4/19 13:15:44 | F61: 14 | G61: 1 | H61: Educational value
A62: Germany | B62: NMTC | C62: 53 | D62: 58f79331d1c989b104000ec6 | E62: 2017/4/19 17:5:22 | F62: 14 | G62: 1 | H62: Educational value
A63: Italy | B63: Politecnico di Milano | C63: 44 | D63: 58f8c58882c98b2370000893 | E63: 2017/4/29 22:16:10 | F63: 14 | G63: 1 | H63: Educational value | I63: 70 | J63: 90 | K63: 20
A64: France | B64: CNRS- UPMC- ENS | C64: 71 | D64: 58f8e97182c98b2370000b0e | E64: 2017/5/5 17:9:16 | F64: 14 | G64: 1 | H64: Educational value | I64: 80 | J64: 100
A65: United States | B65: IntControl LLC | C65: 47 | D65: 58f9f72ddce69e95310006d6 | E65: 2017/4/25 18:31:39 | F65: 14 | G65: 1 | H65: Educational value | I65: 70 | J65: 100
A66: United Kingdom | B66: None | C66: 46 | D66: 58fa4404dce69e9531000a61 | E66: 2017/4/28 16:33:57 | F66: 14 | G66: 1 | H66: Educational value | I66: 65 | J66: 85 | K66: 70
A67: Germany | B67: ASML | C67: 54 | D67: 58ff77bc1647f8e45f00086a | E67: 2017/4/25 16:55:27 | F67: 14 | G67: 1 | H67: Educational value | I67: 58 | J67: 71 | K67: 0
A68: Finland | B68: Aalto University | C68: 40 | D68: 5904f5b5b78ea63806000843 | E68: 2017/4/29 20:50:50 | F68: 14 | G68: 1 | H68: Educational value
A69: Japan | B69: The University of Tokyo | C69: 49 | D69: 5905508ce3cf73976b00018f | E69: 2017/4/30 4:27:47 | F69: 14 | G69: 1 | H69: Educational value | I69: 80 | J69: 90 | K69: 20
A70: Greece | B70: Technical University of Crete | C70: 41 | D70: 5908d40785d9a7453b000824 | E70: 2017/5/2 19:43:35 | F70: 14 | G70: 1 | H70: Educational value | I70: 90 | J70: 80 | K70: 80
A71: Hungary | B71: Wigner Research Centre for Physics | C71: 39 | D71: 590cc7306e214ad410000add | E71: 2017/5/5 20:34:58 | F71: 14 | G71: 1 | H71: Educational value | I71: 40 | J71: 60 | K71: 60
A72: Finland | B72: Aalto University | C72: 59 | D72: 590dd8d776c6fbf97c000472 | E72: 2017/5/6 20:21:9 | F72: 14 | G72: 1 | H72: Educational value | I72: 70 | J72: 90 | K72: 60
A73: Italy | B73: LFoundry s.r.l. | C73: 55 | D73: 5910260330ff4fca44000249 | E73: 2017/5/8 8:10:56 | F73: 14 | G73: 1 | H73: Educational value
A74: United Kingdom | B74: Cardiff University | C74: 45 | D74: 5910a43930ff4fca44000627 | E74: 2017/5/8 19:59:12 | F74: 14 | G74: 1 | H74: Educational value | I74: 80 | J74: 80 | K74: 60
A75: Netherlands | B75: Director at QuTech | C75: 42 | D75: 5911d11356953dae2b0004fb | E75: 2017/5/9 15:53:31 | F75: 14 | G75: 1 | H75: Educational value | I75: 25 | J75: 40
A76: Netherlands | B76: Delft University of Technology | C76: 24 | D76: 5911da0c56953dae2b0005a7 | E76: 2017/5/9 15:23:53 | F76: 14 | G76: 1 | H76: Educational value
A77: Netherlands | B77: QuTech- TU Delft | C77: 25 | D77: 5911e10256953dae2b00079d | E77: 2017/5/9 16:11:27 | F77: 14 | G77: 1 | H77: Educational value | I77: 80 | J77: 80
A78: Netherlands | B78: QuTech TUDelft | C78: 36 | D78: 5912009156953dae2b000b30 | E78: 2017/5/9 18:10:41 | F78: 14 | G78: 1 | H78: Educational value
A79: Netherlands | B79: TNO | C79: 41 | D79: 5912ade8bdf6d44f18000295 | E79: 2017/5/10 6:52:55 | F79: 14 | G79: 1 | H79: Educational value | I79: 100 | J79: 100
A80: Netherlands | B80: TU Delft | C80: 33 | D80: 5912c704bdf6d44f18000402 | E80: 2017/5/10 8:19:27 | F80: 14 | G80: 1 | H80: Educational value | I80: 80 | J80: 40 | K80: 60
A81: Netherlands | B81: Delft University of Technology | C81: 26 | D81: 5912ebe1bdf6d44f1800061b | E81: 2017/5/10 10:37:46 | F81: 14 | G81: 1 | H81: Educational value
A82: United Kingdom | B82: University of Sussex | C82: 23 | D82: 5912f6e7bdf6d44f18000711 | E82: 2017/5/10 12:12:37 | F82: 14 | G82: 1 | H82: Educational value
A83: United Kingdom | B83: Heriot-Watt University | C83: 44 | D83: 59130103bdf6d44f180007b7 | E83: 2017/5/10 14:9:50 | F83: 14 | G83: 1 | H83: Educational value | I83: 70 | J83: 80 | K83: 40
A84: Switzerland | B84: ETH Zurich | C84: 27 | D84: 59130228bdf6d44f1800080e | E84: 2017/5/10 12:36:23 | F84: 14 | G84: 1 | H84: Educational value | I84: 80 | J84: 80
A85: Greece | B85: Universitat Autonoma de Barcelona | C85: 36 | D85: 59130582bdf6d44f180008ea | E85: 2017/5/10 14:5:35 | F85: 14 | G85: 1 | H85: Educational value | I85: 85 | J85: 85 | K85: 85
A86: United Kingdom | B86: University of Sheffield | C86: 54 | D86: 5913069abdf6d44f1800091a | E86: 2017/5/10 12:50:0 | F86: 14 | G86: 1 | H86: Educational value | I86: 70 | J86: 80 | K86: 60
B87: HHU Duesseldorf | C87: 22 | D87: 5913085abdf6d44f1800096f | E87: 2017/5/10 15:16:7 | F87: 14 | G87: 1 | H87: Educational value | I87: 60 | J87: 80 | K87: 60
A88: United Kingdom | B88: University of Strathclyde | C88: 37 | D88: 59130bdcbdf6d44f18000a81 | E88: 2017/5/10 13:13:20 | F88: 14 | G88: 1 | H88: Educational value
A89: France | B89: Aix-Marseille Universite | C89: 38 | D89: 59130e6ebdf6d44f18000b39 | E89: 2017/5/10 13:25:11 | F89: 14 | G89: 1 | H89: Educational value
A90: United Kingdom | B90: Imperial College | C90: 25 | D90: 59132a29bdf6d44f18000fc4 | E90: 2017/5/10 15:49:32 | F90: 14 | G90: 1 | H90: Educational value | I90: 10 | J90: 70 | K90: 80
A91: Sweden | B91: Chalmers University of Technology | C91: 26 | D91: 5913342bbdf6d44f18001106 | E91: 2017/5/10 15:46:33 | F91: 14 | G91: 1 | H91: Educational value
A92: United Kingdom | B92: University of Sussex | C92: 33 | D92: 59134dbebdf6d44f1800133e | E92: 2017/5/10 17:54:57 | F92: 14 | G92: 1 | H92: Educational value
A93: Netherlands | B93: QuTech | C93: 40 | D93: 591358f8bdf6d44f1800142a | E93: 2017/5/10 18:52:39 | F93: 14 | G93: 1 | H93: Educational value | I93: 100 | J93: 100
A94: Switzerland | B94: University of Geneva | C94: 49 | D94: 59141c947284506612000337 | E94: 2017/5/11 8:57:52 | F94: 14 | G94: 1 | H94: Educational value | I94: 50 | J94: 50
A95: Finland | B95: University of Turku | C95: 43 | D95: 591463e0728450661200066e | E95: 2017/5/11 13:39:22 | F95: 14 | G95: 1 | H95: Educational value
A96: Greece | B96: Democritus University of Thrace | C96: 57 | D96: 5914aca27284506612000968 | E96: 2017/5/11 19:27:22 | F96: 14 | G96: 1 | H96: Educational value | I96: 80 | J96: 100
A97: Switzerland | B97: ETH Zurich | C97: 29 | D97: 5915606c3b6627457c000516 | E97: 2017/5/12 7:35:55 | F97: 14 | G97: 1 | H97: Educational value
A98: Canada | B98: ETH Zurich | C98: 21 | D98: 59156ba73b6627457c0005de | E98: 2017/5/12 8:33:16 | F98: 14 | G98: 1 | H98: Educational value | I98: 60 | J98: 70 | K98: 100
A99: Estonia | B99: ETH Zurich | C99: 28 | D99: 5915e2573b6627457c000bb7 | E99: 2017/5/12 16:55:46 | F99: 14 | G99: 1 | H99: Educational value | I99: 50 | J99: 70
A100: Spain | B100: University of the Basque Country | C100: 53 | D100: 5916d8b05d9b3ef7710004cc | E100: 2017/5/13 11:7:27 | F100: 14 | G100: 1 | H100: Educational value | I100: 100 | J100: 100 | K100: 0
H154: `

Sheet Charting
A1: =Foglio1!$Q$1 -> Cat9 | B1: =Foglio1!$P$1 -> Cat8 | C1: =Foglio1!$O$1 -> Cat7 | D1: =Foglio1!$N$1 -> Cat6 | E1: =Foglio1!$M$1 -> Cat5 | F1: =Foglio1!$L$1 -> Other known educational value | G1: =Foglio1!$K$1 -> Unknown yet | H1: =Foglio1!$J$1 -> Means to train quantum engineers | I1: =Foglio1!$I$1 -> Platform on which software developers can learn | M1: Bin size | N1: Counts in bin: | O1: =Foglio1!Q1 -> Cat9 | P1: =Foglio1!P1 -> Cat8 | Q1: =Foglio1!O1 -> Cat7 | R1: =Foglio1!N1 -> Cat6 | S1: =Foglio1!M1 -> Cat5 | T1: =Foglio1!L1 -> Other known educational value | U1: =Foglio1!K1 -> Unknown yet | V1: =Foglio1!J1 -> Means to train quantum engineers | W1: =Foglio1!I1 -> Platform on which software developers can learn
A2: =$M$2*INT('Plotting pos of raw data points'!I2/$M$2) -> -20 | B2: =$M$2*INT('Plotting pos of raw data points'!H2/$M$2) -> -20 | C2: =$M$2*INT('Plotting pos of raw data points'!G2/$M$2) -> -20 | D2: =$M$2*INT('Plotting pos of raw data points'!F2/$M$2) -> -20 | E2: =$M$2*INT('Plotting pos of raw data points'!E2/$M$2) -> -20 | F2: =$M$2*INT('Plotting pos of raw data points'!D2/$M$2) -> -20 | G2: =$M$2*INT('Plotting pos of raw data points'!C2/$M$2) -> -20 | H2: =$M$2*INT('Plotting pos of raw data points'!B2/$M$2) -> -20 | I2: =$M$2*INT('Plotting pos of raw data points'!A2/$M$2) -> -20 | M2: 20 | N2: No answer given | O2: =COUNTIF(#REF!,"<0") ->  | P2: =COUNTIF(#REF!,"<0") ->  | Q2: =COUNTIF(C:C,"<0") -> 99 | R2: 99 | S2: 99 | T2: 93 | U2: 59 | V2: 28 | W2: 27
A3: =$M$2*INT('Plotting pos of raw data points'!I3/$M$2) -> -20 | B3: =$M$2*INT('Plotting pos of raw data points'!H3/$M$2) -> -20 | C3: =$M$2*INT('Plotting pos of raw data points'!G3/$M$2) -> -20 | D3: =$M$2*INT('Plotting pos of raw data points'!F3/$M$2) -> -20 | E3: =$M$2*INT('Plotting pos of raw data points'!E3/$M$2) -> -20 | F3: =$M$2*INT('Plotting pos of raw data points'!D3/$M$2) -> 100 | G3: =$M$2*INT('Plotting pos of raw data points'!C3/$M$2) -> -20 | H3: =$M$2*INT('Plotting pos of raw data points'!B3/$M$2) -> 100 | I3: =$M$2*INT('Plotting pos of raw data points'!A3/$M$2) -> 100 | M3: Scale | N3: 0 | O3: =COUNTIF(#REF!,"="&$N3) ->  | P3: =COUNTIF(#REF!,"="&$N3) ->  | Q3: =COUNTIF(C:C,"="&$N3) -> 0 | R3: 0 | S3: 0 | T3: 3 | U3: 6 | V3: 0 | W3: 2
A4: =$M$2*INT('Plotting pos of raw data points'!I4/$M$2) -> -20 | B4: =$M$2*INT('Plotting pos of raw data points'!H4/$M$2) -> -20 | C4: =$M$2*INT('Plotting pos of raw data points'!G4/$M$2) -> -20 | D4: =$M$2*INT('Plotting pos of raw data points'!F4/$M$2) -> -20 | E4: =$M$2*INT('Plotting pos of raw data points'!E4/$M$2) -> -20 | F4: =$M$2*INT('Plotting pos of raw data points'!D4/$M$2) -> -20 | G4: =$M$2*INT('Plotting pos of raw data points'!C4/$M$2) -> 0 | H4: =$M$2*INT('Plotting pos of raw data points'!B4/$M$2) -> 80 | I4: =$M$2*INT('Plotting pos of raw data points'!A4/$M$2) -> 80 | M4: 60 | N4: 20 | O4: =COUNTIF(#REF!,"="&$N4) ->  | P4: =COUNTIF(#REF!,"="&$N4) ->  | Q4: 0 | R4: 0 | S4: 0 | T4: 0 | U4: 6 | V4: 0 | W4: 4
A5: =$M$2*INT('Plotting pos of raw data points'!I5/$M$2) -> -20 | B5: =$M$2*INT('Plotting pos of raw data points'!H5/$M$2) -> -20 | C5: =$M$2*INT('Plotting pos of raw data points'!G5/$M$2) -> -20 | D5: =$M$2*INT('Plotting pos of raw data points'!F5/$M$2) -> -20 | E5: =$M$2*INT('Plotting pos of raw data points'!E5/$M$2) -> -20 | F5: =$M$2*INT('Plotting pos of raw data points'!D5/$M$2) -> -20 | G5: =$M$2*INT('Plotting pos of raw data points'!C5/$M$2) -> 0 | H5: =$M$2*INT('Plotting pos of raw data points'!B5/$M$2) -> 100 | I5: =$M$2*INT('Plotting pos of raw data points'!A5/$M$2) -> 80 | N5: 40 | O5: =COUNTIF(#REF!,"="&$N5) ->  | P5: =COUNTIF(#REF!,"="&$N5) ->  | Q5: 0 | R5: 0 | S5: 0 | T5: 1 | U5: 3 | V5: 6 | W5: 10
A6: =$M$2*INT('Plotting pos of raw data points'!I6/$M$2) -> -20 | B6: =$M$2*INT('Plotting pos of raw data points'!H6/$M$2) -> -20 | C6: =$M$2*INT('Plotting pos of raw data points'!G6/$M$2) -> -20 | D6: =$M$2*INT('Plotting pos of raw data points'!F6/$M$2) -> -20 | E6: =$M$2*INT('Plotting pos of raw data points'!E6/$M$2) -> -20 | F6: =$M$2*INT('Plotting pos of raw data points'!D6/$M$2) -> -20 | G6: =$M$2*INT('Plotting pos of raw data points'!C6/$M$2) -> 60 | H6: =$M$2*INT('Plotting pos of raw data points'!B6/$M$2) -> 60 | I6: =$M$2*INT('Plotting pos of raw data points'!A6/$M$2) -> 40 | M6: Total number of respondents to question | N6: 60 | O6: =COUNTIF(#REF!,"="&$N6) ->  | P6: =COUNTIF(#REF!,"="&$N6) ->  | Q6: 0 | R6: 0 | S6: 0 | T6: 1 | U6: 14 | V6: 14 | W6: 19
A7: =$M$2*INT('Plotting pos of raw data points'!I7/$M$2) -> -20 | B7: =$M$2*INT('Plotting pos of raw data points'!H7/$M$2) -> -20 | C7: =$M$2*INT('Plotting pos of raw data points'!G7/$M$2) -> -20 | D7: =$M$2*INT('Plotting pos of raw data points'!F7/$M$2) -> -20 | E7: =$M$2*INT('Plotting pos of raw data points'!E7/$M$2) -> -20 | F7: =$M$2*INT('Plotting pos of raw data points'!D7/$M$2) -> -20 | G7: =$M$2*INT('Plotting pos of raw data points'!C7/$M$2) -> 20 | H7: =$M$2*INT('Plotting pos of raw data points'!B7/$M$2) -> 80 | I7: =$M$2*INT('Plotting pos of raw data points'!A7/$M$2) -> 60 | M7: =COUNTA(Foglio1!$D$2:$D$1002) -> 99 | N7: 80 | O7: =COUNTIF(#REF!,"="&$N7) ->  | P7: =COUNTIF(#REF!,"="&$N7) ->  | Q7: 0 | R7: 0 | S7: 0 | T7: 0 | U7: 7 | V7: 32 | W7: 27
A8: =$M$2*INT('Plotting pos of raw data points'!I8/$M$2) -> -20 | B8: =$M$2*INT('Plotting pos of raw data points'!H8/$M$2) -> -20 | C8: =$M$2*INT('Plotting pos of raw data points'!G8/$M$2) -> -20 | D8: =$M$2*INT('Plotting pos of raw data points'!F8/$M$2) -> -20 | E8: =$M$2*INT('Plotting pos of raw data points'!E8/$M$2) -> -20 | F8: =$M$2*INT('Plotting pos of raw data points'!D8/$M$2) -> -20 | G8: =$M$2*INT('Plotting pos of raw data points'!C8/$M$2) -> -20 | H8: =$M$2*INT('Plotting pos of raw data points'!B8/$M$2) -> 80 | I8: =$M$2*INT('Plotting pos of raw data points'!A8/$M$2) -> 80 | M8: Number of histograms | N8: 100 | O8: =COUNTIF(#REF!,"="&$N8) ->  | P8: =COUNTIF(#REF!,"="&$N8) ->  | Q8: 0 | R8: 0 | S8: 0 | T8: 1 | U8: 4 | V8: 19 | W8: 10
A9: =$M$2*INT('Plotting pos of raw data points'!I9/$M$2) -> -20 | B9: =$M$2*INT('Plotting pos of raw data points'!H9/$M$2) -> -20 | C9: =$M$2*INT('Plotting pos of raw data points'!G9/$M$2) -> -20 | D9: =$M$2*INT('Plotting pos of raw data points'!F9/$M$2) -> -20 | E9: =$M$2*INT('Plotting pos of raw data points'!E9/$M$2) -> -20 | F9: =$M$2*INT('Plotting pos of raw data points'!D9/$M$2) -> -20 | G9: =$M$2*INT('Plotting pos of raw data points'!C9/$M$2) -> -20 | H9: =$M$2*INT('Plotting pos of raw data points'!B9/$M$2) -> 100 | I9: =$M$2*INT('Plotting pos of raw data points'!A9/$M$2) -> 100 | M9: 3
A10: =$M$2*INT('Plotting pos of raw data points'!I10/$M$2) -> -20 | B10: =$M$2*INT('Plotting pos of raw data points'!H10/$M$2) -> -20 | C10: =$M$2*INT('Plotting pos of raw data points'!G10/$M$2) -> -20 | D10: =$M$2*INT('Plotting pos of raw data points'!F10/$M$2) -> -20 | E10: =$M$2*INT('Plotting pos of raw data points'!E10/$M$2) -> -20 | F10: =$M$2*INT('Plotting pos of raw data points'!D10/$M$2) -> -20 | G10: =$M$2*INT('Plotting pos of raw data points'!C10/$M$2) -> -20 | H10: =$M$2*INT('Plotting pos of raw data points'!B10/$M$2) -> -20 | I10: =$M$2*INT('Plotting pos of raw data points'!A10/$M$2) -> -20
A11: =$M$2*INT('Plotting pos of raw data points'!I11/$M$2) -> -20 | B11: =$M$2*INT('Plotting pos of raw data points'!H11/$M$2) -> -20 | C11: =$M$2*INT('Plotting pos of raw data points'!G11/$M$2) -> -20 | D11: =$M$2*INT('Plotting pos of raw data points'!F11/$M$2) -> -20 | E11: =$M$2*INT('Plotting pos of raw data points'!E11/$M$2) -> -20 | F11: =$M$2*INT('Plotting pos of raw data points'!D11/$M$2) -> 0 | G11: =$M$2*INT('Plotting pos of raw data points'!C11/$M$2) -> 0 | H11: =$M$2*INT('Plotting pos of raw data points'!B11/$M$2) -> 100 | I11: =$M$2*INT('Plotting pos of raw data points'!A11/$M$2) -> 100 | N11: As a fraction of total responses
A12: =$M$2*INT('Plotting pos of raw data points'!I12/$M$2) -> -20 | B12: =$M$2*INT('Plotting pos of raw data points'!H12/$M$2) -> -20 | C12: =$M$2*INT('Plotting pos of raw data points'!G12/$M$2) -> -20 | D12: =$M$2*INT('Plotting pos of raw data points'!F12/$M$2) -> -20 | E12: =$M$2*INT('Plotting pos of raw data points'!E12/$M$2) -> -20 | F12: =$M$2*INT('Plotting pos of raw data points'!D12/$M$2) -> -20 | G12: =$M$2*INT('Plotting pos of raw data points'!C12/$M$2) -> 100 | H12: =$M$2*INT('Plotting pos of raw data points'!B12/$M$2) -> 40 | I12: =$M$2*INT('Plotting pos of raw data points'!A12/$M$2) -> 40 | N12: Plus offset:
A13: =$M$2*INT('Plotting pos of raw data points'!I13/$M$2) -> -20 | B13: =$M$2*INT('Plotting pos of raw data points'!H13/$M$2) -> -20 | C13: =$M$2*INT('Plotting pos of raw data points'!G13/$M$2) -> -20 | D13: =$M$2*INT('Plotting pos of raw data points'!F13/$M$2) -> -20 | E13: =$M$2*INT('Plotting pos of raw data points'!E13/$M$2) -> -20 | F13: =$M$2*INT('Plotting pos of raw data points'!D13/$M$2) -> -20 | G13: =$M$2*INT('Plotting pos of raw data points'!C13/$M$2) -> -20 | H13: =$M$2*INT('Plotting pos of raw data points'!B13/$M$2) -> 60 | I13: =$M$2*INT('Plotting pos of raw data points'!A13/$M$2) -> 60 | N13: =N2 -> No answer given | O13: =O2/O$33 ->  | R13: 19.8 | S13: 14.14285714 | T13: 15.5 | U13: 1.475 | V13: 0.3943661972 | W13: 0.375
A14: =$M$2*INT('Plotting pos of raw data points'!I14/$M$2) -> -20 | B14: =$M$2*INT('Plotting pos of raw data points'!H14/$M$2) -> -20 | C14: =$M$2*INT('Plotting pos of raw data points'!G14/$M$2) -> -20 | D14: =$M$2*INT('Plotting pos of raw data points'!F14/$M$2) -> -20 | E14: =$M$2*INT('Plotting pos of raw data points'!E14/$M$2) -> -20 | F14: =$M$2*INT('Plotting pos of raw data points'!D14/$M$2) -> 0 | G14: =$M$2*INT('Plotting pos of raw data points'!C14/$M$2) -> 60 | H14: =$M$2*INT('Plotting pos of raw data points'!B14/$M$2) -> 80 | I14: =$M$2*INT('Plotting pos of raw data points'!A14/$M$2) -> 80 | N14: [0,20%) | O14: =O3/O$33 ->  | R14: 0 | S14: 0 | T14: 0.5 | U14: 0.15 | V14: 0 | W14: 0.02777777778
A15: =$M$2*INT('Plotting pos of raw data points'!I15/$M$2) -> -20 | B15: =$M$2*INT('Plotting pos of raw data points'!H15/$M$2) -> -20 | C15: =$M$2*INT('Plotting pos of raw data points'!G15/$M$2) -> -20 | D15: =$M$2*INT('Plotting pos of raw data points'!F15/$M$2) -> -20 | E15: =$M$2*INT('Plotting pos of raw data points'!E15/$M$2) -> -20 | F15: =$M$2*INT('Plotting pos of raw data points'!D15/$M$2) -> 60 | G15: =$M$2*INT('Plotting pos of raw data points'!C15/$M$2) -> 60 | H15: =$M$2*INT('Plotting pos of raw data points'!B15/$M$2) -> 80 | I15: =$M$2*INT('Plotting pos of raw data points'!A15/$M$2) -> 40 | N15: [20%,40%) | O15: =O4/O$33 ->  | R15: 0 | S15: 0 | T15: 0 | U15: 0.15 | V15: 0 | W15: 0.05555555556
A16: =$M$2*INT('Plotting pos of raw data points'!I16/$M$2) -> -20 | B16: =$M$2*INT('Plotting pos of raw data points'!H16/$M$2) -> -20 | C16: =$M$2*INT('Plotting pos of raw data points'!G16/$M$2) -> -20 | D16: =$M$2*INT('Plotting pos of raw data points'!F16/$M$2) -> -20 | E16: =$M$2*INT('Plotting pos of raw data points'!E16/$M$2) -> -20 | F16: =$M$2*INT('Plotting pos of raw data points'!D16/$M$2) -> -20 | G16: =$M$2*INT('Plotting pos of raw data points'!C16/$M$2) -> -20 | H16: =$M$2*INT('Plotting pos of raw data points'!B16/$M$2) -> -20 | I16: =$M$2*INT('Plotting pos of raw data points'!A16/$M$2) -> -20 | N16: [40%,60%) | O16: =O5/O$33 ->  | R16: 0 | S16: 0 | T16: 0.1666666667 | U16: 0.075 | V16: 0.08450704225 | W16: 0.1388888889
A17: =$M$2*INT('Plotting pos of raw data points'!I17/$M$2) -> -20 | B17: =$M$2*INT('Plotting pos of raw data points'!H17/$M$2) -> -20 | C17: =$M$2*INT('Plotting pos of raw data points'!G17/$M$2) -> -20 | D17: =$M$2*INT('Plotting pos of raw data points'!F17/$M$2) -> -20 | E17: =$M$2*INT('Plotting pos of raw data points'!E17/$M$2) -> -20 | F17: =$M$2*INT('Plotting pos of raw data points'!D17/$M$2) -> -20 | G17: =$M$2*INT('Plotting pos of raw data points'!C17/$M$2) -> 60 | H17: =$M$2*INT('Plotting pos of raw data points'!B17/$M$2) -> 80 | I17: =$M$2*INT('Plotting pos of raw data points'!A17/$M$2) -> 80 | N17: [60%,80%) | O17: =O6/O$33 ->  | R17: 0 | S17: 0 | T17: 0.1666666667 | U17: 0.35 | V17: 0.1971830986 | W17: 0.2638888889
A18: =$M$2*INT('Plotting pos of raw data points'!I18/$M$2) -> -20 | B18: =$M$2*INT('Plotting pos of raw data points'!H18/$M$2) -> -20 | C18: =$M$2*INT('Plotting pos of raw data points'!G18/$M$2) -> -20 | D18: =$M$2*INT('Plotting pos of raw data points'!F18/$M$2) -> -20 | E18: =$M$2*INT('Plotting pos of raw data points'!E18/$M$2) -> -20 | F18: =$M$2*INT('Plotting pos of raw data points'!D18/$M$2) -> 0 | G18: =$M$2*INT('Plotting pos of raw data points'!C18/$M$2) -> 100 | H18: =$M$2*INT('Plotting pos of raw data points'!B18/$M$2) -> 40 | I18: =$M$2*INT('Plotting pos of raw data points'!A18/$M$2) -> 40 | N18: [80%,100%] | O18: =(O7+O8)/O$33 ->  | R18: 0 | S18: 0 | T18: 0.1666666667 | U18: 0.275 | V18: 0.7183098592 | W18: 0.5138888889
A19: =$M$2*INT('Plotting pos of raw data points'!I19/$M$2) -> -20 | B19: =$M$2*INT('Plotting pos of raw data points'!H19/$M$2) -> -20 | C19: =$M$2*INT('Plotting pos of raw data points'!G19/$M$2) -> -20 | D19: =$M$2*INT('Plotting pos of raw data points'!F19/$M$2) -> -20 | E19: =$M$2*INT('Plotting pos of raw data points'!E19/$M$2) -> -20 | F19: =$M$2*INT('Plotting pos of raw data points'!D19/$M$2) -> -20 | G19: =$M$2*INT('Plotting pos of raw data points'!C19/$M$2) -> 80 | H19: =$M$2*INT('Plotting pos of raw data points'!B19/$M$2) -> -20 | I19: =$M$2*INT('Plotting pos of raw data points'!A19/$M$2) -> -20
A20: =$M$2*INT('Plotting pos of raw data points'!I20/$M$2) -> -20 | B20: =$M$2*INT('Plotting pos of raw data points'!H20/$M$2) -> -20 | C20: =$M$2*INT('Plotting pos of raw data points'!G20/$M$2) -> -20 | D20: =$M$2*INT('Plotting pos of raw data points'!F20/$M$2) -> -20 | E20: =$M$2*INT('Plotting pos of raw data points'!E20/$M$2) -> -20 | F20: =$M$2*INT('Plotting pos of raw data points'!D20/$M$2) -> -20 | G20: =$M$2*INT('Plotting pos of raw data points'!C20/$M$2) -> -20 | H20: =$M$2*INT('Plotting pos of raw data points'!B20/$M$2) -> 80 | I20: =$M$2*INT('Plotting pos of raw data points'!A20/$M$2) -> 80 | N20: White space for plots
A21: =$M$2*INT('Plotting pos of raw data points'!I21/$M$2) -> -20 | B21: =$M$2*INT('Plotting pos of raw data points'!H21/$M$2) -> -20 | C21: =$M$2*INT('Plotting pos of raw data points'!G21/$M$2) -> -20 | D21: =$M$2*INT('Plotting pos of raw data points'!F21/$M$2) -> -20 | E21: =$M$2*INT('Plotting pos of raw data points'!E21/$M$2) -> -20 | F21: =$M$2*INT('Plotting pos of raw data points'!D21/$M$2) -> -20 | G21: =$M$2*INT('Plotting pos of raw data points'!C21/$M$2) -> 20 | H21: =$M$2*INT('Plotting pos of raw data points'!B21/$M$2) -> 60 | I21: =$M$2*INT('Plotting pos of raw data points'!A21/$M$2) -> 20 | N21: =N13 -> No answer given | O21: =1-O13 ->  | P21: =1-P13 ->  | Q21: =1-Q13 ->  | R21: -18.8 | S21: -13.14285714 | T21: -14.5 | U21: -0.475 | V21: 0.6056338028
A22: =$M$2*INT('Plotting pos of raw data points'!I22/$M$2) -> -20 | B22: =$M$2*INT('Plotting pos of raw data points'!H22/$M$2) -> -20 | C22: =$M$2*INT('Plotting pos of raw data points'!G22/$M$2) -> -20 | D22: =$M$2*INT('Plotting pos of raw data points'!F22/$M$2) -> -20 | E22: =$M$2*INT('Plotting pos of raw data points'!E22/$M$2) -> -20 | F22: =$M$2*INT('Plotting pos of raw data points'!D22/$M$2) -> -20 | G22: =$M$2*INT('Plotting pos of raw data points'!C22/$M$2) -> -20 | H22: =$M$2*INT('Plotting pos of raw data points'!B22/$M$2) -> 80 | I22: =$M$2*INT('Plotting pos of raw data points'!A22/$M$2) -> 100 | N22: [0,20%) | O22: =1-O14 ->  | R22: 1 | S22: 1 | T22: 0.5 | U22: 0.85 | V22: 1
A23: =$M$2*INT('Plotting pos of raw data points'!I23/$M$2) -> -20 | B23: =$M$2*INT('Plotting pos of raw data points'!H23/$M$2) -> -20 | C23: =$M$2*INT('Plotting pos of raw data points'!G23/$M$2) -> -20 | D23: =$M$2*INT('Plotting pos of raw data points'!F23/$M$2) -> -20 | E23: =$M$2*INT('Plotting pos of raw data points'!E23/$M$2) -> -20 | F23: =$M$2*INT('Plotting pos of raw data points'!D23/$M$2) -> -20 | G23: =$M$2*INT('Plotting pos of raw data points'!C23/$M$2) -> -20 | H23: =$M$2*INT('Plotting pos of raw data points'!B23/$M$2) -> -20 | I23: =$M$2*INT('Plotting pos of raw data points'!A23/$M$2) -> -20 | N23: [20%,40%) | R23: 1 | S23: 1 | T23: 1 | U23: 0.85 | V23: 1
A24: =$M$2*INT('Plotting pos of raw data points'!I24/$M$2) -> -20 | B24: =$M$2*INT('Plotting pos of raw data points'!H24/$M$2) -> -20 | C24: =$M$2*INT('Plotting pos of raw data points'!G24/$M$2) -> -20 | D24: =$M$2*INT('Plotting pos of raw data points'!F24/$M$2) -> -20 | E24: =$M$2*INT('Plotting pos of raw data points'!E24/$M$2) -> -20 | F24: =$M$2*INT('Plotting pos of raw data points'!D24/$M$2) -> -20 | G24: =$M$2*INT('Plotting pos of raw data points'!C24/$M$2) -> 100 | H24: =$M$2*INT('Plotting pos of raw data points'!B24/$M$2) -> 80 | I24: =$M$2*INT('Plotting pos of raw data points'!A24/$M$2) -> 60 | N24: [40%,60%) | R24: 1 | S24: 1 | T24: 0.8333333333 | U24: 0.925 | V24: 0.9154929577
A25: =$M$2*INT('Plotting pos of raw data points'!I25/$M$2) -> -20 | B25: =$M$2*INT('Plotting pos of raw data points'!H25/$M$2) -> -20 | C25: =$M$2*INT('Plotting pos of raw data points'!G25/$M$2) -> -20 | D25: =$M$2*INT('Plotting pos of raw data points'!F25/$M$2) -> -20 | E25: =$M$2*INT('Plotting pos of raw data points'!E25/$M$2) -> -20 | F25: =$M$2*INT('Plotting pos of raw data points'!D25/$M$2) -> -20 | G25: =$M$2*INT('Plotting pos of raw data points'!C25/$M$2) -> -20 | H25: =$M$2*INT('Plotting pos of raw data points'!B25/$M$2) -> 60 | I25: =$M$2*INT('Plotting pos of raw data points'!A25/$M$2) -> 60 | N25: [60%,80%) | R25: 1 | S25: 1 | T25: 0.8333333333 | U25: 0.65 | V25: 0.8028169014
A26: =$M$2*INT('Plotting pos of raw data points'!I26/$M$2) -> -20 | B26: =$M$2*INT('Plotting pos of raw data points'!H26/$M$2) -> -20 | C26: =$M$2*INT('Plotting pos of raw data points'!G26/$M$2) -> -20 | D26: =$M$2*INT('Plotting pos of raw data points'!F26/$M$2) -> -20 | E26: =$M$2*INT('Plotting pos of raw data points'!E26/$M$2) -> -20 | F26: =$M$2*INT('Plotting pos of raw data points'!D26/$M$2) -> -20 | G26: =$M$2*INT('Plotting pos of raw data points'!C26/$M$2) -> -20 | H26: =$M$2*INT('Plotting pos of raw data points'!B26/$M$2) -> 40 | I26: =$M$2*INT('Plotting pos of raw data points'!A26/$M$2) -> 40 | N26: [80%,100%] | R26: 1 | S26: 1 | T26: 0.8333333333 | U26: 0.725 | V26: 0.2816901408
A27: =$M$2*INT('Plotting pos of raw data points'!I27/$M$2) -> -20 | B27: =$M$2*INT('Plotting pos of raw data points'!H27/$M$2) -> -20 | C27: =$M$2*INT('Plotting pos of raw data points'!G27/$M$2) -> -20 | D27: =$M$2*INT('Plotting pos of raw data points'!F27/$M$2) -> -20 | E27: =$M$2*INT('Plotting pos of raw data points'!E27/$M$2) -> -20 | F27: =$M$2*INT('Plotting pos of raw data points'!D27/$M$2) -> -20 | G27: =$M$2*INT('Plotting pos of raw data points'!C27/$M$2) -> 40 | H27: =$M$2*INT('Plotting pos of raw data points'!B27/$M$2) -> 80 | I27: =$M$2*INT('Plotting pos of raw data points'!A27/$M$2) -> 80
A28: =$M$2*INT('Plotting pos of raw data points'!I28/$M$2) -> -20 | B28: =$M$2*INT('Plotting pos of raw data points'!H28/$M$2) -> -20 | C28: =$M$2*INT('Plotting pos of raw data points'!G28/$M$2) -> -20 | D28: =$M$2*INT('Plotting pos of raw data points'!F28/$M$2) -> -20 | E28: =$M$2*INT('Plotting pos of raw data points'!E28/$M$2) -> -20 | F28: =$M$2*INT('Plotting pos of raw data points'!D28/$M$2) -> -20 | G28: =$M$2*INT('Plotting pos of raw data points'!C28/$M$2) -> -20 | H28: =$M$2*INT('Plotting pos of raw data points'!B28/$M$2) -> 80 | I28: =$M$2*INT('Plotting pos of raw data points'!A28/$M$2) -> 80 | N28: Vertical positions for names | O28: =P28-1 -> -5 | P28: =Q28-1 -> -4 | Q28: -3 | R28: -2 | S28: -1 | T28: 0 | U28: 1 | V28: =W28-1 -> 2 | W28: =$M$9 -> 3
A29: =$M$2*INT('Plotting pos of raw data points'!I29/$M$2) -> -20 | B29: =$M$2*INT('Plotting pos of raw data points'!H29/$M$2) -> -20 | C29: =$M$2*INT('Plotting pos of raw data points'!G29/$M$2) -> -20 | D29: =$M$2*INT('Plotting pos of raw data points'!F29/$M$2) -> -20 | E29: =$M$2*INT('Plotting pos of raw data points'!E29/$M$2) -> -20 | F29: =$M$2*INT('Plotting pos of raw data points'!D29/$M$2) -> -20 | G29: =$M$2*INT('Plotting pos of raw data points'!C29/$M$2) -> -20 | H29: =$M$2*INT('Plotting pos of raw data points'!B29/$M$2) -> -20 | I29: =$M$2*INT('Plotting pos of raw data points'!A29/$M$2) -> -20 | O29: 0 | P29: 0 | Q29: 0 | R29: 0 | S29: 0 | T29: 0 | U29: 0 | V29: 0 | W29: 0
A30: =$M$2*INT('Plotting pos of raw data points'!I30/$M$2) -> -20 | B30: =$M$2*INT('Plotting pos of raw data points'!H30/$M$2) -> -20 | C30: =$M$2*INT('Plotting pos of raw data points'!G30/$M$2) -> -20 | D30: =$M$2*INT('Plotting pos of raw data points'!F30/$M$2) -> -20 | E30: =$M$2*INT('Plotting pos of raw data points'!E30/$M$2) -> -20 | F30: =$M$2*INT('Plotting pos of raw data points'!D30/$M$2) -> -20 | G30: =$M$2*INT('Plotting pos of raw data points'!C30/$M$2) -> -20 | H30: =$M$2*INT('Plotting pos of raw data points'!B30/$M$2) -> 100 | I30: =$M$2*INT('Plotting pos of raw data points'!A30/$M$2) -> 20 | N30: Horizontal axis title
A31: =$M$2*INT('Plotting pos of raw data points'!I31/$M$2) -> -20 | B31: =$M$2*INT('Plotting pos of raw data points'!H31/$M$2) -> -20 | C31: =$M$2*INT('Plotting pos of raw data points'!G31/$M$2) -> -20 | D31: =$M$2*INT('Plotting pos of raw data points'!F31/$M$2) -> -20 | E31: =$M$2*INT('Plotting pos of raw data points'!E31/$M$2) -> -20 | F31: =$M$2*INT('Plotting pos of raw data points'!D31/$M$2) -> -20 | G31: =$M$2*INT('Plotting pos of raw data points'!C31/$M$2) -> -20 | H31: =$M$2*INT('Plotting pos of raw data points'!B31/$M$2) -> -20 | I31: =$M$2*INT('Plotting pos of raw data points'!A31/$M$2) -> -20 | N31: Respondent's assessment of educational value for each context
A32: =$M$2*INT('Plotting pos of raw data points'!I32/$M$2) -> -20 | B32: =$M$2*INT('Plotting pos of raw data points'!H32/$M$2) -> -20 | C32: =$M$2*INT('Plotting pos of raw data points'!G32/$M$2) -> -20 | D32: =$M$2*INT('Plotting pos of raw data points'!F32/$M$2) -> -20 | E32: =$M$2*INT('Plotting pos of raw data points'!E32/$M$2) -> -20 | F32: =$M$2*INT('Plotting pos of raw data points'!D32/$M$2) -> -20 | G32: =$M$2*INT('Plotting pos of raw data points'!C32/$M$2) -> 60 | H32: =$M$2*INT('Plotting pos of raw data points'!B32/$M$2) -> 100 | I32: =$M$2*INT('Plotting pos of raw data points'!A32/$M$2) -> 20 | O32: No of responses to subquestion
A33: =$M$2*INT('Plotting pos of raw data points'!I33/$M$2) -> -20 | B33: =$M$2*INT('Plotting pos of raw data points'!H33/$M$2) -> -20 | C33: =$M$2*INT('Plotting pos of raw data points'!G33/$M$2) -> -20 | D33: =$M$2*INT('Plotting pos of raw data points'!F33/$M$2) -> -20 | E33: =$M$2*INT('Plotting pos of raw data points'!E33/$M$2) -> -20 | F33: =$M$2*INT('Plotting pos of raw data points'!D33/$M$2) -> -20 | G33: =$M$2*INT('Plotting pos of raw data points'!C33/$M$2) -> -20 | H33: =$M$2*INT('Plotting pos of raw data points'!B33/$M$2) -> 100 | I33: =$M$2*INT('Plotting pos of raw data points'!A33/$M$2) -> 40 | O33: =COUNTA(OFFSET(Foglio1!Q$2,0,0,$M$7,1)) -> 0 | P33: =COUNTA(OFFSET(Foglio1!P$2,0,0,$M$7,1)) -> 0 | Q33: =COUNTA(OFFSET(Foglio1!O$2,0,0,$M$7,1)) -> 0 | R33: =COUNTA(OFFSET(Foglio1!S$2,0,0,$M$7,1)) -> 5 | S33: =COUNTA(OFFSET(Foglio1!R$2,0,0,$M$7,1)) -> 7 | T33: =COUNTA(OFFSET(Foglio1!L$2,0,0,$M$7,1)) -> 6 | U33: =COUNTA(OFFSET(Foglio1!K$2,0,0,$M$7,1)) -> 40 | V33: =COUNTA(OFFSET(Foglio1!J$2,0,0,$M$7,1)) -> 71 | W33: =COUNTA(OFFSET(Foglio1!I$2,0,0,$M$7,1)) -> 72
A34: =$M$2*INT('Plotting pos of raw data points'!I34/$M$2) -> -20 | B34: =$M$2*INT('Plotting pos of raw data points'!H34/$M$2) -> -20 | C34: =$M$2*INT('Plotting pos of raw data points'!G34/$M$2) -> -20 | D34: =$M$2*INT('Plotting pos of raw data points'!F34/$M$2) -> -20 | E34: =$M$2*INT('Plotting pos of raw data points'!E34/$M$2) -> -20 | F34: =$M$2*INT('Plotting pos of raw data points'!D34/$M$2) -> -20 | G34: =$M$2*INT('Plotting pos of raw data points'!C34/$M$2) -> 60 | H34: =$M$2*INT('Plotting pos of raw data points'!B34/$M$2) -> 80 | I34: =$M$2*INT('Plotting pos of raw data points'!A34/$M$2) -> 60
A35: =$M$2*INT('Plotting pos of raw data points'!I35/$M$2) -> -20 | B35: =$M$2*INT('Plotting pos of raw data points'!H35/$M$2) -> -20 | C35: =$M$2*INT('Plotting pos of raw data points'!G35/$M$2) -> -20 | D35: =$M$2*INT('Plotting pos of raw data points'!F35/$M$2) -> -20 | E35: =$M$2*INT('Plotting pos of raw data points'!E35/$M$2) -> -20 | F35: =$M$2*INT('Plotting pos of raw data points'!D35/$M$2) -> -20 | G35: =$M$2*INT('Plotting pos of raw data points'!C35/$M$2) -> -20 | H35: =$M$2*INT('Plotting pos of raw data points'!B35/$M$2) -> 60 | I35: =$M$2*INT('Plotting pos of raw data points'!A35/$M$2) -> 60
A36: =$M$2*INT('Plotting pos of raw data points'!I36/$M$2) -> -20 | B36: =$M$2*INT('Plotting pos of raw data points'!H36/$M$2) -> -20 | C36: =$M$2*INT('Plotting pos of raw data points'!G36/$M$2) -> -20 | D36: =$M$2*INT('Plotting pos of raw data points'!F36/$M$2) -> -20 | E36: =$M$2*INT('Plotting pos of raw data points'!E36/$M$2) -> -20 | F36: =$M$2*INT('Plotting pos of raw data points'!D36/$M$2) -> -20 | G36: =$M$2*INT('Plotting pos of raw data points'!C36/$M$2) -> -20 | H36: =$M$2*INT('Plotting pos of raw data points'!B36/$M$2) -> 60 | I36: =$M$2*INT('Plotting pos of raw data points'!A36/$M$2) -> 60
A37: =$M$2*INT('Plotting pos of raw data points'!I37/$M$2) -> -20 | B37: =$M$2*INT('Plotting pos of raw data points'!H37/$M$2) -> -20 | C37: =$M$2*INT('Plotting pos of raw data points'!G37/$M$2) -> -20 | D37: =$M$2*INT('Plotting pos of raw data points'!F37/$M$2) -> -20 | E37: =$M$2*INT('Plotting pos of raw data points'!E37/$M$2) -> -20 | F37: =$M$2*INT('Plotting pos of raw data points'!D37/$M$2) -> -20 | G37: =$M$2*INT('Plotting pos of raw data points'!C37/$M$2) -> 60 | H37: =$M$2*INT('Plotting pos of raw data points'!B37/$M$2) -> 80 | I37: =$M$2*INT('Plotting pos of raw data points'!A37/$M$2) -> 80 | P37: Medians | Q37: Q1 | R37: Q3 | S37: Means | T37: Weighted
A38: =$M$2*INT('Plotting pos of raw data points'!I38/$M$2) -> -20 | B38: =$M$2*INT('Plotting pos of raw data points'!H38/$M$2) -> -20 | C38: =$M$2*INT('Plotting pos of raw data points'!G38/$M$2) -> -20 | D38: =$M$2*INT('Plotting pos of raw data points'!F38/$M$2) -> -20 | E38: =$M$2*INT('Plotting pos of raw data points'!E38/$M$2) -> -20 | F38: =$M$2*INT('Plotting pos of raw data points'!D38/$M$2) -> -20 | G38: =$M$2*INT('Plotting pos of raw data points'!C38/$M$2) -> 40 | H38: =$M$2*INT('Plotting pos of raw data points'!B38/$M$2) -> 100 | I38: =$M$2*INT('Plotting pos of raw data points'!A38/$M$2) -> 80 | O38: =O40-1 -> -5 | P38: =MEDIAN(OFFSET(Foglio1!$Q$2,0,0,$M$7,1)) ->  | Q38: =_xlfn.QUARTILE.EXC(OFFSET(Foglio1!$Q$2,0,0,$M$7,1),1) ->  | R38: =_xlfn.QUARTILE.EXC(OFFSET(Foglio1!$Q$2,0,0,$M$7,1),3) ->  | S38: =AVERAGE(OFFSET(Foglio1!Q$2,0,0,$M$7,1)) ->  | T38: =SUMPRODUCT(OFFSET(Foglio1!Q$2,0,0,$M$7,1),OFFSET(Foglio1!$X$2,0,0,$M$7,1))/SUM(OFFSET(Foglio1!$X$2,0,0,$M$7,1)) -> 
A39: =$M$2*INT('Plotting pos of raw data points'!I39/$M$2) -> -20 | B39: =$M$2*INT('Plotting pos of raw data points'!H39/$M$2) -> -20 | C39: =$M$2*INT('Plotting pos of raw data points'!G39/$M$2) -> -20 | D39: =$M$2*INT('Plotting pos of raw data points'!F39/$M$2) -> -20 | E39: =$M$2*INT('Plotting pos of raw data points'!E39/$M$2) -> -20 | F39: =$M$2*INT('Plotting pos of raw data points'!D39/$M$2) -> -20 | G39: =$M$2*INT('Plotting pos of raw data points'!C39/$M$2) -> -20 | H39: =$M$2*INT('Plotting pos of raw data points'!B39/$M$2) -> 80 | I39: =$M$2*INT('Plotting pos of raw data points'!A39/$M$2) -> 0 | O39: =O38+0.9 -> -4.1 | P39: =MEDIAN(OFFSET(Foglio1!$Q$2,0,0,$M$7,1)) ->  | Q39: =_xlfn.QUARTILE.EXC(OFFSET(Foglio1!$Q$2,0,0,$M$7,1),1) ->  | R39: =_xlfn.QUARTILE.EXC(OFFSET(Foglio1!$Q$2,0,0,$M$7,1),3) ->  | S39: =AVERAGE(OFFSET(Foglio1!Q$2,0,0,$M$7,1)) ->  | T39: =SUMPRODUCT(OFFSET(Foglio1!Q$2,0,0,$M$7,1),OFFSET(Foglio1!$X$2,0,0,$M$7,1))/SUM(OFFSET(Foglio1!$X$2,0,0,$M$7,1)) -> 
A40: =$M$2*INT('Plotting pos of raw data points'!I40/$M$2) -> -20 | B40: =$M$2*INT('Plotting pos of raw data points'!H40/$M$2) -> -20 | C40: =$M$2*INT('Plotting pos of raw data points'!G40/$M$2) -> -20 | D40: =$M$2*INT('Plotting pos of raw data points'!F40/$M$2) -> -20 | E40: =$M$2*INT('Plotting pos of raw data points'!E40/$M$2) -> -20 | F40: =$M$2*INT('Plotting pos of raw data points'!D40/$M$2) -> -20 | G40: =$M$2*INT('Plotting pos of raw data points'!C40/$M$2) -> -20 | H40: =$M$2*INT('Plotting pos of raw data points'!B40/$M$2) -> -20 | I40: =$M$2*INT('Plotting pos of raw data points'!A40/$M$2) -> -20 | O40: =O42-1 -> -4 | P40: =MEDIAN(OFFSET(Foglio1!$P$2,0,0,$M$7,1)) ->  | Q40: =_xlfn.QUARTILE.EXC(OFFSET(Foglio1!$P$2,0,0,$M$7,1),1) ->  | R40: =_xlfn.QUARTILE.EXC(OFFSET(Foglio1!$P$2,0,0,$M$7,1),3) ->  | S40: =AVERAGE(OFFSET(Foglio1!P$2,0,0,$M$7,1)) ->  | T40: =SUMPRODUCT(OFFSET(Foglio1!P$2,0,0,$M$7,1),OFFSET(Foglio1!$X$2,0,0,$M$7,1))/SUM(OFFSET(Foglio1!$X$2,0,0,$M$7,1)) -> 
A41: =$M$2*INT('Plotting pos of raw data points'!I41/$M$2) -> -20 | B41: =$M$2*INT('Plotting pos of raw data points'!H41/$M$2) -> -20 | C41: =$M$2*INT('Plotting pos of raw data points'!G41/$M$2) -> -20 | D41: =$M$2*INT('Plotting pos of raw data points'!F41/$M$2) -> -20 | E41: =$M$2*INT('Plotting pos of raw data points'!E41/$M$2) -> -20 | F41: =$M$2*INT('Plotting pos of raw data points'!D41/$M$2) -> -20 | G41: =$M$2*INT('Plotting pos of raw data points'!C41/$M$2) -> 80 | H41: =$M$2*INT('Plotting pos of raw data points'!B41/$M$2) -> 80 | I41: =$M$2*INT('Plotting pos of raw data points'!A41/$M$2) -> 80 | O41: =O40+0.9 -> -3.1 | P41: =MEDIAN(OFFSET(Foglio1!$P$2,0,0,$M$7,1)) ->  | Q41: =_xlfn.QUARTILE.EXC(OFFSET(Foglio1!$P$2,0,0,$M$7,1),1) ->  | R41: =_xlfn.QUARTILE.EXC(OFFSET(Foglio1!$P$2,0,0,$M$7,1),3) ->  | S41: =AVERAGE(OFFSET(Foglio1!P$2,0,0,$M$7,1)) ->  | T41: =SUMPRODUCT(OFFSET(Foglio1!P$2,0,0,$M$7,1),OFFSET(Foglio1!$X$2,0,0,$M$7,1))/SUM(OFFSET(Foglio1!$X$2,0,0,$M$7,1)) -> 
A42: =$M$2*INT('Plotting pos of raw data points'!I42/$M$2) -> -20 | B42: =$M$2*INT('Plotting pos of raw data points'!H42/$M$2) -> -20 | C42: =$M$2*INT('Plotting pos of raw data points'!G42/$M$2) -> -20 | D42: =$M$2*INT('Plotting pos of raw data points'!F42/$M$2) -> -20 | E42: =$M$2*INT('Plotting pos of raw data points'!E42/$M$2) -> -20 | F42: =$M$2*INT('Plotting pos of raw data points'!D42/$M$2) -> -20 | G42: =$M$2*INT('Plotting pos of raw data points'!C42/$M$2) -> -20 | H42: =$M$2*INT('Plotting pos of raw data points'!B42/$M$2) -> -20 | I42: =$M$2*INT('Plotting pos of raw data points'!A42/$M$2) -> -20 | O42: =O44-1 -> -3 | P42: =MEDIAN(OFFSET(Foglio1!$O$2,0,0,$M$7,1)) ->  | Q42: =_xlfn.QUARTILE.EXC(OFFSET(Foglio1!$O$2,0,0,$M$7,1),1) ->  | R42: =_xlfn.QUARTILE.EXC(OFFSET(Foglio1!$O$2,0,0,$M$7,1),3) ->  | S42: =AVERAGE(OFFSET(Foglio1!O$2,0,0,$M$7,1)) ->  | T42: =SUMPRODUCT(OFFSET(Foglio1!O$2,0,0,$M$7,1),OFFSET(Foglio1!$X$2,0,0,$M$7,1))/SUM(OFFSET(Foglio1!$X$2,0,0,$M$7,1)) -> 
A43: =$M$2*INT('Plotting pos of raw data points'!I43/$M$2) -> -20 | B43: =$M$2*INT('Plotting pos of raw data points'!H43/$M$2) -> -20 | C43: =$M$2*INT('Plotting pos of raw data points'!G43/$M$2) -> -20 | D43: =$M$2*INT('Plotting pos of raw data points'!F43/$M$2) -> -20 | E43: =$M$2*INT('Plotting pos of raw data points'!E43/$M$2) -> -20 | F43: =$M$2*INT('Plotting pos of raw data points'!D43/$M$2) -> -20 | G43: =$M$2*INT('Plotting pos of raw data points'!C43/$M$2) -> -20 | H43: =$M$2*INT('Plotting pos of raw data points'!B43/$M$2) -> 100 | I43: =$M$2*INT('Plotting pos of raw data points'!A43/$M$2) -> 100 | O43: =O42+0.9 -> -2.1 | P43: =MEDIAN(OFFSET(Foglio1!$O$2,0,0,$M$7,1)) ->  | Q43: =_xlfn.QUARTILE.EXC(OFFSET(Foglio1!$O$2,0,0,$M$7,1),1) ->  | R43: =_xlfn.QUARTILE.EXC(OFFSET(Foglio1!$O$2,0,0,$M$7,1),3) ->  | S43: =AVERAGE(OFFSET(Foglio1!O$2,0,0,$M$7,1)) ->  | T43: =SUMPRODUCT(OFFSET(Foglio1!O$2,0,0,$M$7,1),OFFSET(Foglio1!$X$2,0,0,$M$7,1))/SUM(OFFSET(Foglio1!$X$2,0,0,$M$7,1)) -> 
A44: =$M$2*INT('Plotting pos of raw data points'!I44/$M$2) -> -20 | B44: =$M$2*INT('Plotting pos of raw data points'!H44/$M$2) -> -20 | C44: =$M$2*INT('Plotting pos of raw data points'!G44/$M$2) -> -20 | D44: =$M$2*INT('Plotting pos of raw data points'!F44/$M$2) -> -20 | E44: =$M$2*INT('Plotting pos of raw data points'!E44/$M$2) -> -20 | F44: =$M$2*INT('Plotting pos of raw data points'!D44/$M$2) -> -20 | G44: =$M$2*INT('Plotting pos of raw data points'!C44/$M$2) -> -20 | H44: =$M$2*INT('Plotting pos of raw data points'!B44/$M$2) -> 60 | I44: =$M$2*INT('Plotting pos of raw data points'!A44/$M$2) -> 60 | O44: =O46-1 -> -2 | P44: =MEDIAN(OFFSET(Foglio1!$S$2,0,0,$M$7,1)) ->  | Q44: =_xlfn.QUARTILE.EXC(OFFSET(Foglio1!$S$2,0,0,$M$7,1),1) ->  | R44: =_xlfn.QUARTILE.EXC(OFFSET(Foglio1!$S$2,0,0,$M$7,1),3) ->  | S44: =AVERAGE(OFFSET(Foglio1!S$2,0,0,$M$7,1)) ->  | T44: =SUMPRODUCT(OFFSET(Foglio1!S$2,0,0,$M$7,1),OFFSET(Foglio1!$X$2,0,0,$M$7,1))/SUM(OFFSET(Foglio1!$X$2,0,0,$M$7,1)) -> 
A45: =$M$2*INT('Plotting pos of raw data points'!I45/$M$2) -> -20 | B45: =$M$2*INT('Plotting pos of raw data points'!H45/$M$2) -> -20 | C45: =$M$2*INT('Plotting pos of raw data points'!G45/$M$2) -> -20 | D45: =$M$2*INT('Plotting pos of raw data points'!F45/$M$2) -> -20 | E45: =$M$2*INT('Plotting pos of raw data points'!E45/$M$2) -> -20 | F45: =$M$2*INT('Plotting pos of raw data points'!D45/$M$2) -> -20 | G45: =$M$2*INT('Plotting pos of raw data points'!C45/$M$2) -> -20 | H45: =$M$2*INT('Plotting pos of raw data points'!B45/$M$2) -> 100 | I45: =$M$2*INT('Plotting pos of raw data points'!A45/$M$2) -> 80 | O45: =O44+0.9 -> -1.1 | P45: =MEDIAN(OFFSET(Foglio1!$S$2,0,0,$M$7,1)) ->  | Q45: =_xlfn.QUARTILE.EXC(OFFSET(Foglio1!$S$2,0,0,$M$7,1),1) ->  | R45: =_xlfn.QUARTILE.EXC(OFFSET(Foglio1!$S$2,0,0,$M$7,1),3) ->  | S45: =AVERAGE(OFFSET(Foglio1!S$2,0,0,$M$7,1)) ->  | T45: =SUMPRODUCT(OFFSET(Foglio1!S$2,0,0,$M$7,1),OFFSET(Foglio1!$X$2,0,0,$M$7,1))/SUM(OFFSET(Foglio1!$X$2,0,0,$M$7,1)) -> 
A46: =$M$2*INT('Plotting pos of raw data points'!I46/$M$2) -> -20 | B46: =$M$2*INT('Plotting pos of raw data points'!H46/$M$2) -> -20 | C46: =$M$2*INT('Plotting pos of raw data points'!G46/$M$2) -> -20 | D46: =$M$2*INT('Plotting pos of raw data points'!F46/$M$2) -> -20 | E46: =$M$2*INT('Plotting pos of raw data points'!E46/$M$2) -> -20 | F46: =$M$2*INT('Plotting pos of raw data points'!D46/$M$2) -> -20 | G46: =$M$2*INT('Plotting pos of raw data points'!C46/$M$2) -> 80 | H46: =$M$2*INT('Plotting pos of raw data points'!B46/$M$2) -> -20 | I46: =$M$2*INT('Plotting pos of raw data points'!A46/$M$2) -> 80 | O46: =O48-1 -> -1 | P46: =MEDIAN(OFFSET(Foglio1!$R$2,0,0,$M$7,1)) ->  | Q46: =_xlfn.QUARTILE.EXC(OFFSET(Foglio1!$R$2,0,0,$M$7,1),1) ->  | R46: =_xlfn.QUARTILE.EXC(OFFSET(Foglio1!$R$2,0,0,$M$7,1),3) ->  | S46: =AVERAGE(OFFSET(Foglio1!R$2,0,0,$M$7,1)) ->  | T46: =SUMPRODUCT(OFFSET(Foglio1!R$2,0,0,$M$7,1),OFFSET(Foglio1!$X$2,0,0,$M$7,1))/SUM(OFFSET(Foglio1!$X$2,0,0,$M$7,1)) -> 
A47: =$M$2*INT('Plotting pos of raw data points'!I47/$M$2) -> -20 | B47: =$M$2*INT('Plotting pos of raw data points'!H47/$M$2) -> -20 | C47: =$M$2*INT('Plotting pos of raw data points'!G47/$M$2) -> -20 | D47: =$M$2*INT('Plotting pos of raw data points'!F47/$M$2) -> -20 | E47: =$M$2*INT('Plotting pos of raw data points'!E47/$M$2) -> -20 | F47: =$M$2*INT('Plotting pos of raw data points'!D47/$M$2) -> -20 | G47: =$M$2*INT('Plotting pos of raw data points'!C47/$M$2) -> -20 | H47: =$M$2*INT('Plotting pos of raw data points'!B47/$M$2) -> -20 | I47: =$M$2*INT('Plotting pos of raw data points'!A47/$M$2) -> -20 | O47: =O46+0.9 -> -0.1 | P47: =MEDIAN(OFFSET(Foglio1!$R$2,0,0,$M$7,1)) ->  | Q47: =_xlfn.QUARTILE.EXC(OFFSET(Foglio1!$R$2,0,0,$M$7,1),1) ->  | R47: =_xlfn.QUARTILE.EXC(OFFSET(Foglio1!$R$2,0,0,$M$7,1),3) ->  | S47: =AVERAGE(OFFSET(Foglio1!R$2,0,0,$M$7,1)) ->  | T47: =SUMPRODUCT(OFFSET(Foglio1!R$2,0,0,$M$7,1),OFFSET(Foglio1!$X$2,0,0,$M$7,1))/SUM(OFFSET(Foglio1!$X$2,0,0,$M$7,1)) -> 
A48: =$M$2*INT('Plotting pos of raw data points'!I48/$M$2) -> -20 | B48: =$M$2*INT('Plotting pos of raw data points'!H48/$M$2) -> -20 | C48: =$M$2*INT('Plotting pos of raw data points'!G48/$M$2) -> -20 | D48: =$M$2*INT('Plotting pos of raw data points'!F48/$M$2) -> -20 | E48: =$M$2*INT('Plotting pos of raw data points'!E48/$M$2) -> -20 | F48: =$M$2*INT('Plotting pos of raw data points'!D48/$M$2) -> -20 | G48: =$M$2*INT('Plotting pos of raw data points'!C48/$M$2) -> -20 | H48: =$M$2*INT('Plotting pos of raw data points'!B48/$M$2) -> 100 | I48: =$M$2*INT('Plotting pos of raw data points'!A48/$M$2) -> 60 | O48: =O50-1 -> 0 | P48: =MEDIAN(OFFSET(Foglio1!$L$2,0,0,$M$7,1)) -> 25 | Q48: =_xlfn.QUARTILE.EXC(OFFSET(Foglio1!$L$2,0,0,$M$7,1),1) -> 0 | R48: =_xlfn.QUARTILE.EXC(OFFSET(Foglio1!$L$2,0,0,$M$7,1),3) -> 70 | S48: =AVERAGE(OFFSET(Foglio1!L$2,0,0,$M$7,1)) -> 35 | T48: =SUMPRODUCT(OFFSET(Foglio1!L$2,0,0,$M$7,1),OFFSET(Foglio1!$X$2,0,0,$M$7,1))/SUM(OFFSET(Foglio1!$X$2,0,0,$M$7,1)) -> 
A49: =$M$2*INT('Plotting pos of raw data points'!I49/$M$2) -> -20 | B49: =$M$2*INT('Plotting pos of raw data points'!H49/$M$2) -> -20 | C49: =$M$2*INT('Plotting pos of raw data points'!G49/$M$2) -> -20 | D49: =$M$2*INT('Plotting pos of raw data points'!F49/$M$2) -> -20 | E49: =$M$2*INT('Plotting pos of raw data points'!E49/$M$2) -> -20 | F49: =$M$2*INT('Plotting pos of raw data points'!D49/$M$2) -> -20 | G49: =$M$2*INT('Plotting pos of raw data points'!C49/$M$2) -> -20 | H49: =$M$2*INT('Plotting pos of raw data points'!B49/$M$2) -> 100 | I49: =$M$2*INT('Plotting pos of raw data points'!A49/$M$2) -> 80 | O49: =O48+0.9 -> 0.9 | P49: =MEDIAN(OFFSET(Foglio1!$L$2,0,0,$M$7,1)) -> 25 | Q49: =_xlfn.QUARTILE.EXC(OFFSET(Foglio1!$L$2,0,0,$M$7,1),1) -> 0 | R49: =_xlfn.QUARTILE.EXC(OFFSET(Foglio1!$L$2,0,0,$M$7,1),3) -> 70 | S49: =AVERAGE(OFFSET(Foglio1!L$2,0,0,$M$7,1)) -> 35 | T49: =SUMPRODUCT(OFFSET(Foglio1!L$2,0,0,$M$7,1),OFFSET(Foglio1!$X$2,0,0,$M$7,1))/SUM(OFFSET(Foglio1!$X$2,0,0,$M$7,1)) -> 
A50: =$M$2*INT('Plotting pos of raw data points'!I50/$M$2) -> -20 | B50: =$M$2*INT('Plotting pos of raw data points'!H50/$M$2) -> -20 | C50: =$M$2*INT('Plotting pos of raw data points'!G50/$M$2) -> -20 | D50: =$M$2*INT('Plotting pos of raw data points'!F50/$M$2) -> -20 | E50: =$M$2*INT('Plotting pos of raw data points'!E50/$M$2) -> -20 | F50: =$M$2*INT('Plotting pos of raw data points'!D50/$M$2) -> -20 | G50: =$M$2*INT('Plotting pos of raw data points'!C50/$M$2) -> 80 | H50: =$M$2*INT('Plotting pos of raw data points'!B50/$M$2) -> 80 | I50: =$M$2*INT('Plotting pos of raw data points'!A50/$M$2) -> 100 | O50: =O52-1 -> 1 | P50: =MEDIAN(OFFSET(Foglio1!$K$2,0,0,$M$7,1)) -> 60 | Q50: =_xlfn.QUARTILE.EXC(OFFSET(Foglio1!$K$2,0,0,$M$7,1),1) -> 30 | R50: =_xlfn.QUARTILE.EXC(OFFSET(Foglio1!$K$2,0,0,$M$7,1),3) -> 80 | S50: =AVERAGE(OFFSET(Foglio1!K$2,0,0,$M$7,1)) -> 54 | T50: =SUMPRODUCT(OFFSET(Foglio1!K$2,0,0,$M$7,1),OFFSET(Foglio1!$X$2,0,0,$M$7,1))/SUM(OFFSET(Foglio1!$X$2,0,0,$M$7,1)) -> 
A51: =$M$2*INT('Plotting pos of raw data points'!I51/$M$2) -> -20 | B51: =$M$2*INT('Plotting pos of raw data points'!H51/$M$2) -> -20 | C51: =$M$2*INT('Plotting pos of raw data points'!G51/$M$2) -> -20 | D51: =$M$2*INT('Plotting pos of raw data points'!F51/$M$2) -> -20 | E51: =$M$2*INT('Plotting pos of raw data points'!E51/$M$2) -> -20 | F51: =$M$2*INT('Plotting pos of raw data points'!D51/$M$2) -> -20 | G51: =$M$2*INT('Plotting pos of raw data points'!C51/$M$2) -> -20 | H51: =$M$2*INT('Plotting pos of raw data points'!B51/$M$2) -> -20 | I51: =$M$2*INT('Plotting pos of raw data points'!A51/$M$2) -> -20 | O51: =O50+0.9 -> 1.9 | P51: =MEDIAN(OFFSET(Foglio1!$K$2,0,0,$M$7,1)) -> 60 | Q51: =_xlfn.QUARTILE.EXC(OFFSET(Foglio1!$K$2,0,0,$M$7,1),1) -> 30 | R51: =_xlfn.QUARTILE.EXC(OFFSET(Foglio1!$K$2,0,0,$M$7,1),3) -> 80 | S51: =AVERAGE(OFFSET(Foglio1!K$2,0,0,$M$7,1)) -> 54 | T51: =SUMPRODUCT(OFFSET(Foglio1!K$2,0,0,$M$7,1),OFFSET(Foglio1!$X$2,0,0,$M$7,1))/SUM(OFFSET(Foglio1!$X$2,0,0,$M$7,1)) -> 
A52: =$M$2*INT('Plotting pos of raw data points'!I52/$M$2) -> -20 | B52: =$M$2*INT('Plotting pos of raw data points'!H52/$M$2) -> -20 | C52: =$M$2*INT('Plotting pos of raw data points'!G52/$M$2) -> -20 | D52: =$M$2*INT('Plotting pos of raw data points'!F52/$M$2) -> -20 | E52: =$M$2*INT('Plotting pos of raw data points'!E52/$M$2) -> -20 | F52: =$M$2*INT('Plotting pos of raw data points'!D52/$M$2) -> -20 | G52: =$M$2*INT('Plotting pos of raw data points'!C52/$M$2) -> 20 | H52: =$M$2*INT('Plotting pos of raw data points'!B52/$M$2) -> 60 | I52: =$M$2*INT('Plotting pos of raw data points'!A52/$M$2) -> 60 | O52: =O54-1 -> 2 | P52: =MEDIAN(OFFSET(Foglio1!$J$2,0,0,$M$7,1)) -> 80 | Q52: =_xlfn.QUARTILE.EXC(OFFSET(Foglio1!$J$2,0,0,$M$7,1),1) -> 71 | R52: =_xlfn.QUARTILE.EXC(OFFSET(Foglio1!$J$2,0,0,$M$7,1),3) -> 100 | S52: =AVERAGE(OFFSET(Foglio1!J$2,0,0,$M$7,1)) -> 81.98591549 | T52: =SUMPRODUCT(OFFSET(Foglio1!J$2,0,0,$M$7,1),OFFSET(Foglio1!$X$2,0,0,$M$7,1))/SUM(OFFSET(Foglio1!$X$2,0,0,$M$7,1)) -> 
A53: =$M$2*INT('Plotting pos of raw data points'!I53/$M$2) -> -20 | B53: =$M$2*INT('Plotting pos of raw data points'!H53/$M$2) -> -20 | C53: =$M$2*INT('Plotting pos of raw data points'!G53/$M$2) -> -20 | D53: =$M$2*INT('Plotting pos of raw data points'!F53/$M$2) -> -20 | E53: =$M$2*INT('Plotting pos of raw data points'!E53/$M$2) -> -20 | F53: =$M$2*INT('Plotting pos of raw data points'!D53/$M$2) -> -20 | G53: =$M$2*INT('Plotting pos of raw data points'!C53/$M$2) -> -20 | H53: =$M$2*INT('Plotting pos of raw data points'!B53/$M$2) -> 80 | I53: =$M$2*INT('Plotting pos of raw data points'!A53/$M$2) -> 60 | O53: =O52+0.9 -> 2.9 | P53: =MEDIAN(OFFSET(Foglio1!$J$2,0,0,$M$7,1)) -> 80 | Q53: =_xlfn.QUARTILE.EXC(OFFSET(Foglio1!$J$2,0,0,$M$7,1),1) -> 71 | R53: =_xlfn.QUARTILE.EXC(OFFSET(Foglio1!$J$2,0,0,$M$7,1),3) -> 100 | S53: =AVERAGE(OFFSET(Foglio1!J$2,0,0,$M$7,1)) -> 81.98591549 | T53: =SUMPRODUCT(OFFSET(Foglio1!J$2,0,0,$M$7,1),OFFSET(Foglio1!$X$2,0,0,$M$7,1))/SUM(OFFSET(Foglio1!$X$2,0,0,$M$7,1)) -> 
A54: =$M$2*INT('Plotting pos of raw data points'!I54/$M$2) -> -20 | B54: =$M$2*INT('Plotting pos of raw data points'!H54/$M$2) -> -20 | C54: =$M$2*INT('Plotting pos of raw data points'!G54/$M$2) -> -20 | D54: =$M$2*INT('Plotting pos of raw data points'!F54/$M$2) -> -20 | E54: =$M$2*INT('Plotting pos of raw data points'!E54/$M$2) -> -20 | F54: =$M$2*INT('Plotting pos of raw data points'!D54/$M$2) -> -20 | G54: =$M$2*INT('Plotting pos of raw data points'!C54/$M$2) -> -20 | H54: =$M$2*INT('Plotting pos of raw data points'!B54/$M$2) -> 80 | I54: =$M$2*INT('Plotting pos of raw data points'!A54/$M$2) -> 80 | O54: =$M$9 -> 3 | P54: =MEDIAN(OFFSET(Foglio1!$I$2,0,0,$M$7,1)) -> 80 | Q54: =_xlfn.QUARTILE.EXC(OFFSET(Foglio1!$I$2,0,0,$M$7,1),1) -> 60 | R54: =_xlfn.QUARTILE.EXC(OFFSET(Foglio1!$I$2,0,0,$M$7,1),3) -> 83.75 | S54: =AVERAGE(OFFSET(Foglio1!I$2,0,0,$M$7,1)) -> 71.15277778 | T54: =SUMPRODUCT(OFFSET(Foglio1!I$2,0,0,$M$7,1),OFFSET(Foglio1!$X$2,0,0,$M$7,1))/SUM(OFFSET(Foglio1!$X$2,0,0,$M$7,1)) -> 
A55: =$M$2*INT('Plotting pos of raw data points'!I55/$M$2) -> -20 | B55: =$M$2*INT('Plotting pos of raw data points'!H55/$M$2) -> -20 | C55: =$M$2*INT('Plotting pos of raw data points'!G55/$M$2) -> -20 | D55: =$M$2*INT('Plotting pos of raw data points'!F55/$M$2) -> -20 | E55: =$M$2*INT('Plotting pos of raw data points'!E55/$M$2) -> -20 | F55: =$M$2*INT('Plotting pos of raw data points'!D55/$M$2) -> -20 | G55: =$M$2*INT('Plotting pos of raw data points'!C55/$M$2) -> 20 | H55: =$M$2*INT('Plotting pos of raw data points'!B55/$M$2) -> 80 | I55: =$M$2*INT('Plotting pos of raw data points'!A55/$M$2) -> 80 | O55: =O54+0.9 -> 3.9 | P55: =MEDIAN(OFFSET(Foglio1!$I$2,0,0,$M$7,1)) -> 80 | Q55: =_xlfn.QUARTILE.EXC(OFFSET(Foglio1!$I$2,0,0,$M$7,1),1) -> 60 | R55: =_xlfn.QUARTILE.EXC(OFFSET(Foglio1!$I$2,0,0,$M$7,1),3) -> 83.75 | S55: =AVERAGE(OFFSET(Foglio1!I$2,0,0,$M$7,1)) -> 71.15277778 | T55: =SUMPRODUCT(OFFSET(Foglio1!I$2,0,0,$M$7,1),OFFSET(Foglio1!$X$2,0,0,$M$7,1))/SUM(OFFSET(Foglio1!$X$2,0,0,$M$7,1)) -> 
A56: =$M$2*INT('Plotting pos of raw data points'!I56/$M$2) -> -20 | B56: =$M$2*INT('Plotting pos of raw data points'!H56/$M$2) -> -20 | C56: =$M$2*INT('Plotting pos of raw data points'!G56/$M$2) -> -20 | D56: =$M$2*INT('Plotting pos of raw data points'!F56/$M$2) -> -20 | E56: =$M$2*INT('Plotting pos of raw data points'!E56/$M$2) -> -20 | F56: =$M$2*INT('Plotting pos of raw data points'!D56/$M$2) -> -20 | G56: =$M$2*INT('Plotting pos of raw data points'!C56/$M$2) -> 0 | H56: =$M$2*INT('Plotting pos of raw data points'!B56/$M$2) -> 100 | I56: =$M$2*INT('Plotting pos of raw data points'!A56/$M$2) -> 100
A57: =$M$2*INT('Plotting pos of raw data points'!I57/$M$2) -> -20 | B57: =$M$2*INT('Plotting pos of raw data points'!H57/$M$2) -> -20 | C57: =$M$2*INT('Plotting pos of raw data points'!G57/$M$2) -> -20 | D57: =$M$2*INT('Plotting pos of raw data points'!F57/$M$2) -> -20 | E57: =$M$2*INT('Plotting pos of raw data points'!E57/$M$2) -> -20 | F57: =$M$2*INT('Plotting pos of raw data points'!D57/$M$2) -> -20 | G57: =$M$2*INT('Plotting pos of raw data points'!C57/$M$2) -> -20 | H57: =$M$2*INT('Plotting pos of raw data points'!B57/$M$2) -> -20 | I57: =$M$2*INT('Plotting pos of raw data points'!A57/$M$2) -> -20
A58: =$M$2*INT('Plotting pos of raw data points'!I58/$M$2) -> -20 | B58: =$M$2*INT('Plotting pos of raw data points'!H58/$M$2) -> -20 | C58: =$M$2*INT('Plotting pos of raw data points'!G58/$M$2) -> -20 | D58: =$M$2*INT('Plotting pos of raw data points'!F58/$M$2) -> -20 | E58: =$M$2*INT('Plotting pos of raw data points'!E58/$M$2) -> -20 | F58: =$M$2*INT('Plotting pos of raw data points'!D58/$M$2) -> -20 | G58: =$M$2*INT('Plotting pos of raw data points'!C58/$M$2) -> -20 | H58: =$M$2*INT('Plotting pos of raw data points'!B58/$M$2) -> -20 | I58: =$M$2*INT('Plotting pos of raw data points'!A58/$M$2) -> -20
A59: =$M$2*INT('Plotting pos of raw data points'!I59/$M$2) -> -20 | B59: =$M$2*INT('Plotting pos of raw data points'!H59/$M$2) -> -20 | C59: =$M$2*INT('Plotting pos of raw data points'!G59/$M$2) -> -20 | D59: =$M$2*INT('Plotting pos of raw data points'!F59/$M$2) -> -20 | E59: =$M$2*INT('Plotting pos of raw data points'!E59/$M$2) -> -20 | F59: =$M$2*INT('Plotting pos of raw data points'!D59/$M$2) -> 40 | G59: =$M$2*INT('Plotting pos of raw data points'!C59/$M$2) -> -20 | H59: =$M$2*INT('Plotting pos of raw data points'!B59/$M$2) -> 80 | I59: =$M$2*INT('Plotting pos of raw data points'!A59/$M$2) -> 80
A60: =$M$2*INT('Plotting pos of raw data points'!I60/$M$2) -> -20 | B60: =$M$2*INT('Plotting pos of raw data points'!H60/$M$2) -> -20 | C60: =$M$2*INT('Plotting pos of raw data points'!G60/$M$2) -> -20 | D60: =$M$2*INT('Plotting pos of raw data points'!F60/$M$2) -> -20 | E60: =$M$2*INT('Plotting pos of raw data points'!E60/$M$2) -> -20 | F60: =$M$2*INT('Plotting pos of raw data points'!D60/$M$2) -> -20 | G60: =$M$2*INT('Plotting pos of raw data points'!C60/$M$2) -> -20 | H60: =$M$2*INT('Plotting pos of raw data points'!B60/$M$2) -> 60 | I60: =$M$2*INT('Plotting pos of raw data points'!A60/$M$2) -> 80
A61: =$M$2*INT('Plotting pos of raw data points'!I61/$M$2) -> -20 | B61: =$M$2*INT('Plotting pos of raw data points'!H61/$M$2) -> -20 | C61: =$M$2*INT('Plotting pos of raw data points'!G61/$M$2) -> -20 | D61: =$M$2*INT('Plotting pos of raw data points'!F61/$M$2) -> -20 | E61: =$M$2*INT('Plotting pos of raw data points'!E61/$M$2) -> -20 | F61: =$M$2*INT('Plotting pos of raw data points'!D61/$M$2) -> -20 | G61: =$M$2*INT('Plotting pos of raw data points'!C61/$M$2) -> -20 | H61: =$M$2*INT('Plotting pos of raw data points'!B61/$M$2) -> -20 | I61: =$M$2*INT('Plotting pos of raw data points'!A61/$M$2) -> -20
A62: =$M$2*INT('Plotting pos of raw data points'!I62/$M$2) -> -20 | B62: =$M$2*INT('Plotting pos of raw data points'!H62/$M$2) -> -20 | C62: =$M$2*INT('Plotting pos of raw data points'!G62/$M$2) -> -20 | D62: =$M$2*INT('Plotting pos of raw data points'!F62/$M$2) -> -20 | E62: =$M$2*INT('Plotting pos of raw data points'!E62/$M$2) -> -20 | F62: =$M$2*INT('Plotting pos of raw data points'!D62/$M$2) -> -20 | G62: =$M$2*INT('Plotting pos of raw data points'!C62/$M$2) -> -20 | H62: =$M$2*INT('Plotting pos of raw data points'!B62/$M$2) -> -20 | I62: =$M$2*INT('Plotting pos of raw data points'!A62/$M$2) -> -20
A63: =$M$2*INT('Plotting pos of raw data points'!I63/$M$2) -> -20 | B63: =$M$2*INT('Plotting pos of raw data points'!H63/$M$2) -> -20 | C63: =$M$2*INT('Plotting pos of raw data points'!G63/$M$2) -> -20 | D63: =$M$2*INT('Plotting pos of raw data points'!F63/$M$2) -> -20 | E63: =$M$2*INT('Plotting pos of raw data points'!E63/$M$2) -> -20 | F63: =$M$2*INT('Plotting pos of raw data points'!D63/$M$2) -> -20 | G63: =$M$2*INT('Plotting pos of raw data points'!C63/$M$2) -> 20 | H63: =$M$2*INT('Plotting pos of raw data points'!B63/$M$2) -> 80 | I63: =$M$2*INT('Plotting pos of raw data points'!A63/$M$2) -> 60
A64: =$M$2*INT('Plotting pos of raw data points'!I64/$M$2) -> -20 | B64: =$M$2*INT('Plotting pos of raw data points'!H64/$M$2) -> -20 | C64: =$M$2*INT('Plotting pos of raw data points'!G64/$M$2) -> -20 | D64: =$M$2*INT('Plotting pos of raw data points'!F64/$M$2) -> -20 | E64: =$M$2*INT('Plotting pos of raw data points'!E64/$M$2) -> -20 | F64: =$M$2*INT('Plotting pos of raw data points'!D64/$M$2) -> -20 | G64: =$M$2*INT('Plotting pos of raw data points'!C64/$M$2) -> -20 | H64: =$M$2*INT('Plotting pos of raw data points'!B64/$M$2) -> 100 | I64: =$M$2*INT('Plotting pos of raw data points'!A64/$M$2) -> 80
A65: =$M$2*INT('Plotting pos of raw data points'!I65/$M$2) -> -20 | B65: =$M$2*INT('Plotting pos of raw data points'!H65/$M$2) -> -20 | C65: =$M$2*INT('Plotting pos of raw data points'!G65/$M$2) -> -20 | D65: =$M$2*INT('Plotting pos of raw data points'!F65/$M$2) -> -20 | E65: =$M$2*INT('Plotting pos of raw data points'!E65/$M$2) -> -20 | F65: =$M$2*INT('Plotting pos of raw data points'!D65/$M$2) -> -20 | G65: =$M$2*INT('Plotting pos of raw data points'!C65/$M$2) -> -20 | H65: =$M$2*INT('Plotting pos of raw data points'!B65/$M$2) -> 100 | I65: =$M$2*INT('Plotting pos of raw data points'!A65/$M$2) -> 60
A66: =$M$2*INT('Plotting pos of raw data points'!I66/$M$2) -> -20 | B66: =$M$2*INT('Plotting pos of raw data points'!H66/$M$2) -> -20 | C66: =$M$2*INT('Plotting pos of raw data points'!G66/$M$2) -> -20 | D66: =$M$2*INT('Plotting pos of raw data points'!F66/$M$2) -> -20 | E66: =$M$2*INT('Plotting pos of raw data points'!E66/$M$2) -> -20 | F66: =$M$2*INT('Plotting pos of raw data points'!D66/$M$2) -> -20 | G66: =$M$2*INT('Plotting pos of raw data points'!C66/$M$2) -> 60 | H66: =$M$2*INT('Plotting pos of raw data points'!B66/$M$2) -> 80 | I66: =$M$2*INT('Plotting pos of raw data points'!A66/$M$2) -> 60
A67: =$M$2*INT('Plotting pos of raw data points'!I67/$M$2) -> -20 | B67: =$M$2*INT('Plotting pos of raw data points'!H67/$M$2) -> -20 | C67: =$M$2*INT('Plotting pos of raw data points'!G67/$M$2) -> -20 | D67: =$M$2*INT('Plotting pos of raw data points'!F67/$M$2) -> -20 | E67: =$M$2*INT('Plotting pos of raw data points'!E67/$M$2) -> -20 | F67: =$M$2*INT('Plotting pos of raw data points'!D67/$M$2) -> -20 | G67: =$M$2*INT('Plotting pos of raw data points'!C67/$M$2) -> 0 | H67: =$M$2*INT('Plotting pos of raw data points'!B67/$M$2) -> 60 | I67: =$M$2*INT('Plotting pos of raw data points'!A67/$M$2) -> 40
A68: =$M$2*INT('Plotting pos of raw data points'!I68/$M$2) -> -20 | B68: =$M$2*INT('Plotting pos of raw data points'!H68/$M$2) -> -20 | C68: =$M$2*INT('Plotting pos of raw data points'!G68/$M$2) -> -20 | D68: =$M$2*INT('Plotting pos of raw data points'!F68/$M$2) -> -20 | E68: =$M$2*INT('Plotting pos of raw data points'!E68/$M$2) -> -20 | F68: =$M$2*INT('Plotting pos of raw data points'!D68/$M$2) -> -20 | G68: =$M$2*INT('Plotting pos of raw data points'!C68/$M$2) -> -20 | H68: =$M$2*INT('Plotting pos of raw data points'!B68/$M$2) -> -20 | I68: =$M$2*INT('Plotting pos of raw data points'!A68/$M$2) -> -20
A69: =$M$2*INT('Plotting pos of raw data points'!I69/$M$2) -> -20 | B69: =$M$2*INT('Plotting pos of raw data points'!H69/$M$2) -> -20 | C69: =$M$2*INT('Plotting pos of raw data points'!G69/$M$2) -> -20 | D69: =$M$2*INT('Plotting pos of raw data points'!F69/$M$2) -> -20 | E69: =$M$2*INT('Plotting pos of raw data points'!E69/$M$2) -> -20 | F69: =$M$2*INT('Plotting pos of raw data points'!D69/$M$2) -> -20 | G69: =$M$2*INT('Plotting pos of raw data points'!C69/$M$2) -> 20 | H69: =$M$2*INT('Plotting pos of raw data points'!B69/$M$2) -> 80 | I69: =$M$2*INT('Plotting pos of raw data points'!A69/$M$2) -> 80
A70: =$M$2*INT('Plotting pos of raw data points'!I70/$M$2) -> -20 | B70: =$M$2*INT('Plotting pos of raw data points'!H70/$M$2) -> -20 | C70: =$M$2*INT('Plotting pos of raw data points'!G70/$M$2) -> -20 | D70: =$M$2*INT('Plotting pos of raw data points'!F70/$M$2) -> -20 | E70: =$M$2*INT('Plotting pos of raw data points'!E70/$M$2) -> -20 | F70: =$M$2*INT('Plotting pos of raw data points'!D70/$M$2) -> -20 | G70: =$M$2*INT('Plotting pos of raw data points'!C70/$M$2) -> 80 | H70: =$M$2*INT('Plotting pos of raw data points'!B70/$M$2) -> 80 | I70: =$M$2*INT('Plotting pos of raw data points'!A70/$M$2) -> 80
A71: =$M$2*INT('Plotting pos of raw data points'!I71/$M$2) -> -20 | B71: =$M$2*INT('Plotting pos of raw data points'!H71/$M$2) -> -20 | C71: =$M$2*INT('Plotting pos of raw data points'!G71/$M$2) -> -20 | D71: =$M$2*INT('Plotting pos of raw data points'!F71/$M$2) -> -20 | E71: =$M$2*INT('Plotting pos of raw data points'!E71/$M$2) -> -20 | F71: =$M$2*INT('Plotting pos of raw data points'!D71/$M$2) -> -20 | G71: =$M$2*INT('Plotting pos of raw data points'!C71/$M$2) -> 60 | H71: =$M$2*INT('Plotting pos of raw data points'!B71/$M$2) -> 60 | I71: =$M$2*INT('Plotting pos of raw data points'!A71/$M$2) -> 40
A72: =$M$2*INT('Plotting pos of raw data points'!I72/$M$2) -> -20 | B72: =$M$2*INT('Plotting pos of raw data points'!H72/$M$2) -> -20 | C72: =$M$2*INT('Plotting pos of raw data points'!G72/$M$2) -> -20 | D72: =$M$2*INT('Plotting pos of raw data points'!F72/$M$2) -> -20 | E72: =$M$2*INT('Plotting pos of raw data points'!E72/$M$2) -> -20 | F72: =$M$2*INT('Plotting pos of raw data points'!D72/$M$2) -> -20 | G72: =$M$2*INT('Plotting pos of raw data points'!C72/$M$2) -> 60 | H72: =$M$2*INT('Plotting pos of raw data points'!B72/$M$2) -> 80 | I72: =$M$2*INT('Plotting pos of raw data points'!A72/$M$2) -> 60
A73: =$M$2*INT('Plotting pos of raw data points'!I73/$M$2) -> -20 | B73: =$M$2*INT('Plotting pos of raw data points'!H73/$M$2) -> -20 | C73: =$M$2*INT('Plotting pos of raw data points'!G73/$M$2) -> -20 | D73: =$M$2*INT('Plotting pos of raw data points'!F73/$M$2) -> -20 | E73: =$M$2*INT('Plotting pos of raw data points'!E73/$M$2) -> -20 | F73: =$M$2*INT('Plotting pos of raw data points'!D73/$M$2) -> -20 | G73: =$M$2*INT('Plotting pos of raw data points'!C73/$M$2) -> -20 | H73: =$M$2*INT('Plotting pos of raw data points'!B73/$M$2) -> -20 | I73: =$M$2*INT('Plotting pos of raw data points'!A73/$M$2) -> -20
A74: =$M$2*INT('Plotting pos of raw data points'!I74/$M$2) -> -20 | B74: =$M$2*INT('Plotting pos of raw data points'!H74/$M$2) -> -20 | C74: =$M$2*INT('Plotting pos of raw data points'!G74/$M$2) -> -20 | D74: =$M$2*INT('Plotting pos of raw data points'!F74/$M$2) -> -20 | E74: =$M$2*INT('Plotting pos of raw data points'!E74/$M$2) -> -20 | F74: =$M$2*INT('Plotting pos of raw data points'!D74/$M$2) -> -20 | G74: =$M$2*INT('Plotting pos of raw data points'!C74/$M$2) -> 60 | H74: =$M$2*INT('Plotting pos of raw data points'!B74/$M$2) -> 80 | I74: =$M$2*INT('Plotting pos of raw data points'!A74/$M$2) -> 80
A75: =$M$2*INT('Plotting pos of raw data points'!I75/$M$2) -> -20 | B75: =$M$2*INT('Plotting pos of raw data points'!H75/$M$2) -> -20 | C75: =$M$2*INT('Plotting pos of raw data points'!G75/$M$2) -> -20 | D75: =$M$2*INT('Plotting pos of raw data points'!F75/$M$2) -> -20 | E75: =$M$2*INT('Plotting pos of raw data points'!E75/$M$2) -> -20 | F75: =$M$2*INT('Plotting pos of raw data points'!D75/$M$2) -> -20 | G75: =$M$2*INT('Plotting pos of raw data points'!C75/$M$2) -> -20 | H75: =$M$2*INT('Plotting pos of raw data points'!B75/$M$2) -> 40 | I75: =$M$2*INT('Plotting pos of raw data points'!A75/$M$2) -> 20
A76: =$M$2*INT('Plotting pos of raw data points'!I76/$M$2) -> -20 | B76: =$M$2*INT('Plotting pos of raw data points'!H76/$M$2) -> -20 | C76: =$M$2*INT('Plotting pos of raw data points'!G76/$M$2) -> -20 | D76: =$M$2*INT('Plotting pos of raw data points'!F76/$M$2) -> -20 | E76: =$M$2*INT('Plotting pos of raw data points'!E76/$M$2) -> -20 | F76: =$M$2*INT('Plotting pos of raw data points'!D76/$M$2) -> -20 | G76: =$M$2*INT('Plotting pos of raw data points'!C76/$M$2) -> -20 | H76: =$M$2*INT('Plotting pos of raw data points'!B76/$M$2) -> -20 | I76: =$M$2*INT('Plotting pos of raw data points'!A76/$M$2) -> -20
A77: =$M$2*INT('Plotting pos of raw data points'!I77/$M$2) -> -20 | B77: =$M$2*INT('Plotting pos of raw data points'!H77/$M$2) -> -20 | C77: =$M$2*INT('Plotting pos of raw data points'!G77/$M$2) -> -20 | D77: =$M$2*INT('Plotting pos of raw data points'!F77/$M$2) -> -20 | E77: =$M$2*INT('Plotting pos of raw data points'!E77/$M$2) -> -20 | F77: =$M$2*INT('Plotting pos of raw data points'!D77/$M$2) -> -20 | G77: =$M$2*INT('Plotting pos of raw data points'!C77/$M$2) -> -20 | H77: =$M$2*INT('Plotting pos of raw data points'!B77/$M$2) -> 80 | I77: =$M$2*INT('Plotting pos of raw data points'!A77/$M$2) -> 80
A78: =$M$2*INT('Plotting pos of raw data points'!I78/$M$2) -> -20 | B78: =$M$2*INT('Plotting pos of raw data points'!H78/$M$2) -> -20 | C78: =$M$2*INT('Plotting pos of raw data points'!G78/$M$2) -> -20 | D78: =$M$2*INT('Plotting pos of raw data points'!F78/$M$2) -> -20 | E78: =$M$2*INT('Plotting pos of raw data points'!E78/$M$2) -> -20 | F78: =$M$2*INT('Plotting pos of raw data points'!D78/$M$2) -> -20 | G78: =$M$2*INT('Plotting pos of raw data points'!C78/$M$2) -> -20 | H78: =$M$2*INT('Plotting pos of raw data points'!B78/$M$2) -> -20 | I78: =$M$2*INT('Plotting pos of raw data points'!A78/$M$2) -> -20
A79: =$M$2*INT('Plotting pos of raw data points'!I79/$M$2) -> -20 | B79: =$M$2*INT('Plotting pos of raw data points'!H79/$M$2) -> -20 | C79: =$M$2*INT('Plotting pos of raw data points'!G79/$M$2) -> -20 | D79: =$M$2*INT('Plotting pos of raw data points'!F79/$M$2) -> -20 | E79: =$M$2*INT('Plotting pos of raw data points'!E79/$M$2) -> -20 | F79: =$M$2*INT('Plotting pos of raw data points'!D79/$M$2) -> -20 | G79: =$M$2*INT('Plotting pos of raw data points'!C79/$M$2) -> -20 | H79: =$M$2*INT('Plotting pos of raw data points'!B79/$M$2) -> 100 | I79: =$M$2*INT('Plotting pos of raw data points'!A79/$M$2) -> 100
A80: =$M$2*INT('Plotting pos of raw data points'!I80/$M$2) -> -20 | B80: =$M$2*INT('Plotting pos of raw data points'!H80/$M$2) -> -20 | C80: =$M$2*INT('Plotting pos of raw data points'!G80/$M$2) -> -20 | D80: =$M$2*INT('Plotting pos of raw data points'!F80/$M$2) -> -20 | E80: =$M$2*INT('Plotting pos of raw data points'!E80/$M$2) -> -20 | F80: =$M$2*INT('Plotting pos of raw data points'!D80/$M$2) -> -20 | G80: =$M$2*INT('Plotting pos of raw data points'!C80/$M$2) -> 60 | H80: =$M$2*INT('Plotting pos of raw data points'!B80/$M$2) -> 40 | I80: =$M$2*INT('Plotting pos of raw data points'!A80/$M$2) -> 80
A81: =$M$2*INT('Plotting pos of raw data points'!I81/$M$2) -> -20 | B81: =$M$2*INT('Plotting pos of raw data points'!H81/$M$2) -> -20 | C81: =$M$2*INT('Plotting pos of raw data points'!G81/$M$2) -> -20 | D81: =$M$2*INT('Plotting pos of raw data points'!F81/$M$2) -> -20 | E81: =$M$2*INT('Plotting pos of raw data points'!E81/$M$2) -> -20 | F81: =$M$2*INT('Plotting pos of raw data points'!D81/$M$2) -> -20 | G81: =$M$2*INT('Plotting pos of raw data points'!C81/$M$2) -> -20 | H81: =$M$2*INT('Plotting pos of raw data points'!B81/$M$2) -> -20 | I81: =$M$2*INT('Plotting pos of raw data points'!A81/$M$2) -> -20
A82: =$M$2*INT('Plotting pos of raw data points'!I82/$M$2) -> -20 | B82: =$M$2*INT('Plotting pos of raw data points'!H82/$M$2) -> -20 | C82: =$M$2*INT('Plotting pos of raw data points'!G82/$M$2) -> -20 | D82: =$M$2*INT('Plotting pos of raw data points'!F82/$M$2) -> -20 | E82: =$M$2*INT('Plotting pos of raw data points'!E82/$M$2) -> -20 | F82: =$M$2*INT('Plotting pos of raw data points'!D82/$M$2) -> -20 | G82: =$M$2*INT('Plotting pos of raw data points'!C82/$M$2) -> -20 | H82: =$M$2*INT('Plotting pos of raw data points'!B82/$M$2) -> -20 | I82: =$M$2*INT('Plotting pos of raw data points'!A82/$M$2) -> -20
A83: =$M$2*INT('Plotting pos of raw data points'!I83/$M$2) -> -20 | B83: =$M$2*INT('Plotting pos of raw data points'!H83/$M$2) -> -20 | C83: =$M$2*INT('Plotting pos of raw data points'!G83/$M$2) -> -20 | D83: =$M$2*INT('Plotting pos of raw data points'!F83/$M$2) -> -20 | E83: =$M$2*INT('Plotting pos of raw data points'!E83/$M$2) -> -20 | F83: =$M$2*INT('Plotting pos of raw data points'!D83/$M$2) -> -20 | G83: =$M$2*INT('Plotting pos of raw data points'!C83/$M$2) -> 40 | H83: =$M$2*INT('Plotting pos of raw data points'!B83/$M$2) -> 80 | I83: =$M$2*INT('Plotting pos of raw data points'!A83/$M$2) -> 60
A84: =$M$2*INT('Plotting pos of raw data points'!I84/$M$2) -> -20 | B84: =$M$2*INT('Plotting pos of raw data points'!H84/$M$2) -> -20 | C84: =$M$2*INT('Plotting pos of raw data points'!G84/$M$2) -> -20 | D84: =$M$2*INT('Plotting pos of raw data points'!F84/$M$2) -> -20 | E84: =$M$2*INT('Plotting pos of raw data points'!E84/$M$2) -> -20 | F84: =$M$2*INT('Plotting pos of raw data points'!D84/$M$2) -> -20 | G84: =$M$2*INT('Plotting pos of raw data points'!C84/$M$2) -> -20 | H84: =$M$2*INT('Plotting pos of raw data points'!B84/$M$2) -> 80 | I84: =$M$2*INT('Plotting pos of raw data points'!A84/$M$2) -> 80
A85: =$M$2*INT('Plotting pos of raw data points'!I85/$M$2) -> -20 | B85: =$M$2*INT('Plotting pos of raw data points'!H85/$M$2) -> -20 | C85: =$M$2*INT('Plotting pos of raw data points'!G85/$M$2) -> -20 | D85: =$M$2*INT('Plotting pos of raw data points'!F85/$M$2) -> -20 | E85: =$M$2*INT('Plotting pos of raw data points'!E85/$M$2) -> -20 | F85: =$M$2*INT('Plotting pos of raw data points'!D85/$M$2) -> -20 | G85: =$M$2*INT('Plotting pos of raw data points'!C85/$M$2) -> 80 | H85: =$M$2*INT('Plotting pos of raw data points'!B85/$M$2) -> 80 | I85: =$M$2*INT('Plotting pos of raw data points'!A85/$M$2) -> 80
A86: =$M$2*INT('Plotting pos of raw data points'!I86/$M$2) -> -20 | B86: =$M$2*INT('Plotting pos of raw data points'!H86/$M$2) -> -20 | C86: =$M$2*INT('Plotting pos of raw data points'!G86/$M$2) -> -20 | D86: =$M$2*INT('Plotting pos of raw data points'!F86/$M$2) -> -20 | E86: =$M$2*INT('Plotting pos of raw data points'!E86/$M$2) -> -20 | F86: =$M$2*INT('Plotting pos of raw data points'!D86/$M$2) -> -20 | G86: =$M$2*INT('Plotting pos of raw data points'!C86/$M$2) -> 60 | H86: =$M$2*INT('Plotting pos of raw data points'!B86/$M$2) -> 80 | I86: =$M$2*INT('Plotting pos of raw data points'!A86/$M$2) -> 60
A87: =$M$2*INT('Plotting pos of raw data points'!I87/$M$2) -> -20 | B87: =$M$2*INT('Plotting pos of raw data points'!H87/$M$2) -> -20 | C87: =$M$2*INT('Plotting pos of raw data points'!G87/$M$2) -> -20 | D87: =$M$2*INT('Plotting pos of raw data points'!F87/$M$2) -> -20 | E87: =$M$2*INT('Plotting pos of raw data points'!E87/$M$2) -> -20 | F87: =$M$2*INT('Plotting pos of raw data points'!D87/$M$2) -> -20 | G87: =$M$2*INT('Plotting pos of raw data points'!C87/$M$2) -> 60 | H87: =$M$2*INT('Plotting pos of raw data points'!B87/$M$2) -> 80 | I87: =$M$2*INT('Plotting pos of raw data points'!A87/$M$2) -> 60
A88: =$M$2*INT('Plotting pos of raw data points'!I88/$M$2) -> -20 | B88: =$M$2*INT('Plotting pos of raw data points'!H88/$M$2) -> -20 | C88: =$M$2*INT('Plotting pos of raw data points'!G88/$M$2) -> -20 | D88: =$M$2*INT('Plotting pos of raw data points'!F88/$M$2) -> -20 | E88: =$M$2*INT('Plotting pos of raw data points'!E88/$M$2) -> -20 | F88: =$M$2*INT('Plotting pos of raw data points'!D88/$M$2) -> -20 | G88: =$M$2*INT('Plotting pos of raw data points'!C88/$M$2) -> -20 | H88: =$M$2*INT('Plotting pos of raw data points'!B88/$M$2) -> -20 | I88: =$M$2*INT('Plotting pos of raw data points'!A88/$M$2) -> -20
A89: =$M$2*INT('Plotting pos of raw data points'!I89/$M$2) -> -20 | B89: =$M$2*INT('Plotting pos of raw data points'!H89/$M$2) -> -20 | C89: =$M$2*INT('Plotting pos of raw data points'!G89/$M$2) -> -20 | D89: =$M$2*INT('Plotting pos of raw data points'!F89/$M$2) -> -20 | E89: =$M$2*INT('Plotting pos of raw data points'!E89/$M$2) -> -20 | F89: =$M$2*INT('Plotting pos of raw data points'!D89/$M$2) -> -20 | G89: =$M$2*INT('Plotting pos of raw data points'!C89/$M$2) -> -20 | H89: =$M$2*INT('Plotting pos of raw data points'!B89/$M$2) -> -20 | I89: =$M$2*INT('Plotting pos of raw data points'!A89/$M$2) -> -20
A90: =$M$2*INT('Plotting pos of raw data points'!I90/$M$2) -> -20 | B90: =$M$2*INT('Plotting pos of raw data points'!H90/$M$2) -> -20 | C90: =$M$2*INT('Plotting pos of raw data points'!G90/$M$2) -> -20 | D90: =$M$2*INT('Plotting pos of raw data points'!F90/$M$2) -> -20 | E90: =$M$2*INT('Plotting pos of raw data points'!E90/$M$2) -> -20 | F90: =$M$2*INT('Plotting pos of raw data points'!D90/$M$2) -> -20 | G90: =$M$2*INT('Plotting pos of raw data points'!C90/$M$2) -> 80 | H90: =$M$2*INT('Plotting pos of raw data points'!B90/$M$2) -> 60 | I90: =$M$2*INT('Plotting pos of raw data points'!A90/$M$2) -> 0
A91: =$M$2*INT('Plotting pos of raw data points'!I91/$M$2) -> -20 | B91: =$M$2*INT('Plotting pos of raw data points'!H91/$M$2) -> -20 | C91: =$M$2*INT('Plotting pos of raw data points'!G91/$M$2) -> -20 | D91: =$M$2*INT('Plotting pos of raw data points'!F91/$M$2) -> -20 | E91: =$M$2*INT('Plotting pos of raw data points'!E91/$M$2) -> -20 | F91: =$M$2*INT('Plotting pos of raw data points'!D91/$M$2) -> -20 | G91: =$M$2*INT('Plotting pos of raw data points'!C91/$M$2) -> -20 | H91: =$M$2*INT('Plotting pos of raw data points'!B91/$M$2) -> -20 | I91: =$M$2*INT('Plotting pos of raw data points'!A91/$M$2) -> -20
A92: =$M$2*INT('Plotting pos of raw data points'!I92/$M$2) -> -20 | B92: =$M$2*INT('Plotting pos of raw data points'!H92/$M$2) -> -20 | C92: =$M$2*INT('Plotting pos of raw data points'!G92/$M$2) -> -20 | D92: =$M$2*INT('Plotting pos of raw data points'!F92/$M$2) -> -20 | E92: =$M$2*INT('Plotting pos of raw data points'!E92/$M$2) -> -20 | F92: =$M$2*INT('Plotting pos of raw data points'!D92/$M$2) -> -20 | G92: =$M$2*INT('Plotting pos of raw data points'!C92/$M$2) -> -20 | H92: =$M$2*INT('Plotting pos of raw data points'!B92/$M$2) -> -20 | I92: =$M$2*INT('Plotting pos of raw data points'!A92/$M$2) -> -20
A93: =$M$2*INT('Plotting pos of raw data points'!I93/$M$2) -> -20 | B93: =$M$2*INT('Plotting pos of raw data points'!H93/$M$2) -> -20 | C93: =$M$2*INT('Plotting pos of raw data points'!G93/$M$2) -> -20 | D93: =$M$2*INT('Plotting pos of raw data points'!F93/$M$2) -> -20 | E93: =$M$2*INT('Plotting pos of raw data points'!E93/$M$2) -> -20 | F93: =$M$2*INT('Plotting pos of raw data points'!D93/$M$2) -> -20 | G93: =$M$2*INT('Plotting pos of raw data points'!C93/$M$2) -> -20 | H93: =$M$2*INT('Plotting pos of raw data points'!B93/$M$2) -> 100 | I93: =$M$2*INT('Plotting pos of raw data points'!A93/$M$2) -> 100
A94: =$M$2*INT('Plotting pos of raw data points'!I94/$M$2) -> -20 | B94: =$M$2*INT('Plotting pos of raw data points'!H94/$M$2) -> -20 | C94: =$M$2*INT('Plotting pos of raw data points'!G94/$M$2) -> -20 | D94: =$M$2*INT('Plotting pos of raw data points'!F94/$M$2) -> -20 | E94: =$M$2*INT('Plotting pos of raw data points'!E94/$M$2) -> -20 | F94: =$M$2*INT('Plotting pos of raw data points'!D94/$M$2) -> -20 | G94: =$M$2*INT('Plotting pos of raw data points'!C94/$M$2) -> -20 | H94: =$M$2*INT('Plotting pos of raw data points'!B94/$M$2) -> 40 | I94: =$M$2*INT('Plotting pos of raw data points'!A94/$M$2) -> 40
A95: =$M$2*INT('Plotting pos of raw data points'!I95/$M$2) -> -20 | B95: =$M$2*INT('Plotting pos of raw data points'!H95/$M$2) -> -20 | C95: =$M$2*INT('Plotting pos of raw data points'!G95/$M$2) -> -20 | D95: =$M$2*INT('Plotting pos of raw data points'!F95/$M$2) -> -20 | E95: =$M$2*INT('Plotting pos of raw data points'!E95/$M$2) -> -20 | F95: =$M$2*INT('Plotting pos of raw data points'!D95/$M$2) -> -20 | G95: =$M$2*INT('Plotting pos of raw data points'!C95/$M$2) -> -20 | H95: =$M$2*INT('Plotting pos of raw data points'!B95/$M$2) -> -20 | I95: =$M$2*INT('Plotting pos of raw data points'!A95/$M$2) -> -20
A96: =$M$2*INT('Plotting pos of raw data points'!I96/$M$2) -> -20 | B96: =$M$2*INT('Plotting pos of raw data points'!H96/$M$2) -> -20 | C96: =$M$2*INT('Plotting pos of raw data points'!G96/$M$2) -> -20 | D96: =$M$2*INT('Plotting pos of raw data points'!F96/$M$2) -> -20 | E96: =$M$2*INT('Plotting pos of raw data points'!E96/$M$2) -> -20 | F96: =$M$2*INT('Plotting pos of raw data points'!D96/$M$2) -> -20 | G96: =$M$2*INT('Plotting pos of raw data points'!C96/$M$2) -> -20 | H96: =$M$2*INT('Plotting pos of raw data points'!B96/$M$2) -> 100 | I96: =$M$2*INT('Plotting pos of raw data points'!A96/$M$2) -> 80
A97: =$M$2*INT('Plotting pos of raw data points'!I97/$M$2) -> -20 | B97: =$M$2*INT('Plotting pos of raw data points'!H97/$M$2) -> -20 | C97: =$M$2*INT('Plotting pos of raw data points'!G97/$M$2) -> -20 | D97: =$M$2*INT('Plotting pos of raw data points'!F97/$M$2) -> -20 | E97: =$M$2*INT('Plotting pos of raw data points'!E97/$M$2) -> -20 | F97: =$M$2*INT('Plotting pos of raw data points'!D97/$M$2) -> -20 | G97: =$M$2*INT('Plotting pos of raw data points'!C97/$M$2) -> -20 | H97: =$M$2*INT('Plotting pos of raw data points'!B97/$M$2) -> -20 | I97: =$M$2*INT('Plotting pos of raw data points'!A97/$M$2) -> -20
A98: =$M$2*INT('Plotting pos of raw data points'!I98/$M$2) -> -20 | B98: =$M$2*INT('Plotting pos of raw data points'!H98/$M$2) -> -20 | C98: =$M$2*INT('Plotting pos of raw data points'!G98/$M$2) -> -20 | D98: =$M$2*INT('Plotting pos of raw data points'!F98/$M$2) -> -20 | E98: =$M$2*INT('Plotting pos of raw data points'!E98/$M$2) -> -20 | F98: =$M$2*INT('Plotting pos of raw data points'!D98/$M$2) -> -20 | G98: =$M$2*INT('Plotting pos of raw data points'!C98/$M$2) -> 100 | H98: =$M$2*INT('Plotting pos of raw data points'!B98/$M$2) -> 60 | I98: =$M$2*INT('Plotting pos of raw data points'!A98/$M$2) -> 60
A99: =$M$2*INT('Plotting pos of raw data points'!I99/$M$2) -> -20 | B99: =$M$2*INT('Plotting pos of raw data points'!H99/$M$2) -> -20 | C99: =$M$2*INT('Plotting pos of raw data points'!G99/$M$2) -> -20 | D99: =$M$2*INT('Plotting pos of raw data points'!F99/$M$2) -> -20 | E99: =$M$2*INT('Plotting pos of raw data points'!E99/$M$2) -> -20 | F99: =$M$2*INT('Plotting pos of raw data points'!D99/$M$2) -> -20 | G99: =$M$2*INT('Plotting pos of raw data points'!C99/$M$2) -> -20 | H99: =$M$2*INT('Plotting pos of raw data points'!B99/$M$2) -> 60 | I99: =$M$2*INT('Plotting pos of raw data points'!A99/$M$2) -> 40
A100: =$M$2*INT('Plotting pos of raw data points'!I100/$M$2) -> -20 | B100: =$M$2*INT('Plotting pos of raw data points'!H100/$M$2) -> -20 | C100: =$M$2*INT('Plotting pos of raw data points'!G100/$M$2) -> -20 | D100: =$M$2*INT('Plotting pos of raw data points'!F100/$M$2) -> -20 | E100: =$M$2*INT('Plotting pos of raw data points'!E100/$M$2) -> -20 | F100: =$M$2*INT('Plotting pos of raw data points'!D100/$M$2) -> -20 | G100: =$M$2*INT('Plotting pos of raw data points'!C100/$M$2) -> 0 | H100: =$M$2*INT('Plotting pos of raw data points'!B100/$M$2) -> 100 | I100: =$M$2*INT('Plotting pos of raw data points'!A100/$M$2) -> 100
A101: =$M$2*INT('Plotting pos of raw data points'!I101/$M$2) ->  | B101: =$M$2*INT('Plotting pos of raw data points'!H101/$M$2) ->  | C101: =$M$2*INT('Plotting pos of raw data points'!G101/$M$2) ->  | D101: =$M$2*INT('Plotting pos of raw data points'!F101/$M$2) ->  | E101: =$M$2*INT('Plotting pos of raw data points'!E101/$M$2) ->  | F101: =$M$2*INT('Plotting pos of raw data points'!D101/$M$2) ->  | G101: =$M$2*INT('Plotting pos of raw data points'!C101/$M$2) ->  | H101: =$M$2*INT('Plotting pos of raw data points'!B101/$M$2) ->  | I101: =$M$2*INT('Plotting pos of raw data points'!A101/$M$2) -> 
A102: =$M$2*INT('Plotting pos of raw data points'!I102/$M$2) ->  | B102: =$M$2*INT('Plotting pos of raw data points'!H102/$M$2) ->  | C102: =$M$2*INT('Plotting pos of raw data points'!G102/$M$2) ->  | D102: =$M$2*INT('Plotting pos of raw data points'!F102/$M$2) ->  | E102: =$M$2*INT('Plotting pos of raw data points'!E102/$M$2) ->  | F102: =$M$2*INT('Plotting pos of raw data points'!D102/$M$2) ->  | G102: =$M$2*INT('Plotting pos of raw data points'!C102/$M$2) ->  | H102: =$M$2*INT('Plotting pos of raw data points'!B102/$M$2) ->  | I102: =$M$2*INT('Plotting pos of raw data points'!A102/$M$2) -> 
A103: =$M$2*INT('Plotting pos of raw data points'!I103/$M$2) ->  | B103: =$M$2*INT('Plotting pos of raw data points'!H103/$M$2) ->  | C103: =$M$2*INT('Plotting pos of raw data points'!G103/$M$2) ->  | D103: =$M$2*INT('Plotting pos of raw data points'!F103/$M$2) ->  | E103: =$M$2*INT('Plotting pos of raw data points'!E103/$M$2) ->  | F103: =$M$2*INT('Plotting pos of raw data points'!D103/$M$2) ->  | G103: =$M$2*INT('Plotting pos of raw data points'!C103/$M$2) ->  | H103: =$M$2*INT('Plotting pos of raw data points'!B103/$M$2) ->  | I103: =$M$2*INT('Plotting pos of raw data points'!A103/$M$2) -> 
A104: =$M$2*INT('Plotting pos of raw data points'!I104/$M$2) ->  | B104: =$M$2*INT('Plotting pos of raw data points'!H104/$M$2) ->  | C104: =$M$2*INT('Plotting pos of raw data points'!G104/$M$2) ->  | D104: =$M$2*INT('Plotting pos of raw data points'!F104/$M$2) ->  | E104: =$M$2*INT('Plotting pos of raw data points'!E104/$M$2) ->  | F104: =$M$2*INT('Plotting pos of raw data points'!D104/$M$2) ->  | G104: =$M$2*INT('Plotting pos of raw data points'!C104/$M$2) ->  | H104: =$M$2*INT('Plotting pos of raw data points'!B104/$M$2) ->  | I104: =$M$2*INT('Plotting pos of raw data points'!A104/$M$2) -> 
A105: =$M$2*INT('Plotting pos of raw data points'!I105/$M$2) ->  | B105: =$M$2*INT('Plotting pos of raw data points'!H105/$M$2) ->  | C105: =$M$2*INT('Plotting pos of raw data points'!G105/$M$2) ->  | D105: =$M$2*INT('Plotting pos of raw data points'!F105/$M$2) ->  | E105: =$M$2*INT('Plotting pos of raw data points'!E105/$M$2) ->  | F105: =$M$2*INT('Plotting pos of raw data points'!D105/$M$2) ->  | G105: =$M$2*INT('Plotting pos of raw data points'!C105/$M$2) ->  | H105: =$M$2*INT('Plotting pos of raw data points'!B105/$M$2) ->  | I105: =$M$2*INT('Plotting pos of raw data points'!A105/$M$2) -> 
A106: =$M$2*INT('Plotting pos of raw data points'!I106/$M$2) ->  | B106: =$M$2*INT('Plotting pos of raw data points'!H106/$M$2) ->  | C106: =$M$2*INT('Plotting pos of raw data points'!G106/$M$2) ->  | D106: =$M$2*INT('Plotting pos of raw data points'!F106/$M$2) ->  | E106: =$M$2*INT('Plotting pos of raw data points'!E106/$M$2) ->  | F106: =$M$2*INT('Plotting pos of raw data points'!D106/$M$2) ->  | G106: =$M$2*INT('Plotting pos of raw data points'!C106/$M$2) ->  | H106: =$M$2*INT('Plotting pos of raw data points'!B106/$M$2) ->  | I106: =$M$2*INT('Plotting pos of raw data points'!A106/$M$2) -> 
A107: =$M$2*INT('Plotting pos of raw data points'!I107/$M$2) ->  | B107: =$M$2*INT('Plotting pos of raw data points'!H107/$M$2) ->  | C107: =$M$2*INT('Plotting pos of raw data points'!G107/$M$2) ->  | D107: =$M$2*INT('Plotting pos of raw data points'!F107/$M$2) ->  | E107: =$M$2*INT('Plotting pos of raw data points'!E107/$M$2) ->  | F107: =$M$2*INT('Plotting pos of raw data points'!D107/$M$2) ->  | G107: =$M$2*INT('Plotting pos of raw data points'!C107/$M$2) ->  | H107: =$M$2*INT('Plotting pos of raw data points'!B107/$M$2) ->  | I107: =$M$2*INT('Plotting pos of raw data points'!A107/$M$2) -> 
A108: =$M$2*INT('Plotting pos of raw data points'!I108/$M$2) ->  | B108: =$M$2*INT('Plotting pos of raw data points'!H108/$M$2) ->  | C108: =$M$2*INT('Plotting pos of raw data points'!G108/$M$2) ->  | D108: =$M$2*INT('Plotting pos of raw data points'!F108/$M$2) ->  | E108: =$M$2*INT('Plotting pos of raw data points'!E108/$M$2) ->  | F108: =$M$2*INT('Plotting pos of raw data points'!D108/$M$2) ->  | G108: =$M$2*INT('Plotting pos of raw data points'!C108/$M$2) ->  | H108: =$M$2*INT('Plotting pos of raw data points'!B108/$M$2) ->  | I108: =$M$2*INT('Plotting pos of raw data points'!A108/$M$2) -> 
A109: =$M$2*INT('Plotting pos of raw data points'!I109/$M$2) ->  | B109: =$M$2*INT('Plotting pos of raw data points'!H109/$M$2) ->  | C109: =$M$2*INT('Plotting pos of raw data points'!G109/$M$2) ->  | D109: =$M$2*INT('Plotting pos of raw data points'!F109/$M$2) ->  | E109: =$M$2*INT('Plotting pos of raw data points'!E109/$M$2) ->  | F109: =$M$2*INT('Plotting pos of raw data points'!D109/$M$2) ->  | G109: =$M$2*INT('Plotting pos of raw data points'!C109/$M$2) ->  | H109: =$M$2*INT('Plotting pos of raw data points'!B109/$M$2) ->  | I109: =$M$2*INT('Plotting pos of raw data points'!A109/$M$2) -> 
A110: =$M$2*INT('Plotting pos of raw data points'!I110/$M$2) ->  | B110: =$M$2*INT('Plotting pos of raw data points'!H110/$M$2) ->  | C110: =$M$2*INT('Plotting pos of raw data points'!G110/$M$2) ->  | D110: =$M$2*INT('Plotting pos of raw data points'!F110/$M$2) ->  | E110: =$M$2*INT('Plotting pos of raw data points'!E110/$M$2) ->  | F110: =$M$2*INT('Plotting pos of raw data points'!D110/$M$2) ->  | G110: =$M$2*INT('Plotting pos of raw data points'!C110/$M$2) ->  | H110: =$M$2*INT('Plotting pos of raw data points'!B110/$M$2) ->  | I110: =$M$2*INT('Plotting pos of raw data points'!A110/$M$2) -> 
A111: =$M$2*INT('Plotting pos of raw data points'!I111/$M$2) ->  | B111: =$M$2*INT('Plotting pos of raw data points'!H111/$M$2) ->  | C111: =$M$2*INT('Plotting pos of raw data points'!G111/$M$2) ->  | D111: =$M$2*INT('Plotting pos of raw data points'!F111/$M$2) ->  | E111: =$M$2*INT('Plotting pos of raw data points'!E111/$M$2) ->  | F111: =$M$2*INT('Plotting pos of raw data points'!D111/$M$2) ->  | G111: =$M$2*INT('Plotting pos of raw data points'!C111/$M$2) ->  | H111: =$M$2*INT('Plotting pos of raw data points'!B111/$M$2) ->  | I111: =$M$2*INT('Plotting pos of raw data points'!A111/$M$2) -> 
A112: =$M$2*INT('Plotting pos of raw data points'!I112/$M$2) ->  | B112: =$M$2*INT('Plotting pos of raw data points'!H112/$M$2) ->  | C112: =$M$2*INT('Plotting pos of raw data points'!G112/$M$2) ->  | D112: =$M$2*INT('Plotting pos of raw data points'!F112/$M$2) ->  | E112: =$M$2*INT('Plotting pos of raw data points'!E112/$M$2) ->  | F112: =$M$2*INT('Plotting pos of raw data points'!D112/$M$2) ->  | G112: =$M$2*INT('Plotting pos of raw data points'!C112/$M$2) ->  | H112: =$M$2*INT('Plotting pos of raw data points'!B112/$M$2) ->  | I112: =$M$2*INT('Plotting pos of raw data points'!A112/$M$2) -> 
A113: =$M$2*INT('Plotting pos of raw data points'!I113/$M$2) ->  | B113: =$M$2*INT('Plotting pos of raw data points'!H113/$M$2) ->  | C113: =$M$2*INT('Plotting pos of raw data points'!G113/$M$2) ->  | D113: =$M$2*INT('Plotting pos of raw data points'!F113/$M$2) ->  | E113: =$M$2*INT('Plotting pos of raw data points'!E113/$M$2) ->  | F113: =$M$2*INT('Plotting pos of raw data points'!D113/$M$2) ->  | G113: =$M$2*INT('Plotting pos of raw data points'!C113/$M$2) ->  | H113: =$M$2*INT('Plotting pos of raw data points'!B113/$M$2) ->  | I113: =$M$2*INT('Plotting pos of raw data points'!A113/$M$2) -> 
A114: =$M$2*INT('Plotting pos of raw data points'!I114/$M$2) ->  | B114: =$M$2*INT('Plotting pos of raw data points'!H114/$M$2) ->  | C114: =$M$2*INT('Plotting pos of raw data points'!G114/$M$2) ->  | D114: =$M$2*INT('Plotting pos of raw data points'!F114/$M$2) ->  | E114: =$M$2*INT('Plotting pos of raw data points'!E114/$M$2) ->  | F114: =$M$2*INT('Plotting pos of raw data points'!D114/$M$2) ->  | G114: =$M$2*INT('Plotting pos of raw data points'!C114/$M$2) ->  | H114: =$M$2*INT('Plotting pos of raw data points'!B114/$M$2) ->  | I114: =$M$2*INT('Plotting pos of raw data points'!A114/$M$2) -> 
A115: =$M$2*INT('Plotting pos of raw data points'!I115/$M$2) ->  | B115: =$M$2*INT('Plotting pos of raw data points'!H115/$M$2) ->  | C115: =$M$2*INT('Plotting pos of raw data points'!G115/$M$2) ->  | D115: =$M$2*INT('Plotting pos of raw data points'!F115/$M$2) ->  | E115: =$M$2*INT('Plotting pos of raw data points'!E115/$M$2) ->  | F115: =$M$2*INT('Plotting pos of raw data points'!D115/$M$2) ->  | G115: =$M$2*INT('Plotting pos of raw data points'!C115/$M$2) ->  | H115: =$M$2*INT('Plotting pos of raw data points'!B115/$M$2) ->  | I115: =$M$2*INT('Plotting pos of raw data points'!A115/$M$2) -> 
A116: =$M$2*INT('Plotting pos of raw data points'!I116/$M$2) ->  | B116: =$M$2*INT('Plotting pos of raw data points'!H116/$M$2) ->  | C116: =$M$2*INT('Plotting pos of raw data points'!G116/$M$2) ->  | D116: =$M$2*INT('Plotting pos of raw data points'!F116/$M$2) ->  | E116: =$M$2*INT('Plotting pos of raw data points'!E116/$M$2) ->  | F116: =$M$2*INT('Plotting pos of raw data points'!D116/$M$2) ->  | G116: =$M$2*INT('Plotting pos of raw data points'!C116/$M$2) ->  | H116: =$M$2*INT('Plotting pos of raw data points'!B116/$M$2) ->  | I116: =$M$2*INT('Plotting pos of raw data points'!A116/$M$2) -> 
A117: =$M$2*INT('Plotting pos of raw data points'!I117/$M$2) ->  | B117: =$M$2*INT('Plotting pos of raw data points'!H117/$M$2) ->  | C117: =$M$2*INT('Plotting pos of raw data points'!G117/$M$2) ->  | D117: =$M$2*INT('Plotting pos of raw data points'!F117/$M$2) ->  | E117: =$M$2*INT('Plotting pos of raw data points'!E117/$M$2) ->  | F117: =$M$2*INT('Plotting pos of raw data points'!D117/$M$2) ->  | G117: =$M$2*INT('Plotting pos of raw data points'!C117/$M$2) ->  | H117: =$M$2*INT('Plotting pos of raw data points'!B117/$M$2) ->  | I117: =$M$2*INT('Plotting pos of raw data points'!A117/$M$2) -> 
A118: =$M$2*INT('Plotting pos of raw data points'!I118/$M$2) ->  | B118: =$M$2*INT('Plotting pos of raw data points'!H118/$M$2) ->  | C118: =$M$2*INT('Plotting pos of raw data points'!G118/$M$2) ->  | D118: =$M$2*INT('Plotting pos of raw data points'!F118/$M$2) ->  | E118: =$M$2*INT('Plotting pos of raw data points'!E118/$M$2) ->  | F118: =$M$2*INT('Plotting pos of raw data points'!D118/$M$2) ->  | G118: =$M$2*INT('Plotting pos of raw data points'!C118/$M$2) ->  | H118: =$M$2*INT('Plotting pos of raw data points'!B118/$M$2) ->  | I118: =$M$2*INT('Plotting pos of raw data points'!A118/$M$2) -> 
A119: =$M$2*INT('Plotting pos of raw data points'!I119/$M$2) ->  | B119: =$M$2*INT('Plotting pos of raw data points'!H119/$M$2) ->  | C119: =$M$2*INT('Plotting pos of raw data points'!G119/$M$2) ->  | D119: =$M$2*INT('Plotting pos of raw data points'!F119/$M$2) ->  | E119: =$M$2*INT('Plotting pos of raw data points'!E119/$M$2) ->  | F119: =$M$2*INT('Plotting pos of raw data points'!D119/$M$2) ->  | G119: =$M$2*INT('Plotting pos of raw data points'!C119/$M$2) ->  | H119: =$M$2*INT('Plotting pos of raw data points'!B119/$M$2) ->  | I119: =$M$2*INT('Plotting pos of raw data points'!A119/$M$2) -> 
A120: =$M$2*INT('Plotting pos of raw data points'!I120/$M$2) ->  | B120: =$M$2*INT('Plotting pos of raw data points'!H120/$M$2) ->  | C120: =$M$2*INT('Plotting pos of raw data points'!G120/$M$2) ->  | D120: =$M$2*INT('Plotting pos of raw data points'!F120/$M$2) ->  | E120: =$M$2*INT('Plotting pos of raw data points'!E120/$M$2) ->  | F120: =$M$2*INT('Plotting pos of raw data points'!D120/$M$2) ->  | G120: =$M$2*INT('Plotting pos of raw data points'!C120/$M$2) ->  | H120: =$M$2*INT('Plotting pos of raw data points'!B120/$M$2) ->  | I120: =$M$2*INT('Plotting pos of raw data points'!A120/$M$2) -> 
A121: =$M$2*INT('Plotting pos of raw data points'!I121/$M$2) ->  | B121: =$M$2*INT('Plotting pos of raw data points'!H121/$M$2) ->  | C121: =$M$2*INT('Plotting pos of raw data points'!G121/$M$2) ->  | D121: =$M$2*INT('Plotting pos of raw data points'!F121/$M$2) ->  | E121: =$M$2*INT('Plotting pos of raw data points'!E121/$M$2) ->  | F121: =$M$2*INT('Plotting pos of raw data points'!D121/$M$2) ->  | G121: =$M$2*INT('Plotting pos of raw data points'!C121/$M$2) ->  | H121: =$M$2*INT('Plotting pos of raw data points'!B121/$M$2) ->  | I121: =$M$2*INT('Plotting pos of raw data points'!A121/$M$2) -> 
A122: =$M$2*INT('Plotting pos of raw data points'!I122/$M$2) ->  | B122: =$M$2*INT('Plotting pos of raw data points'!H122/$M$2) ->  | C122: =$M$2*INT('Plotting pos of raw data points'!G122/$M$2) ->  | D122: =$M$2*INT('Plotting pos of raw data points'!F122/$M$2) ->  | E122: =$M$2*INT('Plotting pos of raw data points'!E122/$M$2) ->  | F122: =$M$2*INT('Plotting pos of raw data points'!D122/$M$2) ->  | G122: =$M$2*INT('Plotting pos of raw data points'!C122/$M$2) ->  | H122: =$M$2*INT('Plotting pos of raw data points'!B122/$M$2) ->  | I122: =$M$2*INT('Plotting pos of raw data points'!A122/$M$2) -> 
A123: =$M$2*INT('Plotting pos of raw data points'!I123/$M$2) ->  | B123: =$M$2*INT('Plotting pos of raw data points'!H123/$M$2) ->  | C123: =$M$2*INT('Plotting pos of raw data points'!G123/$M$2) ->  | D123: =$M$2*INT('Plotting pos of raw data points'!F123/$M$2) ->  | E123: =$M$2*INT('Plotting pos of raw data points'!E123/$M$2) ->  | F123: =$M$2*INT('Plotting pos of raw data points'!D123/$M$2) ->  | G123: =$M$2*INT('Plotting pos of raw data points'!C123/$M$2) ->  | H123: =$M$2*INT('Plotting pos of raw data points'!B123/$M$2) ->  | I123: =$M$2*INT('Plotting pos of raw data points'!A123/$M$2) -> 
A124: =$M$2*INT('Plotting pos of raw data points'!I124/$M$2) ->  | B124: =$M$2*INT('Plotting pos of raw data points'!H124/$M$2) ->  | C124: =$M$2*INT('Plotting pos of raw data points'!G124/$M$2) ->  | D124: =$M$2*INT('Plotting pos of raw data points'!F124/$M$2) ->  | E124: =$M$2*INT('Plotting pos of raw data points'!E124/$M$2) ->  | F124: =$M$2*INT('Plotting pos of raw data points'!D124/$M$2) ->  | G124: =$M$2*INT('Plotting pos of raw data points'!C124/$M$2) ->  | H124: =$M$2*INT('Plotting pos of raw data points'!B124/$M$2) ->  | I124: =$M$2*INT('Plotting pos of raw data points'!A124/$M$2) -> 
A125: =$M$2*INT('Plotting pos of raw data points'!I125/$M$2) ->  | B125: =$M$2*INT('Plotting pos of raw data points'!H125/$M$2) ->  | C125: =$M$2*INT('Plotting pos of raw data points'!G125/$M$2) ->  | D125: =$M$2*INT('Plotting pos of raw data points'!F125/$M$2) ->  | E125: =$M$2*INT('Plotting pos of raw data points'!E125/$M$2) ->  | F125: =$M$2*INT('Plotting pos of raw data points'!D125/$M$2) ->  | G125: =$M$2*INT('Plotting pos of raw data points'!C125/$M$2) ->  | H125: =$M$2*INT('Plotting pos of raw data points'!B125/$M$2) ->  | I125: =$M$2*INT('Plotting pos of raw data points'!A125/$M$2) -> 
A126: =$M$2*INT('Plotting pos of raw data points'!I126/$M$2) ->  | B126: =$M$2*INT('Plotting pos of raw data points'!H126/$M$2) ->  | C126: =$M$2*INT('Plotting pos of raw data points'!G126/$M$2) ->  | D126: =$M$2*INT('Plotting pos of raw data points'!F126/$M$2) ->  | E126: =$M$2*INT('Plotting pos of raw data points'!E126/$M$2) ->  | F126: =$M$2*INT('Plotting pos of raw data points'!D126/$M$2) ->  | G126: =$M$2*INT('Plotting pos of raw data points'!C126/$M$2) ->  | H126: =$M$2*INT('Plotting pos of raw data points'!B126/$M$2) ->  | I126: =$M$2*INT('Plotting pos of raw data points'!A126/$M$2) -> 
A127: =$M$2*INT('Plotting pos of raw data points'!I127/$M$2) ->  | B127: =$M$2*INT('Plotting pos of raw data points'!H127/$M$2) ->  | C127: =$M$2*INT('Plotting pos of raw data points'!G127/$M$2) ->  | D127: =$M$2*INT('Plotting pos of raw data points'!F127/$M$2) ->  | E127: =$M$2*INT('Plotting pos of raw data points'!E127/$M$2) ->  | F127: =$M$2*INT('Plotting pos of raw data points'!D127/$M$2) ->  | G127: =$M$2*INT('Plotting pos of raw data points'!C127/$M$2) ->  | H127: =$M$2*INT('Plotting pos of raw data points'!B127/$M$2) ->  | I127: =$M$2*INT('Plotting pos of raw data points'!A127/$M$2) -> 
A128: =$M$2*INT('Plotting pos of raw data points'!I128/$M$2) ->  | B128: =$M$2*INT('Plotting pos of raw data points'!H128/$M$2) ->  | C128: =$M$2*INT('Plotting pos of raw data points'!G128/$M$2) ->  | D128: =$M$2*INT('Plotting pos of raw data points'!F128/$M$2) ->  | E128: =$M$2*INT('Plotting pos of raw data points'!E128/$M$2) ->  | F128: =$M$2*INT('Plotting pos of raw data points'!D128/$M$2) ->  | G128: =$M$2*INT('Plotting pos of raw data points'!C128/$M$2) ->  | H128: =$M$2*INT('Plotting pos of raw data points'!B128/$M$2) ->  | I128: =$M$2*INT('Plotting pos of raw data points'!A128/$M$2) -> 
A129: =$M$2*INT('Plotting pos of raw data points'!I129/$M$2) ->  | B129: =$M$2*INT('Plotting pos of raw data points'!H129/$M$2) ->  | C129: =$M$2*INT('Plotting pos of raw data points'!G129/$M$2) ->  | D129: =$M$2*INT('Plotting pos of raw data points'!F129/$M$2) ->  | E129: =$M$2*INT('Plotting pos of raw data points'!E129/$M$2) ->  | F129: =$M$2*INT('Plotting pos of raw data points'!D129/$M$2) ->  | G129: =$M$2*INT('Plotting pos of raw data points'!C129/$M$2) ->  | H129: =$M$2*INT('Plotting pos of raw data points'!B129/$M$2) ->  | I129: =$M$2*INT('Plotting pos of raw data points'!A129/$M$2) -> 
A130: =$M$2*INT('Plotting pos of raw data points'!I130/$M$2) ->  | B130: =$M$2*INT('Plotting pos of raw data points'!H130/$M$2) ->  | C130: =$M$2*INT('Plotting pos of raw data points'!G130/$M$2) ->  | D130: =$M$2*INT('Plotting pos of raw data points'!F130/$M$2) ->  | E130: =$M$2*INT('Plotting pos of raw data points'!E130/$M$2) ->  | F130: =$M$2*INT('Plotting pos of raw data points'!D130/$M$2) ->  | G130: =$M$2*INT('Plotting pos of raw data points'!C130/$M$2) ->  | H130: =$M$2*INT('Plotting pos of raw data points'!B130/$M$2) ->  | I130: =$M$2*INT('Plotting pos of raw data points'!A130/$M$2) -> 

Sheet Table
B1: =Foglio1!I$1 -> Platform on which software developers can learn | C1: =Foglio1!J$1 -> Means to train quantum engineers | D1: =Foglio1!K$1 -> Unknown yet | E1: =Foglio1!L$1 -> Other known educational value | F1: =Foglio1!M$1 -> Cat5 | G1: =Foglio1!N$1 -> Cat6 | H1: =Foglio1!O$1 -> Cat7 | I1: =Foglio1!P$1 -> Cat8 | J1: =Foglio1!Q$1 -> Cat9
A2: MODA | B2: =MODE(OFFSET(Foglio1!I$2,0,0,$B$11,1)) -> 80 | C2: =MODE(OFFSET(Foglio1!J$2,0,0,$B$11,1)) -> 100 | D2: =MODE(OFFSET(Foglio1!K$2,0,0,$B$11,1)) -> 60 | E2: =MODE(OFFSET(Foglio1!L$2,0,0,$B$11,1)) -> 0 | F2: =MODE(OFFSET(Foglio1!R$2,0,0,$B$11,1)) ->  | G2: =MODE(OFFSET(Foglio1!S$2,0,0,$B$11,1)) ->  | H2: =MODE(OFFSET(Foglio1!O$2,0,0,$B$11,1)) ->  | I2: =MODE(OFFSET(Foglio1!P$2,0,0,$B$11,1)) ->  | J2: =MODE(OFFSET(Foglio1!Q$2,0,0,$B$11,1)) -> 
A3: MEDIANA | B3: =MEDIAN(OFFSET(Foglio1!I$2,0,0,$B$11,1)) -> 80 | C3: =MEDIAN(OFFSET(Foglio1!J$2,0,0,$B$11,1)) -> 80 | D3: =MEDIAN(OFFSET(Foglio1!K$2,0,0,$B$11,1)) -> 60 | E3: =MEDIAN(OFFSET(Foglio1!L$2,0,0,$B$11,1)) -> 25 | F3: =MEDIAN(OFFSET(Foglio1!R$2,0,0,$B$11,1)) ->  | G3: =MEDIAN(OFFSET(Foglio1!S$2,0,0,$B$11,1)) ->  | H3: =MEDIAN(OFFSET(Foglio1!O$2,0,0,$B$11,1)) ->  | I3: =MEDIAN(OFFSET(Foglio1!P$2,0,0,$B$11,1)) ->  | J3: =MEDIAN(OFFSET(Foglio1!Q$2,0,0,$B$11,1)) -> 
A4: Q1 | B4: =_xlfn.QUARTILE.EXC(OFFSET(Foglio1!I$2,0,0,$B$11,1),1) -> 60 | C4: =_xlfn.QUARTILE.EXC(OFFSET(Foglio1!J$2,0,0,$B$11,1),1) -> 71 | D4: =_xlfn.QUARTILE.EXC(OFFSET(Foglio1!K$2,0,0,$B$11,1),1) -> 30 | E4: =_xlfn.QUARTILE.EXC(OFFSET(Foglio1!L$2,0,0,$B$11,1),1) -> 0 | F4: =_xlfn.QUARTILE.EXC(OFFSET(Foglio1!R$2,0,0,$B$11,1),1) ->  | G4: =_xlfn.QUARTILE.EXC(OFFSET(Foglio1!S$2,0,0,$B$11,1),1) ->  | H4: =_xlfn.QUARTILE.EXC(OFFSET(Foglio1!O$2,0,0,$B$11,1),1) ->  | I4: =_xlfn.QUARTILE.EXC(OFFSET(Foglio1!P$2,0,0,$B$11,1),1) ->  | J4: =_xlfn.QUARTILE.EXC(OFFSET(Foglio1!Q$2,0,0,$B$11,1),1) -> 
A5: Q3 | B5: =_xlfn.QUARTILE.EXC(OFFSET(Foglio1!I$2,0,0,$B$11,1),3) -> 83.75 | C5: =_xlfn.QUARTILE.EXC(OFFSET(Foglio1!J$2,0,0,$B$11,1),3) -> 100 | D5: =_xlfn.QUARTILE.EXC(OFFSET(Foglio1!K$2,0,0,$B$11,1),3) -> 80 | E5: =_xlfn.QUARTILE.EXC(OFFSET(Foglio1!L$2,0,0,$B$11,1),3) -> 70 | F5: =_xlfn.QUARTILE.EXC(OFFSET(Foglio1!R$2,0,0,$B$11,1),3) ->  | G5: =_xlfn.QUARTILE.EXC(OFFSET(Foglio1!S$2,0,0,$B$11,1),3) ->  | H5: =_xlfn.QUARTILE.EXC(OFFSET(Foglio1!O$2,0,0,$B$11,1),3) ->  | I5: =_xlfn.QUARTILE.EXC(OFFSET(Foglio1!P$2,0,0,$B$11,1),3) ->  | J5: =_xlfn.QUARTILE.EXC(OFFSET(Foglio1!Q$2,0,0,$B$11,1),3) -> 
A6: MEDIA | B6: =AVERAGE(OFFSET(Foglio1!I$2,0,0,$B$11,1)) -> 71.15277778 | C6: =AVERAGE(OFFSET(Foglio1!J$2,0,0,$B$11,1)) -> 81.98591549 | D6: =AVERAGE(OFFSET(Foglio1!K$2,0,0,$B$11,1)) -> 54 | E6: =AVERAGE(OFFSET(Foglio1!L$2,0,0,$B$11,1)) -> 35 | F6: =AVERAGE(OFFSET(Foglio1!R$2,0,0,$B$11,1)) ->  | G6: =AVERAGE(OFFSET(Foglio1!S$2,0,0,$B$11,1)) ->  | H6: =AVERAGE(OFFSET(Foglio1!O$2,0,0,$B$11,1)) ->  | I6: =AVERAGE(OFFSET(Foglio1!P$2,0,0,$B$11,1)) ->  | J6: =AVERAGE(OFFSET(Foglio1!Q$2,0,0,$B$11,1)) -> 
A7: MEDIA PESATA | B7: =SUMPRODUCT(OFFSET(Foglio1!I$2,0,0,$B$11,1),OFFSET(Foglio1!$X$2,0,0,$B$11,1))/SUM(OFFSET(Foglio1!$X$2,0,0,$B$11,1)) ->  | C7: =SUMPRODUCT(OFFSET(Foglio1!J$2,0,0,$B$11,1),OFFSET(Foglio1!$X$2,0,0,$B$11,1))/SUM(OFFSET(Foglio1!$X$2,0,0,$B$11,1)) ->  | D7: =SUMPRODUCT(OFFSET(Foglio1!K$2,0,0,$B$11,1),OFFSET(Foglio1!$X$2,0,0,$B$11,1))/SUM(OFFSET(Foglio1!$X$2,0,0,$B$11,1)) ->  | E7: =SUMPRODUCT(OFFSET(Foglio1!L$2,0,0,$B$11,1),OFFSET(Foglio1!$X$2,0,0,$B$11,1))/SUM(OFFSET(Foglio1!$X$2,0,0,$B$11,1)) ->  | F7: =SUMPRODUCT(OFFSET(Foglio1!R$2,0,0,$B$11,1),OFFSET(Foglio1!$X$2,0,0,$B$11,1))/SUM(OFFSET(Foglio1!$X$2,0,0,$B$11,1)) ->  | G7: =SUMPRODUCT(OFFSET(Foglio1!S$2,0,0,$B$11,1),OFFSET(Foglio1!$X$2,0,0,$B$11,1))/SUM(OFFSET(Foglio1!$X$2,0,0,$B$11,1)) ->  | H7: =SUMPRODUCT(OFFSET(Foglio1!O$2,0,0,$B$11,1),OFFSET(Foglio1!$X$2,0,0,$B$11,1))/SUM(OFFSET(Foglio1!$X$2,0,0,$B$11,1)) ->  | I7: =SUMPRODUCT(OFFSET(Foglio1!P$2,0,0,$B$11,1),OFFSET(Foglio1!$X$2,0,0,$B$11,1))/SUM(OFFSET(Foglio1!$X$2,0,0,$B$11,1)) ->  | J7: =SUMPRODUCT(OFFSET(Foglio1!Q$2,0,0,$B$11,1),OFFSET(Foglio1!$X$2,0,0,$B$11,1))/SUM(OFFSET(Foglio1!$X$2,0,0,$B$11,1)) -> 
A9: No of responses to subquestion | B9: =COUNTA(OFFSET(Foglio1!I$2,0,0,$B$11,1)) -> 72 | C9: =COUNTA(OFFSET(Foglio1!J$2,0,0,$B$11,1)) -> 71 | D9: =COUNTA(OFFSET(Foglio1!K$2,0,0,$B$11,1)) -> 40 | E9: =COUNTA(OFFSET(Foglio1!L$2,0,0,$B$11,1)) -> 6 | F9: =COUNTA(OFFSET(Foglio1!R$2,0,0,$B$11,1)) -> 7 | G9: =COUNTA(OFFSET(Foglio1!S$2,0,0,$B$11,1)) -> 5 | H9: =COUNTA(OFFSET(Foglio1!O$2,0,0,$B$11,1)) -> 0 | I9: =COUNTA(OFFSET(Foglio1!P$2,0,0,$B$11,1)) -> 0 | J9: =COUNTA(OFFSET(Foglio1!Q$2,0,0,$B$11,1)) -> 0
A11: Total number of respondents to question | B11: =COUNTA(Foglio1!$D$2:$D$1002) -> 99
B13: Transposed for table in report
B14: No. of responses | C14: Mean | D14: Median | E14: IQR
A15: =Foglio1!I$1 -> Platform on which software developers can learn | B15: =COUNTA(OFFSET(Foglio1!I$2,0,0,$B$11,1)) -> 72 | C15: =AVERAGE(OFFSET(Foglio1!I$2,0,0,$B$11,1)) -> 71.15277778 | D15: =MEDIAN(OFFSET(Foglio1!I$2,0,0,$B$11,1)) -> 80 | E15: =_xlfn.QUARTILE.EXC(OFFSET(Foglio1!I$2,0,0,$B$11,1),3)-_xlfn.QUARTILE.EXC(OFFSET(Foglio1!I$2,0,0,$B$11,1),1) -> 23.75
A16: =Foglio1!J$1 -> Means to train quantum engineers | B16: =COUNTA(OFFSET(Foglio1!J$2,0,0,$B$11,1)) -> 71 | C16: =AVERAGE(OFFSET(Foglio1!J$2,0,0,$B$11,1)) -> 81.98591549 | D16: =MEDIAN(OFFSET(Foglio1!J$2,0,0,$B$11,1)) -> 80 | E16: =_xlfn.QUARTILE.EXC(OFFSET(Foglio1!J$2,0,0,$B$11,1),3)-_xlfn.QUARTILE.EXC(OFFSET(Foglio1!J$2,0,0,$B$11,1),1) -> 29
A17: =Foglio1!K$1 -> Unknown yet | B17: =COUNTA(OFFSET(Foglio1!K$2,0,0,$B$11,1)) -> 40 | C17: =AVERAGE(OFFSET(Foglio1!K$2,0,0,$B$11,1)) -> 54 | D17: =MEDIAN(OFFSET(Foglio1!K$2,0,0,$B$11,1)) -> 60 | E17: =_xlfn.QUARTILE.EXC(OFFSET(Foglio1!K$2,0,0,$B$11,1),3)-_xlfn.QUARTILE.EXC(OFFSET(Foglio1!K$2,0,0,$B$11,1),1) -> 50
A18: =Foglio1!L$1 -> Other known educational value | B18: =COUNTA(OFFSET(Foglio1!L$2,0,0,$B$11,1)) -> 6 | C18: =AVERAGE(OFFSET(Foglio1!L$2,0,0,$B$11,1)) -> 35 | D18: =MEDIAN(OFFSET(Foglio1!L$2,0,0,$B$11,1)) -> 25 | E18: =_xlfn.QUARTILE.EXC(OFFSET(Foglio1!L$2,0,0,$B$11,1),3)-_xlfn.QUARTILE.EXC(OFFSET(Foglio1!L$2,0,0,$B$11,1),1) -> 70
A19: =Foglio1!M$1 -> Cat5 | B19: =COUNTA(OFFSET(Foglio1!R$2,0,0,$B$11,1)) -> 7 | C19: =AVERAGE(OFFSET(Foglio1!R$2,0,0,$B$11,1)) ->  | D19: =MEDIAN(OFFSET(Foglio1!R$2,0,0,$B$11,1)) ->  | E19: =_xlfn.QUARTILE.EXC(OFFSET(Foglio1!R$2,0,0,$B$11,1),3)-_xlfn.QUARTILE.EXC(OFFSET(Foglio1!R$2,0,0,$B$11,1),1) -> 
A20: =Foglio1!N$1 -> Cat6 | B20: =COUNTA(OFFSET(Foglio1!S$2,0,0,$B$11,1)) -> 5 | C20: =AVERAGE(OFFSET(Foglio1!S$2,0,0,$B$11,1)) ->  | D20: =MEDIAN(OFFSET(Foglio1!S$2,0,0,$B$11,1)) ->  | E20: =_xlfn.QUARTILE.EXC(OFFSET(Foglio1!S$2,0,0,$B$11,1),3)-_xlfn.QUARTILE.EXC(OFFSET(Foglio1!S$2,0,0,$B$11,1),1) -> 
A21: =Foglio1!O$1 -> Cat7 | B21: =COUNTA(OFFSET(Foglio1!O$2,0,0,$B$11,1)) -> 0 | C21: =AVERAGE(OFFSET(Foglio1!O$2,0,0,$B$11,1)) ->  | D21: =MEDIAN(OFFSET(Foglio1!O$2,0,0,$B$11,1)) ->  | E21: =_xlfn.QUARTILE.EXC(OFFSET(Foglio1!O$2,0,0,$B$11,1),3)-_xlfn.QUARTILE.EXC(OFFSET(Foglio1!O$2,0,0,$B$11,1),1) -> 
A22: =Foglio1!P$1 -> Cat8 | B22: =COUNTA(OFFSET(Foglio1!P$2,0,0,$B$11,1)) -> 0 | C22: =AVERAGE(OFFSET(Foglio1!P$2,0,0,$B$11,1)) ->  | D22: =MEDIAN(OFFSET(Foglio1!P$2,0,0,$B$11,1)) ->  | E22: =_xlfn.QUARTILE.EXC(OFFSET(Foglio1!P$2,0,0,$B$11,1),3)-_xlfn.QUARTILE.EXC(OFFSET(Foglio1!P$2,0,0,$B$11,1),1) -> 
A23: =Foglio1!Q$1 -> Cat9 | B23: =COUNTA(OFFSET(Foglio1!Q$2,0,0,$B$11,1)) -> 0 | C23: =AVERAGE(OFFSET(Foglio1!Q$2,0,0,$B$11,1)) ->  | D23: =MEDIAN(OFFSET(Foglio1!Q$2,0,0,$B$11,1)) ->  | E23: -
A25: Not used in current version
A26: MEDIA DEV. ASS. | B26: =AVEDEV(OFFSET(Foglio1!I$2,0,0,$B$11,1)) -> 16.91358025 | C26: =AVEDEV(OFFSET(Foglio1!J$2,0,0,$B$11,1)) -> 12.37928982 | D26: =AVEDEV(OFFSET(Foglio1!K$2,0,0,$B$11,1)) -> 26.5 | E26: =AVEDEV(OFFSET(Foglio1!L$2,0,0,$B$11,1)) -> 35 | F26: =AVEDEV(OFFSET(Foglio1!R$2,0,0,$B$11,1)) ->  | G26: =AVEDEV(OFFSET(Foglio1!S$2,0,0,$B$11,1)) ->  | H26: =AVEDEV(OFFSET(Foglio1!O$2,0,0,$B$11,1)) ->  | I26: =AVEDEV(OFFSET(Foglio1!P$2,0,0,$B$11,1)) ->  | J26: =AVEDEV(OFFSET(Foglio1!Q$2,0,0,$B$11,1)) -> 
A27: StErr | B27: =_xlfn.STDEV.S(OFFSET(Foglio1!I$2,0,0,$B$11,1))/SQRT(B9) -> 2.609994913 | C27: =_xlfn.STDEV.S(OFFSET(Foglio1!J$2,0,0,$B$11,1))/SQRT(C9) -> 1.879198099 | D27: =_xlfn.STDEV.S(OFFSET(Foglio1!K$2,0,0,$B$11,1))/SQRT(D9) -> 5.038950847 | E27: =_xlfn.STDEV.S(OFFSET(Foglio1!L$2,0,0,$B$11,1))/SQRT(E9) -> 17.07825128 | F27: =_xlfn.STDEV.S(OFFSET(Foglio1!R$2,0,0,$B$11,1))/SQRT(F9) ->  | G27: =_xlfn.STDEV.S(OFFSET(Foglio1!S$2,0,0,$B$11,1))/SQRT(G9) ->  | H27: =_xlfn.STDEV.S(OFFSET(Foglio1!O$2,0,0,$B$11,1))/SQRT(H9) ->  | I27: =_xlfn.STDEV.S(OFFSET(Foglio1!P$2,0,0,$B$11,1))/SQRT(I9) ->  | J27: =_xlfn.STDEV.S(OFFSET(Foglio1!Q$2,0,0,$B$11,1))/SQRT(J9) -> 
A28: MEDIA+2*StErr | B28: =B6+2*B27 -> 76.3727676 | C28: 85.74431169 | D28: 64.07790169 | E28: 69.15650255
A29: MEDIA-2*StErr | B29: =B6-2*B27 -> 65.93278795 | C29: 78.22751929 | D29: 43.92209831 | E29: 0.8434974468

Sheet Plotting pos of raw data points
A1: =Foglio1!I$1 -> Platform on which software developers can learn | B1: =Foglio1!J$1 -> Means to train quantum engineers | C1: =Foglio1!K$1 -> Unknown yet | D1: =Foglio1!L$1 -> Other known educational value | E1: =Foglio1!M$1 -> Cat5 | F1: =Foglio1!N$1 -> Cat6 | G1: =Foglio1!O$1 -> Cat7 | H1: =Foglio1!P$1 -> Cat8 | I1: =Foglio1!Q$1 -> Cat9 | K1: =Charting!$M$9 -> 3 | L1: =K$1-1 -> 2 | M1: =L$1-1 -> 1 | N1: 0 | O1: -1 | P1: -2 | Q1: -3 | R1: -4 | S1: -5
A2: =IF(ROW(A2)-1<=$J$5,IF(Foglio1!I2="",-10,Foglio1!I2),"") -> -10 | B2: =IF(ROW(B2)-1<=$J$5,IF(Foglio1!J2="",-10,Foglio1!J2),"") -> -10 | C2: =IF(ROW(C2)-1<=$J$5,IF(Foglio1!K2="",-10,Foglio1!K2),"") -> -10 | D2: =IF(ROW(D2)-1<=$J$5,IF(Foglio1!L2="",-10,Foglio1!L2),"") -> -10 | E2: =IF(ROW(E2)-1<=$J$5,IF(Foglio1!M2="",-10,Foglio1!M2),"") -> -10 | F2: =IF(ROW(F2)-1<=$J$5,IF(Foglio1!N2="",-10,Foglio1!N2),"") -> -10 | G2: =IF(ROW(G2)-1<=$J$5,IF(Foglio1!O2="",-10,Foglio1!O2),"") -> -10 | H2: =IF(ROW(H2)-1<=$J$5,IF(Foglio1!P2="",-10,Foglio1!P2),"") -> -10 | I2: =IF(ROW(I2)-1<=$J$5,IF(Foglio1!Q2="",-10,Foglio1!Q2),"") -> -10 | K2: =IF(ROW(K2)-1<=$J$5,K$1+COUNTIF(A$2:A2,A2)*$J$7,"") -> 3.03 | L2: =IF(ROW(L2)-1<=$J$5,L$1+COUNTIF(B$2:B2,B2)*$J$7,"") -> 2.03 | M2: =IF(ROW(M2)-1<=$J$5,M$1+COUNTIF(C$2:C2,C2)*$J$7,"") -> 1.03 | N2: =IF(ROW(N2)-1<=$J$5,N$1+COUNTIF(D$2:D2,D2)*$J$7,"") -> 0.03 | O2: =IF(ROW(O2)-1<=$J$5,O$1+COUNTIF(E$2:E2,E2)*$J$7,"") -> -0.97 | P2: =IF(ROW(P2)-1<=$J$5,P$1+COUNTIF(F$2:F2,F2)*$J$7,"") -> -1.97 | Q2: =IF(ROW(Q2)-1<=$J$5,Q$1+COUNTIF(G$2:G2,G2)*$J$7,"") -> -2.97 | R2: =IF(ROW(R2)-1<=$J$5,R$1+COUNTIF(H$2:H2,H2)*$J$7,"") -> -3.97 | S2: =IF(ROW(S2)-1<=$J$5,S$1+COUNTIF(I$2:I2,I2)*$J$7,"") -> -4.97
A3: =IF(ROW(A3)-1<=$J$5,IF(Foglio1!I3="",-10,Foglio1!I3),"") -> 100 | B3: =IF(ROW(B3)-1<=$J$5,IF(Foglio1!J3="",-10,Foglio1!J3),"") -> 100 | C3: =IF(ROW(C3)-1<=$J$5,IF(Foglio1!K3="",-10,Foglio1!K3),"") -> -10 | D3: =IF(ROW(D3)-1<=$J$5,IF(Foglio1!L3="",-10,Foglio1!L3),"") -> 100 | E3: =IF(ROW(E3)-1<=$J$5,IF(Foglio1!M3="",-10,Foglio1!M3),"") -> -10 | F3: =IF(ROW(F3)-1<=$J$5,IF(Foglio1!N3="",-10,Foglio1!N3),"") -> -10 | G3: =IF(ROW(G3)-1<=$J$5,IF(Foglio1!O3="",-10,Foglio1!O3),"") -> -10 | H3: =IF(ROW(H3)-1<=$J$5,IF(Foglio1!P3="",-10,Foglio1!P3),"") -> -10 | I3: =IF(ROW(I3)-1<=$J$5,IF(Foglio1!Q3="",-10,Foglio1!Q3),"") -> -10 | K3: =IF(ROW(K3)-1<=$J$5,K$1+COUNTIF(A$2:A3,A3)*$J$7,"") -> 3.03 | L3: =IF(ROW(L3)-1<=$J$5,L$1+COUNTIF(B$2:B3,B3)*$J$7,"") -> 2.03 | M3: =IF(ROW(M3)-1<=$J$5,M$1+COUNTIF(C$2:C3,C3)*$J$7,"") -> 1.06 | N3: =IF(ROW(N3)-1<=$J$5,N$1+COUNTIF(D$2:D3,D3)*$J$7,"") -> 0.03 | O3: =IF(ROW(O3)-1<=$J$5,O$1+COUNTIF(E$2:E3,E3)*$J$7,"") -> -0.94 | P3: =IF(ROW(P3)-1<=$J$5,P$1+COUNTIF(F$2:F3,F3)*$J$7,"") -> -1.94 | Q3: =IF(ROW(Q3)-1<=$J$5,Q$1+COUNTIF(G$2:G3,G3)*$J$7,"") -> -2.94 | R3: =IF(ROW(R3)-1<=$J$5,R$1+COUNTIF(H$2:H3,H3)*$J$7,"") -> -3.94 | S3: =IF(ROW(S3)-1<=$J$5,S$1+COUNTIF(I$2:I3,I3)*$J$7,"") -> -4.94
A4: =IF(ROW(A4)-1<=$J$5,IF(Foglio1!I4="",-10,Foglio1!I4),"") -> 85 | B4: =IF(ROW(B4)-1<=$J$5,IF(Foglio1!J4="",-10,Foglio1!J4),"") -> 85 | C4: =IF(ROW(C4)-1<=$J$5,IF(Foglio1!K4="",-10,Foglio1!K4),"") -> 0 | D4: =IF(ROW(D4)-1<=$J$5,IF(Foglio1!L4="",-10,Foglio1!L4),"") -> -10 | E4: =IF(ROW(E4)-1<=$J$5,IF(Foglio1!M4="",-10,Foglio1!M4),"") -> -10 | F4: =IF(ROW(F4)-1<=$J$5,IF(Foglio1!N4="",-10,Foglio1!N4),"") -> -10 | G4: =IF(ROW(G4)-1<=$J$5,IF(Foglio1!O4="",-10,Foglio1!O4),"") -> -10 | H4: =IF(ROW(H4)-1<=$J$5,IF(Foglio1!P4="",-10,Foglio1!P4),"") -> -10 | I4: =IF(ROW(I4)-1<=$J$5,IF(Foglio1!Q4="",-10,Foglio1!Q4),"") -> -10 | J4: Total number of respondents to question | K4: =IF(ROW(K4)-1<=$J$5,K$1+COUNTIF(A$2:A4,A4)*$J$7,"") -> 3.03 | L4: =IF(ROW(L4)-1<=$J$5,L$1+COUNTIF(B$2:B4,B4)*$J$7,"") -> 2.03 | M4: =IF(ROW(M4)-1<=$J$5,M$1+COUNTIF(C$2:C4,C4)*$J$7,"") -> 1.03 | N4: =IF(ROW(N4)-1<=$J$5,N$1+COUNTIF(D$2:D4,D4)*$J$7,"") -> 0.06 | O4: =IF(ROW(O4)-1<=$J$5,O$1+COUNTIF(E$2:E4,E4)*$J$7,"") -> -0.91 | P4: =IF(ROW(P4)-1<=$J$5,P$1+COUNTIF(F$2:F4,F4)*$J$7,"") -> -1.91 | Q4: =IF(ROW(Q4)-1<=$J$5,Q$1+COUNTIF(G$2:G4,G4)*$J$7,"") -> -2.91 | R4: =IF(ROW(R4)-1<=$J$5,R$1+COUNTIF(H$2:H4,H4)*$J$7,"") -> -3.91 | S4: =IF(ROW(S4)-1<=$J$5,S$1+COUNTIF(I$2:I4,I4)*$J$7,"") -> -4.91
A5: =IF(ROW(A5)-1<=$J$5,IF(Foglio1!I5="",-10,Foglio1!I5),"") -> 80 | B5: =IF(ROW(B5)-1<=$J$5,IF(Foglio1!J5="",-10,Foglio1!J5),"") -> 100 | C5: =IF(ROW(C5)-1<=$J$5,IF(Foglio1!K5="",-10,Foglio1!K5),"") -> 0 | D5: =IF(ROW(D5)-1<=$J$5,IF(Foglio1!L5="",-10,Foglio1!L5),"") -> -10 | E5: =IF(ROW(E5)-1<=$J$5,IF(Foglio1!M5="",-10,Foglio1!M5),"") -> -10 | F5: =IF(ROW(F5)-1<=$J$5,IF(Foglio1!N5="",-10,Foglio1!N5),"") -> -10 | G5: =IF(ROW(G5)-1<=$J$5,IF(Foglio1!O5="",-10,Foglio1!O5),"") -> -10 | H5: =IF(ROW(H5)-1<=$J$5,IF(Foglio1!P5="",-10,Foglio1!P5),"") -> -10 | I5: =IF(ROW(I5)-1<=$J$5,IF(Foglio1!Q5="",-10,Foglio1!Q5),"") -> -10 | J5: =COUNTA(Foglio1!D2:D529) -> 99 | K5: =IF(ROW(K5)-1<=$J$5,K$1+COUNTIF(A$2:A5,A5)*$J$7,"") -> 3.03 | L5: =IF(ROW(L5)-1<=$J$5,L$1+COUNTIF(B$2:B5,B5)*$J$7,"") -> 2.06 | M5: =IF(ROW(M5)-1<=$J$5,M$1+COUNTIF(C$2:C5,C5)*$J$7,"") -> 1.06 | N5: =IF(ROW(N5)-1<=$J$5,N$1+COUNTIF(D$2:D5,D5)*$J$7,"") -> 0.09 | O5: =IF(ROW(O5)-1<=$J$5,O$1+COUNTIF(E$2:E5,E5)*$J$7,"") -> -0.88 | P5: =IF(ROW(P5)-1<=$J$5,P$1+COUNTIF(F$2:F5,F5)*$J$7,"") -> -1.88 | Q5: =IF(ROW(Q5)-1<=$J$5,Q$1+COUNTIF(G$2:G5,G5)*$J$7,"") -> -2.88 | R5: =IF(ROW(R5)-1<=$J$5,R$1+COUNTIF(H$2:H5,H5)*$J$7,"") -> -3.88 | S5: =IF(ROW(S5)-1<=$J$5,S$1+COUNTIF(I$2:I5,I5)*$J$7,"") -> -4.88
A6: =IF(ROW(A6)-1<=$J$5,IF(Foglio1!I6="",-10,Foglio1!I6),"") -> 40 | B6: =IF(ROW(B6)-1<=$J$5,IF(Foglio1!J6="",-10,Foglio1!J6),"") -> 75 | C6: =IF(ROW(C6)-1<=$J$5,IF(Foglio1!K6="",-10,Foglio1!K6),"") -> 75 | D6: =IF(ROW(D6)-1<=$J$5,IF(Foglio1!L6="",-10,Foglio1!L6),"") -> -10 | E6: =IF(ROW(E6)-1<=$J$5,IF(Foglio1!M6="",-10,Foglio1!M6),"") -> -10 | F6: =IF(ROW(F6)-1<=$J$5,IF(Foglio1!N6="",-10,Foglio1!N6),"") -> -10 | G6: =IF(ROW(G6)-1<=$J$5,IF(Foglio1!O6="",-10,Foglio1!O6),"") -> -10 | H6: =IF(ROW(H6)-1<=$J$5,IF(Foglio1!P6="",-10,Foglio1!P6),"") -> -10 | I6: =IF(ROW(I6)-1<=$J$5,IF(Foglio1!Q6="",-10,Foglio1!Q6),"") -> -10 | J6: Compression | K6: =IF(ROW(K6)-1<=$J$5,K$1+COUNTIF(A$2:A6,A6)*$J$7,"") -> 3.03 | L6: =IF(ROW(L6)-1<=$J$5,L$1+COUNTIF(B$2:B6,B6)*$J$7,"") -> 2.03 | M6: =IF(ROW(M6)-1<=$J$5,M$1+COUNTIF(C$2:C6,C6)*$J$7,"") -> 1.03 | N6: =IF(ROW(N6)-1<=$J$5,N$1+COUNTIF(D$2:D6,D6)*$J$7,"") -> 0.12 | O6: =IF(ROW(O6)-1<=$J$5,O$1+COUNTIF(E$2:E6,E6)*$J$7,"") -> -0.85 | P6: =IF(ROW(P6)-1<=$J$5,P$1+COUNTIF(F$2:F6,F6)*$J$7,"") -> -1.85 | Q6: =IF(ROW(Q6)-1<=$J$5,Q$1+COUNTIF(G$2:G6,G6)*$J$7,"") -> -2.85 | R6: =IF(ROW(R6)-1<=$J$5,R$1+COUNTIF(H$2:H6,H6)*$J$7,"") -> -3.85 | S6: =IF(ROW(S6)-1<=$J$5,S$1+COUNTIF(I$2:I6,I6)*$J$7,"") -> -4.85
A7: =IF(ROW(A7)-1<=$J$5,IF(Foglio1!I7="",-10,Foglio1!I7),"") -> 70 | B7: =IF(ROW(B7)-1<=$J$5,IF(Foglio1!J7="",-10,Foglio1!J7),"") -> 90 | C7: =IF(ROW(C7)-1<=$J$5,IF(Foglio1!K7="",-10,Foglio1!K7),"") -> 30 | D7: =IF(ROW(D7)-1<=$J$5,IF(Foglio1!L7="",-10,Foglio1!L7),"") -> -10 | E7: =IF(ROW(E7)-1<=$J$5,IF(Foglio1!M7="",-10,Foglio1!M7),"") -> -10 | F7: =IF(ROW(F7)-1<=$J$5,IF(Foglio1!N7="",-10,Foglio1!N7),"") -> -10 | G7: =IF(ROW(G7)-1<=$J$5,IF(Foglio1!O7="",-10,Foglio1!O7),"") -> -10 | H7: =IF(ROW(H7)-1<=$J$5,IF(Foglio1!P7="",-10,Foglio1!P7),"") -> -10 | I7: =IF(ROW(I7)-1<=$J$5,IF(Foglio1!Q7="",-10,Foglio1!Q7),"") -> -10 | J7: 0.03 | K7: =IF(ROW(K7)-1<=$J$5,K$1+COUNTIF(A$2:A7,A7)*$J$7,"") -> 3.03 | L7: =IF(ROW(L7)-1<=$J$5,L$1+COUNTIF(B$2:B7,B7)*$J$7,"") -> 2.03 | M7: =IF(ROW(M7)-1<=$J$5,M$1+COUNTIF(C$2:C7,C7)*$J$7,"") -> 1.03 | N7: =IF(ROW(N7)-1<=$J$5,N$1+COUNTIF(D$2:D7,D7)*$J$7,"") -> 0.15 | O7: =IF(ROW(O7)-1<=$J$5,O$1+COUNTIF(E$2:E7,E7)*$J$7,"") -> -0.82 | P7: =IF(ROW(P7)-1<=$J$5,P$1+COUNTIF(F$2:F7,F7)*$J$7,"") -> -1.82 | Q7: =IF(ROW(Q7)-1<=$J$5,Q$1+COUNTIF(G$2:G7,G7)*$J$7,"") -> -2.82 | R7: =IF(ROW(R7)-1<=$J$5,R$1+COUNTIF(H$2:H7,H7)*$J$7,"") -> -3.82 | S7: =IF(ROW(S7)-1<=$J$5,S$1+COUNTIF(I$2:I7,I7)*$J$7,"") -> -4.82
A8: =IF(ROW(A8)-1<=$J$5,IF(Foglio1!I8="",-10,Foglio1!I8),"") -> 80 | B8: =IF(ROW(B8)-1<=$J$5,IF(Foglio1!J8="",-10,Foglio1!J8),"") -> 80 | C8: =IF(ROW(C8)-1<=$J$5,IF(Foglio1!K8="",-10,Foglio1!K8),"") -> -10 | D8: =IF(ROW(D8)-1<=$J$5,IF(Foglio1!L8="",-10,Foglio1!L8),"") -> -10 | E8: =IF(ROW(E8)-1<=$J$5,IF(Foglio1!M8="",-10,Foglio1!M8),"") -> -10 | F8: =IF(ROW(F8)-1<=$J$5,IF(Foglio1!N8="",-10,Foglio1!N8),"") -> -10 | G8: =IF(ROW(G8)-1<=$J$5,IF(Foglio1!O8="",-10,Foglio1!O8),"") -> -10 | H8: =IF(ROW(H8)-1<=$J$5,IF(Foglio1!P8="",-10,Foglio1!P8),"") -> -10 | I8: =IF(ROW(I8)-1<=$J$5,IF(Foglio1!Q8="",-10,Foglio1!Q8),"") -> -10 | K8: =IF(ROW(K8)-1<=$J$5,K$1+COUNTIF(A$2:A8,A8)*$J$7,"") -> 3.06 | L8: =IF(ROW(L8)-1<=$J$5,L$1+COUNTIF(B$2:B8,B8)*$J$7,"") -> 2.03 | M8: =IF(ROW(M8)-1<=$J$5,M$1+COUNTIF(C$2:C8,C8)*$J$7,"") -> 1.09 | N8: =IF(ROW(N8)-1<=$J$5,N$1+COUNTIF(D$2:D8,D8)*$J$7,"") -> 0.18 | O8: =IF(ROW(O8)-1<=$J$5,O$1+COUNTIF(E$2:E8,E8)*$J$7,"") -> -0.79 | P8: =IF(ROW(P8)-1<=$J$5,P$1+COUNTIF(F$2:F8,F8)*$J$7,"") -> -1.79 | Q8: =IF(ROW(Q8)-1<=$J$5,Q$1+COUNTIF(G$2:G8,G8)*$J$7,"") -> -2.79 | R8: =IF(ROW(R8)-1<=$J$5,R$1+COUNTIF(H$2:H8,H8)*$J$7,"") -> -3.79 | S8: =IF(ROW(S8)-1<=$J$5,S$1+COUNTIF(I$2:I8,I8)*$J$7,"") -> -4.79
A9: =IF(ROW(A9)-1<=$J$5,IF(Foglio1!I9="",-10,Foglio1!I9),"") -> 100 | B9: =IF(ROW(B9)-1<=$J$5,IF(Foglio1!J9="",-10,Foglio1!J9),"") -> 100 | C9: =IF(ROW(C9)-1<=$J$5,IF(Foglio1!K9="",-10,Foglio1!K9),"") -> -10 | D9: =IF(ROW(D9)-1<=$J$5,IF(Foglio1!L9="",-10,Foglio1!L9),"") -> -10 | E9: =IF(ROW(E9)-1<=$J$5,IF(Foglio1!M9="",-10,Foglio1!M9),"") -> -10 | F9: =IF(ROW(F9)-1<=$J$5,IF(Foglio1!N9="",-10,Foglio1!N9),"") -> -10 | G9: =IF(ROW(G9)-1<=$J$5,IF(Foglio1!O9="",-10,Foglio1!O9),"") -> -10 | H9: =IF(ROW(H9)-1<=$J$5,IF(Foglio1!P9="",-10,Foglio1!P9),"") -> -10 | I9: =IF(ROW(I9)-1<=$J$5,IF(Foglio1!Q9="",-10,Foglio1!Q9),"") -> -10 | K9: =IF(ROW(K9)-1<=$J$5,K$1+COUNTIF(A$2:A9,A9)*$J$7,"") -> 3.06 | L9: =IF(ROW(L9)-1<=$J$5,L$1+COUNTIF(B$2:B9,B9)*$J$7,"") -> 2.09 | M9: =IF(ROW(M9)-1<=$J$5,M$1+COUNTIF(C$2:C9,C9)*$J$7,"") -> 1.12 | N9: =IF(ROW(N9)-1<=$J$5,N$1+COUNTIF(D$2:D9,D9)*$J$7,"") -> 0.21 | O9: =IF(ROW(O9)-1<=$J$5,O$1+COUNTIF(E$2:E9,E9)*$J$7,"") -> -0.76 | P9: =IF(ROW(P9)-1<=$J$5,P$1+COUNTIF(F$2:F9,F9)*$J$7,"") -> -1.76 | Q9: =IF(ROW(Q9)-1<=$J$5,Q$1+COUNTIF(G$2:G9,G9)*$J$7,"") -> -2.76 | R9: =IF(ROW(R9)-1<=$J$5,R$1+COUNTIF(H$2:H9,H9)*$J$7,"") -> -3.76 | S9: =IF(ROW(S9)-1<=$J$5,S$1+COUNTIF(I$2:I9,I9)*$J$7,"") -> -4.76
A10: =IF(ROW(A10)-1<=$J$5,IF(Foglio1!I10="",-10,Foglio1!I10),"") -> -10 | B10: =IF(ROW(B10)-1<=$J$5,IF(Foglio1!J10="",-10,Foglio1!J10),"") -> -10 | C10: =IF(ROW(C10)-1<=$J$5,IF(Foglio1!K10="",-10,Foglio1!K10),"") -> -10 | D10: =IF(ROW(D10)-1<=$J$5,IF(Foglio1!L10="",-10,Foglio1!L10),"") -> -10 | E10: =IF(ROW(E10)-1<=$J$5,IF(Foglio1!M10="",-10,Foglio1!M10),"") -> -10 | F10: =IF(ROW(F10)-1<=$J$5,IF(Foglio1!N10="",-10,Foglio1!N10),"") -> -10 | G10: =IF(ROW(G10)-1<=$J$5,IF(Foglio1!O10="",-10,Foglio1!O10),"") -> -10 | H10: =IF(ROW(H10)-1<=$J$5,IF(Foglio1!P10="",-10,Foglio1!P10),"") -> -10 | I10: =IF(ROW(I10)-1<=$J$5,IF(Foglio1!Q10="",-10,Foglio1!Q10),"") -> -10 | K10: =IF(ROW(K10)-1<=$J$5,K$1+COUNTIF(A$2:A10,A10)*$J$7,"") -> 3.06 | L10: =IF(ROW(L10)-1<=$J$5,L$1+COUNTIF(B$2:B10,B10)*$J$7,"") -> 2.06 | M10: =IF(ROW(M10)-1<=$J$5,M$1+COUNTIF(C$2:C10,C10)*$J$7,"") -> 1.15 | N10: =IF(ROW(N10)-1<=$J$5,N$1+COUNTIF(D$2:D10,D10)*$J$7,"") -> 0.24 | O10: =IF(ROW(O10)-1<=$J$5,O$1+COUNTIF(E$2:E10,E10)*$J$7,"") -> -0.73 | P10: =IF(ROW(P10)-1<=$J$5,P$1+COUNTIF(F$2:F10,F10)*$J$7,"") -> -1.73 | Q10: =IF(ROW(Q10)-1<=$J$5,Q$1+COUNTIF(G$2:G10,G10)*$J$7,"") -> -2.73 | R10: =IF(ROW(R10)-1<=$J$5,R$1+COUNTIF(H$2:H10,H10)*$J$7,"") -> -3.73 | S10: =IF(ROW(S10)-1<=$J$5,S$1+COUNTIF(I$2:I10,I10)*$J$7,"") -> -4.73
A11: =IF(ROW(A11)-1<=$J$5,IF(Foglio1!I11="",-10,Foglio1!I11),"") -> 100 | B11: =IF(ROW(B11)-1<=$J$5,IF(Foglio1!J11="",-10,Foglio1!J11),"") -> 100 | C11: =IF(ROW(C11)-1<=$J$5,IF(Foglio1!K11="",-10,Foglio1!K11),"") -> 0 | D11: =IF(ROW(D11)-1<=$J$5,IF(Foglio1!L11="",-10,Foglio1!L11),"") -> 0 | E11: =IF(ROW(E11)-1<=$J$5,IF(Foglio1!M11="",-10,Foglio1!M11),"") -> -10 | F11: =IF(ROW(F11)-1<=$J$5,IF(Foglio1!N11="",-10,Foglio1!N11),"") -> -10 | G11: =IF(ROW(G11)-1<=$J$5,IF(Foglio1!O11="",-10,Foglio1!O11),"") -> -10 | H11: =IF(ROW(H11)-1<=$J$5,IF(Foglio1!P11="",-10,Foglio1!P11),"") -> -10 | I11: =IF(ROW(I11)-1<=$J$5,IF(Foglio1!Q11="",-10,Foglio1!Q11),"") -> -10 | K11: =IF(ROW(K11)-1<=$J$5,K$1+COUNTIF(A$2:A11,A11)*$J$7,"") -> 3.09 | L11: =IF(ROW(L11)-1<=$J$5,L$1+COUNTIF(B$2:B11,B11)*$J$7,"") -> 2.12 | M11: =IF(ROW(M11)-1<=$J$5,M$1+COUNTIF(C$2:C11,C11)*$J$7,"") -> 1.09 | N11: =IF(ROW(N11)-1<=$J$5,N$1+COUNTIF(D$2:D11,D11)*$J$7,"") -> 0.03 | O11: =IF(ROW(O11)-1<=$J$5,O$1+COUNTIF(E$2:E11,E11)*$J$7,"") -> -0.7 | P11: =IF(ROW(P11)-1<=$J$5,P$1+COUNTIF(F$2:F11,F11)*$J$7,"") -> -1.7 | Q11: =IF(ROW(Q11)-1<=$J$5,Q$1+COUNTIF(G$2:G11,G11)*$J$7,"") -> -2.7 | R11: =IF(ROW(R11)-1<=$J$5,R$1+COUNTIF(H$2:H11,H11)*$J$7,"") -> -3.7 | S11: =IF(ROW(S11)-1<=$J$5,S$1+COUNTIF(I$2:I11,I11)*$J$7,"") -> -4.7
A12: =IF(ROW(A12)-1<=$J$5,IF(Foglio1!I12="",-10,Foglio1!I12),"") -> 50 | B12: =IF(ROW(B12)-1<=$J$5,IF(Foglio1!J12="",-10,Foglio1!J12),"") -> 50 | C12: =IF(ROW(C12)-1<=$J$5,IF(Foglio1!K12="",-10,Foglio1!K12),"") -> 100 | D12: =IF(ROW(D12)-1<=$J$5,IF(Foglio1!L12="",-10,Foglio1!L12),"") -> -10 | E12: =IF(ROW(E12)-1<=$J$5,IF(Foglio1!M12="",-10,Foglio1!M12),"") -> -10 | F12: =IF(ROW(F12)-1<=$J$5,IF(Foglio1!N12="",-10,Foglio1!N12),"") -> -10 | G12: =IF(ROW(G12)-1<=$J$5,IF(Foglio1!O12="",-10,Foglio1!O12),"") -> -10 | H12: =IF(ROW(H12)-1<=$J$5,IF(Foglio1!P12="",-10,Foglio1!P12),"") -> -10 | I12: =IF(ROW(I12)-1<=$J$5,IF(Foglio1!Q12="",-10,Foglio1!Q12),"") -> -10 | K12: =IF(ROW(K12)-1<=$J$5,K$1+COUNTIF(A$2:A12,A12)*$J$7,"") -> 3.03 | L12: =IF(ROW(L12)-1<=$J$5,L$1+COUNTIF(B$2:B12,B12)*$J$7,"") -> 2.03 | M12: =IF(ROW(M12)-1<=$J$5,M$1+COUNTIF(C$2:C12,C12)*$J$7,"") -> 1.03 | N12: =IF(ROW(N12)-1<=$J$5,N$1+COUNTIF(D$2:D12,D12)*$J$7,"") -> 0.27 | O12: =IF(ROW(O12)-1<=$J$5,O$1+COUNTIF(E$2:E12,E12)*$J$7,"") -> -0.67 | P12: =IF(ROW(P12)-1<=$J$5,P$1+COUNTIF(F$2:F12,F12)*$J$7,"") -> -1.67 | Q12: =IF(ROW(Q12)-1<=$J$5,Q$1+COUNTIF(G$2:G12,G12)*$J$7,"") -> -2.67 | R12: =IF(ROW(R12)-1<=$J$5,R$1+COUNTIF(H$2:H12,H12)*$J$7,"") -> -3.67 | S12: =IF(ROW(S12)-1<=$J$5,S$1+COUNTIF(I$2:I12,I12)*$J$7,"") -> -4.67
A13: =IF(ROW(A13)-1<=$J$5,IF(Foglio1!I13="",-10,Foglio1!I13),"") -> 70 | B13: =IF(ROW(B13)-1<=$J$5,IF(Foglio1!J13="",-10,Foglio1!J13),"") -> 70 | C13: =IF(ROW(C13)-1<=$J$5,IF(Foglio1!K13="",-10,Foglio1!K13),"") -> -10 | D13: =IF(ROW(D13)-1<=$J$5,IF(Foglio1!L13="",-10,Foglio1!L13),"") -> -10 | E13: =IF(ROW(E13)-1<=$J$5,IF(Foglio1!M13="",-10,Foglio1!M13),"") -> -10 | F13: =IF(ROW(F13)-1<=$J$5,IF(Foglio1!N13="",-10,Foglio1!N13),"") -> -10 | G13: =IF(ROW(G13)-1<=$J$5,IF(Foglio1!O13="",-10,Foglio1!O13),"") -> -10 | H13: =IF(ROW(H13)-1<=$J$5,IF(Foglio1!P13="",-10,Foglio1!P13),"") -> -10 | I13: =IF(ROW(I13)-1<=$J$5,IF(Foglio1!Q13="",-10,Foglio1!Q13),"") -> -10 | K13: =IF(ROW(K13)-1<=$J$5,K$1+COUNTIF(A$2:A13,A13)*$J$7,"") -> 3.06 | L13: =IF(ROW(L13)-1<=$J$5,L$1+COUNTIF(B$2:B13,B13)*$J$7,"") -> 2.03 | M13: =IF(ROW(M13)-1<=$J$5,M$1+COUNTIF(C$2:C13,C13)*$J$7,"") -> 1.18 | N13: =IF(ROW(N13)-1<=$J$5,N$1+COUNTIF(D$2:D13,D13)*$J$7,"") -> 0.3 | O13: =IF(ROW(O13)-1<=$J$5,O$1+COUNTIF(E$2:E13,E13)*$J$7,"") -> -0.64 | P13: =IF(ROW(P13)-1<=$J$5,P$1+COUNTIF(F$2:F13,F13)*$J$7,"") -> -1.64 | Q13: =IF(ROW(Q13)-1<=$J$5,Q$1+COUNTIF(G$2:G13,G13)*$J$7,"") -> -2.64 | R13: =IF(ROW(R13)-1<=$J$5,R$1+COUNTIF(H$2:H13,H13)*$J$7,"") -> -3.64 | S13: =IF(ROW(S13)-1<=$J$5,S$1+COUNTIF(I$2:I13,I13)*$J$7,"") -> -4.64
A14: =IF(ROW(A14)-1<=$J$5,IF(Foglio1!I14="",-10,Foglio1!I14),"") -> 90 | B14: =IF(ROW(B14)-1<=$J$5,IF(Foglio1!J14="",-10,Foglio1!J14),"") -> 90 | C14: =IF(ROW(C14)-1<=$J$5,IF(Foglio1!K14="",-10,Foglio1!K14),"") -> 70 | D14: =IF(ROW(D14)-1<=$J$5,IF(Foglio1!L14="",-10,Foglio1!L14),"") -> 0 | E14: =IF(ROW(E14)-1<=$J$5,IF(Foglio1!M14="",-10,Foglio1!M14),"") -> -10 | F14: =IF(ROW(F14)-1<=$J$5,IF(Foglio1!N14="",-10,Foglio1!N14),"") -> -10 | G14: =IF(ROW(G14)-1<=$J$5,IF(Foglio1!O14="",-10,Foglio1!O14),"") -> -10 | H14: =IF(ROW(H14)-1<=$J$5,IF(Foglio1!P14="",-10,Foglio1!P14),"") -> -10 | I14: =IF(ROW(I14)-1<=$J$5,IF(Foglio1!Q14="",-10,Foglio1!Q14),"") -> -10 | K14: =IF(ROW(K14)-1<=$J$5,K$1+COUNTIF(A$2:A14,A14)*$J$7,"") -> 3.03 | L14: =IF(ROW(L14)-1<=$J$5,L$1+COUNTIF(B$2:B14,B14)*$J$7,"") -> 2.06 | M14: =IF(ROW(M14)-1<=$J$5,M$1+COUNTIF(C$2:C14,C14)*$J$7,"") -> 1.03 | N14: =IF(ROW(N14)-1<=$J$5,N$1+COUNTIF(D$2:D14,D14)*$J$7,"") -> 0.06 | O14: =IF(ROW(O14)-1<=$J$5,O$1+COUNTIF(E$2:E14,E14)*$J$7,"") -> -0.61 | P14: =IF(ROW(P14)-1<=$J$5,P$1+COUNTIF(F$2:F14,F14)*$J$7,"") -> -1.61 | Q14: =IF(ROW(Q14)-1<=$J$5,Q$1+COUNTIF(G$2:G14,G14)*$J$7,"") -> -2.61 | R14: =IF(ROW(R14)-1<=$J$5,R$1+COUNTIF(H$2:H14,H14)*$J$7,"") -> -3.61 | S14: =IF(ROW(S14)-1<=$J$5,S$1+COUNTIF(I$2:I14,I14)*$J$7,"") -> -4.61
A15: =IF(ROW(A15)-1<=$J$5,IF(Foglio1!I15="",-10,Foglio1!I15),"") -> 50 | B15: =IF(ROW(B15)-1<=$J$5,IF(Foglio1!J15="",-10,Foglio1!J15),"") -> 80 | C15: =IF(ROW(C15)-1<=$J$5,IF(Foglio1!K15="",-10,Foglio1!K15),"") -> 60 | D15: =IF(ROW(D15)-1<=$J$5,IF(Foglio1!L15="",-10,Foglio1!L15),"") -> 60 | E15: =IF(ROW(E15)-1<=$J$5,IF(Foglio1!M15="",-10,Foglio1!M15),"") -> -10 | F15: =IF(ROW(F15)-1<=$J$5,IF(Foglio1!N15="",-10,Foglio1!N15),"") -> -10 | G15: =IF(ROW(G15)-1<=$J$5,IF(Foglio1!O15="",-10,Foglio1!O15),"") -> -10 | H15: =IF(ROW(H15)-1<=$J$5,IF(Foglio1!P15="",-10,Foglio1!P15),"") -> -10 | I15: =IF(ROW(I15)-1<=$J$5,IF(Foglio1!Q15="",-10,Foglio1!Q15),"") -> -10 | K15: =IF(ROW(K15)-1<=$J$5,K$1+COUNTIF(A$2:A15,A15)*$J$7,"") -> 3.06 | L15: =IF(ROW(L15)-1<=$J$5,L$1+COUNTIF(B$2:B15,B15)*$J$7,"") -> 2.06 | M15: =IF(ROW(M15)-1<=$J$5,M$1+COUNTIF(C$2:C15,C15)*$J$7,"") -> 1.03 | N15: =IF(ROW(N15)-1<=$J$5,N$1+COUNTIF(D$2:D15,D15)*$J$7,"") -> 0.03 | O15: =IF(ROW(O15)-1<=$J$5,O$1+COUNTIF(E$2:E15,E15)*$J$7,"") -> -0.58 | P15: =IF(ROW(P15)-1<=$J$5,P$1+COUNTIF(F$2:F15,F15)*$J$7,"") -> -1.58 | Q15: =IF(ROW(Q15)-1<=$J$5,Q$1+COUNTIF(G$2:G15,G15)*$J$7,"") -> -2.58 | R15: =IF(ROW(R15)-1<=$J$5,R$1+COUNTIF(H$2:H15,H15)*$J$7,"") -> -3.58 | S15: =IF(ROW(S15)-1<=$J$5,S$1+COUNTIF(I$2:I15,I15)*$J$7,"") -> -4.58
A16: =IF(ROW(A16)-1<=$J$5,IF(Foglio1!I16="",-10,Foglio1!I16),"") -> -10 | B16: =IF(ROW(B16)-1<=$J$5,IF(Foglio1!J16="",-10,Foglio1!J16),"") -> -10 | C16: =IF(ROW(C16)-1<=$J$5,IF(Foglio1!K16="",-10,Foglio1!K16),"") -> -10 | D16: =IF(ROW(D16)-1<=$J$5,IF(Foglio1!L16="",-10,Foglio1!L16),"") -> -10 | E16: =IF(ROW(E16)-1<=$J$5,IF(Foglio1!M16="",-10,Foglio1!M16),"") -> -10 | F16: =IF(ROW(F16)-1<=$J$5,IF(Foglio1!N16="",-10,Foglio1!N16),"") -> -10 | G16: =IF(ROW(G16)-1<=$J$5,IF(Foglio1!O16="",-10,Foglio1!O16),"") -> -10 | H16: =IF(ROW(H16)-1<=$J$5,IF(Foglio1!P16="",-10,Foglio1!P16),"") -> -10 | I16: =IF(ROW(I16)-1<=$J$5,IF(Foglio1!Q16="",-10,Foglio1!Q16),"") -> -10 | K16: =IF(ROW(K16)-1<=$J$5,K$1+COUNTIF(A$2:A16,A16)*$J$7,"") -> 3.09 | L16: =IF(ROW(L16)-1<=$J$5,L$1+COUNTIF(B$2:B16,B16)*$J$7,"") -> 2.09 | M16: =IF(ROW(M16)-1<=$J$5,M$1+COUNTIF(C$2:C16,C16)*$J$7,"") -> 1.21 | N16: =IF(ROW(N16)-1<=$J$5,N$1+COUNTIF(D$2:D16,D16)*$J$7,"") -> 0.33 | O16: =IF(ROW(O16)-1<=$J$5,O$1+COUNTIF(E$2:E16,E16)*$J$7,"") -> -0.55 | P16: =IF(ROW(P16)-1<=$J$5,P$1+COUNTIF(F$2:F16,F16)*$J$7,"") -> -1.55 | Q16: =IF(ROW(Q16)-1<=$J$5,Q$1+COUNTIF(G$2:G16,G16)*$J$7,"") -> -2.55 | R16: =IF(ROW(R16)-1<=$J$5,R$1+COUNTIF(H$2:H16,H16)*$J$7,"") -> -3.55 | S16: =IF(ROW(S16)-1<=$J$5,S$1+COUNTIF(I$2:I16,I16)*$J$7,"") -> -4.55
A17: =IF(ROW(A17)-1<=$J$5,IF(Foglio1!I17="",-10,Foglio1!I17),"") -> 80 | B17: =IF(ROW(B17)-1<=$J$5,IF(Foglio1!J17="",-10,Foglio1!J17),"") -> 80 | C17: =IF(ROW(C17)-1<=$J$5,IF(Foglio1!K17="",-10,Foglio1!K17),"") -> 60 | D17: =IF(ROW(D17)-1<=$J$5,IF(Foglio1!L17="",-10,Foglio1!L17),"") -> -10 | E17: =IF(ROW(E17)-1<=$J$5,IF(Foglio1!M17="",-10,Foglio1!M17),"") -> -10 | F17: =IF(ROW(F17)-1<=$J$5,IF(Foglio1!N17="",-10,Foglio1!N17),"") -> -10 | G17: =IF(ROW(G17)-1<=$J$5,IF(Foglio1!O17="",-10,Foglio1!O17),"") -> -10 | H17: =IF(ROW(H17)-1<=$J$5,IF(Foglio1!P17="",-10,Foglio1!P17),"") -> -10 | I17: =IF(ROW(I17)-1<=$J$5,IF(Foglio1!Q17="",-10,Foglio1!Q17),"") -> -10 | K17: =IF(ROW(K17)-1<=$J$5,K$1+COUNTIF(A$2:A17,A17)*$J$7,"") -> 3.09 | L17: =IF(ROW(L17)-1<=$J$5,L$1+COUNTIF(B$2:B17,B17)*$J$7,"") -> 2.09 | M17: =IF(ROW(M17)-1<=$J$5,M$1+COUNTIF(C$2:C17,C17)*$J$7,"") -> 1.06 | N17: =IF(ROW(N17)-1<=$J$5,N$1+COUNTIF(D$2:D17,D17)*$J$7,"") -> 0.36 | O17: =IF(ROW(O17)-1<=$J$5,O$1+COUNTIF(E$2:E17,E17)*$J$7,"") -> -0.52 | P17: =IF(ROW(P17)-1<=$J$5,P$1+COUNTIF(F$2:F17,F17)*$J$7,"") -> -1.52 | Q17: =IF(ROW(Q17)-1<=$J$5,Q$1+COUNTIF(G$2:G17,G17)*$J$7,"") -> -2.52 | R17: =IF(ROW(R17)-1<=$J$5,R$1+COUNTIF(H$2:H17,H17)*$J$7,"") -> -3.52 | S17: =IF(ROW(S17)-1<=$J$5,S$1+COUNTIF(I$2:I17,I17)*$J$7,"") -> -4.52
A18: =IF(ROW(A18)-1<=$J$5,IF(Foglio1!I18="",-10,Foglio1!I18),"") -> 50 | B18: =IF(ROW(B18)-1<=$J$5,IF(Foglio1!J18="",-10,Foglio1!J18),"") -> 50 | C18: =IF(ROW(C18)-1<=$J$5,IF(Foglio1!K18="",-10,Foglio1!K18),"") -> 100 | D18: =IF(ROW(D18)-1<=$J$5,IF(Foglio1!L18="",-10,Foglio1!L18),"") -> 0 | E18: =IF(ROW(E18)-1<=$J$5,IF(Foglio1!M18="",-10,Foglio1!M18),"") -> -10 | F18: =IF(ROW(F18)-1<=$J$5,IF(Foglio1!N18="",-10,Foglio1!N18),"") -> -10 | G18: =IF(ROW(G18)-1<=$J$5,IF(Foglio1!O18="",-10,Foglio1!O18),"") -> -10 | H18: =IF(ROW(H18)-1<=$J$5,IF(Foglio1!P18="",-10,Foglio1!P18),"") -> -10 | I18: =IF(ROW(I18)-1<=$J$5,IF(Foglio1!Q18="",-10,Foglio1!Q18),"") -> -10 | K18: =IF(ROW(K18)-1<=$J$5,K$1+COUNTIF(A$2:A18,A18)*$J$7,"") -> 3.09 | L18: =IF(ROW(L18)-1<=$J$5,L$1+COUNTIF(B$2:B18,B18)*$J$7,"") -> 2.06 | M18: =IF(ROW(M18)-1<=$J$5,M$1+COUNTIF(C$2:C18,C18)*$J$7,"") -> 1.06 | N18: =IF(ROW(N18)-1<=$J$5,N$1+COUNTIF(D$2:D18,D18)*$J$7,"") -> 0.09 | O18: =IF(ROW(O18)-1<=$J$5,O$1+COUNTIF(E$2:E18,E18)*$J$7,"") -> -0.49 | P18: =IF(ROW(P18)-1<=$J$5,P$1+COUNTIF(F$2:F18,F18)*$J$7,"") -> -1.49 | Q18: =IF(ROW(Q18)-1<=$J$5,Q$1+COUNTIF(G$2:G18,G18)*$J$7,"") -> -2.49 | R18: =IF(ROW(R18)-1<=$J$5,R$1+COUNTIF(H$2:H18,H18)*$J$7,"") -> -3.49 | S18: =IF(ROW(S18)-1<=$J$5,S$1+COUNTIF(I$2:I18,I18)*$J$7,"") -> -4.49
A19: =IF(ROW(A19)-1<=$J$5,IF(Foglio1!I19="",-10,Foglio1!I19),"") -> -10 | B19: =IF(ROW(B19)-1<=$J$5,IF(Foglio1!J19="",-10,Foglio1!J19),"") -> -10 | C19: =IF(ROW(C19)-1<=$J$5,IF(Foglio1!K19="",-10,Foglio1!K19),"") -> 80 | D19: =IF(ROW(D19)-1<=$J$5,IF(Foglio1!L19="",-10,Foglio1!L19),"") -> -10 | E19: =IF(ROW(E19)-1<=$J$5,IF(Foglio1!M19="",-10,Foglio1!M19),"") -> -10 | F19: =IF(ROW(F19)-1<=$J$5,IF(Foglio1!N19="",-10,Foglio1!N19),"") -> -10 | G19: =IF(ROW(G19)-1<=$J$5,IF(Foglio1!O19="",-10,Foglio1!O19),"") -> -10 | H19: =IF(ROW(H19)-1<=$J$5,IF(Foglio1!P19="",-10,Foglio1!P19),"") -> -10 | I19: =IF(ROW(I19)-1<=$J$5,IF(Foglio1!Q19="",-10,Foglio1!Q19),"") -> -10 | K19: =IF(ROW(K19)-1<=$J$5,K$1+COUNTIF(A$2:A19,A19)*$J$7,"") -> 3.12 | L19: =IF(ROW(L19)-1<=$J$5,L$1+COUNTIF(B$2:B19,B19)*$J$7,"") -> 2.12 | M19: =IF(ROW(M19)-1<=$J$5,M$1+COUNTIF(C$2:C19,C19)*$J$7,"") -> 1.03 | N19: =IF(ROW(N19)-1<=$J$5,N$1+COUNTIF(D$2:D19,D19)*$J$7,"") -> 0.39 | O19: =IF(ROW(O19)-1<=$J$5,O$1+COUNTIF(E$2:E19,E19)*$J$7,"") -> -0.46 | P19: =IF(ROW(P19)-1<=$J$5,P$1+COUNTIF(F$2:F19,F19)*$J$7,"") -> -1.46 | Q19: =IF(ROW(Q19)-1<=$J$5,Q$1+COUNTIF(G$2:G19,G19)*$J$7,"") -> -2.46 | R19: =IF(ROW(R19)-1<=$J$5,R$1+COUNTIF(H$2:H19,H19)*$J$7,"") -> -3.46 | S19: =IF(ROW(S19)-1<=$J$5,S$1+COUNTIF(I$2:I19,I19)*$J$7,"") -> -4.46
A20: =IF(ROW(A20)-1<=$J$5,IF(Foglio1!I20="",-10,Foglio1!I20),"") -> 90 | B20: =IF(ROW(B20)-1<=$J$5,IF(Foglio1!J20="",-10,Foglio1!J20),"") -> 90 | C20: =IF(ROW(C20)-1<=$J$5,IF(Foglio1!K20="",-10,Foglio1!K20),"") -> -10 | D20: =IF(ROW(D20)-1<=$J$5,IF(Foglio1!L20="",-10,Foglio1!L20),"") -> -10 | E20: =IF(ROW(E20)-1<=$J$5,IF(Foglio1!M20="",-10,Foglio1!M20),"") -> -10 | F20: =IF(ROW(F20)-1<=$J$5,IF(Foglio1!N20="",-10,Foglio1!N20),"") -> -10 | G20: =IF(ROW(G20)-1<=$J$5,IF(Foglio1!O20="",-10,Foglio1!O20),"") -> -10 | H20: =IF(ROW(H20)-1<=$J$5,IF(Foglio1!P20="",-10,Foglio1!P20),"") -> -10 | I20: =IF(ROW(I20)-1<=$J$5,IF(Foglio1!Q20="",-10,Foglio1!Q20),"") -> -10 | K20: =IF(ROW(K20)-1<=$J$5,K$1+COUNTIF(A$2:A20,A20)*$J$7,"") -> 3.06 | L20: =IF(ROW(L20)-1<=$J$5,L$1+COUNTIF(B$2:B20,B20)*$J$7,"") -> 2.09 | M20: =IF(ROW(M20)-1<=$J$5,M$1+COUNTIF(C$2:C20,C20)*$J$7,"") -> 1.24 | N20: =IF(ROW(N20)-1<=$J$5,N$1+COUNTIF(D$2:D20,D20)*$J$7,"") -> 0.42 | O20: =IF(ROW(O20)-1<=$J$5,O$1+COUNTIF(E$2:E20,E20)*$J$7,"") -> -0.43 | P20: =IF(ROW(P20)-1<=$J$5,P$1+COUNTIF(F$2:F20,F20)*$J$7,"") -> -1.43 | Q20: =IF(ROW(Q20)-1<=$J$5,Q$1+COUNTIF(G$2:G20,G20)*$J$7,"") -> -2.43 | R20: =IF(ROW(R20)-1<=$J$5,R$1+COUNTIF(H$2:H20,H20)*$J$7,"") -> -3.43 | S20: =IF(ROW(S20)-1<=$J$5,S$1+COUNTIF(I$2:I20,I20)*$J$7,"") -> -4.43
A21: =IF(ROW(A21)-1<=$J$5,IF(Foglio1!I21="",-10,Foglio1!I21),"") -> 20 | B21: =IF(ROW(B21)-1<=$J$5,IF(Foglio1!J21="",-10,Foglio1!J21),"") -> 70 | C21: =IF(ROW(C21)-1<=$J$5,IF(Foglio1!K21="",-10,Foglio1!K21),"") -> 20 | D21: =IF(ROW(D21)-1<=$J$5,IF(Foglio1!L21="",-10,Foglio1!L21),"") -> -10 | E21: =IF(ROW(E21)-1<=$J$5,IF(Foglio1!M21="",-10,Foglio1!M21),"") -> -10 | F21: =IF(ROW(F21)-1<=$J$5,IF(Foglio1!N21="",-10,Foglio1!N21),"") -> -10 | G21: =IF(ROW(G21)-1<=$J$5,IF(Foglio1!O21="",-10,Foglio1!O21),"") -> -10 | H21: =IF(ROW(H21)-1<=$J$5,IF(Foglio1!P21="",-10,Foglio1!P21),"") -> -10 | I21: =IF(ROW(I21)-1<=$J$5,IF(Foglio1!Q21="",-10,Foglio1!Q21),"") -> -10 | K21: =IF(ROW(K21)-1<=$J$5,K$1+COUNTIF(A$2:A21,A21)*$J$7,"") -> 3.03 | L21: =IF(ROW(L21)-1<=$J$5,L$1+COUNTIF(B$2:B21,B21)*$J$7,"") -> 2.06 | M21: =IF(ROW(M21)-1<=$J$5,M$1+COUNTIF(C$2:C21,C21)*$J$7,"") -> 1.03 | N21: =IF(ROW(N21)-1<=$J$5,N$1+COUNTIF(D$2:D21,D21)*$J$7,"") -> 0.45 | O21: =IF(ROW(O21)-1<=$J$5,O$1+COUNTIF(E$2:E21,E21)*$J$7,"") -> -0.4 | P21: =IF(ROW(P21)-1<=$J$5,P$1+COUNTIF(F$2:F21,F21)*$J$7,"") -> -1.4 | Q21: =IF(ROW(Q21)-1<=$J$5,Q$1+COUNTIF(G$2:G21,G21)*$J$7,"") -> -2.4 | R21: =IF(ROW(R21)-1<=$J$5,R$1+COUNTIF(H$2:H21,H21)*$J$7,"") -> -3.4 | S21: =IF(ROW(S21)-1<=$J$5,S$1+COUNTIF(I$2:I21,I21)*$J$7,"") -> -4.4
A22: =IF(ROW(A22)-1<=$J$5,IF(Foglio1!I22="",-10,Foglio1!I22),"") -> 100 | B22: =IF(ROW(B22)-1<=$J$5,IF(Foglio1!J22="",-10,Foglio1!J22),"") -> 90 | C22: =IF(ROW(C22)-1<=$J$5,IF(Foglio1!K22="",-10,Foglio1!K22),"") -> -10 | D22: =IF(ROW(D22)-1<=$J$5,IF(Foglio1!L22="",-10,Foglio1!L22),"") -> -10 | E22: =IF(ROW(E22)-1<=$J$5,IF(Foglio1!M22="",-10,Foglio1!M22),"") -> -10 | F22: =IF(ROW(F22)-1<=$J$5,IF(Foglio1!N22="",-10,Foglio1!N22),"") -> -10 | G22: =IF(ROW(G22)-1<=$J$5,IF(Foglio1!O22="",-10,Foglio1!O22),"") -> -10 | H22: =IF(ROW(H22)-1<=$J$5,IF(Foglio1!P22="",-10,Foglio1!P22),"") -> -10 | I22: =IF(ROW(I22)-1<=$J$5,IF(Foglio1!Q22="",-10,Foglio1!Q22),"") -> -10 | K22: =IF(ROW(K22)-1<=$J$5,K$1+COUNTIF(A$2:A22,A22)*$J$7,"") -> 3.12 | L22: =IF(ROW(L22)-1<=$J$5,L$1+COUNTIF(B$2:B22,B22)*$J$7,"") -> 2.12 | M22: =IF(ROW(M22)-1<=$J$5,M$1+COUNTIF(C$2:C22,C22)*$J$7,"") -> 1.27 | N22: =IF(ROW(N22)-1<=$J$5,N$1+COUNTIF(D$2:D22,D22)*$J$7,"") -> 0.48 | O22: =IF(ROW(O22)-1<=$J$5,O$1+COUNTIF(E$2:E22,E22)*$J$7,"") -> -0.37 | P22: =IF(ROW(P22)-1<=$J$5,P$1+COUNTIF(F$2:F22,F22)*$J$7,"") -> -1.37 | Q22: =IF(ROW(Q22)-1<=$J$5,Q$1+COUNTIF(G$2:G22,G22)*$J$7,"") -> -2.37 | R22: =IF(ROW(R22)-1<=$J$5,R$1+COUNTIF(H$2:H22,H22)*$J$7,"") -> -3.37 | S22: =IF(ROW(S22)-1<=$J$5,S$1+COUNTIF(I$2:I22,I22)*$J$7,"") -> -4.37
A23: =IF(ROW(A23)-1<=$J$5,IF(Foglio1!I23="",-10,Foglio1!I23),"") -> -10 | B23: =IF(ROW(B23)-1<=$J$5,IF(Foglio1!J23="",-10,Foglio1!J23),"") -> -10 | C23: =IF(ROW(C23)-1<=$J$5,IF(Foglio1!K23="",-10,Foglio1!K23),"") -> -10 | D23: =IF(ROW(D23)-1<=$J$5,IF(Foglio1!L23="",-10,Foglio1!L23),"") -> -10 | E23: =IF(ROW(E23)-1<=$J$5,IF(Foglio1!M23="",-10,Foglio1!M23),"") -> -10 | F23: =IF(ROW(F23)-1<=$J$5,IF(Foglio1!N23="",-10,Foglio1!N23),"") -> -10 | G23: =IF(ROW(G23)-1<=$J$5,IF(Foglio1!O23="",-10,Foglio1!O23),"") -> -10 | H23: =IF(ROW(H23)-1<=$J$5,IF(Foglio1!P23="",-10,Foglio1!P23),"") -> -10 | I23: =IF(ROW(I23)-1<=$J$5,IF(Foglio1!Q23="",-10,Foglio1!Q23),"") -> -10 | K23: =IF(ROW(K23)-1<=$J$5,K$1+COUNTIF(A$2:A23,A23)*$J$7,"") -> 3.15 | L23: =IF(ROW(L23)-1<=$J$5,L$1+COUNTIF(B$2:B23,B23)*$J$7,"") -> 2.15 | M23: =IF(ROW(M23)-1<=$J$5,M$1+COUNTIF(C$2:C23,C23)*$J$7,"") -> 1.3 | N23: =IF(ROW(N23)-1<=$J$5,N$1+COUNTIF(D$2:D23,D23)*$J$7,"") -> 0.51 | O23: =IF(ROW(O23)-1<=$J$5,O$1+COUNTIF(E$2:E23,E23)*$J$7,"") -> -0.34 | P23: =IF(ROW(P23)-1<=$J$5,P$1+COUNTIF(F$2:F23,F23)*$J$7,"") -> -1.34 | Q23: =IF(ROW(Q23)-1<=$J$5,Q$1+COUNTIF(G$2:G23,G23)*$J$7,"") -> -2.34 | R23: =IF(ROW(R23)-1<=$J$5,R$1+COUNTIF(H$2:H23,H23)*$J$7,"") -> -3.34 | S23: =IF(ROW(S23)-1<=$J$5,S$1+COUNTIF(I$2:I23,I23)*$J$7,"") -> -4.34
A24: =IF(ROW(A24)-1<=$J$5,IF(Foglio1!I24="",-10,Foglio1!I24),"") -> 60 | B24: =IF(ROW(B24)-1<=$J$5,IF(Foglio1!J24="",-10,Foglio1!J24),"") -> 80 | C24: =IF(ROW(C24)-1<=$J$5,IF(Foglio1!K24="",-10,Foglio1!K24),"") -> 100 | D24: =IF(ROW(D24)-1<=$J$5,IF(Foglio1!L24="",-10,Foglio1!L24),"") -> -10 | E24: =IF(ROW(E24)-1<=$J$5,IF(Foglio1!M24="",-10,Foglio1!M24),"") -> -10 | F24: =IF(ROW(F24)-1<=$J$5,IF(Foglio1!N24="",-10,Foglio1!N24),"") -> -10 | G24: =IF(ROW(G24)-1<=$J$5,IF(Foglio1!O24="",-10,Foglio1!O24),"") -> -10 | H24: =IF(ROW(H24)-1<=$J$5,IF(Foglio1!P24="",-10,Foglio1!P24),"") -> -10 | I24: =IF(ROW(I24)-1<=$J$5,IF(Foglio1!Q24="",-10,Foglio1!Q24),"") -> -10 | K24: =IF(ROW(K24)-1<=$J$5,K$1+COUNTIF(A$2:A24,A24)*$J$7,"") -> 3.03 | L24: =IF(ROW(L24)-1<=$J$5,L$1+COUNTIF(B$2:B24,B24)*$J$7,"") -> 2.12 | M24: =IF(ROW(M24)-1<=$J$5,M$1+COUNTIF(C$2:C24,C24)*$J$7,"") -> 1.09 | N24: =IF(ROW(N24)-1<=$J$5,N$1+COUNTIF(D$2:D24,D24)*$J$7,"") -> 0.54 | O24: =IF(ROW(O24)-1<=$J$5,O$1+COUNTIF(E$2:E24,E24)*$J$7,"") -> -0.31 | P24: =IF(ROW(P24)-1<=$J$5,P$1+COUNTIF(F$2:F24,F24)*$J$7,"") -> -1.31 | Q24: =IF(ROW(Q24)-1<=$J$5,Q$1+COUNTIF(G$2:G24,G24)*$J$7,"") -> -2.31 | R24: =IF(ROW(R24)-1<=$J$5,R$1+COUNTIF(H$2:H24,H24)*$J$7,"") -> -3.31 | S24: =IF(ROW(S24)-1<=$J$5,S$1+COUNTIF(I$2:I24,I24)*$J$7,"") -> -4.31
A25: =IF(ROW(A25)-1<=$J$5,IF(Foglio1!I25="",-10,Foglio1!I25),"") -> 70 | B25: =IF(ROW(B25)-1<=$J$5,IF(Foglio1!J25="",-10,Foglio1!J25),"") -> 60 | C25: =IF(ROW(C25)-1<=$J$5,IF(Foglio1!K25="",-10,Foglio1!K25),"") -> -10 | D25: =IF(ROW(D25)-1<=$J$5,IF(Foglio1!L25="",-10,Foglio1!L25),"") -> -10 | E25: =IF(ROW(E25)-1<=$J$5,IF(Foglio1!M25="",-10,Foglio1!M25),"") -> -10 | F25: =IF(ROW(F25)-1<=$J$5,IF(Foglio1!N25="",-10,Foglio1!N25),"") -> -10 | G25: =IF(ROW(G25)-1<=$J$5,IF(Foglio1!O25="",-10,Foglio1!O25),"") -> -10 | H25: =IF(ROW(H25)-1<=$J$5,IF(Foglio1!P25="",-10,Foglio1!P25),"") -> -10 | I25: =IF(ROW(I25)-1<=$J$5,IF(Foglio1!Q25="",-10,Foglio1!Q25),"") -> -10 | K25: =IF(ROW(K25)-1<=$J$5,K$1+COUNTIF(A$2:A25,A25)*$J$7,"") -> 3.09 | L25: =IF(ROW(L25)-1<=$J$5,L$1+COUNTIF(B$2:B25,B25)*$J$7,"") -> 2.03 | M25: =IF(ROW(M25)-1<=$J$5,M$1+COUNTIF(C$2:C25,C25)*$J$7,"") -> 1.33 | N25: =IF(ROW(N25)-1<=$J$5,N$1+COUNTIF(D$2:D25,D25)*$J$7,"") -> 0.57 | O25: =IF(ROW(O25)-1<=$J$5,O$1+COUNTIF(E$2:E25,E25)*$J$7,"") -> -0.28 | P25: =IF(ROW(P25)-1<=$J$5,P$1+COUNTIF(F$2:F25,F25)*$J$7,"") -> -1.28 | Q25: =IF(ROW(Q25)-1<=$J$5,Q$1+COUNTIF(G$2:G25,G25)*$J$7,"") -> -2.28 | R25: =IF(ROW(R25)-1<=$J$5,R$1+COUNTIF(H$2:H25,H25)*$J$7,"") -> -3.28 | S25: =IF(ROW(S25)-1<=$J$5,S$1+COUNTIF(I$2:I25,I25)*$J$7,"") -> -4.28
A26: =IF(ROW(A26)-1<=$J$5,IF(Foglio1!I26="",-10,Foglio1!I26),"") -> 50 | B26: =IF(ROW(B26)-1<=$J$5,IF(Foglio1!J26="",-10,Foglio1!J26),"") -> 50 | C26: =IF(ROW(C26)-1<=$J$5,IF(Foglio1!K26="",-10,Foglio1!K26),"") -> -10 | D26: =IF(ROW(D26)-1<=$J$5,IF(Foglio1!L26="",-10,Foglio1!L26),"") -> -10 | E26: =IF(ROW(E26)-1<=$J$5,IF(Foglio1!M26="",-10,Foglio1!M26),"") -> -10 | F26: =IF(ROW(F26)-1<=$J$5,IF(Foglio1!N26="",-10,Foglio1!N26),"") -> -10 | G26: =IF(ROW(G26)-1<=$J$5,IF(Foglio1!O26="",-10,Foglio1!O26),"") -> -10 | H26: =IF(ROW(H26)-1<=$J$5,IF(Foglio1!P26="",-10,Foglio1!P26),"") -> -10 | I26: =IF(ROW(I26)-1<=$J$5,IF(Foglio1!Q26="",-10,Foglio1!Q26),"") -> -10 | K26: =IF(ROW(K26)-1<=$J$5,K$1+COUNTIF(A$2:A26,A26)*$J$7,"") -> 3.12 | L26: =IF(ROW(L26)-1<=$J$5,L$1+COUNTIF(B$2:B26,B26)*$J$7,"") -> 2.09 | M26: =IF(ROW(M26)-1<=$J$5,M$1+COUNTIF(C$2:C26,C26)*$J$7,"") -> 1.36 | N26: =IF(ROW(N26)-1<=$J$5,N$1+COUNTIF(D$2:D26,D26)*$J$7,"") -> 0.6 | O26: =IF(ROW(O26)-1<=$J$5,O$1+COUNTIF(E$2:E26,E26)*$J$7,"") -> -0.25 | P26: =IF(ROW(P26)-1<=$J$5,P$1+COUNTIF(F$2:F26,F26)*$J$7,"") -> -1.25 | Q26: =IF(ROW(Q26)-1<=$J$5,Q$1+COUNTIF(G$2:G26,G26)*$J$7,"") -> -2.25 | R26: =IF(ROW(R26)-1<=$J$5,R$1+COUNTIF(H$2:H26,H26)*$J$7,"") -> -3.25 | S26: =IF(ROW(S26)-1<=$J$5,S$1+COUNTIF(I$2:I26,I26)*$J$7,"") -> -4.25
A27: =IF(ROW(A27)-1<=$J$5,IF(Foglio1!I27="",-10,Foglio1!I27),"") -> 80 | B27: =IF(ROW(B27)-1<=$J$5,IF(Foglio1!J27="",-10,Foglio1!J27),"") -> 80 | C27: =IF(ROW(C27)-1<=$J$5,IF(Foglio1!K27="",-10,Foglio1!K27),"") -> 40 | D27: =IF(ROW(D27)-1<=$J$5,IF(Foglio1!L27="",-10,Foglio1!L27),"") -> -10 | E27: =IF(ROW(E27)-1<=$J$5,IF(Foglio1!M27="",-10,Foglio1!M27),"") -> -10 | F27: =IF(ROW(F27)-1<=$J$5,IF(Foglio1!N27="",-10,Foglio1!N27),"") -> -10 | G27: =IF(ROW(G27)-1<=$J$5,IF(Foglio1!O27="",-10,Foglio1!O27),"") -> -10 | H27: =IF(ROW(H27)-1<=$J$5,IF(Foglio1!P27="",-10,Foglio1!P27),"") -> -10 | I27: =IF(ROW(I27)-1<=$J$5,IF(Foglio1!Q27="",-10,Foglio1!Q27),"") -> -10 | K27: =IF(ROW(K27)-1<=$J$5,K$1+COUNTIF(A$2:A27,A27)*$J$7,"") -> 3.12 | L27: =IF(ROW(L27)-1<=$J$5,L$1+COUNTIF(B$2:B27,B27)*$J$7,"") -> 2.15 | M27: =IF(ROW(M27)-1<=$J$5,M$1+COUNTIF(C$2:C27,C27)*$J$7,"") -> 1.03 | N27: =IF(ROW(N27)-1<=$J$5,N$1+COUNTIF(D$2:D27,D27)*$J$7,"") -> 0.63 | O27: =IF(ROW(O27)-1<=$J$5,O$1+COUNTIF(E$2:E27,E27)*$J$7,"") -> -0.22 | P27: =IF(ROW(P27)-1<=$J$5,P$1+COUNTIF(F$2:F27,F27)*$J$7,"") -> -1.22 | Q27: =IF(ROW(Q27)-1<=$J$5,Q$1+COUNTIF(G$2:G27,G27)*$J$7,"") -> -2.22 | R27: =IF(ROW(R27)-1<=$J$5,R$1+COUNTIF(H$2:H27,H27)*$J$7,"") -> -3.22 | S27: =IF(ROW(S27)-1<=$J$5,S$1+COUNTIF(I$2:I27,I27)*$J$7,"") -> -4.22
A28: =IF(ROW(A28)-1<=$J$5,IF(Foglio1!I28="",-10,Foglio1!I28),"") -> 80 | B28: =IF(ROW(B28)-1<=$J$5,IF(Foglio1!J28="",-10,Foglio1!J28),"") -> 80 | C28: =IF(ROW(C28)-1<=$J$5,IF(Foglio1!K28="",-10,Foglio1!K28),"") -> -10 | D28: =IF(ROW(D28)-1<=$J$5,IF(Foglio1!L28="",-10,Foglio1!L28),"") -> -10 | E28: =IF(ROW(E28)-1<=$J$5,IF(Foglio1!M28="",-10,Foglio1!M28),"") -> -10 | F28: =IF(ROW(F28)-1<=$J$5,IF(Foglio1!N28="",-10,Foglio1!N28),"") -> -10 | G28: =IF(ROW(G28)-1<=$J$5,IF(Foglio1!O28="",-10,Foglio1!O28),"") -> -10 | H28: =IF(ROW(H28)-1<=$J$5,IF(Foglio1!P28="",-10,Foglio1!P28),"") -> -10 | I28: =IF(ROW(I28)-1<=$J$5,IF(Foglio1!Q28="",-10,Foglio1!Q28),"") -> -10 | K28: =IF(ROW(K28)-1<=$J$5,K$1+COUNTIF(A$2:A28,A28)*$J$7,"") -> 3.15 | L28: =IF(ROW(L28)-1<=$J$5,L$1+COUNTIF(B$2:B28,B28)*$J$7,"") -> 2.18 | M28: =IF(ROW(M28)-1<=$J$5,M$1+COUNTIF(C$2:C28,C28)*$J$7,"") -> 1.39 | N28: =IF(ROW(N28)-1<=$J$5,N$1+COUNTIF(D$2:D28,D28)*$J$7,"") -> 0.66 | O28: =IF(ROW(O28)-1<=$J$5,O$1+COUNTIF(E$2:E28,E28)*$J$7,"") -> -0.19 | P28: =IF(ROW(P28)-1<=$J$5,P$1+COUNTIF(F$2:F28,F28)*$J$7,"") -> -1.19 | Q28: =IF(ROW(Q28)-1<=$J$5,Q$1+COUNTIF(G$2:G28,G28)*$J$7,"") -> -2.19 | R28: =IF(ROW(R28)-1<=$J$5,R$1+COUNTIF(H$2:H28,H28)*$J$7,"") -> -3.19 | S28: =IF(ROW(S28)-1<=$J$5,S$1+COUNTIF(I$2:I28,I28)*$J$7,"") -> -4.19
A29: =IF(ROW(A29)-1<=$J$5,IF(Foglio1!I29="",-10,Foglio1!I29),"") -> -10 | B29: =IF(ROW(B29)-1<=$J$5,IF(Foglio1!J29="",-10,Foglio1!J29),"") -> -10 | C29: =IF(ROW(C29)-1<=$J$5,IF(Foglio1!K29="",-10,Foglio1!K29),"") -> -10 | D29: =IF(ROW(D29)-1<=$J$5,IF(Foglio1!L29="",-10,Foglio1!L29),"") -> -10 | E29: =IF(ROW(E29)-1<=$J$5,IF(Foglio1!M29="",-10,Foglio1!M29),"") -> -10 | F29: =IF(ROW(F29)-1<=$J$5,IF(Foglio1!N29="",-10,Foglio1!N29),"") -> -10 | G29: =IF(ROW(G29)-1<=$J$5,IF(Foglio1!O29="",-10,Foglio1!O29),"") -> -10 | H29: =IF(ROW(H29)-1<=$J$5,IF(Foglio1!P29="",-10,Foglio1!P29),"") -> -10 | I29: =IF(ROW(I29)-1<=$J$5,IF(Foglio1!Q29="",-10,Foglio1!Q29),"") -> -10 | K29: =IF(ROW(K29)-1<=$J$5,K$1+COUNTIF(A$2:A29,A29)*$J$7,"") -> 3.18 | L29: =IF(ROW(L29)-1<=$J$5,L$1+COUNTIF(B$2:B29,B29)*$J$7,"") -> 2.18 | M29: =IF(ROW(M29)-1<=$J$5,M$1+COUNTIF(C$2:C29,C29)*$J$7,"") -> 1.42 | N29: =IF(ROW(N29)-1<=$J$5,N$1+COUNTIF(D$2:D29,D29)*$J$7,"") -> 0.69 | O29: =IF(ROW(O29)-1<=$J$5,O$1+COUNTIF(E$2:E29,E29)*$J$7,"") -> -0.16 | P29: =IF(ROW(P29)-1<=$J$5,P$1+COUNTIF(F$2:F29,F29)*$J$7,"") -> -1.16 | Q29: =IF(ROW(Q29)-1<=$J$5,Q$1+COUNTIF(G$2:G29,G29)*$J$7,"") -> -2.16 | R29: =IF(ROW(R29)-1<=$J$5,R$1+COUNTIF(H$2:H29,H29)*$J$7,"") -> -3.16 | S29: =IF(ROW(S29)-1<=$J$5,S$1+COUNTIF(I$2:I29,I29)*$J$7,"") -> -4.16
A30: =IF(ROW(A30)-1<=$J$5,IF(Foglio1!I30="",-10,Foglio1!I30),"") -> 20 | B30: =IF(ROW(B30)-1<=$J$5,IF(Foglio1!J30="",-10,Foglio1!J30),"") -> 100 | C30: =IF(ROW(C30)-1<=$J$5,IF(Foglio1!K30="",-10,Foglio1!K30),"") -> -10 | D30: =IF(ROW(D30)-1<=$J$5,IF(Foglio1!L30="",-10,Foglio1!L30),"") -> -10 | E30: =IF(ROW(E30)-1<=$J$5,IF(Foglio1!M30="",-10,Foglio1!M30),"") -> -10 | F30: =IF(ROW(F30)-1<=$J$5,IF(Foglio1!N30="",-10,Foglio1!N30),"") -> -10 | G30: =IF(ROW(G30)-1<=$J$5,IF(Foglio1!O30="",-10,Foglio1!O30),"") -> -10 | H30: =IF(ROW(H30)-1<=$J$5,IF(Foglio1!P30="",-10,Foglio1!P30),"") -> -10 | I30: =IF(ROW(I30)-1<=$J$5,IF(Foglio1!Q30="",-10,Foglio1!Q30),"") -> -10 | K30: =IF(ROW(K30)-1<=$J$5,K$1+COUNTIF(A$2:A30,A30)*$J$7,"") -> 3.06 | L30: =IF(ROW(L30)-1<=$J$5,L$1+COUNTIF(B$2:B30,B30)*$J$7,"") -> 2.15 | M30: =IF(ROW(M30)-1<=$J$5,M$1+COUNTIF(C$2:C30,C30)*$J$7,"") -> 1.45 | N30: =IF(ROW(N30)-1<=$J$5,N$1+COUNTIF(D$2:D30,D30)*$J$7,"") -> 0.72 | O30: =IF(ROW(O30)-1<=$J$5,O$1+COUNTIF(E$2:E30,E30)*$J$7,"") -> -0.13 | P30: =IF(ROW(P30)-1<=$J$5,P$1+COUNTIF(F$2:F30,F30)*$J$7,"") -> -1.13 | Q30: =IF(ROW(Q30)-1<=$J$5,Q$1+COUNTIF(G$2:G30,G30)*$J$7,"") -> -2.13 | R30: =IF(ROW(R30)-1<=$J$5,R$1+COUNTIF(H$2:H30,H30)*$J$7,"") -> -3.13 | S30: =IF(ROW(S30)-1<=$J$5,S$1+COUNTIF(I$2:I30,I30)*$J$7,"") -> -4.13
A31: =IF(ROW(A31)-1<=$J$5,IF(Foglio1!I31="",-10,Foglio1!I31),"") -> -10 | B31: =IF(ROW(B31)-1<=$J$5,IF(Foglio1!J31="",-10,Foglio1!J31),"") -> -10 | C31: =IF(ROW(C31)-1<=$J$5,IF(Foglio1!K31="",-10,Foglio1!K31),"") -> -10 | D31: =IF(ROW(D31)-1<=$J$5,IF(Foglio1!L31="",-10,Foglio1!L31),"") -> -10 | E31: =IF(ROW(E31)-1<=$J$5,IF(Foglio1!M31="",-10,Foglio1!M31),"") -> -10 | F31: =IF(ROW(F31)-1<=$J$5,IF(Foglio1!N31="",-10,Foglio1!N31),"") -> -10 | G31: =IF(ROW(G31)-1<=$J$5,IF(Foglio1!O31="",-10,Foglio1!O31),"") -> -10 | H31: =IF(ROW(H31)-1<=$J$5,IF(Foglio1!P31="",-10,Foglio1!P31),"") -> -10 | I31: =IF(ROW(I31)-1<=$J$5,IF(Foglio1!Q31="",-10,Foglio1!Q31),"") -> -10 | K31: =IF(ROW(K31)-1<=$J$5,K$1+COUNTIF(A$2:A31,A31)*$J$7,"") -> 3.21 | L31: =IF(ROW(L31)-1<=$J$5,L$1+COUNTIF(B$2:B31,B31)*$J$7,"") -> 2.21 | M31: =IF(ROW(M31)-1<=$J$5,M$1+COUNTIF(C$2:C31,C31)*$J$7,"") -> 1.48 | N31: =IF(ROW(N31)-1<=$J$5,N$1+COUNTIF(D$2:D31,D31)*$J$7,"") -> 0.75 | O31: =IF(ROW(O31)-1<=$J$5,O$1+COUNTIF(E$2:E31,E31)*$J$7,"") -> -0.1 | P31: =IF(ROW(P31)-1<=$J$5,P$1+COUNTIF(F$2:F31,F31)*$J$7,"") -> -1.1 | Q31: =IF(ROW(Q31)-1<=$J$5,Q$1+COUNTIF(G$2:G31,G31)*$J$7,"") -> -2.1 | R31: =IF(ROW(R31)-1<=$J$5,R$1+COUNTIF(H$2:H31,H31)*$J$7,"") -> -3.1 | S31: =IF(ROW(S31)-1<=$J$5,S$1+COUNTIF(I$2:I31,I31)*$J$7,"") -> -4.1
A32: =IF(ROW(A32)-1<=$J$5,IF(Foglio1!I32="",-10,Foglio1!I32),"") -> 30 | B32: =IF(ROW(B32)-1<=$J$5,IF(Foglio1!J32="",-10,Foglio1!J32),"") -> 100 | C32: =IF(ROW(C32)-1<=$J$5,IF(Foglio1!K32="",-10,Foglio1!K32),"") -> 70 | D32: =IF(ROW(D32)-1<=$J$5,IF(Foglio1!L32="",-10,Foglio1!L32),"") -> -10 | E32: =IF(ROW(E32)-1<=$J$5,IF(Foglio1!M32="",-10,Foglio1!M32),"") -> -10 | F32: =IF(ROW(F32)-1<=$J$5,IF(Foglio1!N32="",-10,Foglio1!N32),"") -> -10 | G32: =IF(ROW(G32)-1<=$J$5,IF(Foglio1!O32="",-10,Foglio1!O32),"") -> -10 | H32: =IF(ROW(H32)-1<=$J$5,IF(Foglio1!P32="",-10,Foglio1!P32),"") -> -10 | I32: =IF(ROW(I32)-1<=$J$5,IF(Foglio1!Q32="",-10,Foglio1!Q32),"") -> -10 | K32: =IF(ROW(K32)-1<=$J$5,K$1+COUNTIF(A$2:A32,A32)*$J$7,"") -> 3.03 | L32: =IF(ROW(L32)-1<=$J$5,L$1+COUNTIF(B$2:B32,B32)*$J$7,"") -> 2.18 | M32: =IF(ROW(M32)-1<=$J$5,M$1+COUNTIF(C$2:C32,C32)*$J$7,"") -> 1.06 | N32: =IF(ROW(N32)-1<=$J$5,N$1+COUNTIF(D$2:D32,D32)*$J$7,"") -> 0.78 | O32: =IF(ROW(O32)-1<=$J$5,O$1+COUNTIF(E$2:E32,E32)*$J$7,"") -> -0.07 | P32: =IF(ROW(P32)-1<=$J$5,P$1+COUNTIF(F$2:F32,F32)*$J$7,"") -> -1.07 | Q32: =IF(ROW(Q32)-1<=$J$5,Q$1+COUNTIF(G$2:G32,G32)*$J$7,"") -> -2.07 | R32: =IF(ROW(R32)-1<=$J$5,R$1+COUNTIF(H$2:H32,H32)*$J$7,"") -> -3.07 | S32: =IF(ROW(S32)-1<=$J$5,S$1+COUNTIF(I$2:I32,I32)*$J$7,"") -> -4.07
A33: =IF(ROW(A33)-1<=$J$5,IF(Foglio1!I33="",-10,Foglio1!I33),"") -> 50 | B33: =IF(ROW(B33)-1<=$J$5,IF(Foglio1!J33="",-10,Foglio1!J33),"") -> 100 | C33: =IF(ROW(C33)-1<=$J$5,IF(Foglio1!K33="",-10,Foglio1!K33),"") -> -10 | D33: =IF(ROW(D33)-1<=$J$5,IF(Foglio1!L33="",-10,Foglio1!L33),"") -> -10 | E33: =IF(ROW(E33)-1<=$J$5,IF(Foglio1!M33="",-10,Foglio1!M33),"") -> -10 | F33: =IF(ROW(F33)-1<=$J$5,IF(Foglio1!N33="",-10,Foglio1!N33),"") -> -10 | G33: =IF(ROW(G33)-1<=$J$5,IF(Foglio1!O33="",-10,Foglio1!O33),"") -> -10 | H33: =IF(ROW(H33)-1<=$J$5,IF(Foglio1!P33="",-10,Foglio1!P33),"") -> -10 | I33: =IF(ROW(I33)-1<=$J$5,IF(Foglio1!Q33="",-10,Foglio1!Q33),"") -> -10 | K33: =IF(ROW(K33)-1<=$J$5,K$1+COUNTIF(A$2:A33,A33)*$J$7,"") -> 3.15 | L33: =IF(ROW(L33)-1<=$J$5,L$1+COUNTIF(B$2:B33,B33)*$J$7,"") -> 2.21 | M33: =IF(ROW(M33)-1<=$J$5,M$1+COUNTIF(C$2:C33,C33)*$J$7,"") -> 1.51 | N33: =IF(ROW(N33)-1<=$J$5,N$1+COUNTIF(D$2:D33,D33)*$J$7,"") -> 0.81 | O33: =IF(ROW(O33)-1<=$J$5,O$1+COUNTIF(E$2:E33,E33)*$J$7,"") -> -0.04 | P33: =IF(ROW(P33)-1<=$J$5,P$1+COUNTIF(F$2:F33,F33)*$J$7,"") -> -1.04 | Q33: =IF(ROW(Q33)-1<=$J$5,Q$1+COUNTIF(G$2:G33,G33)*$J$7,"") -> -2.04 | R33: =IF(ROW(R33)-1<=$J$5,R$1+COUNTIF(H$2:H33,H33)*$J$7,"") -> -3.04 | S33: =IF(ROW(S33)-1<=$J$5,S$1+COUNTIF(I$2:I33,I33)*$J$7,"") -> -4.04
A34: =IF(ROW(A34)-1<=$J$5,IF(Foglio1!I34="",-10,Foglio1!I34),"") -> 60 | B34: =IF(ROW(B34)-1<=$J$5,IF(Foglio1!J34="",-10,Foglio1!J34),"") -> 80 | C34: =IF(ROW(C34)-1<=$J$5,IF(Foglio1!K34="",-10,Foglio1!K34),"") -> 60 | D34: =IF(ROW(D34)-1<=$J$5,IF(Foglio1!L34="",-10,Foglio1!L34),"") -> -10 | E34: =IF(ROW(E34)-1<=$J$5,IF(Foglio1!M34="",-10,Foglio1!M34),"") -> -10 | F34: =IF(ROW(F34)-1<=$J$5,IF(Foglio1!N34="",-10,Foglio1!N34),"") -> -10 | G34: =IF(ROW(G34)-1<=$J$5,IF(Foglio1!O34="",-10,Foglio1!O34),"") -> -10 | H34: =IF(ROW(H34)-1<=$J$5,IF(Foglio1!P34="",-10,Foglio1!P34),"") -> -10 | I34: =IF(ROW(I34)-1<=$J$5,IF(Foglio1!Q34="",-10,Foglio1!Q34),"") -> -10 | K34: =IF(ROW(K34)-1<=$J$5,K$1+COUNTIF(A$2:A34,A34)*$J$7,"") -> 3.06 | L34: =IF(ROW(L34)-1<=$J$5,L$1+COUNTIF(B$2:B34,B34)*$J$7,"") -> 2.21 | M34: =IF(ROW(M34)-1<=$J$5,M$1+COUNTIF(C$2:C34,C34)*$J$7,"") -> 1.09 | N34: =IF(ROW(N34)-1<=$J$5,N$1+COUNTIF(D$2:D34,D34)*$J$7,"") -> 0.84 | O34: =IF(ROW(O34)-1<=$J$5,O$1+COUNTIF(E$2:E34,E34)*$J$7,"") -> -0.01 | P34: =IF(ROW(P34)-1<=$J$5,P$1+COUNTIF(F$2:F34,F34)*$J$7,"") -> -1.01 | Q34: =IF(ROW(Q34)-1<=$J$5,Q$1+COUNTIF(G$2:G34,G34)*$J$7,"") -> -2.01 | R34: =IF(ROW(R34)-1<=$J$5,R$1+COUNTIF(H$2:H34,H34)*$J$7,"") -> -3.01 | S34: =IF(ROW(S34)-1<=$J$5,S$1+COUNTIF(I$2:I34,I34)*$J$7,"") -> -4.01
A35: =IF(ROW(A35)-1<=$J$5,IF(Foglio1!I35="",-10,Foglio1!I35),"") -> 70 | B35: =IF(ROW(B35)-1<=$J$5,IF(Foglio1!J35="",-10,Foglio1!J35),"") -> 70 | C35: =IF(ROW(C35)-1<=$J$5,IF(Foglio1!K35="",-10,Foglio1!K35),"") -> -10 | D35: =IF(ROW(D35)-1<=$J$5,IF(Foglio1!L35="",-10,Foglio1!L35),"") -> -10 | E35: =IF(ROW(E35)-1<=$J$5,IF(Foglio1!M35="",-10,Foglio1!M35),"") -> -10 | F35: =IF(ROW(F35)-1<=$J$5,IF(Foglio1!N35="",-10,Foglio1!N35),"") -> -10 | G35: =IF(ROW(G35)-1<=$J$5,IF(Foglio1!O35="",-10,Foglio1!O35),"") -> -10 | H35: =IF(ROW(H35)-1<=$J$5,IF(Foglio1!P35="",-10,Foglio1!P35),"") -> -10 | I35: =IF(ROW(I35)-1<=$J$5,IF(Foglio1!Q35="",-10,Foglio1!Q35),"") -> -10 | K35: =IF(ROW(K35)-1<=$J$5,K$1+COUNTIF(A$2:A35,A35)*$J$7,"") -> 3.12 | L35: =IF(ROW(L35)-1<=$J$5,L$1+COUNTIF(B$2:B35,B35)*$J$7,"") -> 2.09 | M35: =IF(ROW(M35)-1<=$J$5,M$1+COUNTIF(C$2:C35,C35)*$J$7,"") -> 1.54 | N35: =IF(ROW(N35)-1<=$J$5,N$1+COUNTIF(D$2:D35,D35)*$J$7,"") -> 0.87 | O35: =IF(ROW(O35)-1<=$J$5,O$1+COUNTIF(E$2:E35,E35)*$J$7,"") -> 0.02 | P35: =IF(ROW(P35)-1<=$J$5,P$1+COUNTIF(F$2:F35,F35)*$J$7,"") -> -0.98 | Q35: =IF(ROW(Q35)-1<=$J$5,Q$1+COUNTIF(G$2:G35,G35)*$J$7,"") -> -1.98 | R35: =IF(ROW(R35)-1<=$J$5,R$1+COUNTIF(H$2:H35,H35)*$J$7,"") -> -2.98 | S35: =IF(ROW(S35)-1<=$J$5,S$1+COUNTIF(I$2:I35,I35)*$J$7,"") -> -3.98
A36: =IF(ROW(A36)-1<=$J$5,IF(Foglio1!I36="",-10,Foglio1!I36),"") -> 75 | B36: =IF(ROW(B36)-1<=$J$5,IF(Foglio1!J36="",-10,Foglio1!J36),"") -> 65 | C36: =IF(ROW(C36)-1<=$J$5,IF(Foglio1!K36="",-10,Foglio1!K36),"") -> -10 | D36: =IF(ROW(D36)-1<=$J$5,IF(Foglio1!L36="",-10,Foglio1!L36),"") -> -10 | E36: =IF(ROW(E36)-1<=$J$5,IF(Foglio1!M36="",-10,Foglio1!M36),"") -> -10 | F36: =IF(ROW(F36)-1<=$J$5,IF(Foglio1!N36="",-10,Foglio1!N36),"") -> -10 | G36: =IF(ROW(G36)-1<=$J$5,IF(Foglio1!O36="",-10,Foglio1!O36),"") -> -10 | H36: =IF(ROW(H36)-1<=$J$5,IF(Foglio1!P36="",-10,Foglio1!P36),"") -> -10 | I36: =IF(ROW(I36)-1<=$J$5,IF(Foglio1!Q36="",-10,Foglio1!Q36),"") -> -10 | K36: =IF(ROW(K36)-1<=$J$5,K$1+COUNTIF(A$2:A36,A36)*$J$7,"") -> 3.03 | L36: =IF(ROW(L36)-1<=$J$5,L$1+COUNTIF(B$2:B36,B36)*$J$7,"") -> 2.03 | M36: =IF(ROW(M36)-1<=$J$5,M$1+COUNTIF(C$2:C36,C36)*$J$7,"") -> 1.57 | N36: =IF(ROW(N36)-1<=$J$5,N$1+COUNTIF(D$2:D36,D36)*$J$7,"") -> 0.9 | O36: =IF(ROW(O36)-1<=$J$5,O$1+COUNTIF(E$2:E36,E36)*$J$7,"") -> 0.05 | P36: =IF(ROW(P36)-1<=$J$5,P$1+COUNTIF(F$2:F36,F36)*$J$7,"") -> -0.95 | Q36: =IF(ROW(Q36)-1<=$J$5,Q$1+COUNTIF(G$2:G36,G36)*$J$7,"") -> -1.95 | R36: =IF(ROW(R36)-1<=$J$5,R$1+COUNTIF(H$2:H36,H36)*$J$7,"") -> -2.95 | S36: =IF(ROW(S36)-1<=$J$5,S$1+COUNTIF(I$2:I36,I36)*$J$7,"") -> -3.95
A37: =IF(ROW(A37)-1<=$J$5,IF(Foglio1!I37="",-10,Foglio1!I37),"") -> 80 | B37: =IF(ROW(B37)-1<=$J$5,IF(Foglio1!J37="",-10,Foglio1!J37),"") -> 90 | C37: =IF(ROW(C37)-1<=$J$5,IF(Foglio1!K37="",-10,Foglio1!K37),"") -> 70 | D37: =IF(ROW(D37)-1<=$J$5,IF(Foglio1!L37="",-10,Foglio1!L37),"") -> -10 | E37: =IF(ROW(E37)-1<=$J$5,IF(Foglio1!M37="",-10,Foglio1!M37),"") -> -10 | F37: =IF(ROW(F37)-1<=$J$5,IF(Foglio1!N37="",-10,Foglio1!N37),"") -> -10 | G37: =IF(ROW(G37)-1<=$J$5,IF(Foglio1!O37="",-10,Foglio1!O37),"") -> -10 | H37: =IF(ROW(H37)-1<=$J$5,IF(Foglio1!P37="",-10,Foglio1!P37),"") -> -10 | I37: =IF(ROW(I37)-1<=$J$5,IF(Foglio1!Q37="",-10,Foglio1!Q37),"") -> -10 | K37: =IF(ROW(K37)-1<=$J$5,K$1+COUNTIF(A$2:A37,A37)*$J$7,"") -> 3.18 | L37: =IF(ROW(L37)-1<=$J$5,L$1+COUNTIF(B$2:B37,B37)*$J$7,"") -> 2.15 | M37: =IF(ROW(M37)-1<=$J$5,M$1+COUNTIF(C$2:C37,C37)*$J$7,"") -> 1.09 | N37: =IF(ROW(N37)-1<=$J$5,N$1+COUNTIF(D$2:D37,D37)*$J$7,"") -> 0.93 | O37: =IF(ROW(O37)-1<=$J$5,O$1+COUNTIF(E$2:E37,E37)*$J$7,"") -> 0.08 | P37: =IF(ROW(P37)-1<=$J$5,P$1+COUNTIF(F$2:F37,F37)*$J$7,"") -> -0.92 | Q37: =IF(ROW(Q37)-1<=$J$5,Q$1+COUNTIF(G$2:G37,G37)*$J$7,"") -> -1.92 | R37: =IF(ROW(R37)-1<=$J$5,R$1+COUNTIF(H$2:H37,H37)*$J$7,"") -> -2.92 | S37: =IF(ROW(S37)-1<=$J$5,S$1+COUNTIF(I$2:I37,I37)*$J$7,"") -> -3.92
A38: =IF(ROW(A38)-1<=$J$5,IF(Foglio1!I38="",-10,Foglio1!I38),"") -> 80 | B38: =IF(ROW(B38)-1<=$J$5,IF(Foglio1!J38="",-10,Foglio1!J38),"") -> 100 | C38: =IF(ROW(C38)-1<=$J$5,IF(Foglio1!K38="",-10,Foglio1!K38),"") -> 50 | D38: =IF(ROW(D38)-1<=$J$5,IF(Foglio1!L38="",-10,Foglio1!L38),"") -> -10 | E38: =IF(ROW(E38)-1<=$J$5,IF(Foglio1!M38="",-10,Foglio1!M38),"") -> -10 | F38: =IF(ROW(F38)-1<=$J$5,IF(Foglio1!N38="",-10,Foglio1!N38),"") -> -10 | G38: =IF(ROW(G38)-1<=$J$5,IF(Foglio1!O38="",-10,Foglio1!O38),"") -> -10 | H38: =IF(ROW(H38)-1<=$J$5,IF(Foglio1!P38="",-10,Foglio1!P38),"") -> -10 | I38: =IF(ROW(I38)-1<=$J$5,IF(Foglio1!Q38="",-10,Foglio1!Q38),"") -> -10 | K38: =IF(ROW(K38)-1<=$J$5,K$1+COUNTIF(A$2:A38,A38)*$J$7,"") -> 3.21 | L38: =IF(ROW(L38)-1<=$J$5,L$1+COUNTIF(B$2:B38,B38)*$J$7,"") -> 2.24 | M38: =IF(ROW(M38)-1<=$J$5,M$1+COUNTIF(C$2:C38,C38)*$J$7,"") -> 1.03 | N38: =IF(ROW(N38)-1<=$J$5,N$1+COUNTIF(D$2:D38,D38)*$J$7,"") -> 0.96 | O38: =IF(ROW(O38)-1<=$J$5,O$1+COUNTIF(E$2:E38,E38)*$J$7,"") -> 0.11 | P38: =IF(ROW(P38)-1<=$J$5,P$1+COUNTIF(F$2:F38,F38)*$J$7,"") -> -0.89 | Q38: =IF(ROW(Q38)-1<=$J$5,Q$1+COUNTIF(G$2:G38,G38)*$J$7,"") -> -1.89 | R38: =IF(ROW(R38)-1<=$J$5,R$1+COUNTIF(H$2:H38,H38)*$J$7,"") -> -2.89 | S38: =IF(ROW(S38)-1<=$J$5,S$1+COUNTIF(I$2:I38,I38)*$J$7,"") -> -3.89
A39: =IF(ROW(A39)-1<=$J$5,IF(Foglio1!I39="",-10,Foglio1!I39),"") -> 10 | B39: =IF(ROW(B39)-1<=$J$5,IF(Foglio1!J39="",-10,Foglio1!J39),"") -> 80 | C39: =IF(ROW(C39)-1<=$J$5,IF(Foglio1!K39="",-10,Foglio1!K39),"") -> -10 | D39: =IF(ROW(D39)-1<=$J$5,IF(Foglio1!L39="",-10,Foglio1!L39),"") -> -10 | E39: =IF(ROW(E39)-1<=$J$5,IF(Foglio1!M39="",-10,Foglio1!M39),"") -> -10 | F39: =IF(ROW(F39)-1<=$J$5,IF(Foglio1!N39="",-10,Foglio1!N39),"") -> -10 | G39: =IF(ROW(G39)-1<=$J$5,IF(Foglio1!O39="",-10,Foglio1!O39),"") -> -10 | H39: =IF(ROW(H39)-1<=$J$5,IF(Foglio1!P39="",-10,Foglio1!P39),"") -> -10 | I39: =IF(ROW(I39)-1<=$J$5,IF(Foglio1!Q39="",-10,Foglio1!Q39),"") -> -10 | K39: =IF(ROW(K39)-1<=$J$5,K$1+COUNTIF(A$2:A39,A39)*$J$7,"") -> 3.03 | L39: =IF(ROW(L39)-1<=$J$5,L$1+COUNTIF(B$2:B39,B39)*$J$7,"") -> 2.24 | M39: =IF(ROW(M39)-1<=$J$5,M$1+COUNTIF(C$2:C39,C39)*$J$7,"") -> 1.6 | N39: =IF(ROW(N39)-1<=$J$5,N$1+COUNTIF(D$2:D39,D39)*$J$7,"") -> 0.99 | O39: =IF(ROW(O39)-1<=$J$5,O$1+COUNTIF(E$2:E39,E39)*$J$7,"") -> 0.14 | P39: =IF(ROW(P39)-1<=$J$5,P$1+COUNTIF(F$2:F39,F39)*$J$7,"") -> -0.86 | Q39: =IF(ROW(Q39)-1<=$J$5,Q$1+COUNTIF(G$2:G39,G39)*$J$7,"") -> -1.86 | R39: =IF(ROW(R39)-1<=$J$5,R$1+COUNTIF(H$2:H39,H39)*$J$7,"") -> -2.86 | S39: =IF(ROW(S39)-1<=$J$5,S$1+COUNTIF(I$2:I39,I39)*$J$7,"") -> -3.86
A40: =IF(ROW(A40)-1<=$J$5,IF(Foglio1!I40="",-10,Foglio1!I40),"") -> -10 | B40: =IF(ROW(B40)-1<=$J$5,IF(Foglio1!J40="",-10,Foglio1!J40),"") -> -10 | C40: =IF(ROW(C40)-1<=$J$5,IF(Foglio1!K40="",-10,Foglio1!K40),"") -> -10 | D40: =IF(ROW(D40)-1<=$J$5,IF(Foglio1!L40="",-10,Foglio1!L40),"") -> -10 | E40: =IF(ROW(E40)-1<=$J$5,IF(Foglio1!M40="",-10,Foglio1!M40),"") -> -10 | F40: =IF(ROW(F40)-1<=$J$5,IF(Foglio1!N40="",-10,Foglio1!N40),"") -> -10 | G40: =IF(ROW(G40)-1<=$J$5,IF(Foglio1!O40="",-10,Foglio1!O40),"") -> -10 | H40: =IF(ROW(H40)-1<=$J$5,IF(Foglio1!P40="",-10,Foglio1!P40),"") -> -10 | I40: =IF(ROW(I40)-1<=$J$5,IF(Foglio1!Q40="",-10,Foglio1!Q40),"") -> -10 | K40: =IF(ROW(K40)-1<=$J$5,K$1+COUNTIF(A$2:A40,A40)*$J$7,"") -> 3.24 | L40: =IF(ROW(L40)-1<=$J$5,L$1+COUNTIF(B$2:B40,B40)*$J$7,"") -> 2.24 | M40: =IF(ROW(M40)-1<=$J$5,M$1+COUNTIF(C$2:C40,C40)*$J$7,"") -> 1.63 | N40: =IF(ROW(N40)-1<=$J$5,N$1+COUNTIF(D$2:D40,D40)*$J$7,"") -> 1.02 | O40: =IF(ROW(O40)-1<=$J$5,O$1+COUNTIF(E$2:E40,E40)*$J$7,"") -> 0.17 | P40: =IF(ROW(P40)-1<=$J$5,P$1+COUNTIF(F$2:F40,F40)*$J$7,"") -> -0.83 | Q40: =IF(ROW(Q40)-1<=$J$5,Q$1+COUNTIF(G$2:G40,G40)*$J$7,"") -> -1.83 | R40: =IF(ROW(R40)-1<=$J$5,R$1+COUNTIF(H$2:H40,H40)*$J$7,"") -> -2.83 | S40: =IF(ROW(S40)-1<=$J$5,S$1+COUNTIF(I$2:I40,I40)*$J$7,"") -> -3.83
A41: =IF(ROW(A41)-1<=$J$5,IF(Foglio1!I41="",-10,Foglio1!I41),"") -> 80 | B41: =IF(ROW(B41)-1<=$J$5,IF(Foglio1!J41="",-10,Foglio1!J41),"") -> 80 | C41: =IF(ROW(C41)-1<=$J$5,IF(Foglio1!K41="",-10,Foglio1!K41),"") -> 80 | D41: =IF(ROW(D41)-1<=$J$5,IF(Foglio1!L41="",-10,Foglio1!L41),"") -> -10 | E41: =IF(ROW(E41)-1<=$J$5,IF(Foglio1!M41="",-10,Foglio1!M41),"") -> -10 | F41: =IF(ROW(F41)-1<=$J$5,IF(Foglio1!N41="",-10,Foglio1!N41),"") -> -10 | G41: =IF(ROW(G41)-1<=$J$5,IF(Foglio1!O41="",-10,Foglio1!O41),"") -> -10 | H41: =IF(ROW(H41)-1<=$J$5,IF(Foglio1!P41="",-10,Foglio1!P41),"") -> -10 | I41: =IF(ROW(I41)-1<=$J$5,IF(Foglio1!Q41="",-10,Foglio1!Q41),"") -> -10 | K41: =IF(ROW(K41)-1<=$J$5,K$1+COUNTIF(A$2:A41,A41)*$J$7,"") -> 3.24 | L41: =IF(ROW(L41)-1<=$J$5,L$1+COUNTIF(B$2:B41,B41)*$J$7,"") -> 2.27 | M41: =IF(ROW(M41)-1<=$J$5,M$1+COUNTIF(C$2:C41,C41)*$J$7,"") -> 1.06 | N41: =IF(ROW(N41)-1<=$J$5,N$1+COUNTIF(D$2:D41,D41)*$J$7,"") -> 1.05 | O41: =IF(ROW(O41)-1<=$J$5,O$1+COUNTIF(E$2:E41,E41)*$J$7,"") -> 0.2 | P41: =IF(ROW(P41)-1<=$J$5,P$1+COUNTIF(F$2:F41,F41)*$J$7,"") -> -0.8 | Q41: =IF(ROW(Q41)-1<=$J$5,Q$1+COUNTIF(G$2:G41,G41)*$J$7,"") -> -1.8 | R41: =IF(ROW(R41)-1<=$J$5,R$1+COUNTIF(H$2:H41,H41)*$J$7,"") -> -2.8 | S41: =IF(ROW(S41)-1<=$J$5,S$1+COUNTIF(I$2:I41,I41)*$J$7,"") -> -3.8
A42: =IF(ROW(A42)-1<=$J$5,IF(Foglio1!I42="",-10,Foglio1!I42),"") -> -10 | B42: =IF(ROW(B42)-1<=$J$5,IF(Foglio1!J42="",-10,Foglio1!J42),"") -> -10 | C42: =IF(ROW(C42)-1<=$J$5,IF(Foglio1!K42="",-10,Foglio1!K42),"") -> -10 | D42: =IF(ROW(D42)-1<=$J$5,IF(Foglio1!L42="",-10,Foglio1!L42),"") -> -10 | E42: =IF(ROW(E42)-1<=$J$5,IF(Foglio1!M42="",-10,Foglio1!M42),"") -> -10 | F42: =IF(ROW(F42)-1<=$J$5,IF(Foglio1!N42="",-10,Foglio1!N42),"") -> -10 | G42: =IF(ROW(G42)-1<=$J$5,IF(Foglio1!O42="",-10,Foglio1!O42),"") -> -10 | H42: =IF(ROW(H42)-1<=$J$5,IF(Foglio1!P42="",-10,Foglio1!P42),"") -> -10 | I42: =IF(ROW(I42)-1<=$J$5,IF(Foglio1!Q42="",-10,Foglio1!Q42),"") -> -10 | K42: =IF(ROW(K42)-1<=$J$5,K$1+COUNTIF(A$2:A42,A42)*$J$7,"") -> 3.27 | L42: =IF(ROW(L42)-1<=$J$5,L$1+COUNTIF(B$2:B42,B42)*$J$7,"") -> 2.27 | M42: =IF(ROW(M42)-1<=$J$5,M$1+COUNTIF(C$2:C42,C42)*$J$7,"") -> 1.66 | N42: =IF(ROW(N42)-1<=$J$5,N$1+COUNTIF(D$2:D42,D42)*$J$7,"") -> 1.08 | O42: =IF(ROW(O42)-1<=$J$5,O$1+COUNTIF(E$2:E42,E42)*$J$7,"") -> 0.23 | P42: =IF(ROW(P42)-1<=$J$5,P$1+COUNTIF(F$2:F42,F42)*$J$7,"") -> -0.77 | Q42: =IF(ROW(Q42)-1<=$J$5,Q$1+COUNTIF(G$2:G42,G42)*$J$7,"") -> -1.77 | R42: =IF(ROW(R42)-1<=$J$5,R$1+COUNTIF(H$2:H42,H42)*$J$7,"") -> -2.77 | S42: =IF(ROW(S42)-1<=$J$5,S$1+COUNTIF(I$2:I42,I42)*$J$7,"") -> -3.77
A43: =IF(ROW(A43)-1<=$J$5,IF(Foglio1!I43="",-10,Foglio1!I43),"") -> 100 | B43: =IF(ROW(B43)-1<=$J$5,IF(Foglio1!J43="",-10,Foglio1!J43),"") -> 100 | C43: =IF(ROW(C43)-1<=$J$5,IF(Foglio1!K43="",-10,Foglio1!K43),"") -> -10 | D43: =IF(ROW(D43)-1<=$J$5,IF(Foglio1!L43="",-10,Foglio1!L43),"") -> -10 | E43: =IF(ROW(E43)-1<=$J$5,IF(Foglio1!M43="",-10,Foglio1!M43),"") -> -10 | F43: =IF(ROW(F43)-1<=$J$5,IF(Foglio1!N43="",-10,Foglio1!N43),"") -> -10 | G43: =IF(ROW(G43)-1<=$J$5,IF(Foglio1!O43="",-10,Foglio1!O43),"") -> -10 | H43: =IF(ROW(H43)-1<=$J$5,IF(Foglio1!P43="",-10,Foglio1!P43),"") -> -10 | I43: =IF(ROW(I43)-1<=$J$5,IF(Foglio1!Q43="",-10,Foglio1!Q43),"") -> -10 | K43: =IF(ROW(K43)-1<=$J$5,K$1+COUNTIF(A$2:A43,A43)*$J$7,"") -> 3.15 | L43: =IF(ROW(L43)-1<=$J$5,L$1+COUNTIF(B$2:B43,B43)*$J$7,"") -> 2.27 | M43: =IF(ROW(M43)-1<=$J$5,M$1+COUNTIF(C$2:C43,C43)*$J$7,"") -> 1.69 | N43: =IF(ROW(N43)-1<=$J$5,N$1+COUNTIF(D$2:D43,D43)*$J$7,"") -> 1.11 | O43: =IF(ROW(O43)-1<=$J$5,O$1+COUNTIF(E$2:E43,E43)*$J$7,"") -> 0.26 | P43: =IF(ROW(P43)-1<=$J$5,P$1+COUNTIF(F$2:F43,F43)*$J$7,"") -> -0.74 | Q43: =IF(ROW(Q43)-1<=$J$5,Q$1+COUNTIF(G$2:G43,G43)*$J$7,"") -> -1.74 | R43: =IF(ROW(R43)-1<=$J$5,R$1+COUNTIF(H$2:H43,H43)*$J$7,"") -> -2.74 | S43: =IF(ROW(S43)-1<=$J$5,S$1+COUNTIF(I$2:I43,I43)*$J$7,"") -> -3.74
A44: =IF(ROW(A44)-1<=$J$5,IF(Foglio1!I44="",-10,Foglio1!I44),"") -> 75 | B44: =IF(ROW(B44)-1<=$J$5,IF(Foglio1!J44="",-10,Foglio1!J44),"") -> 75 | C44: =IF(ROW(C44)-1<=$J$5,IF(Foglio1!K44="",-10,Foglio1!K44),"") -> -10 | D44: =IF(ROW(D44)-1<=$J$5,IF(Foglio1!L44="",-10,Foglio1!L44),"") -> -10 | E44: =IF(ROW(E44)-1<=$J$5,IF(Foglio1!M44="",-10,Foglio1!M44),"") -> -10 | F44: =IF(ROW(F44)-1<=$J$5,IF(Foglio1!N44="",-10,Foglio1!N44),"") -> -10 | G44: =IF(ROW(G44)-1<=$J$5,IF(Foglio1!O44="",-10,Foglio1!O44),"") -> -10 | H44: =IF(ROW(H44)-1<=$J$5,IF(Foglio1!P44="",-10,Foglio1!P44),"") -> -10 | I44: =IF(ROW(I44)-1<=$J$5,IF(Foglio1!Q44="",-10,Foglio1!Q44),"") -> -10 | K44: =IF(ROW(K44)-1<=$J$5,K$1+COUNTIF(A$2:A44,A44)*$J$7,"") -> 3.06 | L44: =IF(ROW(L44)-1<=$J$5,L$1+COUNTIF(B$2:B44,B44)*$J$7,"") -> 2.06 | M44: =IF(ROW(M44)-1<=$J$5,M$1+COUNTIF(C$2:C44,C44)*$J$7,"") -> 1.72 | N44: =IF(ROW(N44)-1<=$J$5,N$1+COUNTIF(D$2:D44,D44)*$J$7,"") -> 1.14 | O44: =IF(ROW(O44)-1<=$J$5,O$1+COUNTIF(E$2:E44,E44)*$J$7,"") -> 0.29 | P44: =IF(ROW(P44)-1<=$J$5,P$1+COUNTIF(F$2:F44,F44)*$J$7,"") -> -0.71 | Q44: =IF(ROW(Q44)-1<=$J$5,Q$1+COUNTIF(G$2:G44,G44)*$J$7,"") -> -1.71 | R44: =IF(ROW(R44)-1<=$J$5,R$1+COUNTIF(H$2:H44,H44)*$J$7,"") -> -2.71 | S44: =IF(ROW(S44)-1<=$J$5,S$1+COUNTIF(I$2:I44,I44)*$J$7,"") -> -3.71
A45: =IF(ROW(A45)-1<=$J$5,IF(Foglio1!I45="",-10,Foglio1!I45),"") -> 80 | B45: =IF(ROW(B45)-1<=$J$5,IF(Foglio1!J45="",-10,Foglio1!J45),"") -> 100 | C45: =IF(ROW(C45)-1<=$J$5,IF(Foglio1!K45="",-10,Foglio1!K45),"") -> -10 | D45: =IF(ROW(D45)-1<=$J$5,IF(Foglio1!L45="",-10,Foglio1!L45),"") -> -10 | E45: =IF(ROW(E45)-1<=$J$5,IF(Foglio1!M45="",-10,Foglio1!M45),"") -> -10 | F45: =IF(ROW(F45)-1<=$J$5,IF(Foglio1!N45="",-10,Foglio1!N45),"") -> -10 | G45: =IF(ROW(G45)-1<=$J$5,IF(Foglio1!O45="",-10,Foglio1!O45),"") -> -10 | H45: =IF(ROW(H45)-1<=$J$5,IF(Foglio1!P45="",-10,Foglio1!P45),"") -> -10 | I45: =IF(ROW(I45)-1<=$J$5,IF(Foglio1!Q45="",-10,Foglio1!Q45),"") -> -10 | K45: =IF(ROW(K45)-1<=$J$5,K$1+COUNTIF(A$2:A45,A45)*$J$7,"") -> 3.27 | L45: =IF(ROW(L45)-1<=$J$5,L$1+COUNTIF(B$2:B45,B45)*$J$7,"") -> 2.3 | M45: =IF(ROW(M45)-1<=$J$5,M$1+COUNTIF(C$2:C45,C45)*$J$7,"") -> 1.75 | N45: =IF(ROW(N45)-1<=$J$5,N$1+COUNTIF(D$2:D45,D45)*$J$7,"") -> 1.17 | O45: =IF(ROW(O45)-1<=$J$5,O$1+COUNTIF(E$2:E45,E45)*$J$7,"") -> 0.32 | P45: =IF(ROW(P45)-1<=$J$5,P$1+COUNTIF(F$2:F45,F45)*$J$7,"") -> -0.68 | Q45: =IF(ROW(Q45)-1<=$J$5,Q$1+COUNTIF(G$2:G45,G45)*$J$7,"") -> -1.68 | R45: =IF(ROW(R45)-1<=$J$5,R$1+COUNTIF(H$2:H45,H45)*$J$7,"") -> -2.68 | S45: =IF(ROW(S45)-1<=$J$5,S$1+COUNTIF(I$2:I45,I45)*$J$7,"") -> -3.68
A46: =IF(ROW(A46)-1<=$J$5,IF(Foglio1!I46="",-10,Foglio1!I46),"") -> 90 | B46: =IF(ROW(B46)-1<=$J$5,IF(Foglio1!J46="",-10,Foglio1!J46),"") -> -10 | C46: =IF(ROW(C46)-1<=$J$5,IF(Foglio1!K46="",-10,Foglio1!K46),"") -> 90 | D46: =IF(ROW(D46)-1<=$J$5,IF(Foglio1!L46="",-10,Foglio1!L46),"") -> -10 | E46: =IF(ROW(E46)-1<=$J$5,IF(Foglio1!M46="",-10,Foglio1!M46),"") -> -10 | F46: =IF(ROW(F46)-1<=$J$5,IF(Foglio1!N46="",-10,Foglio1!N46),"") -> -10 | G46: =IF(ROW(G46)-1<=$J$5,IF(Foglio1!O46="",-10,Foglio1!O46),"") -> -10 | H46: =IF(ROW(H46)-1<=$J$5,IF(Foglio1!P46="",-10,Foglio1!P46),"") -> -10 | I46: =IF(ROW(I46)-1<=$J$5,IF(Foglio1!Q46="",-10,Foglio1!Q46),"") -> -10 | K46: =IF(ROW(K46)-1<=$J$5,K$1+COUNTIF(A$2:A46,A46)*$J$7,"") -> 3.09 | L46: =IF(ROW(L46)-1<=$J$5,L$1+COUNTIF(B$2:B46,B46)*$J$7,"") -> 2.3 | M46: =IF(ROW(M46)-1<=$J$5,M$1+COUNTIF(C$2:C46,C46)*$J$7,"") -> 1.03 | N46: =IF(ROW(N46)-1<=$J$5,N$1+COUNTIF(D$2:D46,D46)*$J$7,"") -> 1.2 | O46: =IF(ROW(O46)-1<=$J$5,O$1+COUNTIF(E$2:E46,E46)*$J$7,"") -> 0.35 | P46: =IF(ROW(P46)-1<=$J$5,P$1+COUNTIF(F$2:F46,F46)*$J$7,"") -> -0.65 | Q46: =IF(ROW(Q46)-1<=$J$5,Q$1+COUNTIF(G$2:G46,G46)*$J$7,"") -> -1.65 | R46: =IF(ROW(R46)-1<=$J$5,R$1+COUNTIF(H$2:H46,H46)*$J$7,"") -> -2.65 | S46: =IF(ROW(S46)-1<=$J$5,S$1+COUNTIF(I$2:I46,I46)*$J$7,"") -> -3.65
A47: =IF(ROW(A47)-1<=$J$5,IF(Foglio1!I47="",-10,Foglio1!I47),"") -> -10 | B47: =IF(ROW(B47)-1<=$J$5,IF(Foglio1!J47="",-10,Foglio1!J47),"") -> -10 | C47: =IF(ROW(C47)-1<=$J$5,IF(Foglio1!K47="",-10,Foglio1!K47),"") -> -10 | D47: =IF(ROW(D47)-1<=$J$5,IF(Foglio1!L47="",-10,Foglio1!L47),"") -> -10 | E47: =IF(ROW(E47)-1<=$J$5,IF(Foglio1!M47="",-10,Foglio1!M47),"") -> -10 | F47: =IF(ROW(F47)-1<=$J$5,IF(Foglio1!N47="",-10,Foglio1!N47),"") -> -10 | G47: =IF(ROW(G47)-1<=$J$5,IF(Foglio1!O47="",-10,Foglio1!O47),"") -> -10 | H47: =IF(ROW(H47)-1<=$J$5,IF(Foglio1!P47="",-10,Foglio1!P47),"") -> -10 | I47: =IF(ROW(I47)-1<=$J$5,IF(Foglio1!Q47="",-10,Foglio1!Q47),"") -> -10 | K47: =IF(ROW(K47)-1<=$J$5,K$1+COUNTIF(A$2:A47,A47)*$J$7,"") -> 3.3 | L47: =IF(ROW(L47)-1<=$J$5,L$1+COUNTIF(B$2:B47,B47)*$J$7,"") -> 2.33 | M47: =IF(ROW(M47)-1<=$J$5,M$1+COUNTIF(C$2:C47,C47)*$J$7,"") -> 1.78 | N47: =IF(ROW(N47)-1<=$J$5,N$1+COUNTIF(D$2:D47,D47)*$J$7,"") -> 1.23 | O47: =IF(ROW(O47)-1<=$J$5,O$1+COUNTIF(E$2:E47,E47)*$J$7,"") -> 0.38 | P47: =IF(ROW(P47)-1<=$J$5,P$1+COUNTIF(F$2:F47,F47)*$J$7,"") -> -0.62 | Q47: =IF(ROW(Q47)-1<=$J$5,Q$1+COUNTIF(G$2:G47,G47)*$J$7,"") -> -1.62 | R47: =IF(ROW(R47)-1<=$J$5,R$1+COUNTIF(H$2:H47,H47)*$J$7,"") -> -2.62 | S47: =IF(ROW(S47)-1<=$J$5,S$1+COUNTIF(I$2:I47,I47)*$J$7,"") -> -3.62
A48: =IF(ROW(A48)-1<=$J$5,IF(Foglio1!I48="",-10,Foglio1!I48),"") -> 75 | B48: =IF(ROW(B48)-1<=$J$5,IF(Foglio1!J48="",-10,Foglio1!J48),"") -> 100 | C48: =IF(ROW(C48)-1<=$J$5,IF(Foglio1!K48="",-10,Foglio1!K48),"") -> -10 | D48: =IF(ROW(D48)-1<=$J$5,IF(Foglio1!L48="",-10,Foglio1!L48),"") -> -10 | E48: =IF(ROW(E48)-1<=$J$5,IF(Foglio1!M48="",-10,Foglio1!M48),"") -> -10 | F48: =IF(ROW(F48)-1<=$J$5,IF(Foglio1!N48="",-10,Foglio1!N48),"") -> -10 | G48: =IF(ROW(G48)-1<=$J$5,IF(Foglio1!O48="",-10,Foglio1!O48),"") -> -10 | H48: =IF(ROW(H48)-1<=$J$5,IF(Foglio1!P48="",-10,Foglio1!P48),"") -> -10 | I48: =IF(ROW(I48)-1<=$J$5,IF(Foglio1!Q48="",-10,Foglio1!Q48),"") -> -10 | K48: =IF(ROW(K48)-1<=$J$5,K$1+COUNTIF(A$2:A48,A48)*$J$7,"") -> 3.09 | L48: =IF(ROW(L48)-1<=$J$5,L$1+COUNTIF(B$2:B48,B48)*$J$7,"") -> 2.33 | M48: =IF(ROW(M48)-1<=$J$5,M$1+COUNTIF(C$2:C48,C48)*$J$7,"") -> 1.81 | N48: =IF(ROW(N48)-1<=$J$5,N$1+COUNTIF(D$2:D48,D48)*$J$7,"") -> 1.26 | O48: =IF(ROW(O48)-1<=$J$5,O$1+COUNTIF(E$2:E48,E48)*$J$7,"") -> 0.41 | P48: =IF(ROW(P48)-1<=$J$5,P$1+COUNTIF(F$2:F48,F48)*$J$7,"") -> -0.59 | Q48: =IF(ROW(Q48)-1<=$J$5,Q$1+COUNTIF(G$2:G48,G48)*$J$7,"") -> -1.59 | R48: =IF(ROW(R48)-1<=$J$5,R$1+COUNTIF(H$2:H48,H48)*$J$7,"") -> -2.59 | S48: =IF(ROW(S48)-1<=$J$5,S$1+COUNTIF(I$2:I48,I48)*$J$7,"") -> -3.59
A49: =IF(ROW(A49)-1<=$J$5,IF(Foglio1!I49="",-10,Foglio1!I49),"") -> 90 | B49: =IF(ROW(B49)-1<=$J$5,IF(Foglio1!J49="",-10,Foglio1!J49),"") -> 100 | C49: =IF(ROW(C49)-1<=$J$5,IF(Foglio1!K49="",-10,Foglio1!K49),"") -> -10 | D49: =IF(ROW(D49)-1<=$J$5,IF(Foglio1!L49="",-10,Foglio1!L49),"") -> -10 | E49: =IF(ROW(E49)-1<=$J$5,IF(Foglio1!M49="",-10,Foglio1!M49),"") -> -10 | F49: =IF(ROW(F49)-1<=$J$5,IF(Foglio1!N49="",-10,Foglio1!N49),"") -> -10 | G49: =IF(ROW(G49)-1<=$J$5,IF(Foglio1!O49="",-10,Foglio1!O49),"") -> -10 | H49: =IF(ROW(H49)-1<=$J$5,IF(Foglio1!P49="",-10,Foglio1!P49),"") -> -10 | I49: =IF(ROW(I49)-1<=$J$5,IF(Foglio1!Q49="",-10,Foglio1!Q49),"") -> -10 | K49: =IF(ROW(K49)-1<=$J$5,K$1+COUNTIF(A$2:A49,A49)*$J$7,"") -> 3.12 | L49: =IF(ROW(L49)-1<=$J$5,L$1+COUNTIF(B$2:B49,B49)*$J$7,"") -> 2.36 | M49: =IF(ROW(M49)-1<=$J$5,M$1+COUNTIF(C$2:C49,C49)*$J$7,"") -> 1.84 | N49: =IF(ROW(N49)-1<=$J$5,N$1+COUNTIF(D$2:D49,D49)*$J$7,"") -> 1.29 | O49: =IF(ROW(O49)-1<=$J$5,O$1+COUNTIF(E$2:E49,E49)*$J$7,"") -> 0.44 | P49: =IF(ROW(P49)-1<=$J$5,P$1+COUNTIF(F$2:F49,F49)*$J$7,"") -> -0.56 | Q49: =IF(ROW(Q49)-1<=$J$5,Q$1+COUNTIF(G$2:G49,G49)*$J$7,"") -> -1.56 | R49: =IF(ROW(R49)-1<=$J$5,R$1+COUNTIF(H$2:H49,H49)*$J$7,"") -> -2.56 | S49: =IF(ROW(S49)-1<=$J$5,S$1+COUNTIF(I$2:I49,I49)*$J$7,"") -> -3.56
A50: =IF(ROW(A50)-1<=$J$5,IF(Foglio1!I50="",-10,Foglio1!I50),"") -> 100 | B50: =IF(ROW(B50)-1<=$J$5,IF(Foglio1!J50="",-10,Foglio1!J50),"") -> 80 | C50: =IF(ROW(C50)-1<=$J$5,IF(Foglio1!K50="",-10,Foglio1!K50),"") -> 90 | D50: =IF(ROW(D50)-1<=$J$5,IF(Foglio1!L50="",-10,Foglio1!L50),"") -> -10 | E50: =IF(ROW(E50)-1<=$J$5,IF(Foglio1!M50="",-10,Foglio1!M50),"") -> -10 | F50: =IF(ROW(F50)-1<=$J$5,IF(Foglio1!N50="",-10,Foglio1!N50),"") -> -10 | G50: =IF(ROW(G50)-1<=$J$5,IF(Foglio1!O50="",-10,Foglio1!O50),"") -> -10 | H50: =IF(ROW(H50)-1<=$J$5,IF(Foglio1!P50="",-10,Foglio1!P50),"") -> -10 | I50: =IF(ROW(I50)-1<=$J$5,IF(Foglio1!Q50="",-10,Foglio1!Q50),"") -> -10 | K50: =IF(ROW(K50)-1<=$J$5,K$1+COUNTIF(A$2:A50,A50)*$J$7,"") -> 3.18 | L50: =IF(ROW(L50)-1<=$J$5,L$1+COUNTIF(B$2:B50,B50)*$J$7,"") -> 2.3 | M50: =IF(ROW(M50)-1<=$J$5,M$1+COUNTIF(C$2:C50,C50)*$J$7,"") -> 1.06 | N50: =IF(ROW(N50)-1<=$J$5,N$1+COUNTIF(D$2:D50,D50)*$J$7,"") -> 1.32 | O50: =IF(ROW(O50)-1<=$J$5,O$1+COUNTIF(E$2:E50,E50)*$J$7,"") -> 0.47 | P50: =IF(ROW(P50)-1<=$J$5,P$1+COUNTIF(F$2:F50,F50)*$J$7,"") -> -0.53 | Q50: =IF(ROW(Q50)-1<=$J$5,Q$1+COUNTIF(G$2:G50,G50)*$J$7,"") -> -1.53 | R50: =IF(ROW(R50)-1<=$J$5,R$1+COUNTIF(H$2:H50,H50)*$J$7,"") -> -2.53 | S50: =IF(ROW(S50)-1<=$J$5,S$1+COUNTIF(I$2:I50,I50)*$J$7,"") -> -3.53
A51: =IF(ROW(A51)-1<=$J$5,IF(Foglio1!I51="",-10,Foglio1!I51),"") -> -10 | B51: =IF(ROW(B51)-1<=$J$5,IF(Foglio1!J51="",-10,Foglio1!J51),"") -> -10 | C51: =IF(ROW(C51)-1<=$J$5,IF(Foglio1!K51="",-10,Foglio1!K51),"") -> -10 | D51: =IF(ROW(D51)-1<=$J$5,IF(Foglio1!L51="",-10,Foglio1!L51),"") -> -10 | E51: =IF(ROW(E51)-1<=$J$5,IF(Foglio1!M51="",-10,Foglio1!M51),"") -> -10 | F51: =IF(ROW(F51)-1<=$J$5,IF(Foglio1!N51="",-10,Foglio1!N51),"") -> -10 | G51: =IF(ROW(G51)-1<=$J$5,IF(Foglio1!O51="",-10,Foglio1!O51),"") -> -10 | H51: =IF(ROW(H51)-1<=$J$5,IF(Foglio1!P51="",-10,Foglio1!P51),"") -> -10 | I51: =IF(ROW(I51)-1<=$J$5,IF(Foglio1!Q51="",-10,Foglio1!Q51),"") -> -10 | K51: =IF(ROW(K51)-1<=$J$5,K$1+COUNTIF(A$2:A51,A51)*$J$7,"") -> 3.33 | L51: =IF(ROW(L51)-1<=$J$5,L$1+COUNTIF(B$2:B51,B51)*$J$7,"") -> 2.36 | M51: =IF(ROW(M51)-1<=$J$5,M$1+COUNTIF(C$2:C51,C51)*$J$7,"") -> 1.87 | N51: =IF(ROW(N51)-1<=$J$5,N$1+COUNTIF(D$2:D51,D51)*$J$7,"") -> 1.35 | O51: =IF(ROW(O51)-1<=$J$5,O$1+COUNTIF(E$2:E51,E51)*$J$7,"") -> 0.5 | P51: =IF(ROW(P51)-1<=$J$5,P$1+COUNTIF(F$2:F51,F51)*$J$7,"") -> -0.5 | Q51: =IF(ROW(Q51)-1<=$J$5,Q$1+COUNTIF(G$2:G51,G51)*$J$7,"") -> -1.5 | R51: =IF(ROW(R51)-1<=$J$5,R$1+COUNTIF(H$2:H51,H51)*$J$7,"") -> -2.5 | S51: =IF(ROW(S51)-1<=$J$5,S$1+COUNTIF(I$2:I51,I51)*$J$7,"") -> -3.5
A52: =IF(ROW(A52)-1<=$J$5,IF(Foglio1!I52="",-10,Foglio1!I52),"") -> 60 | B52: =IF(ROW(B52)-1<=$J$5,IF(Foglio1!J52="",-10,Foglio1!J52),"") -> 70 | C52: =IF(ROW(C52)-1<=$J$5,IF(Foglio1!K52="",-10,Foglio1!K52),"") -> 30 | D52: =IF(ROW(D52)-1<=$J$5,IF(Foglio1!L52="",-10,Foglio1!L52),"") -> -10 | E52: =IF(ROW(E52)-1<=$J$5,IF(Foglio1!M52="",-10,Foglio1!M52),"") -> -10 | F52: =IF(ROW(F52)-1<=$J$5,IF(Foglio1!N52="",-10,Foglio1!N52),"") -> -10 | G52: =IF(ROW(G52)-1<=$J$5,IF(Foglio1!O52="",-10,Foglio1!O52),"") -> -10 | H52: =IF(ROW(H52)-1<=$J$5,IF(Foglio1!P52="",-10,Foglio1!P52),"") -> -10 | I52: =IF(ROW(I52)-1<=$J$5,IF(Foglio1!Q52="",-10,Foglio1!Q52),"") -> -10 | K52: =IF(ROW(K52)-1<=$J$5,K$1+COUNTIF(A$2:A52,A52)*$J$7,"") -> 3.09 | L52: =IF(ROW(L52)-1<=$J$5,L$1+COUNTIF(B$2:B52,B52)*$J$7,"") -> 2.12 | M52: =IF(ROW(M52)-1<=$J$5,M$1+COUNTIF(C$2:C52,C52)*$J$7,"") -> 1.06 | N52: =IF(ROW(N52)-1<=$J$5,N$1+COUNTIF(D$2:D52,D52)*$J$7,"") -> 1.38 | O52: =IF(ROW(O52)-1<=$J$5,O$1+COUNTIF(E$2:E52,E52)*$J$7,"") -> 0.53 | P52: =IF(ROW(P52)-1<=$J$5,P$1+COUNTIF(F$2:F52,F52)*$J$7,"") -> -0.47 | Q52: =IF(ROW(Q52)-1<=$J$5,Q$1+COUNTIF(G$2:G52,G52)*$J$7,"") -> -1.47 | R52: =IF(ROW(R52)-1<=$J$5,R$1+COUNTIF(H$2:H52,H52)*$J$7,"") -> -2.47 | S52: =IF(ROW(S52)-1<=$J$5,S$1+COUNTIF(I$2:I52,I52)*$J$7,"") -> -3.47
A53: =IF(ROW(A53)-1<=$J$5,IF(Foglio1!I53="",-10,Foglio1!I53),"") -> 70 | B53: =IF(ROW(B53)-1<=$J$5,IF(Foglio1!J53="",-10,Foglio1!J53),"") -> 90 | C53: =IF(ROW(C53)-1<=$J$5,IF(Foglio1!K53="",-10,Foglio1!K53),"") -> -10 | D53: =IF(ROW(D53)-1<=$J$5,IF(Foglio1!L53="",-10,Foglio1!L53),"") -> -10 | E53: =IF(ROW(E53)-1<=$J$5,IF(Foglio1!M53="",-10,Foglio1!M53),"") -> -10 | F53: =IF(ROW(F53)-1<=$J$5,IF(Foglio1!N53="",-10,Foglio1!N53),"") -> -10 | G53: =IF(ROW(G53)-1<=$J$5,IF(Foglio1!O53="",-10,Foglio1!O53),"") -> -10 | H53: =IF(ROW(H53)-1<=$J$5,IF(Foglio1!P53="",-10,Foglio1!P53),"") -> -10 | I53: =IF(ROW(I53)-1<=$J$5,IF(Foglio1!Q53="",-10,Foglio1!Q53),"") -> -10 | K53: =IF(ROW(K53)-1<=$J$5,K$1+COUNTIF(A$2:A53,A53)*$J$7,"") -> 3.15 | L53: =IF(ROW(L53)-1<=$J$5,L$1+COUNTIF(B$2:B53,B53)*$J$7,"") -> 2.18 | M53: =IF(ROW(M53)-1<=$J$5,M$1+COUNTIF(C$2:C53,C53)*$J$7,"") -> 1.9 | N53: =IF(ROW(N53)-1<=$J$5,N$1+COUNTIF(D$2:D53,D53)*$J$7,"") -> 1.41 | O53: =IF(ROW(O53)-1<=$J$5,O$1+COUNTIF(E$2:E53,E53)*$J$7,"") -> 0.56 | P53: =IF(ROW(P53)-1<=$J$5,P$1+COUNTIF(F$2:F53,F53)*$J$7,"") -> -0.44 | Q53: =IF(ROW(Q53)-1<=$J$5,Q$1+COUNTIF(G$2:G53,G53)*$J$7,"") -> -1.44 | R53: =IF(ROW(R53)-1<=$J$5,R$1+COUNTIF(H$2:H53,H53)*$J$7,"") -> -2.44 | S53: =IF(ROW(S53)-1<=$J$5,S$1+COUNTIF(I$2:I53,I53)*$J$7,"") -> -3.44
A54: =IF(ROW(A54)-1<=$J$5,IF(Foglio1!I54="",-10,Foglio1!I54),"") -> 90 | B54: =IF(ROW(B54)-1<=$J$5,IF(Foglio1!J54="",-10,Foglio1!J54),"") -> 90 | C54: =IF(ROW(C54)-1<=$J$5,IF(Foglio1!K54="",-10,Foglio1!K54),"") -> -10 | D54: =IF(ROW(D54)-1<=$J$5,IF(Foglio1!L54="",-10,Foglio1!L54),"") -> -10 | E54: =IF(ROW(E54)-1<=$J$5,IF(Foglio1!M54="",-10,Foglio1!M54),"") -> -10 | F54: =IF(ROW(F54)-1<=$J$5,IF(Foglio1!N54="",-10,Foglio1!N54),"") -> -10 | G54: =IF(ROW(G54)-1<=$J$5,IF(Foglio1!O54="",-10,Foglio1!O54),"") -> -10 | H54: =IF(ROW(H54)-1<=$J$5,IF(Foglio1!P54="",-10,Foglio1!P54),"") -> -10 | I54: =IF(ROW(I54)-1<=$J$5,IF(Foglio1!Q54="",-10,Foglio1!Q54),"") -> -10 | K54: =IF(ROW(K54)-1<=$J$5,K$1+COUNTIF(A$2:A54,A54)*$J$7,"") -> 3.15 | L54: =IF(ROW(L54)-1<=$J$5,L$1+COUNTIF(B$2:B54,B54)*$J$7,"") -> 2.21 | M54: =IF(ROW(M54)-1<=$J$5,M$1+COUNTIF(C$2:C54,C54)*$J$7,"") -> 1.93 | N54: =IF(ROW(N54)-1<=$J$5,N$1+COUNTIF(D$2:D54,D54)*$J$7,"") -> 1.44 | O54: =IF(ROW(O54)-1<=$J$5,O$1+COUNTIF(E$2:E54,E54)*$J$7,"") -> 0.59 | P54: =IF(ROW(P54)-1<=$J$5,P$1+COUNTIF(F$2:F54,F54)*$J$7,"") -> -0.41 | Q54: =IF(ROW(Q54)-1<=$J$5,Q$1+COUNTIF(G$2:G54,G54)*$J$7,"") -> -1.41 | R54: =IF(ROW(R54)-1<=$J$5,R$1+COUNTIF(H$2:H54,H54)*$J$7,"") -> -2.41 | S54: =IF(ROW(S54)-1<=$J$5,S$1+COUNTIF(I$2:I54,I54)*$J$7,"") -> -3.41
A55: =IF(ROW(A55)-1<=$J$5,IF(Foglio1!I55="",-10,Foglio1!I55),"") -> 80 | B55: =IF(ROW(B55)-1<=$J$5,IF(Foglio1!J55="",-10,Foglio1!J55),"") -> 90 | C55: =IF(ROW(C55)-1<=$J$5,IF(Foglio1!K55="",-10,Foglio1!K55),"") -> 30 | D55: =IF(ROW(D55)-1<=$J$5,IF(Foglio1!L55="",-10,Foglio1!L55),"") -> -10 | E55: =IF(ROW(E55)-1<=$J$5,IF(Foglio1!M55="",-10,Foglio1!M55),"") -> -10 | F55: =IF(ROW(F55)-1<=$J$5,IF(Foglio1!N55="",-10,Foglio1!N55),"") -> -10 | G55: =IF(ROW(G55)-1<=$J$5,IF(Foglio1!O55="",-10,Foglio1!O55),"") -> -10 | H55: =IF(ROW(H55)-1<=$J$5,IF(Foglio1!P55="",-10,Foglio1!P55),"") -> -10 | I55: =IF(ROW(I55)-1<=$J$5,IF(Foglio1!Q55="",-10,Foglio1!Q55),"") -> -10 | K55: =IF(ROW(K55)-1<=$J$5,K$1+COUNTIF(A$2:A55,A55)*$J$7,"") -> 3.3 | L55: =IF(ROW(L55)-1<=$J$5,L$1+COUNTIF(B$2:B55,B55)*$J$7,"") -> 2.24 | M55: =IF(ROW(M55)-1<=$J$5,M$1+COUNTIF(C$2:C55,C55)*$J$7,"") -> 1.09 | N55: =IF(ROW(N55)-1<=$J$5,N$1+COUNTIF(D$2:D55,D55)*$J$7,"") -> 1.47 | O55: =IF(ROW(O55)-1<=$J$5,O$1+COUNTIF(E$2:E55,E55)*$J$7,"") -> 0.62 | P55: =IF(ROW(P55)-1<=$J$5,P$1+COUNTIF(F$2:F55,F55)*$J$7,"") -> -0.38 | Q55: =IF(ROW(Q55)-1<=$J$5,Q$1+COUNTIF(G$2:G55,G55)*$J$7,"") -> -1.38 | R55: =IF(ROW(R55)-1<=$J$5,R$1+COUNTIF(H$2:H55,H55)*$J$7,"") -> -2.38 | S55: =IF(ROW(S55)-1<=$J$5,S$1+COUNTIF(I$2:I55,I55)*$J$7,"") -> -3.38
A56: =IF(ROW(A56)-1<=$J$5,IF(Foglio1!I56="",-10,Foglio1!I56),"") -> 100 | B56: =IF(ROW(B56)-1<=$J$5,IF(Foglio1!J56="",-10,Foglio1!J56),"") -> 100 | C56: =IF(ROW(C56)-1<=$J$5,IF(Foglio1!K56="",-10,Foglio1!K56),"") -> 0 | D56: =IF(ROW(D56)-1<=$J$5,IF(Foglio1!L56="",-10,Foglio1!L56),"") -> -10 | E56: =IF(ROW(E56)-1<=$J$5,IF(Foglio1!M56="",-10,Foglio1!M56),"") -> -10 | F56: =IF(ROW(F56)-1<=$J$5,IF(Foglio1!N56="",-10,Foglio1!N56),"") -> -10 | G56: =IF(ROW(G56)-1<=$J$5,IF(Foglio1!O56="",-10,Foglio1!O56),"") -> -10 | H56: =IF(ROW(H56)-1<=$J$5,IF(Foglio1!P56="",-10,Foglio1!P56),"") -> -10 | I56: =IF(ROW(I56)-1<=$J$5,IF(Foglio1!Q56="",-10,Foglio1!Q56),"") -> -10 | K56: =IF(ROW(K56)-1<=$J$5,K$1+COUNTIF(A$2:A56,A56)*$J$7,"") -> 3.21 | L56: =IF(ROW(L56)-1<=$J$5,L$1+COUNTIF(B$2:B56,B56)*$J$7,"") -> 2.39 | M56: =IF(ROW(M56)-1<=$J$5,M$1+COUNTIF(C$2:C56,C56)*$J$7,"") -> 1.12 | N56: =IF(ROW(N56)-1<=$J$5,N$1+COUNTIF(D$2:D56,D56)*$J$7,"") -> 1.5 | O56: =IF(ROW(O56)-1<=$J$5,O$1+COUNTIF(E$2:E56,E56)*$J$7,"") -> 0.65 | P56: =IF(ROW(P56)-1<=$J$5,P$1+COUNTIF(F$2:F56,F56)*$J$7,"") -> -0.35 | Q56: =IF(ROW(Q56)-1<=$J$5,Q$1+COUNTIF(G$2:G56,G56)*$J$7,"") -> -1.35 | R56: =IF(ROW(R56)-1<=$J$5,R$1+COUNTIF(H$2:H56,H56)*$J$7,"") -> -2.35 | S56: =IF(ROW(S56)-1<=$J$5,S$1+COUNTIF(I$2:I56,I56)*$J$7,"") -> -3.35
A57: =IF(ROW(A57)-1<=$J$5,IF(Foglio1!I57="",-10,Foglio1!I57),"") -> -10 | B57: =IF(ROW(B57)-1<=$J$5,IF(Foglio1!J57="",-10,Foglio1!J57),"") -> -10 | C57: =IF(ROW(C57)-1<=$J$5,IF(Foglio1!K57="",-10,Foglio1!K57),"") -> -10 | D57: =IF(ROW(D57)-1<=$J$5,IF(Foglio1!L57="",-10,Foglio1!L57),"") -> -10 | E57: =IF(ROW(E57)-1<=$J$5,IF(Foglio1!M57="",-10,Foglio1!M57),"") -> -10 | F57: =IF(ROW(F57)-1<=$J$5,IF(Foglio1!N57="",-10,Foglio1!N57),"") -> -10 | G57: =IF(ROW(G57)-1<=$J$5,IF(Foglio1!O57="",-10,Foglio1!O57),"") -> -10 | H57: =IF(ROW(H57)-1<=$J$5,IF(Foglio1!P57="",-10,Foglio1!P57),"") -> -10 | I57: =IF(ROW(I57)-1<=$J$5,IF(Foglio1!Q57="",-10,Foglio1!Q57),"") -> -10 | K57: =IF(ROW(K57)-1<=$J$5,K$1+COUNTIF(A$2:A57,A57)*$J$7,"") -> 3.36 | L57: =IF(ROW(L57)-1<=$J$5,L$1+COUNTIF(B$2:B57,B57)*$J$7,"") -> 2.39 | M57: =IF(ROW(M57)-1<=$J$5,M$1+COUNTIF(C$2:C57,C57)*$J$7,"") -> 1.96 | N57: =IF(ROW(N57)-1<=$J$5,N$1+COUNTIF(D$2:D57,D57)*$J$7,"") -> 1.53 | O57: =IF(ROW(O57)-1<=$J$5,O$1+COUNTIF(E$2:E57,E57)*$J$7,"") -> 0.68 | P57: =IF(ROW(P57)-1<=$J$5,P$1+COUNTIF(F$2:F57,F57)*$J$7,"") -> -0.32 | Q57: =IF(ROW(Q57)-1<=$J$5,Q$1+COUNTIF(G$2:G57,G57)*$J$7,"") -> -1.32 | R57: =IF(ROW(R57)-1<=$J$5,R$1+COUNTIF(H$2:H57,H57)*$J$7,"") -> -2.32 | S57: =IF(ROW(S57)-1<=$J$5,S$1+COUNTIF(I$2:I57,I57)*$J$7,"") -> -3.32
A58: =IF(ROW(A58)-1<=$J$5,IF(Foglio1!I58="",-10,Foglio1!I58),"") -> -10 | B58: =IF(ROW(B58)-1<=$J$5,IF(Foglio1!J58="",-10,Foglio1!J58),"") -> -10 | C58: =IF(ROW(C58)-1<=$J$5,IF(Foglio1!K58="",-10,Foglio1!K58),"") -> -10 | D58: =IF(ROW(D58)-1<=$J$5,IF(Foglio1!L58="",-10,Foglio1!L58),"") -> -10 | E58: =IF(ROW(E58)-1<=$J$5,IF(Foglio1!M58="",-10,Foglio1!M58),"") -> -10 | F58: =IF(ROW(F58)-1<=$J$5,IF(Foglio1!N58="",-10,Foglio1!N58),"") -> -10 | G58: =IF(ROW(G58)-1<=$J$5,IF(Foglio1!O58="",-10,Foglio1!O58),"") -> -10 | H58: =IF(ROW(H58)-1<=$J$5,IF(Foglio1!P58="",-10,Foglio1!P58),"") -> -10 | I58: =IF(ROW(I58)-1<=$J$5,IF(Foglio1!Q58="",-10,Foglio1!Q58),"") -> -10 | K58: =IF(ROW(K58)-1<=$J$5,K$1+COUNTIF(A$2:A58,A58)*$J$7,"") -> 3.39 | L58: =IF(ROW(L58)-1<=$J$5,L$1+COUNTIF(B$2:B58,B58)*$J$7,"") -> 2.42 | M58: =IF(ROW(M58)-1<=$J$5,M$1+COUNTIF(C$2:C58,C58)*$J$7,"") -> 1.99 | N58: =IF(ROW(N58)-1<=$J$5,N$1+COUNTIF(D$2:D58,D58)*$J$7,"") -> 1.56 | O58: =IF(ROW(O58)-1<=$J$5,O$1+COUNTIF(E$2:E58,E58)*$J$7,"") -> 0.71 | P58: =IF(ROW(P58)-1<=$J$5,P$1+COUNTIF(F$2:F58,F58)*$J$7,"") -> -0.29 | Q58: =IF(ROW(Q58)-1<=$J$5,Q$1+COUNTIF(G$2:G58,G58)*$J$7,"") -> -1.29 | R58: =IF(ROW(R58)-1<=$J$5,R$1+COUNTIF(H$2:H58,H58)*$J$7,"") -> -2.29 | S58: =IF(ROW(S58)-1<=$J$5,S$1+COUNTIF(I$2:I58,I58)*$J$7,"") -> -3.29
A59: =IF(ROW(A59)-1<=$J$5,IF(Foglio1!I59="",-10,Foglio1!I59),"") -> 80 | B59: =IF(ROW(B59)-1<=$J$5,IF(Foglio1!J59="",-10,Foglio1!J59),"") -> 80 | C59: =IF(ROW(C59)-1<=$J$5,IF(Foglio1!K59="",-10,Foglio1!K59),"") -> -10 | D59: =IF(ROW(D59)-1<=$J$5,IF(Foglio1!L59="",-10,Foglio1!L59),"") -> 50 | E59: =IF(ROW(E59)-1<=$J$5,IF(Foglio1!M59="",-10,Foglio1!M59),"") -> -10 | F59: =IF(ROW(F59)-1<=$J$5,IF(Foglio1!N59="",-10,Foglio1!N59),"") -> -10 | G59: =IF(ROW(G59)-1<=$J$5,IF(Foglio1!O59="",-10,Foglio1!O59),"") -> -10 | H59: =IF(ROW(H59)-1<=$J$5,IF(Foglio1!P59="",-10,Foglio1!P59),"") -> -10 | I59: =IF(ROW(I59)-1<=$J$5,IF(Foglio1!Q59="",-10,Foglio1!Q59),"") -> -10 | K59: =IF(ROW(K59)-1<=$J$5,K$1+COUNTIF(A$2:A59,A59)*$J$7,"") -> 3.33 | L59: =IF(ROW(L59)-1<=$J$5,L$1+COUNTIF(B$2:B59,B59)*$J$7,"") -> 2.33 | M59: =IF(ROW(M59)-1<=$J$5,M$1+COUNTIF(C$2:C59,C59)*$J$7,"") -> 2.02 | N59: =IF(ROW(N59)-1<=$J$5,N$1+COUNTIF(D$2:D59,D59)*$J$7,"") -> 0.03 | O59: =IF(ROW(O59)-1<=$J$5,O$1+COUNTIF(E$2:E59,E59)*$J$7,"") -> 0.74 | P59: =IF(ROW(P59)-1<=$J$5,P$1+COUNTIF(F$2:F59,F59)*$J$7,"") -> -0.26 | Q59: =IF(ROW(Q59)-1<=$J$5,Q$1+COUNTIF(G$2:G59,G59)*$J$7,"") -> -1.26 | R59: =IF(ROW(R59)-1<=$J$5,R$1+COUNTIF(H$2:H59,H59)*$J$7,"") -> -2.26 | S59: =IF(ROW(S59)-1<=$J$5,S$1+COUNTIF(I$2:I59,I59)*$J$7,"") -> -3.26
A60: =IF(ROW(A60)-1<=$J$5,IF(Foglio1!I60="",-10,Foglio1!I60),"") -> 80 | B60: =IF(ROW(B60)-1<=$J$5,IF(Foglio1!J60="",-10,Foglio1!J60),"") -> 60 | C60: =IF(ROW(C60)-1<=$J$5,IF(Foglio1!K60="",-10,Foglio1!K60),"") -> -10 | D60: =IF(ROW(D60)-1<=$J$5,IF(Foglio1!L60="",-10,Foglio1!L60),"") -> -10 | E60: =IF(ROW(E60)-1<=$J$5,IF(Foglio1!M60="",-10,Foglio1!M60),"") -> -10 | F60: =IF(ROW(F60)-1<=$J$5,IF(Foglio1!N60="",-10,Foglio1!N60),"") -> -10 | G60: =IF(ROW(G60)-1<=$J$5,IF(Foglio1!O60="",-10,Foglio1!O60),"") -> -10 | H60: =IF(ROW(H60)-1<=$J$5,IF(Foglio1!P60="",-10,Foglio1!P60),"") -> -10 | I60: =IF(ROW(I60)-1<=$J$5,IF(Foglio1!Q60="",-10,Foglio1!Q60),"") -> -10 | K60: =IF(ROW(K60)-1<=$J$5,K$1+COUNTIF(A$2:A60,A60)*$J$7,"") -> 3.36 | L60: =IF(ROW(L60)-1<=$J$5,L$1+COUNTIF(B$2:B60,B60)*$J$7,"") -> 2.06 | M60: =IF(ROW(M60)-1<=$J$5,M$1+COUNTIF(C$2:C60,C60)*$J$7,"") -> 2.05 | N60: =IF(ROW(N60)-1<=$J$5,N$1+COUNTIF(D$2:D60,D60)*$J$7,"") -> 1.59 | O60: =IF(ROW(O60)-1<=$J$5,O$1+COUNTIF(E$2:E60,E60)*$J$7,"") -> 0.77 | P60: =IF(ROW(P60)-1<=$J$5,P$1+COUNTIF(F$2:F60,F60)*$J$7,"") -> -0.23 | Q60: =IF(ROW(Q60)-1<=$J$5,Q$1+COUNTIF(G$2:G60,G60)*$J$7,"") -> -1.23 | R60: =IF(ROW(R60)-1<=$J$5,R$1+COUNTIF(H$2:H60,H60)*$J$7,"") -> -2.23 | S60: =IF(ROW(S60)-1<=$J$5,S$1+COUNTIF(I$2:I60,I60)*$J$7,"") -> -3.23
A61: =IF(ROW(A61)-1<=$J$5,IF(Foglio1!I61="",-10,Foglio1!I61),"") -> -10 | B61: =IF(ROW(B61)-1<=$J$5,IF(Foglio1!J61="",-10,Foglio1!J61),"") -> -10 | C61: =IF(ROW(C61)-1<=$J$5,IF(Foglio1!K61="",-10,Foglio1!K61),"") -> -10 | D61: =IF(ROW(D61)-1<=$J$5,IF(Foglio1!L61="",-10,Foglio1!L61),"") -> -10 | E61: =IF(ROW(E61)-1<=$J$5,IF(Foglio1!M61="",-10,Foglio1!M61),"") -> -10 | F61: =IF(ROW(F61)-1<=$J$5,IF(Foglio1!N61="",-10,Foglio1!N61),"") -> -10 | G61: =IF(ROW(G61)-1<=$J$5,IF(Foglio1!O61="",-10,Foglio1!O61),"") -> -10 | H61: =IF(ROW(H61)-1<=$J$5,IF(Foglio1!P61="",-10,Foglio1!P61),"") -> -10 | I61: =IF(ROW(I61)-1<=$J$5,IF(Foglio1!Q61="",-10,Foglio1!Q61),"") -> -10 | K61: =IF(ROW(K61)-1<=$J$5,K$1+COUNTIF(A$2:A61,A61)*$J$7,"") -> 3.42 | L61: =IF(ROW(L61)-1<=$J$5,L$1+COUNTIF(B$2:B61,B61)*$J$7,"") -> 2.45 | M61: =IF(ROW(M61)-1<=$J$5,M$1+COUNTIF(C$2:C61,C61)*$J$7,"") -> 2.08 | N61: =IF(ROW(N61)-1<=$J$5,N$1+COUNTIF(D$2:D61,D61)*$J$7,"") -> 1.62 | O61: =IF(ROW(O61)-1<=$J$5,O$1+COUNTIF(E$2:E61,E61)*$J$7,"") -> 0.8 | P61: =IF(ROW(P61)-1<=$J$5,P$1+COUNTIF(F$2:F61,F61)*$J$7,"") -> -0.2 | Q61: =IF(ROW(Q61)-1<=$J$5,Q$1+COUNTIF(G$2:G61,G61)*$J$7,"") -> -1.2 | R61: =IF(ROW(R61)-1<=$J$5,R$1+COUNTIF(H$2:H61,H61)*$J$7,"") -> -2.2 | S61: =IF(ROW(S61)-1<=$J$5,S$1+COUNTIF(I$2:I61,I61)*$J$7,"") -> -3.2
A62: =IF(ROW(A62)-1<=$J$5,IF(Foglio1!I62="",-10,Foglio1!I62),"") -> -10 | B62: =IF(ROW(B62)-1<=$J$5,IF(Foglio1!J62="",-10,Foglio1!J62),"") -> -10 | C62: =IF(ROW(C62)-1<=$J$5,IF(Foglio1!K62="",-10,Foglio1!K62),"") -> -10 | D62: =IF(ROW(D62)-1<=$J$5,IF(Foglio1!L62="",-10,Foglio1!L62),"") -> -10 | E62: =IF(ROW(E62)-1<=$J$5,IF(Foglio1!M62="",-10,Foglio1!M62),"") -> -10 | F62: =IF(ROW(F62)-1<=$J$5,IF(Foglio1!N62="",-10,Foglio1!N62),"") -> -10 | G62: =IF(ROW(G62)-1<=$J$5,IF(Foglio1!O62="",-10,Foglio1!O62),"") -> -10 | H62: =IF(ROW(H62)-1<=$J$5,IF(Foglio1!P62="",-10,Foglio1!P62),"") -> -10 | I62: =IF(ROW(I62)-1<=$J$5,IF(Foglio1!Q62="",-10,Foglio1!Q62),"") -> -10 | K62: =IF(ROW(K62)-1<=$J$5,K$1+COUNTIF(A$2:A62,A62)*$J$7,"") -> 3.45 | L62: =IF(ROW(L62)-1<=$J$5,L$1+COUNTIF(B$2:B62,B62)*$J$7,"") -> 2.48 | M62: =IF(ROW(M62)-1<=$J$5,M$1+COUNTIF(C$2:C62,C62)*$J$7,"") -> 2.11 | N62: =IF(ROW(N62)-1<=$J$5,N$1+COUNTIF(D$2:D62,D62)*$J$7,"") -> 1.65 | O62: =IF(ROW(O62)-1<=$J$5,O$1+COUNTIF(E$2:E62,E62)*$J$7,"") -> 0.83 | P62: =IF(ROW(P62)-1<=$J$5,P$1+COUNTIF(F$2:F62,F62)*$J$7,"") -> -0.17 | Q62: =IF(ROW(Q62)-1<=$J$5,Q$1+COUNTIF(G$2:G62,G62)*$J$7,"") -> -1.17 | R62: =IF(ROW(R62)-1<=$J$5,R$1+COUNTIF(H$2:H62,H62)*$J$7,"") -> -2.17 | S62: =IF(ROW(S62)-1<=$J$5,S$1+COUNTIF(I$2:I62,I62)*$J$7,"") -> -3.17
A63: =IF(ROW(A63)-1<=$J$5,IF(Foglio1!I63="",-10,Foglio1!I63),"") -> 70 | B63: =IF(ROW(B63)-1<=$J$5,IF(Foglio1!J63="",-10,Foglio1!J63),"") -> 90 | C63: =IF(ROW(C63)-1<=$J$5,IF(Foglio1!K63="",-10,Foglio1!K63),"") -> 20 | D63: =IF(ROW(D63)-1<=$J$5,IF(Foglio1!L63="",-10,Foglio1!L63),"") -> -10 | E63: =IF(ROW(E63)-1<=$J$5,IF(Foglio1!M63="",-10,Foglio1!M63),"") -> -10 | F63: =IF(ROW(F63)-1<=$J$5,IF(Foglio1!N63="",-10,Foglio1!N63),"") -> -10 | G63: =IF(ROW(G63)-1<=$J$5,IF(Foglio1!O63="",-10,Foglio1!O63),"") -> -10 | H63: =IF(ROW(H63)-1<=$J$5,IF(Foglio1!P63="",-10,Foglio1!P63),"") -> -10 | I63: =IF(ROW(I63)-1<=$J$5,IF(Foglio1!Q63="",-10,Foglio1!Q63),"") -> -10 | K63: =IF(ROW(K63)-1<=$J$5,K$1+COUNTIF(A$2:A63,A63)*$J$7,"") -> 3.18 | L63: =IF(ROW(L63)-1<=$J$5,L$1+COUNTIF(B$2:B63,B63)*$J$7,"") -> 2.27 | M63: =IF(ROW(M63)-1<=$J$5,M$1+COUNTIF(C$2:C63,C63)*$J$7,"") -> 1.06 | N63: =IF(ROW(N63)-1<=$J$5,N$1+COUNTIF(D$2:D63,D63)*$J$7,"") -> 1.68 | O63: =IF(ROW(O63)-1<=$J$5,O$1+COUNTIF(E$2:E63,E63)*$J$7,"") -> 0.86 | P63: =IF(ROW(P63)-1<=$J$5,P$1+COUNTIF(F$2:F63,F63)*$J$7,"") -> -0.14 | Q63: =IF(ROW(Q63)-1<=$J$5,Q$1+COUNTIF(G$2:G63,G63)*$J$7,"") -> -1.14 | R63: =IF(ROW(R63)-1<=$J$5,R$1+COUNTIF(H$2:H63,H63)*$J$7,"") -> -2.14 | S63: =IF(ROW(S63)-1<=$J$5,S$1+COUNTIF(I$2:I63,I63)*$J$7,"") -> -3.14
A64: =IF(ROW(A64)-1<=$J$5,IF(Foglio1!I64="",-10,Foglio1!I64),"") -> 80 | B64: =IF(ROW(B64)-1<=$J$5,IF(Foglio1!J64="",-10,Foglio1!J64),"") -> 100 | C64: =IF(ROW(C64)-1<=$J$5,IF(Foglio1!K64="",-10,Foglio1!K64),"") -> -10 | D64: =IF(ROW(D64)-1<=$J$5,IF(Foglio1!L64="",-10,Foglio1!L64),"") -> -10 | E64: =IF(ROW(E64)-1<=$J$5,IF(Foglio1!M64="",-10,Foglio1!M64),"") -> -10 | F64: =IF(ROW(F64)-1<=$J$5,IF(Foglio1!N64="",-10,Foglio1!N64),"") -> -10 | G64: =IF(ROW(G64)-1<=$J$5,IF(Foglio1!O64="",-10,Foglio1!O64),"") -> -10 | H64: =IF(ROW(H64)-1<=$J$5,IF(Foglio1!P64="",-10,Foglio1!P64),"") -> -10 | I64: =IF(ROW(I64)-1<=$J$5,IF(Foglio1!Q64="",-10,Foglio1!Q64),"") -> -10 | K64: =IF(ROW(K64)-1<=$J$5,K$1+COUNTIF(A$2:A64,A64)*$J$7,"") -> 3.39 | L64: =IF(ROW(L64)-1<=$J$5,L$1+COUNTIF(B$2:B64,B64)*$J$7,"") -> 2.42 | M64: =IF(ROW(M64)-1<=$J$5,M$1+COUNTIF(C$2:C64,C64)*$J$7,"") -> 2.14 | N64: =IF(ROW(N64)-1<=$J$5,N$1+COUNTIF(D$2:D64,D64)*$J$7,"") -> 1.71 | O64: =IF(ROW(O64)-1<=$J$5,O$1+COUNTIF(E$2:E64,E64)*$J$7,"") -> 0.89 | P64: =IF(ROW(P64)-1<=$J$5,P$1+COUNTIF(F$2:F64,F64)*$J$7,"") -> -0.11 | Q64: =IF(ROW(Q64)-1<=$J$5,Q$1+COUNTIF(G$2:G64,G64)*$J$7,"") -> -1.11 | R64: =IF(ROW(R64)-1<=$J$5,R$1+COUNTIF(H$2:H64,H64)*$J$7,"") -> -2.11 | S64: =IF(ROW(S64)-1<=$J$5,S$1+COUNTIF(I$2:I64,I64)*$J$7,"") -> -3.11
A65: =IF(ROW(A65)-1<=$J$5,IF(Foglio1!I65="",-10,Foglio1!I65),"") -> 70 | B65: =IF(ROW(B65)-1<=$J$5,IF(Foglio1!J65="",-10,Foglio1!J65),"") -> 100 | C65: =IF(ROW(C65)-1<=$J$5,IF(Foglio1!K65="",-10,Foglio1!K65),"") -> -10 | D65: =IF(ROW(D65)-1<=$J$5,IF(Foglio1!L65="",-10,Foglio1!L65),"") -> -10 | E65: =IF(ROW(E65)-1<=$J$5,IF(Foglio1!M65="",-10,Foglio1!M65),"") -> -10 | F65: =IF(ROW(F65)-1<=$J$5,IF(Foglio1!N65="",-10,Foglio1!N65),"") -> -10 | G65: =IF(ROW(G65)-1<=$J$5,IF(Foglio1!O65="",-10,Foglio1!O65),"") -> -10 | H65: =IF(ROW(H65)-1<=$J$5,IF(Foglio1!P65="",-10,Foglio1!P65),"") -> -10 | I65: =IF(ROW(I65)-1<=$J$5,IF(Foglio1!Q65="",-10,Foglio1!Q65),"") -> -10 | K65: =IF(ROW(K65)-1<=$J$5,K$1+COUNTIF(A$2:A65,A65)*$J$7,"") -> 3.21 | L65: =IF(ROW(L65)-1<=$J$5,L$1+COUNTIF(B$2:B65,B65)*$J$7,"") -> 2.45 | M65: =IF(ROW(M65)-1<=$J$5,M$1+COUNTIF(C$2:C65,C65)*$J$7,"") -> 2.17 | N65: =IF(ROW(N65)-1<=$J$5,N$1+COUNTIF(D$2:D65,D65)*$J$7,"") -> 1.74 | O65: =IF(ROW(O65)-1<=$J$5,O$1+COUNTIF(E$2:E65,E65)*$J$7,"") -> 0.92 | P65: =IF(ROW(P65)-1<=$J$5,P$1+COUNTIF(F$2:F65,F65)*$J$7,"") -> -0.08 | Q65: =IF(ROW(Q65)-1<=$J$5,Q$1+COUNTIF(G$2:G65,G65)*$J$7,"") -> -1.08 | R65: =IF(ROW(R65)-1<=$J$5,R$1+COUNTIF(H$2:H65,H65)*$J$7,"") -> -2.08 | S65: =IF(ROW(S65)-1<=$J$5,S$1+COUNTIF(I$2:I65,I65)*$J$7,"") -> -3.08
A66: =IF(ROW(A66)-1<=$J$5,IF(Foglio1!I66="",-10,Foglio1!I66),"") -> 65 | B66: =IF(ROW(B66)-1<=$J$5,IF(Foglio1!J66="",-10,Foglio1!J66),"") -> 85 | C66: =IF(ROW(C66)-1<=$J$5,IF(Foglio1!K66="",-10,Foglio1!K66),"") -> 70 | D66: =IF(ROW(D66)-1<=$J$5,IF(Foglio1!L66="",-10,Foglio1!L66),"") -> -10 | E66: =IF(ROW(E66)-1<=$J$5,IF(Foglio1!M66="",-10,Foglio1!M66),"") -> -10 | F66: =IF(ROW(F66)-1<=$J$5,IF(Foglio1!N66="",-10,Foglio1!N66),"") -> -10 | G66: =IF(ROW(G66)-1<=$J$5,IF(Foglio1!O66="",-10,Foglio1!O66),"") -> -10 | H66: =IF(ROW(H66)-1<=$J$5,IF(Foglio1!P66="",-10,Foglio1!P66),"") -> -10 | I66: =IF(ROW(I66)-1<=$J$5,IF(Foglio1!Q66="",-10,Foglio1!Q66),"") -> -10 | K66: =IF(ROW(K66)-1<=$J$5,K$1+COUNTIF(A$2:A66,A66)*$J$7,"") -> 3.03 | L66: =IF(ROW(L66)-1<=$J$5,L$1+COUNTIF(B$2:B66,B66)*$J$7,"") -> 2.06 | M66: =IF(ROW(M66)-1<=$J$5,M$1+COUNTIF(C$2:C66,C66)*$J$7,"") -> 1.12 | N66: =IF(ROW(N66)-1<=$J$5,N$1+COUNTIF(D$2:D66,D66)*$J$7,"") -> 1.77 | O66: =IF(ROW(O66)-1<=$J$5,O$1+COUNTIF(E$2:E66,E66)*$J$7,"") -> 0.95 | P66: =IF(ROW(P66)-1<=$J$5,P$1+COUNTIF(F$2:F66,F66)*$J$7,"") -> -0.05 | Q66: =IF(ROW(Q66)-1<=$J$5,Q$1+COUNTIF(G$2:G66,G66)*$J$7,"") -> -1.05 | R66: =IF(ROW(R66)-1<=$J$5,R$1+COUNTIF(H$2:H66,H66)*$J$7,"") -> -2.05 | S66: =IF(ROW(S66)-1<=$J$5,S$1+COUNTIF(I$2:I66,I66)*$J$7,"") -> -3.05
A67: =IF(ROW(A67)-1<=$J$5,IF(Foglio1!I67="",-10,Foglio1!I67),"") -> 58 | B67: =IF(ROW(B67)-1<=$J$5,IF(Foglio1!J67="",-10,Foglio1!J67),"") -> 71 | C67: =IF(ROW(C67)-1<=$J$5,IF(Foglio1!K67="",-10,Foglio1!K67),"") -> 0 | D67: =IF(ROW(D67)-1<=$J$5,IF(Foglio1!L67="",-10,Foglio1!L67),"") -> -10 | E67: =IF(ROW(E67)-1<=$J$5,IF(Foglio1!M67="",-10,Foglio1!M67),"") -> -10 | F67: =IF(ROW(F67)-1<=$J$5,IF(Foglio1!N67="",-10,Foglio1!N67),"") -> -10 | G67: =IF(ROW(G67)-1<=$J$5,IF(Foglio1!O67="",-10,Foglio1!O67),"") -> -10 | H67: =IF(ROW(H67)-1<=$J$5,IF(Foglio1!P67="",-10,Foglio1!P67),"") -> -10 | I67: =IF(ROW(I67)-1<=$J$5,IF(Foglio1!Q67="",-10,Foglio1!Q67),"") -> -10 | K67: =IF(ROW(K67)-1<=$J$5,K$1+COUNTIF(A$2:A67,A67)*$J$7,"") -> 3.03 | L67: =IF(ROW(L67)-1<=$J$5,L$1+COUNTIF(B$2:B67,B67)*$J$7,"") -> 2.03 | M67: =IF(ROW(M67)-1<=$J$5,M$1+COUNTIF(C$2:C67,C67)*$J$7,"") -> 1.15 | N67: =IF(ROW(N67)-1<=$J$5,N$1+COUNTIF(D$2:D67,D67)*$J$7,"") -> 1.8 | O67: =IF(ROW(O67)-1<=$J$5,O$1+COUNTIF(E$2:E67,E67)*$J$7,"") -> 0.98 | P67: =IF(ROW(P67)-1<=$J$5,P$1+COUNTIF(F$2:F67,F67)*$J$7,"") -> -0.02 | Q67: =IF(ROW(Q67)-1<=$J$5,Q$1+COUNTIF(G$2:G67,G67)*$J$7,"") -> -1.02 | R67: =IF(ROW(R67)-1<=$J$5,R$1+COUNTIF(H$2:H67,H67)*$J$7,"") -> -2.02 | S67: =IF(ROW(S67)-1<=$J$5,S$1+COUNTIF(I$2:I67,I67)*$J$7,"") -> -3.02
A68: =IF(ROW(A68)-1<=$J$5,IF(Foglio1!I68="",-10,Foglio1!I68),"") -> -10 | B68: =IF(ROW(B68)-1<=$J$5,IF(Foglio1!J68="",-10,Foglio1!J68),"") -> -10 | C68: =IF(ROW(C68)-1<=$J$5,IF(Foglio1!K68="",-10,Foglio1!K68),"") -> -10 | D68: =IF(ROW(D68)-1<=$J$5,IF(Foglio1!L68="",-10,Foglio1!L68),"") -> -10 | E68: =IF(ROW(E68)-1<=$J$5,IF(Foglio1!M68="",-10,Foglio1!M68),"") -> -10 | F68: =IF(ROW(F68)-1<=$J$5,IF(Foglio1!N68="",-10,Foglio1!N68),"") -> -10 | G68: =IF(ROW(G68)-1<=$J$5,IF(Foglio1!O68="",-10,Foglio1!O68),"") -> -10 | H68: =IF(ROW(H68)-1<=$J$5,IF(Foglio1!P68="",-10,Foglio1!P68),"") -> -10 | I68: =IF(ROW(I68)-1<=$J$5,IF(Foglio1!Q68="",-10,Foglio1!Q68),"") -> -10 | K68: =IF(ROW(K68)-1<=$J$5,K$1+COUNTIF(A$2:A68,A68)*$J$7,"") -> 3.48 | L68: =IF(ROW(L68)-1<=$J$5,L$1+COUNTIF(B$2:B68,B68)*$J$7,"") -> 2.51 | M68: =IF(ROW(M68)-1<=$J$5,M$1+COUNTIF(C$2:C68,C68)*$J$7,"") -> 2.2 | N68: =IF(ROW(N68)-1<=$J$5,N$1+COUNTIF(D$2:D68,D68)*$J$7,"") -> 1.83 | O68: =IF(ROW(O68)-1<=$J$5,O$1+COUNTIF(E$2:E68,E68)*$J$7,"") -> 1.01 | P68: =IF(ROW(P68)-1<=$J$5,P$1+COUNTIF(F$2:F68,F68)*$J$7,"") -> 0.01 | Q68: =IF(ROW(Q68)-1<=$J$5,Q$1+COUNTIF(G$2:G68,G68)*$J$7,"") -> -0.99 | R68: =IF(ROW(R68)-1<=$J$5,R$1+COUNTIF(H$2:H68,H68)*$J$7,"") -> -1.99 | S68: =IF(ROW(S68)-1<=$J$5,S$1+COUNTIF(I$2:I68,I68)*$J$7,"") -> -2.99
A69: =IF(ROW(A69)-1<=$J$5,IF(Foglio1!I69="",-10,Foglio1!I69),"") -> 80 | B69: =IF(ROW(B69)-1<=$J$5,IF(Foglio1!J69="",-10,Foglio1!J69),"") -> 90 | C69: =IF(ROW(C69)-1<=$J$5,IF(Foglio1!K69="",-10,Foglio1!K69),"") -> 20 | D69: =IF(ROW(D69)-1<=$J$5,IF(Foglio1!L69="",-10,Foglio1!L69),"") -> -10 | E69: =IF(ROW(E69)-1<=$J$5,IF(Foglio1!M69="",-10,Foglio1!M69),"") -> -10 | F69: =IF(ROW(F69)-1<=$J$5,IF(Foglio1!N69="",-10,Foglio1!N69),"") -> -10 | G69: =IF(ROW(G69)-1<=$J$5,IF(Foglio1!O69="",-10,Foglio1!O69),"") -> -10 | H69: =IF(ROW(H69)-1<=$J$5,IF(Foglio1!P69="",-10,Foglio1!P69),"") -> -10 | I69: =IF(ROW(I69)-1<=$J$5,IF(Foglio1!Q69="",-10,Foglio1!Q69),"") -> -10 | K69: =IF(ROW(K69)-1<=$J$5,K$1+COUNTIF(A$2:A69,A69)*$J$7,"") -> 3.42 | L69: =IF(ROW(L69)-1<=$J$5,L$1+COUNTIF(B$2:B69,B69)*$J$7,"") -> 2.3 | M69: =IF(ROW(M69)-1<=$J$5,M$1+COUNTIF(C$2:C69,C69)*$J$7,"") -> 1.09 | N69: =IF(ROW(N69)-1<=$J$5,N$1+COUNTIF(D$2:D69,D69)*$J$7,"") -> 1.86 | O69: =IF(ROW(O69)-1<=$J$5,O$1+COUNTIF(E$2:E69,E69)*$J$7,"") -> 1.04 | P69: =IF(ROW(P69)-1<=$J$5,P$1+COUNTIF(F$2:F69,F69)*$J$7,"") -> 0.04 | Q69: =IF(ROW(Q69)-1<=$J$5,Q$1+COUNTIF(G$2:G69,G69)*$J$7,"") -> -0.96 | R69: =IF(ROW(R69)-1<=$J$5,R$1+COUNTIF(H$2:H69,H69)*$J$7,"") -> -1.96 | S69: =IF(ROW(S69)-1<=$J$5,S$1+COUNTIF(I$2:I69,I69)*$J$7,"") -> -2.96
A70: =IF(ROW(A70)-1<=$J$5,IF(Foglio1!I70="",-10,Foglio1!I70),"") -> 90 | B70: =IF(ROW(B70)-1<=$J$5,IF(Foglio1!J70="",-10,Foglio1!J70),"") -> 80 | C70: =IF(ROW(C70)-1<=$J$5,IF(Foglio1!K70="",-10,Foglio1!K70),"") -> 80 | D70: =IF(ROW(D70)-1<=$J$5,IF(Foglio1!L70="",-10,Foglio1!L70),"") -> -10 | E70: =IF(ROW(E70)-1<=$J$5,IF(Foglio1!M70="",-10,Foglio1!M70),"") -> -10 | F70: =IF(ROW(F70)-1<=$J$5,IF(Foglio1!N70="",-10,Foglio1!N70),"") -> -10 | G70: =IF(ROW(G70)-1<=$J$5,IF(Foglio1!O70="",-10,Foglio1!O70),"") -> -10 | H70: =IF(ROW(H70)-1<=$J$5,IF(Foglio1!P70="",-10,Foglio1!P70),"") -> -10 | I70: =IF(ROW(I70)-1<=$J$5,IF(Foglio1!Q70="",-10,Foglio1!Q70),"") -> -10 | K70: =IF(ROW(K70)-1<=$J$5,K$1+COUNTIF(A$2:A70,A70)*$J$7,"") -> 3.18 | L70: =IF(ROW(L70)-1<=$J$5,L$1+COUNTIF(B$2:B70,B70)*$J$7,"") -> 2.36 | M70: =IF(ROW(M70)-1<=$J$5,M$1+COUNTIF(C$2:C70,C70)*$J$7,"") -> 1.09 | N70: =IF(ROW(N70)-1<=$J$5,N$1+COUNTIF(D$2:D70,D70)*$J$7,"") -> 1.89 | O70: =IF(ROW(O70)-1<=$J$5,O$1+COUNTIF(E$2:E70,E70)*$J$7,"") -> 1.07 | P70: =IF(ROW(P70)-1<=$J$5,P$1+COUNTIF(F$2:F70,F70)*$J$7,"") -> 0.07 | Q70: =IF(ROW(Q70)-1<=$J$5,Q$1+COUNTIF(G$2:G70,G70)*$J$7,"") -> -0.93 | R70: =IF(ROW(R70)-1<=$J$5,R$1+COUNTIF(H$2:H70,H70)*$J$7,"") -> -1.93 | S70: =IF(ROW(S70)-1<=$J$5,S$1+COUNTIF(I$2:I70,I70)*$J$7,"") -> -2.93
A71: =IF(ROW(A71)-1<=$J$5,IF(Foglio1!I71="",-10,Foglio1!I71),"") -> 40 | B71: =IF(ROW(B71)-1<=$J$5,IF(Foglio1!J71="",-10,Foglio1!J71),"") -> 60 | C71: =IF(ROW(C71)-1<=$J$5,IF(Foglio1!K71="",-10,Foglio1!K71),"") -> 60 | D71: =IF(ROW(D71)-1<=$J$5,IF(Foglio1!L71="",-10,Foglio1!L71),"") -> -10 | E71: =IF(ROW(E71)-1<=$J$5,IF(Foglio1!M71="",-10,Foglio1!M71),"") -> -10 | F71: =IF(ROW(F71)-1<=$J$5,IF(Foglio1!N71="",-10,Foglio1!N71),"") -> -10 | G71: =IF(ROW(G71)-1<=$J$5,IF(Foglio1!O71="",-10,Foglio1!O71),"") -> -10 | H71: =IF(ROW(H71)-1<=$J$5,IF(Foglio1!P71="",-10,Foglio1!P71),"") -> -10 | I71: =IF(ROW(I71)-1<=$J$5,IF(Foglio1!Q71="",-10,Foglio1!Q71),"") -> -10 | K71: =IF(ROW(K71)-1<=$J$5,K$1+COUNTIF(A$2:A71,A71)*$J$7,"") -> 3.06 | L71: =IF(ROW(L71)-1<=$J$5,L$1+COUNTIF(B$2:B71,B71)*$J$7,"") -> 2.09 | M71: =IF(ROW(M71)-1<=$J$5,M$1+COUNTIF(C$2:C71,C71)*$J$7,"") -> 1.12 | N71: =IF(ROW(N71)-1<=$J$5,N$1+COUNTIF(D$2:D71,D71)*$J$7,"") -> 1.92 | O71: =IF(ROW(O71)-1<=$J$5,O$1+COUNTIF(E$2:E71,E71)*$J$7,"") -> 1.1 | P71: =IF(ROW(P71)-1<=$J$5,P$1+COUNTIF(F$2:F71,F71)*$J$7,"") -> 0.1 | Q71: =IF(ROW(Q71)-1<=$J$5,Q$1+COUNTIF(G$2:G71,G71)*$J$7,"") -> -0.9 | R71: =IF(ROW(R71)-1<=$J$5,R$1+COUNTIF(H$2:H71,H71)*$J$7,"") -> -1.9 | S71: =IF(ROW(S71)-1<=$J$5,S$1+COUNTIF(I$2:I71,I71)*$J$7,"") -> -2.9
A72: =IF(ROW(A72)-1<=$J$5,IF(Foglio1!I72="",-10,Foglio1!I72),"") -> 70 | B72: =IF(ROW(B72)-1<=$J$5,IF(Foglio1!J72="",-10,Foglio1!J72),"") -> 90 | C72: =IF(ROW(C72)-1<=$J$5,IF(Foglio1!K72="",-10,Foglio1!K72),"") -> 60 | D72: =IF(ROW(D72)-1<=$J$5,IF(Foglio1!L72="",-10,Foglio1!L72),"") -> -10 | E72: =IF(ROW(E72)-1<=$J$5,IF(Foglio1!M72="",-10,Foglio1!M72),"") -> -10 | F72: =IF(ROW(F72)-1<=$J$5,IF(Foglio1!N72="",-10,Foglio1!N72),"") -> -10 | G72: =IF(ROW(G72)-1<=$J$5,IF(Foglio1!O72="",-10,Foglio1!O72),"") -> -10 | H72: =IF(ROW(H72)-1<=$J$5,IF(Foglio1!P72="",-10,Foglio1!P72),"") -> -10 | I72: =IF(ROW(I72)-1<=$J$5,IF(Foglio1!Q72="",-10,Foglio1!Q72),"") -> -10 | K72: =IF(ROW(K72)-1<=$J$5,K$1+COUNTIF(A$2:A72,A72)*$J$7,"") -> 3.24 | L72: =IF(ROW(L72)-1<=$J$5,L$1+COUNTIF(B$2:B72,B72)*$J$7,"") -> 2.33 | M72: =IF(ROW(M72)-1<=$J$5,M$1+COUNTIF(C$2:C72,C72)*$J$7,"") -> 1.15 | N72: =IF(ROW(N72)-1<=$J$5,N$1+COUNTIF(D$2:D72,D72)*$J$7,"") -> 1.95 | O72: =IF(ROW(O72)-1<=$J$5,O$1+COUNTIF(E$2:E72,E72)*$J$7,"") -> 1.13 | P72: =IF(ROW(P72)-1<=$J$5,P$1+COUNTIF(F$2:F72,F72)*$J$7,"") -> 0.13 | Q72: =IF(ROW(Q72)-1<=$J$5,Q$1+COUNTIF(G$2:G72,G72)*$J$7,"") -> -0.87 | R72: =IF(ROW(R72)-1<=$J$5,R$1+COUNTIF(H$2:H72,H72)*$J$7,"") -> -1.87 | S72: =IF(ROW(S72)-1<=$J$5,S$1+COUNTIF(I$2:I72,I72)*$J$7,"") -> -2.87
A73: =IF(ROW(A73)-1<=$J$5,IF(Foglio1!I73="",-10,Foglio1!I73),"") -> -10 | B73: =IF(ROW(B73)-1<=$J$5,IF(Foglio1!J73="",-10,Foglio1!J73),"") -> -10 | C73: =IF(ROW(C73)-1<=$J$5,IF(Foglio1!K73="",-10,Foglio1!K73),"") -> -10 | D73: =IF(ROW(D73)-1<=$J$5,IF(Foglio1!L73="",-10,Foglio1!L73),"") -> -10 | E73: =IF(ROW(E73)-1<=$J$5,IF(Foglio1!M73="",-10,Foglio1!M73),"") -> -10 | F73: =IF(ROW(F73)-1<=$J$5,IF(Foglio1!N73="",-10,Foglio1!N73),"") -> -10 | G73: =IF(ROW(G73)-1<=$J$5,IF(Foglio1!O73="",-10,Foglio1!O73),"") -> -10 | H73: =IF(ROW(H73)-1<=$J$5,IF(Foglio1!P73="",-10,Foglio1!P73),"") -> -10 | I73: =IF(ROW(I73)-1<=$J$5,IF(Foglio1!Q73="",-10,Foglio1!Q73),"") -> -10 | K73: =IF(ROW(K73)-1<=$J$5,K$1+COUNTIF(A$2:A73,A73)*$J$7,"") -> 3.51 | L73: =IF(ROW(L73)-1<=$J$5,L$1+COUNTIF(B$2:B73,B73)*$J$7,"") -> 2.54 | M73: =IF(ROW(M73)-1<=$J$5,M$1+COUNTIF(C$2:C73,C73)*$J$7,"") -> 2.23 | N73: =IF(ROW(N73)-1<=$J$5,N$1+COUNTIF(D$2:D73,D73)*$J$7,"") -> 1.98 | O73: =IF(ROW(O73)-1<=$J$5,O$1+COUNTIF(E$2:E73,E73)*$J$7,"") -> 1.16 | P73: =IF(ROW(P73)-1<=$J$5,P$1+COUNTIF(F$2:F73,F73)*$J$7,"") -> 0.16 | Q73: =IF(ROW(Q73)-1<=$J$5,Q$1+COUNTIF(G$2:G73,G73)*$J$7,"") -> -0.84 | R73: =IF(ROW(R73)-1<=$J$5,R$1+COUNTIF(H$2:H73,H73)*$J$7,"") -> -1.84 | S73: =IF(ROW(S73)-1<=$J$5,S$1+COUNTIF(I$2:I73,I73)*$J$7,"") -> -2.84
A74: =IF(ROW(A74)-1<=$J$5,IF(Foglio1!I74="",-10,Foglio1!I74),"") -> 80 | B74: =IF(ROW(B74)-1<=$J$5,IF(Foglio1!J74="",-10,Foglio1!J74),"") -> 80 | C74: =IF(ROW(C74)-1<=$J$5,IF(Foglio1!K74="",-10,Foglio1!K74),"") -> 60 | D74: =IF(ROW(D74)-1<=$J$5,IF(Foglio1!L74="",-10,Foglio1!L74),"") -> -10 | E74: =IF(ROW(E74)-1<=$J$5,IF(Foglio1!M74="",-10,Foglio1!M74),"") -> -10 | F74: =IF(ROW(F74)-1<=$J$5,IF(Foglio1!N74="",-10,Foglio1!N74),"") -> -10 | G74: =IF(ROW(G74)-1<=$J$5,IF(Foglio1!O74="",-10,Foglio1!O74),"") -> -10 | H74: =IF(ROW(H74)-1<=$J$5,IF(Foglio1!P74="",-10,Foglio1!P74),"") -> -10 | I74: =IF(ROW(I74)-1<=$J$5,IF(Foglio1!Q74="",-10,Foglio1!Q74),"") -> -10 | K74: =IF(ROW(K74)-1<=$J$5,K$1+COUNTIF(A$2:A74,A74)*$J$7,"") -> 3.45 | L74: =IF(ROW(L74)-1<=$J$5,L$1+COUNTIF(B$2:B74,B74)*$J$7,"") -> 2.39 | M74: =IF(ROW(M74)-1<=$J$5,M$1+COUNTIF(C$2:C74,C74)*$J$7,"") -> 1.18 | N74: =IF(ROW(N74)-1<=$J$5,N$1+COUNTIF(D$2:D74,D74)*$J$7,"") -> 2.01 | O74: =IF(ROW(O74)-1<=$J$5,O$1+COUNTIF(E$2:E74,E74)*$J$7,"") -> 1.19 | P74: =IF(ROW(P74)-1<=$J$5,P$1+COUNTIF(F$2:F74,F74)*$J$7,"") -> 0.19 | Q74: =IF(ROW(Q74)-1<=$J$5,Q$1+COUNTIF(G$2:G74,G74)*$J$7,"") -> -0.81 | R74: =IF(ROW(R74)-1<=$J$5,R$1+COUNTIF(H$2:H74,H74)*$J$7,"") -> -1.81 | S74: =IF(ROW(S74)-1<=$J$5,S$1+COUNTIF(I$2:I74,I74)*$J$7,"") -> -2.81
A75: =IF(ROW(A75)-1<=$J$5,IF(Foglio1!I75="",-10,Foglio1!I75),"") -> 25 | B75: =IF(ROW(B75)-1<=$J$5,IF(Foglio1!J75="",-10,Foglio1!J75),"") -> 40 | C75: =IF(ROW(C75)-1<=$J$5,IF(Foglio1!K75="",-10,Foglio1!K75),"") -> -10 | D75: =IF(ROW(D75)-1<=$J$5,IF(Foglio1!L75="",-10,Foglio1!L75),"") -> -10 | E75: =IF(ROW(E75)-1<=$J$5,IF(Foglio1!M75="",-10,Foglio1!M75),"") -> -10 | F75: =IF(ROW(F75)-1<=$J$5,IF(Foglio1!N75="",-10,Foglio1!N75),"") -> -10 | G75: =IF(ROW(G75)-1<=$J$5,IF(Foglio1!O75="",-10,Foglio1!O75),"") -> -10 | H75: =IF(ROW(H75)-1<=$J$5,IF(Foglio1!P75="",-10,Foglio1!P75),"") -> -10 | I75: =IF(ROW(I75)-1<=$J$5,IF(Foglio1!Q75="",-10,Foglio1!Q75),"") -> -10 | K75: =IF(ROW(K75)-1<=$J$5,K$1+COUNTIF(A$2:A75,A75)*$J$7,"") -> 3.03 | L75: =IF(ROW(L75)-1<=$J$5,L$1+COUNTIF(B$2:B75,B75)*$J$7,"") -> 2.03 | M75: =IF(ROW(M75)-1<=$J$5,M$1+COUNTIF(C$2:C75,C75)*$J$7,"") -> 2.26 | N75: =IF(ROW(N75)-1<=$J$5,N$1+COUNTIF(D$2:D75,D75)*$J$7,"") -> 2.04 | O75: =IF(ROW(O75)-1<=$J$5,O$1+COUNTIF(E$2:E75,E75)*$J$7,"") -> 1.22 | P75: =IF(ROW(P75)-1<=$J$5,P$1+COUNTIF(F$2:F75,F75)*$J$7,"") -> 0.22 | Q75: =IF(ROW(Q75)-1<=$J$5,Q$1+COUNTIF(G$2:G75,G75)*$J$7,"") -> -0.78 | R75: =IF(ROW(R75)-1<=$J$5,R$1+COUNTIF(H$2:H75,H75)*$J$7,"") -> -1.78 | S75: =IF(ROW(S75)-1<=$J$5,S$1+COUNTIF(I$2:I75,I75)*$J$7,"") -> -2.78
A76: =IF(ROW(A76)-1<=$J$5,IF(Foglio1!I76="",-10,Foglio1!I76),"") -> -10 | B76: =IF(ROW(B76)-1<=$J$5,IF(Foglio1!J76="",-10,Foglio1!J76),"") -> -10 | C76: =IF(ROW(C76)-1<=$J$5,IF(Foglio1!K76="",-10,Foglio1!K76),"") -> -10 | D76: =IF(ROW(D76)-1<=$J$5,IF(Foglio1!L76="",-10,Foglio1!L76),"") -> -10 | E76: =IF(ROW(E76)-1<=$J$5,IF(Foglio1!M76="",-10,Foglio1!M76),"") -> -10 | F76: =IF(ROW(F76)-1<=$J$5,IF(Foglio1!N76="",-10,Foglio1!N76),"") -> -10 | G76: =IF(ROW(G76)-1<=$J$5,IF(Foglio1!O76="",-10,Foglio1!O76),"") -> -10 | H76: =IF(ROW(H76)-1<=$J$5,IF(Foglio1!P76="",-10,Foglio1!P76),"") -> -10 | I76: =IF(ROW(I76)-1<=$J$5,IF(Foglio1!Q76="",-10,Foglio1!Q76),"") -> -10 | K76: =IF(ROW(K76)-1<=$J$5,K$1+COUNTIF(A$2:A76,A76)*$J$7,"") -> 3.54 | L76: =IF(ROW(L76)-1<=$J$5,L$1+COUNTIF(B$2:B76,B76)*$J$7,"") -> 2.57 | M76: =IF(ROW(M76)-1<=$J$5,M$1+COUNTIF(C$2:C76,C76)*$J$7,"") -> 2.29 | N76: =IF(ROW(N76)-1<=$J$5,N$1+COUNTIF(D$2:D76,D76)*$J$7,"") -> 2.07 | O76: =IF(ROW(O76)-1<=$J$5,O$1+COUNTIF(E$2:E76,E76)*$J$7,"") -> 1.25 | P76: =IF(ROW(P76)-1<=$J$5,P$1+COUNTIF(F$2:F76,F76)*$J$7,"") -> 0.25 | Q76: =IF(ROW(Q76)-1<=$J$5,Q$1+COUNTIF(G$2:G76,G76)*$J$7,"") -> -0.75 | R76: =IF(ROW(R76)-1<=$J$5,R$1+COUNTIF(H$2:H76,H76)*$J$7,"") -> -1.75 | S76: =IF(ROW(S76)-1<=$J$5,S$1+COUNTIF(I$2:I76,I76)*$J$7,"") -> -2.75
A77: =IF(ROW(A77)-1<=$J$5,IF(Foglio1!I77="",-10,Foglio1!I77),"") -> 80 | B77: =IF(ROW(B77)-1<=$J$5,IF(Foglio1!J77="",-10,Foglio1!J77),"") -> 80 | C77: =IF(ROW(C77)-1<=$J$5,IF(Foglio1!K77="",-10,Foglio1!K77),"") -> -10 | D77: =IF(ROW(D77)-1<=$J$5,IF(Foglio1!L77="",-10,Foglio1!L77),"") -> -10 | E77: =IF(ROW(E77)-1<=$J$5,IF(Foglio1!M77="",-10,Foglio1!M77),"") -> -10 | F77: =IF(ROW(F77)-1<=$J$5,IF(Foglio1!N77="",-10,Foglio1!N77),"") -> -10 | G77: =IF(ROW(G77)-1<=$J$5,IF(Foglio1!O77="",-10,Foglio1!O77),"") -> -10 | H77: =IF(ROW(H77)-1<=$J$5,IF(Foglio1!P77="",-10,Foglio1!P77),"") -> -10 | I77: =IF(ROW(I77)-1<=$J$5,IF(Foglio1!Q77="",-10,Foglio1!Q77),"") -> -10 | K77: =IF(ROW(K77)-1<=$J$5,K$1+COUNTIF(A$2:A77,A77)*$J$7,"") -> 3.48 | L77: =IF(ROW(L77)-1<=$J$5,L$1+COUNTIF(B$2:B77,B77)*$J$7,"") -> 2.42 | M77: =IF(ROW(M77)-1<=$J$5,M$1+COUNTIF(C$2:C77,C77)*$J$7,"") -> 2.32 | N77: =IF(ROW(N77)-1<=$J$5,N$1+COUNTIF(D$2:D77,D77)*$J$7,"") -> 2.1 | O77: =IF(ROW(O77)-1<=$J$5,O$1+COUNTIF(E$2:E77,E77)*$J$7,"") -> 1.28 | P77: =IF(ROW(P77)-1<=$J$5,P$1+COUNTIF(F$2:F77,F77)*$J$7,"") -> 0.28 | Q77: =IF(ROW(Q77)-1<=$J$5,Q$1+COUNTIF(G$2:G77,G77)*$J$7,"") -> -0.72 | R77: =IF(ROW(R77)-1<=$J$5,R$1+COUNTIF(H$2:H77,H77)*$J$7,"") -> -1.72 | S77: =IF(ROW(S77)-1<=$J$5,S$1+COUNTIF(I$2:I77,I77)*$J$7,"") -> -2.72
A78: =IF(ROW(A78)-1<=$J$5,IF(Foglio1!I78="",-10,Foglio1!I78),"") -> -10 | B78: =IF(ROW(B78)-1<=$J$5,IF(Foglio1!J78="",-10,Foglio1!J78),"") -> -10 | C78: =IF(ROW(C78)-1<=$J$5,IF(Foglio1!K78="",-10,Foglio1!K78),"") -> -10 | D78: =IF(ROW(D78)-1<=$J$5,IF(Foglio1!L78="",-10,Foglio1!L78),"") -> -10 | E78: =IF(ROW(E78)-1<=$J$5,IF(Foglio1!M78="",-10,Foglio1!M78),"") -> -10 | F78: =IF(ROW(F78)-1<=$J$5,IF(Foglio1!N78="",-10,Foglio1!N78),"") -> -10 | G78: =IF(ROW(G78)-1<=$J$5,IF(Foglio1!O78="",-10,Foglio1!O78),"") -> -10 | H78: =IF(ROW(H78)-1<=$J$5,IF(Foglio1!P78="",-10,Foglio1!P78),"") -> -10 | I78: =IF(ROW(I78)-1<=$J$5,IF(Foglio1!Q78="",-10,Foglio1!Q78),"") -> -10 | K78: =IF(ROW(K78)-1<=$J$5,K$1+COUNTIF(A$2:A78,A78)*$J$7,"") -> 3.57 | L78: =IF(ROW(L78)-1<=$J$5,L$1+COUNTIF(B$2:B78,B78)*$J$7,"") -> 2.6 | M78: =IF(ROW(M78)-1<=$J$5,M$1+COUNTIF(C$2:C78,C78)*$J$7,"") -> 2.35 | N78: =IF(ROW(N78)-1<=$J$5,N$1+COUNTIF(D$2:D78,D78)*$J$7,"") -> 2.13 | O78: =IF(ROW(O78)-1<=$J$5,O$1+COUNTIF(E$2:E78,E78)*$J$7,"") -> 1.31 | P78: =IF(ROW(P78)-1<=$J$5,P$1+COUNTIF(F$2:F78,F78)*$J$7,"") -> 0.31 | Q78: =IF(ROW(Q78)-1<=$J$5,Q$1+COUNTIF(G$2:G78,G78)*$J$7,"") -> -0.69 | R78: =IF(ROW(R78)-1<=$J$5,R$1+COUNTIF(H$2:H78,H78)*$J$7,"") -> -1.69 | S78: =IF(ROW(S78)-1<=$J$5,S$1+COUNTIF(I$2:I78,I78)*$J$7,"") -> -2.69
A79: =IF(ROW(A79)-1<=$J$5,IF(Foglio1!I79="",-10,Foglio1!I79),"") -> 100 | B79: =IF(ROW(B79)-1<=$J$5,IF(Foglio1!J79="",-10,Foglio1!J79),"") -> 100 | C79: =IF(ROW(C79)-1<=$J$5,IF(Foglio1!K79="",-10,Foglio1!K79),"") -> -10 | D79: =IF(ROW(D79)-1<=$J$5,IF(Foglio1!L79="",-10,Foglio1!L79),"") -> -10 | E79: =IF(ROW(E79)-1<=$J$5,IF(Foglio1!M79="",-10,Foglio1!M79),"") -> -10 | F79: =IF(ROW(F79)-1<=$J$5,IF(Foglio1!N79="",-10,Foglio1!N79),"") -> -10 | G79: =IF(ROW(G79)-1<=$J$5,IF(Foglio1!O79="",-10,Foglio1!O79),"") -> -10 | H79: =IF(ROW(H79)-1<=$J$5,IF(Foglio1!P79="",-10,Foglio1!P79),"") -> -10 | I79: =IF(ROW(I79)-1<=$J$5,IF(Foglio1!Q79="",-10,Foglio1!Q79),"") -> -10 | K79: =IF(ROW(K79)-1<=$J$5,K$1+COUNTIF(A$2:A79,A79)*$J$7,"") -> 3.24 | L79: =IF(ROW(L79)-1<=$J$5,L$1+COUNTIF(B$2:B79,B79)*$J$7,"") -> 2.48 | M79: =IF(ROW(M79)-1<=$J$5,M$1+COUNTIF(C$2:C79,C79)*$J$7,"") -> 2.38 | N79: =IF(ROW(N79)-1<=$J$5,N$1+COUNTIF(D$2:D79,D79)*$J$7,"") -> 2.16 | O79: =IF(ROW(O79)-1<=$J$5,O$1+COUNTIF(E$2:E79,E79)*$J$7,"") -> 1.34 | P79: =IF(ROW(P79)-1<=$J$5,P$1+COUNTIF(F$2:F79,F79)*$J$7,"") -> 0.34 | Q79: =IF(ROW(Q79)-1<=$J$5,Q$1+COUNTIF(G$2:G79,G79)*$J$7,"") -> -0.66 | R79: =IF(ROW(R79)-1<=$J$5,R$1+COUNTIF(H$2:H79,H79)*$J$7,"") -> -1.66 | S79: =IF(ROW(S79)-1<=$J$5,S$1+COUNTIF(I$2:I79,I79)*$J$7,"") -> -2.66
A80: =IF(ROW(A80)-1<=$J$5,IF(Foglio1!I80="",-10,Foglio1!I80),"") -> 80 | B80: =IF(ROW(B80)-1<=$J$5,IF(Foglio1!J80="",-10,Foglio1!J80),"") -> 40 | C80: =IF(ROW(C80)-1<=$J$5,IF(Foglio1!K80="",-10,Foglio1!K80),"") -> 60 | D80: =IF(ROW(D80)-1<=$J$5,IF(Foglio1!L80="",-10,Foglio1!L80),"") -> -10 | E80: =IF(ROW(E80)-1<=$J$5,IF(Foglio1!M80="",-10,Foglio1!M80),"") -> -10 | F80: =IF(ROW(F80)-1<=$J$5,IF(Foglio1!N80="",-10,Foglio1!N80),"") -> -10 | G80: =IF(ROW(G80)-1<=$J$5,IF(Foglio1!O80="",-10,Foglio1!O80),"") -> -10 | H80: =IF(ROW(H80)-1<=$J$5,IF(Foglio1!P80="",-10,Foglio1!P80),"") -> -10 | I80: =IF(ROW(I80)-1<=$J$5,IF(Foglio1!Q80="",-10,Foglio1!Q80),"") -> -10 | K80: =IF(ROW(K80)-1<=$J$5,K$1+COUNTIF(A$2:A80,A80)*$J$7,"") -> 3.51 | L80: =IF(ROW(L80)-1<=$J$5,L$1+COUNTIF(B$2:B80,B80)*$J$7,"") -> 2.06 | M80: =IF(ROW(M80)-1<=$J$5,M$1+COUNTIF(C$2:C80,C80)*$J$7,"") -> 1.21 | N80: =IF(ROW(N80)-1<=$J$5,N$1+COUNTIF(D$2:D80,D80)*$J$7,"") -> 2.19 | O80: =IF(ROW(O80)-1<=$J$5,O$1+COUNTIF(E$2:E80,E80)*$J$7,"") -> 1.37 | P80: =IF(ROW(P80)-1<=$J$5,P$1+COUNTIF(F$2:F80,F80)*$J$7,"") -> 0.37 | Q80: =IF(ROW(Q80)-1<=$J$5,Q$1+COUNTIF(G$2:G80,G80)*$J$7,"") -> -0.63 | R80: =IF(ROW(R80)-1<=$J$5,R$1+COUNTIF(H$2:H80,H80)*$J$7,"") -> -1.63 | S80: =IF(ROW(S80)-1<=$J$5,S$1+COUNTIF(I$2:I80,I80)*$J$7,"") -> -2.63
A81: =IF(ROW(A81)-1<=$J$5,IF(Foglio1!I81="",-10,Foglio1!I81),"") -> -10 | B81: =IF(ROW(B81)-1<=$J$5,IF(Foglio1!J81="",-10,Foglio1!J81),"") -> -10 | C81: =IF(ROW(C81)-1<=$J$5,IF(Foglio1!K81="",-10,Foglio1!K81),"") -> -10 | D81: =IF(ROW(D81)-1<=$J$5,IF(Foglio1!L81="",-10,Foglio1!L81),"") -> -10 | E81: =IF(ROW(E81)-1<=$J$5,IF(Foglio1!M81="",-10,Foglio1!M81),"") -> -10 | F81: =IF(ROW(F81)-1<=$J$5,IF(Foglio1!N81="",-10,Foglio1!N81),"") -> -10 | G81: =IF(ROW(G81)-1<=$J$5,IF(Foglio1!O81="",-10,Foglio1!O81),"") -> -10 | H81: =IF(ROW(H81)-1<=$J$5,IF(Foglio1!P81="",-10,Foglio1!P81),"") -> -10 | I81: =IF(ROW(I81)-1<=$J$5,IF(Foglio1!Q81="",-10,Foglio1!Q81),"") -> -10 | K81: =IF(ROW(K81)-1<=$J$5,K$1+COUNTIF(A$2:A81,A81)*$J$7,"") -> 3.6 | L81: =IF(ROW(L81)-1<=$J$5,L$1+COUNTIF(B$2:B81,B81)*$J$7,"") -> 2.63 | M81: =IF(ROW(M81)-1<=$J$5,M$1+COUNTIF(C$2:C81,C81)*$J$7,"") -> 2.41 | N81: =IF(ROW(N81)-1<=$J$5,N$1+COUNTIF(D$2:D81,D81)*$J$7,"") -> 2.22 | O81: =IF(ROW(O81)-1<=$J$5,O$1+COUNTIF(E$2:E81,E81)*$J$7,"") -> 1.4 | P81: =IF(ROW(P81)-1<=$J$5,P$1+COUNTIF(F$2:F81,F81)*$J$7,"") -> 0.4 | Q81: =IF(ROW(Q81)-1<=$J$5,Q$1+COUNTIF(G$2:G81,G81)*$J$7,"") -> -0.6 | R81: =IF(ROW(R81)-1<=$J$5,R$1+COUNTIF(H$2:H81,H81)*$J$7,"") -> -1.6 | S81: =IF(ROW(S81)-1<=$J$5,S$1+COUNTIF(I$2:I81,I81)*$J$7,"") -> -2.6
A82: =IF(ROW(A82)-1<=$J$5,IF(Foglio1!I82="",-10,Foglio1!I82),"") -> -10 | B82: =IF(ROW(B82)-1<=$J$5,IF(Foglio1!J82="",-10,Foglio1!J82),"") -> -10 | C82: =IF(ROW(C82)-1<=$J$5,IF(Foglio1!K82="",-10,Foglio1!K82),"") -> -10 | D82: =IF(ROW(D82)-1<=$J$5,IF(Foglio1!L82="",-10,Foglio1!L82),"") -> -10 | E82: =IF(ROW(E82)-1<=$J$5,IF(Foglio1!M82="",-10,Foglio1!M82),"") -> -10 | F82: =IF(ROW(F82)-1<=$J$5,IF(Foglio1!N82="",-10,Foglio1!N82),"") -> -10 | G82: =IF(ROW(G82)-1<=$J$5,IF(Foglio1!O82="",-10,Foglio1!O82),"") -> -10 | H82: =IF(ROW(H82)-1<=$J$5,IF(Foglio1!P82="",-10,Foglio1!P82),"") -> -10 | I82: =IF(ROW(I82)-1<=$J$5,IF(Foglio1!Q82="",-10,Foglio1!Q82),"") -> -10 | K82: =IF(ROW(K82)-1<=$J$5,K$1+COUNTIF(A$2:A82,A82)*$J$7,"") -> 3.63 | L82: =IF(ROW(L82)-1<=$J$5,L$1+COUNTIF(B$2:B82,B82)*$J$7,"") -> 2.66 | M82: =IF(ROW(M82)-1<=$J$5,M$1+COUNTIF(C$2:C82,C82)*$J$7,"") -> 2.44 | N82: =IF(ROW(N82)-1<=$J$5,N$1+COUNTIF(D$2:D82,D82)*$J$7,"") -> 2.25 | O82: =IF(ROW(O82)-1<=$J$5,O$1+COUNTIF(E$2:E82,E82)*$J$7,"") -> 1.43 | P82: =IF(ROW(P82)-1<=$J$5,P$1+COUNTIF(F$2:F82,F82)*$J$7,"") -> 0.43 | Q82: =IF(ROW(Q82)-1<=$J$5,Q$1+COUNTIF(G$2:G82,G82)*$J$7,"") -> -0.57 | R82: =IF(ROW(R82)-1<=$J$5,R$1+COUNTIF(H$2:H82,H82)*$J$7,"") -> -1.57 | S82: =IF(ROW(S82)-1<=$J$5,S$1+COUNTIF(I$2:I82,I82)*$J$7,"") -> -2.57
A83: =IF(ROW(A83)-1<=$J$5,IF(Foglio1!I83="",-10,Foglio1!I83),"") -> 70 | B83: =IF(ROW(B83)-1<=$J$5,IF(Foglio1!J83="",-10,Foglio1!J83),"") -> 80 | C83: =IF(ROW(C83)-1<=$J$5,IF(Foglio1!K83="",-10,Foglio1!K83),"") -> 40 | D83: =IF(ROW(D83)-1<=$J$5,IF(Foglio1!L83="",-10,Foglio1!L83),"") -> -10 | E83: =IF(ROW(E83)-1<=$J$5,IF(Foglio1!M83="",-10,Foglio1!M83),"") -> -10 | F83: =IF(ROW(F83)-1<=$J$5,IF(Foglio1!N83="",-10,Foglio1!N83),"") -> -10 | G83: =IF(ROW(G83)-1<=$J$5,IF(Foglio1!O83="",-10,Foglio1!O83),"") -> -10 | H83: =IF(ROW(H83)-1<=$J$5,IF(Foglio1!P83="",-10,Foglio1!P83),"") -> -10 | I83: =IF(ROW(I83)-1<=$J$5,IF(Foglio1!Q83="",-10,Foglio1!Q83),"") -> -10 | K83: =IF(ROW(K83)-1<=$J$5,K$1+COUNTIF(A$2:A83,A83)*$J$7,"") -> 3.27 | L83: =IF(ROW(L83)-1<=$J$5,L$1+COUNTIF(B$2:B83,B83)*$J$7,"") -> 2.45 | M83: =IF(ROW(M83)-1<=$J$5,M$1+COUNTIF(C$2:C83,C83)*$J$7,"") -> 1.06 | N83: =IF(ROW(N83)-1<=$J$5,N$1+COUNTIF(D$2:D83,D83)*$J$7,"") -> 2.28 | O83: =IF(ROW(O83)-1<=$J$5,O$1+COUNTIF(E$2:E83,E83)*$J$7,"") -> 1.46 | P83: =IF(ROW(P83)-1<=$J$5,P$1+COUNTIF(F$2:F83,F83)*$J$7,"") -> 0.46 | Q83: =IF(ROW(Q83)-1<=$J$5,Q$1+COUNTIF(G$2:G83,G83)*$J$7,"") -> -0.54 | R83: =IF(ROW(R83)-1<=$J$5,R$1+COUNTIF(H$2:H83,H83)*$J$7,"") -> -1.54 | S83: =IF(ROW(S83)-1<=$J$5,S$1+COUNTIF(I$2:I83,I83)*$J$7,"") -> -2.54
A84: =IF(ROW(A84)-1<=$J$5,IF(Foglio1!I84="",-10,Foglio1!I84),"") -> 80 | B84: =IF(ROW(B84)-1<=$J$5,IF(Foglio1!J84="",-10,Foglio1!J84),"") -> 80 | C84: =IF(ROW(C84)-1<=$J$5,IF(Foglio1!K84="",-10,Foglio1!K84),"") -> -10 | D84: =IF(ROW(D84)-1<=$J$5,IF(Foglio1!L84="",-10,Foglio1!L84),"") -> -10 | E84: =IF(ROW(E84)-1<=$J$5,IF(Foglio1!M84="",-10,Foglio1!M84),"") -> -10 | F84: =IF(ROW(F84)-1<=$J$5,IF(Foglio1!N84="",-10,Foglio1!N84),"") -> -10 | G84: =IF(ROW(G84)-1<=$J$5,IF(Foglio1!O84="",-10,Foglio1!O84),"") -> -10 | H84: =IF(ROW(H84)-1<=$J$5,IF(Foglio1!P84="",-10,Foglio1!P84),"") -> -10 | I84: =IF(ROW(I84)-1<=$J$5,IF(Foglio1!Q84="",-10,Foglio1!Q84),"") -> -10 | K84: =IF(ROW(K84)-1<=$J$5,K$1+COUNTIF(A$2:A84,A84)*$J$7,"") -> 3.54 | L84: =IF(ROW(L84)-1<=$J$5,L$1+COUNTIF(B$2:B84,B84)*$J$7,"") -> 2.48 | M84: =IF(ROW(M84)-1<=$J$5,M$1+COUNTIF(C$2:C84,C84)*$J$7,"") -> 2.47 | N84: =IF(ROW(N84)-1<=$J$5,N$1+COUNTIF(D$2:D84,D84)*$J$7,"") -> 2.31 | O84: =IF(ROW(O84)-1<=$J$5,O$1+COUNTIF(E$2:E84,E84)*$J$7,"") -> 1.49 | P84: =IF(ROW(P84)-1<=$J$5,P$1+COUNTIF(F$2:F84,F84)*$J$7,"") -> 0.49 | Q84: =IF(ROW(Q84)-1<=$J$5,Q$1+COUNTIF(G$2:G84,G84)*$J$7,"") -> -0.51 | R84: =IF(ROW(R84)-1<=$J$5,R$1+COUNTIF(H$2:H84,H84)*$J$7,"") -> -1.51 | S84: =IF(ROW(S84)-1<=$J$5,S$1+COUNTIF(I$2:I84,I84)*$J$7,"") -> -2.51
A85: =IF(ROW(A85)-1<=$J$5,IF(Foglio1!I85="",-10,Foglio1!I85),"") -> 85 | B85: =IF(ROW(B85)-1<=$J$5,IF(Foglio1!J85="",-10,Foglio1!J85),"") -> 85 | C85: =IF(ROW(C85)-1<=$J$5,IF(Foglio1!K85="",-10,Foglio1!K85),"") -> 85 | D85: =IF(ROW(D85)-1<=$J$5,IF(Foglio1!L85="",-10,Foglio1!L85),"") -> -10 | E85: =IF(ROW(E85)-1<=$J$5,IF(Foglio1!M85="",-10,Foglio1!M85),"") -> -10 | F85: =IF(ROW(F85)-1<=$J$5,IF(Foglio1!N85="",-10,Foglio1!N85),"") -> -10 | G85: =IF(ROW(G85)-1<=$J$5,IF(Foglio1!O85="",-10,Foglio1!O85),"") -> -10 | H85: =IF(ROW(H85)-1<=$J$5,IF(Foglio1!P85="",-10,Foglio1!P85),"") -> -10 | I85: =IF(ROW(I85)-1<=$J$5,IF(Foglio1!Q85="",-10,Foglio1!Q85),"") -> -10 | K85: =IF(ROW(K85)-1<=$J$5,K$1+COUNTIF(A$2:A85,A85)*$J$7,"") -> 3.06 | L85: =IF(ROW(L85)-1<=$J$5,L$1+COUNTIF(B$2:B85,B85)*$J$7,"") -> 2.09 | M85: =IF(ROW(M85)-1<=$J$5,M$1+COUNTIF(C$2:C85,C85)*$J$7,"") -> 1.03 | N85: =IF(ROW(N85)-1<=$J$5,N$1+COUNTIF(D$2:D85,D85)*$J$7,"") -> 2.34 | O85: =IF(ROW(O85)-1<=$J$5,O$1+COUNTIF(E$2:E85,E85)*$J$7,"") -> 1.52 | P85: =IF(ROW(P85)-1<=$J$5,P$1+COUNTIF(F$2:F85,F85)*$J$7,"") -> 0.52 | Q85: =IF(ROW(Q85)-1<=$J$5,Q$1+COUNTIF(G$2:G85,G85)*$J$7,"") -> -0.48 | R85: =IF(ROW(R85)-1<=$J$5,R$1+COUNTIF(H$2:H85,H85)*$J$7,"") -> -1.48 | S85: =IF(ROW(S85)-1<=$J$5,S$1+COUNTIF(I$2:I85,I85)*$J$7,"") -> -2.48
A86: =IF(ROW(A86)-1<=$J$5,IF(Foglio1!I86="",-10,Foglio1!I86),"") -> 70 | B86: =IF(ROW(B86)-1<=$J$5,IF(Foglio1!J86="",-10,Foglio1!J86),"") -> 80 | C86: =IF(ROW(C86)-1<=$J$5,IF(Foglio1!K86="",-10,Foglio1!K86),"") -> 60 | D86: =IF(ROW(D86)-1<=$J$5,IF(Foglio1!L86="",-10,Foglio1!L86),"") -> -10 | E86: =IF(ROW(E86)-1<=$J$5,IF(Foglio1!M86="",-10,Foglio1!M86),"") -> -10 | F86: =IF(ROW(F86)-1<=$J$5,IF(Foglio1!N86="",-10,Foglio1!N86),"") -> -10 | G86: =IF(ROW(G86)-1<=$J$5,IF(Foglio1!O86="",-10,Foglio1!O86),"") -> -10 | H86: =IF(ROW(H86)-1<=$J$5,IF(Foglio1!P86="",-10,Foglio1!P86),"") -> -10 | I86: =IF(ROW(I86)-1<=$J$5,IF(Foglio1!Q86="",-10,Foglio1!Q86),"") -> -10 | K86: =IF(ROW(K86)-1<=$J$5,K$1+COUNTIF(A$2:A86,A86)*$J$7,"") -> 3.3 | L86: =IF(ROW(L86)-1<=$J$5,L$1+COUNTIF(B$2:B86,B86)*$J$7,"") -> 2.51 | M86: =IF(ROW(M86)-1<=$J$5,M$1+COUNTIF(C$2:C86,C86)*$J$7,"") -> 1.24 | N86: =IF(ROW(N86)-1<=$J$5,N$1+COUNTIF(D$2:D86,D86)*$J$7,"") -> 2.37 | O86: =IF(ROW(O86)-1<=$J$5,O$1+COUNTIF(E$2:E86,E86)*$J$7,"") -> 1.55 | P86: =IF(ROW(P86)-1<=$J$5,P$1+COUNTIF(F$2:F86,F86)*$J$7,"") -> 0.55 | Q86: =IF(ROW(Q86)-1<=$J$5,Q$1+COUNTIF(G$2:G86,G86)*$J$7,"") -> -0.45 | R86: =IF(ROW(R86)-1<=$J$5,R$1+COUNTIF(H$2:H86,H86)*$J$7,"") -> -1.45 | S86: =IF(ROW(S86)-1<=$J$5,S$1+COUNTIF(I$2:I86,I86)*$J$7,"") -> -2.45
A87: =IF(ROW(A87)-1<=$J$5,IF(Foglio1!I87="",-10,Foglio1!I87),"") -> 60 | B87: =IF(ROW(B87)-1<=$J$5,IF(Foglio1!J87="",-10,Foglio1!J87),"") -> 80 | C87: =IF(ROW(C87)-1<=$J$5,IF(Foglio1!K87="",-10,Foglio1!K87),"") -> 60 | D87: =IF(ROW(D87)-1<=$J$5,IF(Foglio1!L87="",-10,Foglio1!L87),"") -> -10 | E87: =IF(ROW(E87)-1<=$J$5,IF(Foglio1!M87="",-10,Foglio1!M87),"") -> -10 | F87: =IF(ROW(F87)-1<=$J$5,IF(Foglio1!N87="",-10,Foglio1!N87),"") -> -10 | G87: =IF(ROW(G87)-1<=$J$5,IF(Foglio1!O87="",-10,Foglio1!O87),"") -> -10 | H87: =IF(ROW(H87)-1<=$J$5,IF(Foglio1!P87="",-10,Foglio1!P87),"") -> -10 | I87: =IF(ROW(I87)-1<=$J$5,IF(Foglio1!Q87="",-10,Foglio1!Q87),"") -> -10 | K87: =IF(ROW(K87)-1<=$J$5,K$1+COUNTIF(A$2:A87,A87)*$J$7,"") -> 3.12 | L87: =IF(ROW(L87)-1<=$J$5,L$1+COUNTIF(B$2:B87,B87)*$J$7,"") -> 2.54 | M87: =IF(ROW(M87)-1<=$J$5,M$1+COUNTIF(C$2:C87,C87)*$J$7,"") -> 1.27 | N87: =IF(ROW(N87)-1<=$J$5,N$1+COUNTIF(D$2:D87,D87)*$J$7,"") -> 2.4 | O87: =IF(ROW(O87)-1<=$J$5,O$1+COUNTIF(E$2:E87,E87)*$J$7,"") -> 1.58 | P87: =IF(ROW(P87)-1<=$J$5,P$1+COUNTIF(F$2:F87,F87)*$J$7,"") -> 0.58 | Q87: =IF(ROW(Q87)-1<=$J$5,Q$1+COUNTIF(G$2:G87,G87)*$J$7,"") -> -0.42 | R87: =IF(ROW(R87)-1<=$J$5,R$1+COUNTIF(H$2:H87,H87)*$J$7,"") -> -1.42 | S87: =IF(ROW(S87)-1<=$J$5,S$1+COUNTIF(I$2:I87,I87)*$J$7,"") -> -2.42
A88: =IF(ROW(A88)-1<=$J$5,IF(Foglio1!I88="",-10,Foglio1!I88),"") -> -10 | B88: =IF(ROW(B88)-1<=$J$5,IF(Foglio1!J88="",-10,Foglio1!J88),"") -> -10 | C88: =IF(ROW(C88)-1<=$J$5,IF(Foglio1!K88="",-10,Foglio1!K88),"") -> -10 | D88: =IF(ROW(D88)-1<=$J$5,IF(Foglio1!L88="",-10,Foglio1!L88),"") -> -10 | E88: =IF(ROW(E88)-1<=$J$5,IF(Foglio1!M88="",-10,Foglio1!M88),"") -> -10 | F88: =IF(ROW(F88)-1<=$J$5,IF(Foglio1!N88="",-10,Foglio1!N88),"") -> -10 | G88: =IF(ROW(G88)-1<=$J$5,IF(Foglio1!O88="",-10,Foglio1!O88),"") -> -10 | H88: =IF(ROW(H88)-1<=$J$5,IF(Foglio1!P88="",-10,Foglio1!P88),"") -> -10 | I88: =IF(ROW(I88)-1<=$J$5,IF(Foglio1!Q88="",-10,Foglio1!Q88),"") -> -10 | K88: =IF(ROW(K88)-1<=$J$5,K$1+COUNTIF(A$2:A88,A88)*$J$7,"") -> 3.66 | L88: =IF(ROW(L88)-1<=$J$5,L$1+COUNTIF(B$2:B88,B88)*$J$7,"") -> 2.69 | M88: =IF(ROW(M88)-1<=$J$5,M$1+COUNTIF(C$2:C88,C88)*$J$7,"") -> 2.5 | N88: =IF(ROW(N88)-1<=$J$5,N$1+COUNTIF(D$2:D88,D88)*$J$7,"") -> 2.43 | O88: =IF(ROW(O88)-1<=$J$5,O$1+COUNTIF(E$2:E88,E88)*$J$7,"") -> 1.61 | P88: =IF(ROW(P88)-1<=$J$5,P$1+COUNTIF(F$2:F88,F88)*$J$7,"") -> 0.61 | Q88: =IF(ROW(Q88)-1<=$J$5,Q$1+COUNTIF(G$2:G88,G88)*$J$7,"") -> -0.39 | R88: =IF(ROW(R88)-1<=$J$5,R$1+COUNTIF(H$2:H88,H88)*$J$7,"") -> -1.39 | S88: =IF(ROW(S88)-1<=$J$5,S$1+COUNTIF(I$2:I88,I88)*$J$7,"") -> -2.39
A89: =IF(ROW(A89)-1<=$J$5,IF(Foglio1!I89="",-10,Foglio1!I89),"") -> -10 | B89: =IF(ROW(B89)-1<=$J$5,IF(Foglio1!J89="",-10,Foglio1!J89),"") -> -10 | C89: =IF(ROW(C89)-1<=$J$5,IF(Foglio1!K89="",-10,Foglio1!K89),"") -> -10 | D89: =IF(ROW(D89)-1<=$J$5,IF(Foglio1!L89="",-10,Foglio1!L89),"") -> -10 | E89: =IF(ROW(E89)-1<=$J$5,IF(Foglio1!M89="",-10,Foglio1!M89),"") -> -10 | F89: =IF(ROW(F89)-1<=$J$5,IF(Foglio1!N89="",-10,Foglio1!N89),"") -> -10 | G89: =IF(ROW(G89)-1<=$J$5,IF(Foglio1!O89="",-10,Foglio1!O89),"") -> -10 | H89: =IF(ROW(H89)-1<=$J$5,IF(Foglio1!P89="",-10,Foglio1!P89),"") -> -10 | I89: =IF(ROW(I89)-1<=$J$5,IF(Foglio1!Q89="",-10,Foglio1!Q89),"") -> -10 | K89: =IF(ROW(K89)-1<=$J$5,K$1+COUNTIF(A$2:A89,A89)*$J$7,"") -> 3.69 | L89: =IF(ROW(L89)-1<=$J$5,L$1+COUNTIF(B$2:B89,B89)*$J$7,"") -> 2.72 | M89: =IF(ROW(M89)-1<=$J$5,M$1+COUNTIF(C$2:C89,C89)*$J$7,"") -> 2.53 | N89: =IF(ROW(N89)-1<=$J$5,N$1+COUNTIF(D$2:D89,D89)*$J$7,"") -> 2.46 | O89: =IF(ROW(O89)-1<=$J$5,O$1+COUNTIF(E$2:E89,E89)*$J$7,"") -> 1.64 | P89: =IF(ROW(P89)-1<=$J$5,P$1+COUNTIF(F$2:F89,F89)*$J$7,"") -> 0.64 | Q89: =IF(ROW(Q89)-1<=$J$5,Q$1+COUNTIF(G$2:G89,G89)*$J$7,"") -> -0.36 | R89: =IF(ROW(R89)-1<=$J$5,R$1+COUNTIF(H$2:H89,H89)*$J$7,"") -> -1.36 | S89: =IF(ROW(S89)-1<=$J$5,S$1+COUNTIF(I$2:I89,I89)*$J$7,"") -> -2.36
A90: =IF(ROW(A90)-1<=$J$5,IF(Foglio1!I90="",-10,Foglio1!I90),"") -> 10 | B90: =IF(ROW(B90)-1<=$J$5,IF(Foglio1!J90="",-10,Foglio1!J90),"") -> 70 | C90: =IF(ROW(C90)-1<=$J$5,IF(Foglio1!K90="",-10,Foglio1!K90),"") -> 80 | D90: =IF(ROW(D90)-1<=$J$5,IF(Foglio1!L90="",-10,Foglio1!L90),"") -> -10 | E90: =IF(ROW(E90)-1<=$J$5,IF(Foglio1!M90="",-10,Foglio1!M90),"") -> -10 | F90: =IF(ROW(F90)-1<=$J$5,IF(Foglio1!N90="",-10,Foglio1!N90),"") -> -10 | G90: =IF(ROW(G90)-1<=$J$5,IF(Foglio1!O90="",-10,Foglio1!O90),"") -> -10 | H90: =IF(ROW(H90)-1<=$J$5,IF(Foglio1!P90="",-10,Foglio1!P90),"") -> -10 | I90: =IF(ROW(I90)-1<=$J$5,IF(Foglio1!Q90="",-10,Foglio1!Q90),"") -> -10 | K90: =IF(ROW(K90)-1<=$J$5,K$1+COUNTIF(A$2:A90,A90)*$J$7,"") -> 3.06 | L90: =IF(ROW(L90)-1<=$J$5,L$1+COUNTIF(B$2:B90,B90)*$J$7,"") -> 2.15 | M90: =IF(ROW(M90)-1<=$J$5,M$1+COUNTIF(C$2:C90,C90)*$J$7,"") -> 1.12 | N90: =IF(ROW(N90)-1<=$J$5,N$1+COUNTIF(D$2:D90,D90)*$J$7,"") -> 2.49 | O90: =IF(ROW(O90)-1<=$J$5,O$1+COUNTIF(E$2:E90,E90)*$J$7,"") -> 1.67 | P90: =IF(ROW(P90)-1<=$J$5,P$1+COUNTIF(F$2:F90,F90)*$J$7,"") -> 0.67 | Q90: =IF(ROW(Q90)-1<=$J$5,Q$1+COUNTIF(G$2:G90,G90)*$J$7,"") -> -0.33 | R90: =IF(ROW(R90)-1<=$J$5,R$1+COUNTIF(H$2:H90,H90)*$J$7,"") -> -1.33 | S90: =IF(ROW(S90)-1<=$J$5,S$1+COUNTIF(I$2:I90,I90)*$J$7,"") -> -2.33
A91: =IF(ROW(A91)-1<=$J$5,IF(Foglio1!I91="",-10,Foglio1!I91),"") -> -10 | B91: =IF(ROW(B91)-1<=$J$5,IF(Foglio1!J91="",-10,Foglio1!J91),"") -> -10 | C91: =IF(ROW(C91)-1<=$J$5,IF(Foglio1!K91="",-10,Foglio1!K91),"") -> -10 | D91: =IF(ROW(D91)-1<=$J$5,IF(Foglio1!L91="",-10,Foglio1!L91),"") -> -10 | E91: =IF(ROW(E91)-1<=$J$5,IF(Foglio1!M91="",-10,Foglio1!M91),"") -> -10 | F91: =IF(ROW(F91)-1<=$J$5,IF(Foglio1!N91="",-10,Foglio1!N91),"") -> -10 | G91: =IF(ROW(G91)-1<=$J$5,IF(Foglio1!O91="",-10,Foglio1!O91),"") -> -10 | H91: =IF(ROW(H91)-1<=$J$5,IF(Foglio1!P91="",-10,Foglio1!P91),"") -> -10 | I91: =IF(ROW(I91)-1<=$J$5,IF(Foglio1!Q91="",-10,Foglio1!Q91),"") -> -10 | K91: =IF(ROW(K91)-1<=$J$5,K$1+COUNTIF(A$2:A91,A91)*$J$7,"") -> 3.72 | L91: =IF(ROW(L91)-1<=$J$5,L$1+COUNTIF(B$2:B91,B91)*$J$7,"") -> 2.75 | M91: =IF(ROW(M91)-1<=$J$5,M$1+COUNTIF(C$2:C91,C91)*$J$7,"") -> 2.56 | N91: =IF(ROW(N91)-1<=$J$5,N$1+COUNTIF(D$2:D91,D91)*$J$7,"") -> 2.52 | O91: =IF(ROW(O91)-1<=$J$5,O$1+COUNTIF(E$2:E91,E91)*$J$7,"") -> 1.7 | P91: =IF(ROW(P91)-1<=$J$5,P$1+COUNTIF(F$2:F91,F91)*$J$7,"") -> 0.7 | Q91: =IF(ROW(Q91)-1<=$J$5,Q$1+COUNTIF(G$2:G91,G91)*$J$7,"") -> -0.3 | R91: =IF(ROW(R91)-1<=$J$5,R$1+COUNTIF(H$2:H91,H91)*$J$7,"") -> -1.3 | S91: =IF(ROW(S91)-1<=$J$5,S$1+COUNTIF(I$2:I91,I91)*$J$7,"") -> -2.3
A92: =IF(ROW(A92)-1<=$J$5,IF(Foglio1!I92="",-10,Foglio1!I92),"") -> -10 | B92: =IF(ROW(B92)-1<=$J$5,IF(Foglio1!J92="",-10,Foglio1!J92),"") -> -10 | C92: =IF(ROW(C92)-1<=$J$5,IF(Foglio1!K92="",-10,Foglio1!K92),"") -> -10 | D92: =IF(ROW(D92)-1<=$J$5,IF(Foglio1!L92="",-10,Foglio1!L92),"") -> -10 | E92: =IF(ROW(E92)-1<=$J$5,IF(Foglio1!M92="",-10,Foglio1!M92),"") -> -10 | F92: =IF(ROW(F92)-1<=$J$5,IF(Foglio1!N92="",-10,Foglio1!N92),"") -> -10 | G92: =IF(ROW(G92)-1<=$J$5,IF(Foglio1!O92="",-10,Foglio1!O92),"") -> -10 | H92: =IF(ROW(H92)-1<=$J$5,IF(Foglio1!P92="",-10,Foglio1!P92),"") -> -10 | I92: =IF(ROW(I92)-1<=$J$5,IF(Foglio1!Q92="",-10,Foglio1!Q92),"") -> -10 | K92: =IF(ROW(K92)-1<=$J$5,K$1+COUNTIF(A$2:A92,A92)*$J$7,"") -> 3.75 | L92: =IF(ROW(L92)-1<=$J$5,L$1+COUNTIF(B$2:B92,B92)*$J$7,"") -> 2.78 | M92: =IF(ROW(M92)-1<=$J$5,M$1+COUNTIF(C$2:C92,C92)*$J$7,"") -> 2.59 | N92: =IF(ROW(N92)-1<=$J$5,N$1+COUNTIF(D$2:D92,D92)*$J$7,"") -> 2.55 | O92: =IF(ROW(O92)-1<=$J$5,O$1+COUNTIF(E$2:E92,E92)*$J$7,"") -> 1.73 | P92: =IF(ROW(P92)-1<=$J$5,P$1+COUNTIF(F$2:F92,F92)*$J$7,"") -> 0.73 | Q92: =IF(ROW(Q92)-1<=$J$5,Q$1+COUNTIF(G$2:G92,G92)*$J$7,"") -> -0.27 | R92: =IF(ROW(R92)-1<=$J$5,R$1+COUNTIF(H$2:H92,H92)*$J$7,"") -> -1.27 | S92: =IF(ROW(S92)-1<=$J$5,S$1+COUNTIF(I$2:I92,I92)*$J$7,"") -> -2.27
A93: =IF(ROW(A93)-1<=$J$5,IF(Foglio1!I93="",-10,Foglio1!I93),"") -> 100 | B93: =IF(ROW(B93)-1<=$J$5,IF(Foglio1!J93="",-10,Foglio1!J93),"") -> 100 | C93: =IF(ROW(C93)-1<=$J$5,IF(Foglio1!K93="",-10,Foglio1!K93),"") -> -10 | D93: =IF(ROW(D93)-1<=$J$5,IF(Foglio1!L93="",-10,Foglio1!L93),"") -> -10 | E93: =IF(ROW(E93)-1<=$J$5,IF(Foglio1!M93="",-10,Foglio1!M93),"") -> -10 | F93: =IF(ROW(F93)-1<=$J$5,IF(Foglio1!N93="",-10,Foglio1!N93),"") -> -10 | G93: =IF(ROW(G93)-1<=$J$5,IF(Foglio1!O93="",-10,Foglio1!O93),"") -> -10 | H93: =IF(ROW(H93)-1<=$J$5,IF(Foglio1!P93="",-10,Foglio1!P93),"") -> -10 | I93: =IF(ROW(I93)-1<=$J$5,IF(Foglio1!Q93="",-10,Foglio1!Q93),"") -> -10 | K93: =IF(ROW(K93)-1<=$J$5,K$1+COUNTIF(A$2:A93,A93)*$J$7,"") -> 3.27 | L93: =IF(ROW(L93)-1<=$J$5,L$1+COUNTIF(B$2:B93,B93)*$J$7,"") -> 2.51 | M93: =IF(ROW(M93)-1<=$J$5,M$1+COUNTIF(C$2:C93,C93)*$J$7,"") -> 2.62 | N93: =IF(ROW(N93)-1<=$J$5,N$1+COUNTIF(D$2:D93,D93)*$J$7,"") -> 2.58 | O93: =IF(ROW(O93)-1<=$J$5,O$1+COUNTIF(E$2:E93,E93)*$J$7,"") -> 1.76 | P93: =IF(ROW(P93)-1<=$J$5,P$1+COUNTIF(F$2:F93,F93)*$J$7,"") -> 0.76 | Q93: =IF(ROW(Q93)-1<=$J$5,Q$1+COUNTIF(G$2:G93,G93)*$J$7,"") -> -0.24 | R93: =IF(ROW(R93)-1<=$J$5,R$1+COUNTIF(H$2:H93,H93)*$J$7,"") -> -1.24 | S93: =IF(ROW(S93)-1<=$J$5,S$1+COUNTIF(I$2:I93,I93)*$J$7,"") -> -2.24
A94: =IF(ROW(A94)-1<=$J$5,IF(Foglio1!I94="",-10,Foglio1!I94),"") -> 50 | B94: =IF(ROW(B94)-1<=$J$5,IF(Foglio1!J94="",-10,Foglio1!J94),"") -> 50 | C94: =IF(ROW(C94)-1<=$J$5,IF(Foglio1!K94="",-10,Foglio1!K94),"") -> -10 | D94: =IF(ROW(D94)-1<=$J$5,IF(Foglio1!L94="",-10,Foglio1!L94),"") -> -10 | E94: =IF(ROW(E94)-1<=$J$5,IF(Foglio1!M94="",-10,Foglio1!M94),"") -> -10 | F94: =IF(ROW(F94)-1<=$J$5,IF(Foglio1!N94="",-10,Foglio1!N94),"") -> -10 | G94: =IF(ROW(G94)-1<=$J$5,IF(Foglio1!O94="",-10,Foglio1!O94),"") -> -10 | H94: =IF(ROW(H94)-1<=$J$5,IF(Foglio1!P94="",-10,Foglio1!P94),"") -> -10 | I94: =IF(ROW(I94)-1<=$J$5,IF(Foglio1!Q94="",-10,Foglio1!Q94),"") -> -10 | K94: =IF(ROW(K94)-1<=$J$5,K$1+COUNTIF(A$2:A94,A94)*$J$7,"") -> 3.18 | L94: =IF(ROW(L94)-1<=$J$5,L$1+COUNTIF(B$2:B94,B94)*$J$7,"") -> 2.12 | M94: =IF(ROW(M94)-1<=$J$5,M$1+COUNTIF(C$2:C94,C94)*$J$7,"") -> 2.65 | N94: =IF(ROW(N94)-1<=$J$5,N$1+COUNTIF(D$2:D94,D94)*$J$7,"") -> 2.61 | O94: =IF(ROW(O94)-1<=$J$5,O$1+COUNTIF(E$2:E94,E94)*$J$7,"") -> 1.79 | P94: =IF(ROW(P94)-1<=$J$5,P$1+COUNTIF(F$2:F94,F94)*$J$7,"") -> 0.79 | Q94: =IF(ROW(Q94)-1<=$J$5,Q$1+COUNTIF(G$2:G94,G94)*$J$7,"") -> -0.21 | R94: =IF(ROW(R94)-1<=$J$5,R$1+COUNTIF(H$2:H94,H94)*$J$7,"") -> -1.21 | S94: =IF(ROW(S94)-1<=$J$5,S$1+COUNTIF(I$2:I94,I94)*$J$7,"") -> -2.21
A95: =IF(ROW(A95)-1<=$J$5,IF(Foglio1!I95="",-10,Foglio1!I95),"") -> -10 | B95: =IF(ROW(B95)-1<=$J$5,IF(Foglio1!J95="",-10,Foglio1!J95),"") -> -10 | C95: =IF(ROW(C95)-1<=$J$5,IF(Foglio1!K95="",-10,Foglio1!K95),"") -> -10 | D95: =IF(ROW(D95)-1<=$J$5,IF(Foglio1!L95="",-10,Foglio1!L95),"") -> -10 | E95: =IF(ROW(E95)-1<=$J$5,IF(Foglio1!M95="",-10,Foglio1!M95),"") -> -10 | F95: =IF(ROW(F95)-1<=$J$5,IF(Foglio1!N95="",-10,Foglio1!N95),"") -> -10 | G95: =IF(ROW(G95)-1<=$J$5,IF(Foglio1!O95="",-10,Foglio1!O95),"") -> -10 | H95: =IF(ROW(H95)-1<=$J$5,IF(Foglio1!P95="",-10,Foglio1!P95),"") -> -10 | I95: =IF(ROW(I95)-1<=$J$5,IF(Foglio1!Q95="",-10,Foglio1!Q95),"") -> -10 | K95: =IF(ROW(K95)-1<=$J$5,K$1+COUNTIF(A$2:A95,A95)*$J$7,"") -> 3.78 | L95: =IF(ROW(L95)-1<=$J$5,L$1+COUNTIF(B$2:B95,B95)*$J$7,"") -> 2.81 | M95: =IF(ROW(M95)-1<=$J$5,M$1+COUNTIF(C$2:C95,C95)*$J$7,"") -> 2.68 | N95: =IF(ROW(N95)-1<=$J$5,N$1+COUNTIF(D$2:D95,D95)*$J$7,"") -> 2.64 | O95: =IF(ROW(O95)-1<=$J$5,O$1+COUNTIF(E$2:E95,E95)*$J$7,"") -> 1.82 | P95: =IF(ROW(P95)-1<=$J$5,P$1+COUNTIF(F$2:F95,F95)*$J$7,"") -> 0.82 | Q95: =IF(ROW(Q95)-1<=$J$5,Q$1+COUNTIF(G$2:G95,G95)*$J$7,"") -> -0.18 | R95: =IF(ROW(R95)-1<=$J$5,R$1+COUNTIF(H$2:H95,H95)*$J$7,"") -> -1.18 | S95: =IF(ROW(S95)-1<=$J$5,S$1+COUNTIF(I$2:I95,I95)*$J$7,"") -> -2.18
A96: =IF(ROW(A96)-1<=$J$5,IF(Foglio1!I96="",-10,Foglio1!I96),"") -> 80 | B96: =IF(ROW(B96)-1<=$J$5,IF(Foglio1!J96="",-10,Foglio1!J96),"") -> 100 | C96: =IF(ROW(C96)-1<=$J$5,IF(Foglio1!K96="",-10,Foglio1!K96),"") -> -10 | D96: =IF(ROW(D96)-1<=$J$5,IF(Foglio1!L96="",-10,Foglio1!L96),"") -> -10 | E96: =IF(ROW(E96)-1<=$J$5,IF(Foglio1!M96="",-10,Foglio1!M96),"") -> -10 | F96: =IF(ROW(F96)-1<=$J$5,IF(Foglio1!N96="",-10,Foglio1!N96),"") -> -10 | G96: =IF(ROW(G96)-1<=$J$5,IF(Foglio1!O96="",-10,Foglio1!O96),"") -> -10 | H96: =IF(ROW(H96)-1<=$J$5,IF(Foglio1!P96="",-10,Foglio1!P96),"") -> -10 | I96: =IF(ROW(I96)-1<=$J$5,IF(Foglio1!Q96="",-10,Foglio1!Q96),"") -> -10 | K96: =IF(ROW(K96)-1<=$J$5,K$1+COUNTIF(A$2:A96,A96)*$J$7,"") -> 3.57 | L96: =IF(ROW(L96)-1<=$J$5,L$1+COUNTIF(B$2:B96,B96)*$J$7,"") -> 2.54 | M96: =IF(ROW(M96)-1<=$J$5,M$1+COUNTIF(C$2:C96,C96)*$J$7,"") -> 2.71 | N96: =IF(ROW(N96)-1<=$J$5,N$1+COUNTIF(D$2:D96,D96)*$J$7,"") -> 2.67 | O96: =IF(ROW(O96)-1<=$J$5,O$1+COUNTIF(E$2:E96,E96)*$J$7,"") -> 1.85 | P96: =IF(ROW(P96)-1<=$J$5,P$1+COUNTIF(F$2:F96,F96)*$J$7,"") -> 0.85 | Q96: =IF(ROW(Q96)-1<=$J$5,Q$1+COUNTIF(G$2:G96,G96)*$J$7,"") -> -0.15 | R96: =IF(ROW(R96)-1<=$J$5,R$1+COUNTIF(H$2:H96,H96)*$J$7,"") -> -1.15 | S96: =IF(ROW(S96)-1<=$J$5,S$1+COUNTIF(I$2:I96,I96)*$J$7,"") -> -2.15
A97: =IF(ROW(A97)-1<=$J$5,IF(Foglio1!I97="",-10,Foglio1!I97),"") -> -10 | B97: =IF(ROW(B97)-1<=$J$5,IF(Foglio1!J97="",-10,Foglio1!J97),"") -> -10 | C97: =IF(ROW(C97)-1<=$J$5,IF(Foglio1!K97="",-10,Foglio1!K97),"") -> -10 | D97: =IF(ROW(D97)-1<=$J$5,IF(Foglio1!L97="",-10,Foglio1!L97),"") -> -10 | E97: =IF(ROW(E97)-1<=$J$5,IF(Foglio1!M97="",-10,Foglio1!M97),"") -> -10 | F97: =IF(ROW(F97)-1<=$J$5,IF(Foglio1!N97="",-10,Foglio1!N97),"") -> -10 | G97: =IF(ROW(G97)-1<=$J$5,IF(Foglio1!O97="",-10,Foglio1!O97),"") -> -10 | H97: =IF(ROW(H97)-1<=$J$5,IF(Foglio1!P97="",-10,Foglio1!P97),"") -> -10 | I97: =IF(ROW(I97)-1<=$J$5,IF(Foglio1!Q97="",-10,Foglio1!Q97),"") -> -10 | K97: =IF(ROW(K97)-1<=$J$5,K$1+COUNTIF(A$2:A97,A97)*$J$7,"") -> 3.81 | L97: =IF(ROW(L97)-1<=$J$5,L$1+COUNTIF(B$2:B97,B97)*$J$7,"") -> 2.84 | M97: =IF(ROW(M97)-1<=$J$5,M$1+COUNTIF(C$2:C97,C97)*$J$7,"") -> 2.74 | N97: =IF(ROW(N97)-1<=$J$5,N$1+COUNTIF(D$2:D97,D97)*$J$7,"") -> 2.7 | O97: =IF(ROW(O97)-1<=$J$5,O$1+COUNTIF(E$2:E97,E97)*$J$7,"") -> 1.88 | P97: =IF(ROW(P97)-1<=$J$5,P$1+COUNTIF(F$2:F97,F97)*$J$7,"") -> 0.88 | Q97: =IF(ROW(Q97)-1<=$J$5,Q$1+COUNTIF(G$2:G97,G97)*$J$7,"") -> -0.12 | R97: =IF(ROW(R97)-1<=$J$5,R$1+COUNTIF(H$2:H97,H97)*$J$7,"") -> -1.12 | S97: =IF(ROW(S97)-1<=$J$5,S$1+COUNTIF(I$2:I97,I97)*$J$7,"") -> -2.12
A98: =IF(ROW(A98)-1<=$J$5,IF(Foglio1!I98="",-10,Foglio1!I98),"") -> 60 | B98: =IF(ROW(B98)-1<=$J$5,IF(Foglio1!J98="",-10,Foglio1!J98),"") -> 70 | C98: =IF(ROW(C98)-1<=$J$5,IF(Foglio1!K98="",-10,Foglio1!K98),"") -> 100 | D98: =IF(ROW(D98)-1<=$J$5,IF(Foglio1!L98="",-10,Foglio1!L98),"") -> -10 | E98: =IF(ROW(E98)-1<=$J$5,IF(Foglio1!M98="",-10,Foglio1!M98),"") -> -10 | F98: =IF(ROW(F98)-1<=$J$5,IF(Foglio1!N98="",-10,Foglio1!N98),"") -> -10 | G98: =IF(ROW(G98)-1<=$J$5,IF(Foglio1!O98="",-10,Foglio1!O98),"") -> -10 | H98: =IF(ROW(H98)-1<=$J$5,IF(Foglio1!P98="",-10,Foglio1!P98),"") -> -10 | I98: =IF(ROW(I98)-1<=$J$5,IF(Foglio1!Q98="",-10,Foglio1!Q98),"") -> -10 | K98: =IF(ROW(K98)-1<=$J$5,K$1+COUNTIF(A$2:A98,A98)*$J$7,"") -> 3.15 | L98: =IF(ROW(L98)-1<=$J$5,L$1+COUNTIF(B$2:B98,B98)*$J$7,"") -> 2.18 | M98: =IF(ROW(M98)-1<=$J$5,M$1+COUNTIF(C$2:C98,C98)*$J$7,"") -> 1.12 | N98: =IF(ROW(N98)-1<=$J$5,N$1+COUNTIF(D$2:D98,D98)*$J$7,"") -> 2.73 | O98: =IF(ROW(O98)-1<=$J$5,O$1+COUNTIF(E$2:E98,E98)*$J$7,"") -> 1.91 | P98: =IF(ROW(P98)-1<=$J$5,P$1+COUNTIF(F$2:F98,F98)*$J$7,"") -> 0.91 | Q98: =IF(ROW(Q98)-1<=$J$5,Q$1+COUNTIF(G$2:G98,G98)*$J$7,"") -> -0.09 | R98: =IF(ROW(R98)-1<=$J$5,R$1+COUNTIF(H$2:H98,H98)*$J$7,"") -> -1.09 | S98: =IF(ROW(S98)-1<=$J$5,S$1+COUNTIF(I$2:I98,I98)*$J$7,"") -> -2.09
A99: =IF(ROW(A99)-1<=$J$5,IF(Foglio1!I99="",-10,Foglio1!I99),"") -> 50 | B99: =IF(ROW(B99)-1<=$J$5,IF(Foglio1!J99="",-10,Foglio1!J99),"") -> 70 | C99: =IF(ROW(C99)-1<=$J$5,IF(Foglio1!K99="",-10,Foglio1!K99),"") -> -10 | D99: =IF(ROW(D99)-1<=$J$5,IF(Foglio1!L99="",-10,Foglio1!L99),"") -> -10 | E99: =IF(ROW(E99)-1<=$J$5,IF(Foglio1!M99="",-10,Foglio1!M99),"") -> -10 | F99: =IF(ROW(F99)-1<=$J$5,IF(Foglio1!N99="",-10,Foglio1!N99),"") -> -10 | G99: =IF(ROW(G99)-1<=$J$5,IF(Foglio1!O99="",-10,Foglio1!O99),"") -> -10 | H99: =IF(ROW(H99)-1<=$J$5,IF(Foglio1!P99="",-10,Foglio1!P99),"") -> -10 | I99: =IF(ROW(I99)-1<=$J$5,IF(Foglio1!Q99="",-10,Foglio1!Q99),"") -> -10 | K99: =IF(ROW(K99)-1<=$J$5,K$1+COUNTIF(A$2:A99,A99)*$J$7,"") -> 3.21 | L99: =IF(ROW(L99)-1<=$J$5,L$1+COUNTIF(B$2:B99,B99)*$J$7,"") -> 2.21 | M99: =IF(ROW(M99)-1<=$J$5,M$1+COUNTIF(C$2:C99,C99)*$J$7,"") -> 2.77 | N99: =IF(ROW(N99)-1<=$J$5,N$1+COUNTIF(D$2:D99,D99)*$J$7,"") -> 2.76 | O99: =IF(ROW(O99)-1<=$J$5,O$1+COUNTIF(E$2:E99,E99)*$J$7,"") -> 1.94 | P99: =IF(ROW(P99)-1<=$J$5,P$1+COUNTIF(F$2:F99,F99)*$J$7,"") -> 0.94 | Q99: =IF(ROW(Q99)-1<=$J$5,Q$1+COUNTIF(G$2:G99,G99)*$J$7,"") -> -0.06 | R99: =IF(ROW(R99)-1<=$J$5,R$1+COUNTIF(H$2:H99,H99)*$J$7,"") -> -1.06 | S99: =IF(ROW(S99)-1<=$J$5,S$1+COUNTIF(I$2:I99,I99)*$J$7,"") -> -2.06
A100: =IF(ROW(A100)-1<=$J$5,IF(Foglio1!I100="",-10,Foglio1!I100),"") -> 100 | B100: =IF(ROW(B100)-1<=$J$5,IF(Foglio1!J100="",-10,Foglio1!J100),"") -> 100 | C100: =IF(ROW(C100)-1<=$J$5,IF(Foglio1!K100="",-10,Foglio1!K100),"") -> 0 | D100: =IF(ROW(D100)-1<=$J$5,IF(Foglio1!L100="",-10,Foglio1!L100),"") -> -10 | E100: =IF(ROW(E100)-1<=$J$5,IF(Foglio1!M100="",-10,Foglio1!M100),"") -> -10 | F100: =IF(ROW(F100)-1<=$J$5,IF(Foglio1!N100="",-10,Foglio1!N100),"") -> -10 | G100: =IF(ROW(G100)-1<=$J$5,IF(Foglio1!O100="",-10,Foglio1!O100),"") -> -10 | H100: =IF(ROW(H100)-1<=$J$5,IF(Foglio1!P100="",-10,Foglio1!P100),"") -> -10 | I100: =IF(ROW(I100)-1<=$J$5,IF(Foglio1!Q100="",-10,Foglio1!Q100),"") -> -10 | K100: =IF(ROW(K100)-1<=$J$5,K$1+COUNTIF(A$2:A100,A100)*$J$7,"") -> 3.3 | L100: =IF(ROW(L100)-1<=$J$5,L$1+COUNTIF(B$2:B100,B100)*$J$7,"") -> 2.57 | M100: =IF(ROW(M100)-1<=$J$5,M$1+COUNTIF(C$2:C100,C100)*$J$7,"") -> 1.18 | N100: =IF(ROW(N100)-1<=$J$5,N$1+COUNTIF(D$2:D100,D100)*$J$7,"") -> 2.79 | O100: =IF(ROW(O100)-1<=$J$5,O$1+COUNTIF(E$2:E100,E100)*$J$7,"") -> 1.97 | P100: =IF(ROW(P100)-1<=$J$5,P$1+COUNTIF(F$2:F100,F100)*$J$7,"") -> 0.97 | Q100: =IF(ROW(Q100)-1<=$J$5,Q$1+COUNTIF(G$2:G100,G100)*$J$7,"") -> -0.03 | R100: =IF(ROW(R100)-1<=$J$5,R$1+COUNTIF(H$2:H100,H100)*$J$7,"") -> -1.03 | S100: =IF(ROW(S100)-1<=$J$5,S$1+COUNTIF(I$2:I100,I100)*$J$7,"") -> -2.03
A101: =IF(ROW(A101)-1<=$J$5,IF(Foglio1!I101="",-10,Foglio1!I101),"") ->  | B101: =IF(ROW(B101)-1<=$J$5,IF(Foglio1!J101="",-10,Foglio1!J101),"") ->  | C101: =IF(ROW(C101)-1<=$J$5,IF(Foglio1!K101="",-10,Foglio1!K101),"") ->  | D101: =IF(ROW(D101)-1<=$J$5,IF(Foglio1!L101="",-10,Foglio1!L101),"") ->  | E101: =IF(ROW(E101)-1<=$J$5,IF(Foglio1!R101="",-10,Foglio1!R101),"") ->  | F101: =IF(ROW(F101)-1<=$J$5,IF(Foglio1!N101="",-10,Foglio1!N101),"") ->  | G101: =IF(ROW(G101)-1<=$J$5,IF(Foglio1!O101="",-10,Foglio1!O101),"") ->  | H101: =IF(ROW(H101)-1<=$J$5,IF(Foglio1!P101="",-10,Foglio1!P101),"") ->  | I101: =IF(ROW(I101)-1<=$J$5,IF(Foglio1!Q101="",-10,Foglio1!Q101),"") ->  | K101: =IF(ROW(K101)-1<=$J$5,K$1+COUNTIF(A$2:A101,A101)*$J$7,"") ->  | L101: =IF(ROW(L101)-1<=$J$5,L$1+COUNTIF(B$2:B101,B101)*$J$7,"") ->  | M101: =IF(ROW(M101)-1<=$J$5,M$1+COUNTIF(C$2:C101,C101)*$J$7,"") ->  | N101: =IF(ROW(N101)-1<=$J$5,N$1+COUNTIF(D$2:D101,D101)*$J$7,"") ->  | O101: =IF(ROW(O101)-1<=$J$5,O$1+COUNTIF(E$2:E101,E101)*$J$7,"") ->  | P101: =IF(ROW(P101)-1<=$J$5,P$1+COUNTIF(F$2:F101,F101)*$J$7,"") ->  | Q101: =IF(ROW(Q101)-1<=$J$5,Q$1+COUNTIF(G$2:G101,G101)*$J$7,"") ->  | R101: =IF(ROW(R101)-1<=$J$5,R$1+COUNTIF(H$2:H101,H101)*$J$7,"") ->  | S101: =IF(ROW(S101)-1<=$J$5,S$1+COUNTIF(I$2:I101,I101)*$J$7,"") -> 
A102: =IF(ROW(A102)-1<=$J$5,IF(Foglio1!I102="",-10,Foglio1!I102),"") ->  | B102: =IF(ROW(B102)-1<=$J$5,IF(Foglio1!J102="",-10,Foglio1!J102),"") ->  | C102: =IF(ROW(C102)-1<=$J$5,IF(Foglio1!K102="",-10,Foglio1!K102),"") ->  | D102: =IF(ROW(D102)-1<=$J$5,IF(Foglio1!L102="",-10,Foglio1!L102),"") ->  | E102: =IF(ROW(E102)-1<=$J$5,IF(Foglio1!R102="",-10,Foglio1!R102),"") ->  | F102: =IF(ROW(F102)-1<=$J$5,IF(Foglio1!N102="",-10,Foglio1!N102),"") ->  | G102: =IF(ROW(G102)-1<=$J$5,IF(Foglio1!O102="",-10,Foglio1!O102),"") ->  | H102: =IF(ROW(H102)-1<=$J$5,IF(Foglio1!P102="",-10,Foglio1!P102),"") ->  | I102: =IF(ROW(I102)-1<=$J$5,IF(Foglio1!Q102="",-10,Foglio1!Q102),"") ->  | K102: =IF(ROW(K102)-1<=$J$5,K$1+COUNTIF(A$2:A102,A102)*$J$7,"") ->  | L102: =IF(ROW(L102)-1<=$J$5,L$1+COUNTIF(B$2:B102,B102)*$J$7,"") ->  | M102: =IF(ROW(M102)-1<=$J$5,M$1+COUNTIF(C$2:C102,C102)*$J$7,"") ->  | N102: =IF(ROW(N102)-1<=$J$5,N$1+COUNTIF(D$2:D102,D102)*$J$7,"") ->  | O102: =IF(ROW(O102)-1<=$J$5,O$1+COUNTIF(E$2:E102,E102)*$J$7,"") ->  | P102: =IF(ROW(P102)-1<=$J$5,P$1+COUNTIF(F$2:F102,F102)*$J$7,"") ->  | Q102: =IF(ROW(Q102)-1<=$J$5,Q$1+COUNTIF(G$2:G102,G102)*$J$7,"") ->  | R102: =IF(ROW(R102)-1<=$J$5,R$1+COUNTIF(H$2:H102,H102)*$J$7,"") ->  | S102: =IF(ROW(S102)-1<=$J$5,S$1+COUNTIF(I$2:I102,I102)*$J$7,"") -> 
A103: =IF(ROW(A103)-1<=$J$5,IF(Foglio1!I103="",-10,Foglio1!I103),"") ->  | B103: =IF(ROW(B103)-1<=$J$5,IF(Foglio1!J103="",-10,Foglio1!J103),"") ->  | C103: =IF(ROW(C103)-1<=$J$5,IF(Foglio1!K103="",-10,Foglio1!K103),"") ->  | D103: =IF(ROW(D103)-1<=$J$5,IF(Foglio1!L103="",-10,Foglio1!L103),"") ->  | E103: =IF(ROW(E103)-1<=$J$5,IF(Foglio1!R103="",-10,Foglio1!R103),"") ->  | F103: =IF(ROW(F103)-1<=$J$5,IF(Foglio1!N103="",-10,Foglio1!N103),"") ->  | G103: =IF(ROW(G103)-1<=$J$5,IF(Foglio1!O103="",-10,Foglio1!O103),"") ->  | H103: =IF(ROW(H103)-1<=$J$5,IF(Foglio1!P103="",-10,Foglio1!P103),"") ->  | I103: =IF(ROW(I103)-1<=$J$5,IF(Foglio1!Q103="",-10,Foglio1!Q103),"") ->  | K103: =IF(ROW(K103)-1<=$J$5,K$1+COUNTIF(A$2:A103,A103)*$J$7,"") ->  | L103: =IF(ROW(L103)-1<=$J$5,L$1+COUNTIF(B$2:B103,B103)*$J$7,"") ->  | M103: =IF(ROW(M103)-1<=$J$5,M$1+COUNTIF(C$2:C103,C103)*$J$7,"") ->  | N103: =IF(ROW(N103)-1<=$J$5,N$1+COUNTIF(D$2:D103,D103)*$J$7,"") ->  | O103: =IF(ROW(O103)-1<=$J$5,O$1+COUNTIF(E$2:E103,E103)*$J$7,"") ->  | P103: =IF(ROW(P103)-1<=$J$5,P$1+COUNTIF(F$2:F103,F103)*$J$7,"") ->  | Q103: =IF(ROW(Q103)-1<=$J$5,Q$1+COUNTIF(G$2:G103,G103)*$J$7,"") ->  | R103: =IF(ROW(R103)-1<=$J$5,R$1+COUNTIF(H$2:H103,H103)*$J$7,"") ->  | S103: =IF(ROW(S103)-1<=$J$5,S$1+COUNTIF(I$2:I103,I103)*$J$7,"") -> 
A104: =IF(ROW(A104)-1<=$J$5,IF(Foglio1!I104="",-10,Foglio1!I104),"") ->  | B104: =IF(ROW(B104)-1<=$J$5,IF(Foglio1!J104="",-10,Foglio1!J104),"") ->  | C104: =IF(ROW(C104)-1<=$J$5,IF(Foglio1!K104="",-10,Foglio1!K104),"") ->  | D104: =IF(ROW(D104)-1<=$J$5,IF(Foglio1!L104="",-10,Foglio1!L104),"") ->  | E104: =IF(ROW(E104)-1<=$J$5,IF(Foglio1!R104="",-10,Foglio1!R104),"") ->  | F104: =IF(ROW(F104)-1<=$J$5,IF(Foglio1!N104="",-10,Foglio1!N104),"") ->  | G104: =IF(ROW(G104)-1<=$J$5,IF(Foglio1!O104="",-10,Foglio1!O104),"") ->  | H104: =IF(ROW(H104)-1<=$J$5,IF(Foglio1!P104="",-10,Foglio1!P104),"") ->  | I104: =IF(ROW(I104)-1<=$J$5,IF(Foglio1!Q104="",-10,Foglio1!Q104),"") ->  | K104: =IF(ROW(K104)-1<=$J$5,K$1+COUNTIF(A$2:A104,A104)*$J$7,"") ->  | L104: =IF(ROW(L104)-1<=$J$5,L$1+COUNTIF(B$2:B104,B104)*$J$7,"") ->  | M104: =IF(ROW(M104)-1<=$J$5,M$1+COUNTIF(C$2:C104,C104)*$J$7,"") ->  | N104: =IF(ROW(N104)-1<=$J$5,N$1+COUNTIF(D$2:D104,D104)*$J$7,"") ->  | O104: =IF(ROW(O104)-1<=$J$5,O$1+COUNTIF(E$2:E104,E104)*$J$7,"") ->  | P104: =IF(ROW(P104)-1<=$J$5,P$1+COUNTIF(F$2:F104,F104)*$J$7,"") ->  | Q104: =IF(ROW(Q104)-1<=$J$5,Q$1+COUNTIF(G$2:G104,G104)*$J$7,"") ->  | R104: =IF(ROW(R104)-1<=$J$5,R$1+COUNTIF(H$2:H104,H104)*$J$7,"") ->  | S104: =IF(ROW(S104)-1<=$J$5,S$1+COUNTIF(I$2:I104,I104)*$J$7,"") -> 
A105: =IF(ROW(A105)-1<=$J$5,IF(Foglio1!I105="",-10,Foglio1!I105),"") ->  | B105: =IF(ROW(B105)-1<=$J$5,IF(Foglio1!J105="",-10,Foglio1!J105),"") ->  | C105: =IF(ROW(C105)-1<=$J$5,IF(Foglio1!K105="",-10,Foglio1!K105),"") ->  | D105: =IF(ROW(D105)-1<=$J$5,IF(Foglio1!L105="",-10,Foglio1!L105),"") ->  | E105: =IF(ROW(E105)-1<=$J$5,IF(Foglio1!R105="",-10,Foglio1!R105),"") ->  | F105: =IF(ROW(F105)-1<=$J$5,IF(Foglio1!N105="",-10,Foglio1!N105),"") ->  | G105: =IF(ROW(G105)-1<=$J$5,IF(Foglio1!O105="",-10,Foglio1!O105),"") ->  | H105: =IF(ROW(H105)-1<=$J$5,IF(Foglio1!P105="",-10,Foglio1!P105),"") ->  | I105: =IF(ROW(I105)-1<=$J$5,IF(Foglio1!Q105="",-10,Foglio1!Q105),"") ->  | K105: =IF(ROW(K105)-1<=$J$5,K$1+COUNTIF(A$2:A105,A105)*$J$7,"") ->  | L105: =IF(ROW(L105)-1<=$J$5,L$1+COUNTIF(B$2:B105,B105)*$J$7,"") ->  | M105: =IF(ROW(M105)-1<=$J$5,M$1+COUNTIF(C$2:C105,C105)*$J$7,"") ->  | N105: =IF(ROW(N105)-1<=$J$5,N$1+COUNTIF(D$2:D105,D105)*$J$7,"") ->  | O105: =IF(ROW(O105)-1<=$J$5,O$1+COUNTIF(E$2:E105,E105)*$J$7,"") ->  | P105: =IF(ROW(P105)-1<=$J$5,P$1+COUNTIF(F$2:F105,F105)*$J$7,"") ->  | Q105: =IF(ROW(Q105)-1<=$J$5,Q$1+COUNTIF(G$2:G105,G105)*$J$7,"") ->  | R105: =IF(ROW(R105)-1<=$J$5,R$1+COUNTIF(H$2:H105,H105)*$J$7,"") ->  | S105: =IF(ROW(S105)-1<=$J$5,S$1+COUNTIF(I$2:I105,I105)*$J$7,"") -> 
A106: =IF(ROW(A106)-1<=$J$5,IF(Foglio1!I106="",-10,Foglio1!I106),"") ->  | B106: =IF(ROW(B106)-1<=$J$5,IF(Foglio1!J106="",-10,Foglio1!J106),"") ->  | C106: =IF(ROW(C106)-1<=$J$5,IF(Foglio1!K106="",-10,Foglio1!K106),"") ->  | D106: =IF(ROW(D106)-1<=$J$5,IF(Foglio1!L106="",-10,Foglio1!L106),"") ->  | E106: =IF(ROW(E106)-1<=$J$5,IF(Foglio1!R106="",-10,Foglio1!R106),"") ->  | F106: =IF(ROW(F106)-1<=$J$5,IF(Foglio1!N106="",-10,Foglio1!N106),"") ->  | G106: =IF(ROW(G106)-1<=$J$5,IF(Foglio1!O106="",-10,Foglio1!O106),"") ->  | H106: =IF(ROW(H106)-1<=$J$5,IF(Foglio1!P106="",-10,Foglio1!P106),"") ->  | I106: =IF(ROW(I106)-1<=$J$5,IF(Foglio1!Q106="",-10,Foglio1!Q106),"") ->  | K106: =IF(ROW(K106)-1<=$J$5,K$1+COUNTIF(A$2:A106,A106)*$J$7,"") ->  | L106: =IF(ROW(L106)-1<=$J$5,L$1+COUNTIF(B$2:B106,B106)*$J$7,"") ->  | M106: =IF(ROW(M106)-1<=$J$5,M$1+COUNTIF(C$2:C106,C106)*$J$7,"") ->  | N106: =IF(ROW(N106)-1<=$J$5,N$1+COUNTIF(D$2:D106,D106)*$J$7,"") ->  | O106: =IF(ROW(O106)-1<=$J$5,O$1+COUNTIF(E$2:E106,E106)*$J$7,"") ->  | P106: =IF(ROW(P106)-1<=$J$5,P$1+COUNTIF(F$2:F106,F106)*$J$7,"") ->  | Q106: =IF(ROW(Q106)-1<=$J$5,Q$1+COUNTIF(G$2:G106,G106)*$J$7,"") ->  | R106: =IF(ROW(R106)-1<=$J$5,R$1+COUNTIF(H$2:H106,H106)*$J$7,"") ->  | S106: =IF(ROW(S106)-1<=$J$5,S$1+COUNTIF(I$2:I106,I106)*$J$7,"") -> 
A107: =IF(ROW(A107)-1<=$J$5,IF(Foglio1!I107="",-10,Foglio1!I107),"") ->  | B107: =IF(ROW(B107)-1<=$J$5,IF(Foglio1!J107="",-10,Foglio1!J107),"") ->  | C107: =IF(ROW(C107)-1<=$J$5,IF(Foglio1!K107="",-10,Foglio1!K107),"") ->  | D107: =IF(ROW(D107)-1<=$J$5,IF(Foglio1!L107="",-10,Foglio1!L107),"") ->  | E107: =IF(ROW(E107)-1<=$J$5,IF(Foglio1!R107="",-10,Foglio1!R107),"") ->  | F107: =IF(ROW(F107)-1<=$J$5,IF(Foglio1!N107="",-10,Foglio1!N107),"") ->  | G107: =IF(ROW(G107)-1<=$J$5,IF(Foglio1!O107="",-10,Foglio1!O107),"") ->  | H107: =IF(ROW(H107)-1<=$J$5,IF(Foglio1!P107="",-10,Foglio1!P107),"") ->  | I107: =IF(ROW(I107)-1<=$J$5,IF(Foglio1!Q107="",-10,Foglio1!Q107),"") ->  | K107: =IF(ROW(K107)-1<=$J$5,K$1+COUNTIF(A$2:A107,A107)*$J$7,"") ->  | L107: =IF(ROW(L107)-1<=$J$5,L$1+COUNTIF(B$2:B107,B107)*$J$7,"") ->  | M107: =IF(ROW(M107)-1<=$J$5,M$1+COUNTIF(C$2:C107,C107)*$J$7,"") ->  | N107: =IF(ROW(N107)-1<=$J$5,N$1+COUNTIF(D$2:D107,D107)*$J$7,"") ->  | O107: =IF(ROW(O107)-1<=$J$5,O$1+COUNTIF(E$2:E107,E107)*$J$7,"") ->  | P107: =IF(ROW(P107)-1<=$J$5,P$1+COUNTIF(F$2:F107,F107)*$J$7,"") ->  | Q107: =IF(ROW(Q107)-1<=$J$5,Q$1+COUNTIF(G$2:G107,G107)*$J$7,"") ->  | R107: =IF(ROW(R107)-1<=$J$5,R$1+COUNTIF(H$2:H107,H107)*$J$7,"") ->  | S107: =IF(ROW(S107)-1<=$J$5,S$1+COUNTIF(I$2:I107,I107)*$J$7,"") -> 
A108: =IF(ROW(A108)-1<=$J$5,IF(Foglio1!I108="",-10,Foglio1!I108),"") ->  | B108: =IF(ROW(B108)-1<=$J$5,IF(Foglio1!J108="",-10,Foglio1!J108),"") ->  | C108: =IF(ROW(C108)-1<=$J$5,IF(Foglio1!K108="",-10,Foglio1!K108),"") ->  | D108: =IF(ROW(D108)-1<=$J$5,IF(Foglio1!L108="",-10,Foglio1!L108),"") ->  | E108: =IF(ROW(E108)-1<=$J$5,IF(Foglio1!R108="",-10,Foglio1!R108),"") ->  | F108: =IF(ROW(F108)-1<=$J$5,IF(Foglio1!N108="",-10,Foglio1!N108),"") ->  | G108: =IF(ROW(G108)-1<=$J$5,IF(Foglio1!O108="",-10,Foglio1!O108),"") ->  | H108: =IF(ROW(H108)-1<=$J$5,IF(Foglio1!P108="",-10,Foglio1!P108),"") ->  | I108: =IF(ROW(I108)-1<=$J$5,IF(Foglio1!Q108="",-10,Foglio1!Q108),"") ->  | K108: =IF(ROW(K108)-1<=$J$5,K$1+COUNTIF(A$2:A108,A108)*$J$7,"") ->  | L108: =IF(ROW(L108)-1<=$J$5,L$1+COUNTIF(B$2:B108,B108)*$J$7,"") ->  | M108: =IF(ROW(M108)-1<=$J$5,M$1+COUNTIF(C$2:C108,C108)*$J$7,"") ->  | N108: =IF(ROW(N108)-1<=$J$5,N$1+COUNTIF(D$2:D108,D108)*$J$7,"") ->  | O108: =IF(ROW(O108)-1<=$J$5,O$1+COUNTIF(E$2:E108,E108)*$J$7,"") ->  | P108: =IF(ROW(P108)-1<=$J$5,P$1+COUNTIF(F$2:F108,F108)*$J$7,"") ->  | Q108: =IF(ROW(Q108)-1<=$J$5,Q$1+COUNTIF(G$2:G108,G108)*$J$7,"") ->  | R108: =IF(ROW(R108)-1<=$J$5,R$1+COUNTIF(H$2:H108,H108)*$J$7,"") ->  | S108: =IF(ROW(S108)-1<=$J$5,S$1+COUNTIF(I$2:I108,I108)*$J$7,"") -> 
A109: =IF(ROW(A109)-1<=$J$5,IF(Foglio1!I109="",-10,Foglio1!I109),"") ->  | B109: =IF(ROW(B109)-1<=$J$5,IF(Foglio1!J109="",-10,Foglio1!J109),"") ->  | C109: =IF(ROW(C109)-1<=$J$5,IF(Foglio1!K109="",-10,Foglio1!K109),"") ->  | D109: =IF(ROW(D109)-1<=$J$5,IF(Foglio1!L109="",-10,Foglio1!L109),"") ->  | E109: =IF(ROW(E109)-1<=$J$5,IF(Foglio1!R109="",-10,Foglio1!R109),"") ->  | F109: =IF(ROW(F109)-1<=$J$5,IF(Foglio1!N109="",-10,Foglio1!N109),"") ->  | G109: =IF(ROW(G109)-1<=$J$5,IF(Foglio1!O109="",-10,Foglio1!O109),"") ->  | H109: =IF(ROW(H109)-1<=$J$5,IF(Foglio1!P109="",-10,Foglio1!P109),"") ->  | I109: =IF(ROW(I109)-1<=$J$5,IF(Foglio1!Q109="",-10,Foglio1!Q109),"") ->  | K109: =IF(ROW(K109)-1<=$J$5,K$1+COUNTIF(A$2:A109,A109)*$J$7,"") ->  | L109: =IF(ROW(L109)-1<=$J$5,L$1+COUNTIF(B$2:B109,B109)*$J$7,"") ->  | M109: =IF(ROW(M109)-1<=$J$5,M$1+COUNTIF(C$2:C109,C109)*$J$7,"") ->  | N109: =IF(ROW(N109)-1<=$J$5,N$1+COUNTIF(D$2:D109,D109)*$J$7,"") ->  | O109: =IF(ROW(O109)-1<=$J$5,O$1+COUNTIF(E$2:E109,E109)*$J$7,"") ->  | P109: =IF(ROW(P109)-1<=$J$5,P$1+COUNTIF(F$2:F109,F109)*$J$7,"") ->  | Q109: =IF(ROW(Q109)-1<=$J$5,Q$1+COUNTIF(G$2:G109,G109)*$J$7,"") ->  | R109: =IF(ROW(R109)-1<=$J$5,R$1+COUNTIF(H$2:H109,H109)*$J$7,"") ->  | S109: =IF(ROW(S109)-1<=$J$5,S$1+COUNTIF(I$2:I109,I109)*$J$7,"") -> 
A110: =IF(ROW(A110)-1<=$J$5,IF(Foglio1!I110="",-10,Foglio1!I110),"") ->  | B110: =IF(ROW(B110)-1<=$J$5,IF(Foglio1!J110="",-10,Foglio1!J110),"") ->  | C110: =IF(ROW(C110)-1<=$J$5,IF(Foglio1!K110="",-10,Foglio1!K110),"") ->  | D110: =IF(ROW(D110)-1<=$J$5,IF(Foglio1!L110="",-10,Foglio1!L110),"") ->  | E110: =IF(ROW(E110)-1<=$J$5,IF(Foglio1!R110="",-10,Foglio1!R110),"") ->  | F110: =IF(ROW(F110)-1<=$J$5,IF(Foglio1!N110="",-10,Foglio1!N110),"") ->  | G110: =IF(ROW(G110)-1<=$J$5,IF(Foglio1!O110="",-10,Foglio1!O110),"") ->  | H110: =IF(ROW(H110)-1<=$J$5,IF(Foglio1!P110="",-10,Foglio1!P110),"") ->  | I110: =IF(ROW(I110)-1<=$J$5,IF(Foglio1!Q110="",-10,Foglio1!Q110),"") ->  | K110: =IF(ROW(K110)-1<=$J$5,K$1+COUNTIF(A$2:A110,A110)*$J$7,"") ->  | L110: =IF(ROW(L110)-1<=$J$5,L$1+COUNTIF(B$2:B110,B110)*$J$7,"") ->  | M110: =IF(ROW(M110)-1<=$J$5,M$1+COUNTIF(C$2:C110,C110)*$J$7,"") ->  | N110: =IF(ROW(N110)-1<=$J$5,N$1+COUNTIF(D$2:D110,D110)*$J$7,"") ->  | O110: =IF(ROW(O110)-1<=$J$5,O$1+COUNTIF(E$2:E110,E110)*$J$7,"") ->  | P110: =IF(ROW(P110)-1<=$J$5,P$1+COUNTIF(F$2:F110,F110)*$J$7,"") ->  | Q110: =IF(ROW(Q110)-1<=$J$5,Q$1+COUNTIF(G$2:G110,G110)*$J$7,"") ->  | R110: =IF(ROW(R110)-1<=$J$5,R$1+COUNTIF(H$2:H110,H110)*$J$7,"") ->  | S110: =IF(ROW(S110)-1<=$J$5,S$1+COUNTIF(I$2:I110,I110)*$J$7,"") -> 
A111: =IF(ROW(A111)-1<=$J$5,IF(Foglio1!I111="",-10,Foglio1!I111),"") ->  | B111: =IF(ROW(B111)-1<=$J$5,IF(Foglio1!J111="",-10,Foglio1!J111),"") ->  | C111: =IF(ROW(C111)-1<=$J$5,IF(Foglio1!K111="",-10,Foglio1!K111),"") ->  | D111: =IF(ROW(D111)-1<=$J$5,IF(Foglio1!L111="",-10,Foglio1!L111),"") ->  | E111: =IF(ROW(E111)-1<=$J$5,IF(Foglio1!R111="",-10,Foglio1!R111),"") ->  | F111: =IF(ROW(F111)-1<=$J$5,IF(Foglio1!N111="",-10,Foglio1!N111),"") ->  | G111: =IF(ROW(G111)-1<=$J$5,IF(Foglio1!O111="",-10,Foglio1!O111),"") ->  | H111: =IF(ROW(H111)-1<=$J$5,IF(Foglio1!P111="",-10,Foglio1!P111),"") ->  | I111: =IF(ROW(I111)-1<=$J$5,IF(Foglio1!Q111="",-10,Foglio1!Q111),"") ->  | K111: =IF(ROW(K111)-1<=$J$5,K$1+COUNTIF(A$2:A111,A111)*$J$7,"") ->  | L111: =IF(ROW(L111)-1<=$J$5,L$1+COUNTIF(B$2:B111,B111)*$J$7,"") ->  | M111: =IF(ROW(M111)-1<=$J$5,M$1+COUNTIF(C$2:C111,C111)*$J$7,"") ->  | N111: =IF(ROW(N111)-1<=$J$5,N$1+COUNTIF(D$2:D111,D111)*$J$7,"") ->  | O111: =IF(ROW(O111)-1<=$J$5,O$1+COUNTIF(E$2:E111,E111)*$J$7,"") ->  | P111: =IF(ROW(P111)-1<=$J$5,P$1+COUNTIF(F$2:F111,F111)*$J$7,"") ->  | Q111: =IF(ROW(Q111)-1<=$J$5,Q$1+COUNTIF(G$2:G111,G111)*$J$7,"") ->  | R111: =IF(ROW(R111)-1<=$J$5,R$1+COUNTIF(H$2:H111,H111)*$J$7,"") ->  | S111: =IF(ROW(S111)-1<=$J$5,S$1+COUNTIF(I$2:I111,I111)*$J$7,"") -> 
A112: =IF(ROW(A112)-1<=$J$5,IF(Foglio1!I112="",-10,Foglio1!I112),"") ->  | B112: =IF(ROW(B112)-1<=$J$5,IF(Foglio1!J112="",-10,Foglio1!J112),"") ->  | C112: =IF(ROW(C112)-1<=$J$5,IF(Foglio1!K112="",-10,Foglio1!K112),"") ->  | D112: =IF(ROW(D112)-1<=$J$5,IF(Foglio1!L112="",-10,Foglio1!L112),"") ->  | E112: =IF(ROW(E112)-1<=$J$5,IF(Foglio1!R112="",-10,Foglio1!R112),"") ->  | F112: =IF(ROW(F112)-1<=$J$5,IF(Foglio1!N112="",-10,Foglio1!N112),"") ->  | G112: =IF(ROW(G112)-1<=$J$5,IF(Foglio1!O112="",-10,Foglio1!O112),"") ->  | H112: =IF(ROW(H112)-1<=$J$5,IF(Foglio1!P112="",-10,Foglio1!P112),"") ->  | I112: =IF(ROW(I112)-1<=$J$5,IF(Foglio1!Q112="",-10,Foglio1!Q112),"") ->  | K112: =IF(ROW(K112)-1<=$J$5,K$1+COUNTIF(A$2:A112,A112)*$J$7,"") ->  | L112: =IF(ROW(L112)-1<=$J$5,L$1+COUNTIF(B$2:B112,B112)*$J$7,"") ->  | M112: =IF(ROW(M112)-1<=$J$5,M$1+COUNTIF(C$2:C112,C112)*$J$7,"") ->  | N112: =IF(ROW(N112)-1<=$J$5,N$1+COUNTIF(D$2:D112,D112)*$J$7,"") ->  | O112: =IF(ROW(O112)-1<=$J$5,O$1+COUNTIF(E$2:E112,E112)*$J$7,"") ->  | P112: =IF(ROW(P112)-1<=$J$5,P$1+COUNTIF(F$2:F112,F112)*$J$7,"") ->  | Q112: =IF(ROW(Q112)-1<=$J$5,Q$1+COUNTIF(G$2:G112,G112)*$J$7,"") ->  | R112: =IF(ROW(R112)-1<=$J$5,R$1+COUNTIF(H$2:H112,H112)*$J$7,"") ->  | S112: =IF(ROW(S112)-1<=$J$5,S$1+COUNTIF(I$2:I112,I112)*$J$7,"") -> 
A113: =IF(ROW(A113)-1<=$J$5,IF(Foglio1!I113="",-10,Foglio1!I113),"") ->  | B113: =IF(ROW(B113)-1<=$J$5,IF(Foglio1!J113="",-10,Foglio1!J113),"") ->  | C113: =IF(ROW(C113)-1<=$J$5,IF(Foglio1!K113="",-10,Foglio1!K113),"") ->  | D113: =IF(ROW(D113)-1<=$J$5,IF(Foglio1!L113="",-10,Foglio1!L113),"") ->  | E113: =IF(ROW(E113)-1<=$J$5,IF(Foglio1!R113="",-10,Foglio1!R113),"") ->  | F113: =IF(ROW(F113)-1<=$J$5,IF(Foglio1!N113="",-10,Foglio1!N113),"") ->  | G113: =IF(ROW(G113)-1<=$J$5,IF(Foglio1!O113="",-10,Foglio1!O113),"") ->  | H113: =IF(ROW(H113)-1<=$J$5,IF(Foglio1!P113="",-10,Foglio1!P113),"") ->  | I113: =IF(ROW(I113)-1<=$J$5,IF(Foglio1!Q113="",-10,Foglio1!Q113),"") ->  | K113: =IF(ROW(K113)-1<=$J$5,K$1+COUNTIF(A$2:A113,A113)*$J$7,"") ->  | L113: =IF(ROW(L113)-1<=$J$5,L$1+COUNTIF(B$2:B113,B113)*$J$7,"") ->  | M113: =IF(ROW(M113)-1<=$J$5,M$1+COUNTIF(C$2:C113,C113)*$J$7,"") ->  | N113: =IF(ROW(N113)-1<=$J$5,N$1+COUNTIF(D$2:D113,D113)*$J$7,"") ->  | O113: =IF(ROW(O113)-1<=$J$5,O$1+COUNTIF(E$2:E113,E113)*$J$7,"") ->  | P113: =IF(ROW(P113)-1<=$J$5,P$1+COUNTIF(F$2:F113,F113)*$J$7,"") ->  | Q113: =IF(ROW(Q113)-1<=$J$5,Q$1+COUNTIF(G$2:G113,G113)*$J$7,"") ->  | R113: =IF(ROW(R113)-1<=$J$5,R$1+COUNTIF(H$2:H113,H113)*$J$7,"") ->  | S113: =IF(ROW(S113)-1<=$J$5,S$1+COUNTIF(I$2:I113,I113)*$J$7,"") -> 
A114: =IF(ROW(A114)-1<=$J$5,IF(Foglio1!I114="",-10,Foglio1!I114),"") ->  | B114: =IF(ROW(B114)-1<=$J$5,IF(Foglio1!J114="",-10,Foglio1!J114),"") ->  | C114: =IF(ROW(C114)-1<=$J$5,IF(Foglio1!K114="",-10,Foglio1!K114),"") ->  | D114: =IF(ROW(D114)-1<=$J$5,IF(Foglio1!L114="",-10,Foglio1!L114),"") ->  | E114: =IF(ROW(E114)-1<=$J$5,IF(Foglio1!R114="",-10,Foglio1!R114),"") ->  | F114: =IF(ROW(F114)-1<=$J$5,IF(Foglio1!N114="",-10,Foglio1!N114),"") ->  | G114: =IF(ROW(G114)-1<=$J$5,IF(Foglio1!O114="",-10,Foglio1!O114),"") ->  | H114: =IF(ROW(H114)-1<=$J$5,IF(Foglio1!P114="",-10,Foglio1!P114),"") ->  | I114: =IF(ROW(I114)-1<=$J$5,IF(Foglio1!Q114="",-10,Foglio1!Q114),"") ->  | K114: =IF(ROW(K114)-1<=$J$5,K$1+COUNTIF(A$2:A114,A114)*$J$7,"") ->  | L114: =IF(ROW(L114)-1<=$J$5,L$1+COUNTIF(B$2:B114,B114)*$J$7,"") ->  | M114: =IF(ROW(M114)-1<=$J$5,M$1+COUNTIF(C$2:C114,C114)*$J$7,"") ->  | N114: =IF(ROW(N114)-1<=$J$5,N$1+COUNTIF(D$2:D114,D114)*$J$7,"") ->  | O114: =IF(ROW(O114)-1<=$J$5,O$1+COUNTIF(E$2:E114,E114)*$J$7,"") ->  | P114: =IF(ROW(P114)-1<=$J$5,P$1+COUNTIF(F$2:F114,F114)*$J$7,"") ->  | Q114: =IF(ROW(Q114)-1<=$J$5,Q$1+COUNTIF(G$2:G114,G114)*$J$7,"") ->  | R114: =IF(ROW(R114)-1<=$J$5,R$1+COUNTIF(H$2:H114,H114)*$J$7,"") ->  | S114: =IF(ROW(S114)-1<=$J$5,S$1+COUNTIF(I$2:I114,I114)*$J$7,"") -> 
A115: =IF(ROW(A115)-1<=$J$5,IF(Foglio1!I115="",-10,Foglio1!I115),"") ->  | B115: =IF(ROW(B115)-1<=$J$5,IF(Foglio1!J115="",-10,Foglio1!J115),"") ->  | C115: =IF(ROW(C115)-1<=$J$5,IF(Foglio1!K115="",-10,Foglio1!K115),"") ->  | D115: =IF(ROW(D115)-1<=$J$5,IF(Foglio1!L115="",-10,Foglio1!L115),"") ->  | E115: =IF(ROW(E115)-1<=$J$5,IF(Foglio1!R115="",-10,Foglio1!R115),"") ->  | F115: =IF(ROW(F115)-1<=$J$5,IF(Foglio1!N115="",-10,Foglio1!N115),"") ->  | G115: =IF(ROW(G115)-1<=$J$5,IF(Foglio1!O115="",-10,Foglio1!O115),"") ->  | H115: =IF(ROW(H115)-1<=$J$5,IF(Foglio1!P115="",-10,Foglio1!P115),"") ->  | I115: =IF(ROW(I115)-1<=$J$5,IF(Foglio1!Q115="",-10,Foglio1!Q115),"") ->  | K115: =IF(ROW(K115)-1<=$J$5,K$1+COUNTIF(A$2:A115,A115)*$J$7,"") ->  | L115: =IF(ROW(L115)-1<=$J$5,L$1+COUNTIF(B$2:B115,B115)*$J$7,"") ->  | M115: =IF(ROW(M115)-1<=$J$5,M$1+COUNTIF(C$2:C115,C115)*$J$7,"") ->  | N115: =IF(ROW(N115)-1<=$J$5,N$1+COUNTIF(D$2:D115,D115)*$J$7,"") ->  | O115: =IF(ROW(O115)-1<=$J$5,O$1+COUNTIF(E$2:E115,E115)*$J$7,"") ->  | P115: =IF(ROW(P115)-1<=$J$5,P$1+COUNTIF(F$2:F115,F115)*$J$7,"") ->  | Q115: =IF(ROW(Q115)-1<=$J$5,Q$1+COUNTIF(G$2:G115,G115)*$J$7,"") ->  | R115: =IF(ROW(R115)-1<=$J$5,R$1+COUNTIF(H$2:H115,H115)*$J$7,"") ->  | S115: =IF(ROW(S115)-1<=$J$5,S$1+COUNTIF(I$2:I115,I115)*$J$7,"") -> 
A116: =IF(ROW(A116)-1<=$J$5,IF(Foglio1!I116="",-10,Foglio1!I116),"") ->  | B116: =IF(ROW(B116)-1<=$J$5,IF(Foglio1!J116="",-10,Foglio1!J116),"") ->  | C116: =IF(ROW(C116)-1<=$J$5,IF(Foglio1!K116="",-10,Foglio1!K116),"") ->  | D116: =IF(ROW(D116)-1<=$J$5,IF(Foglio1!L116="",-10,Foglio1!L116),"") ->  | E116: =IF(ROW(E116)-1<=$J$5,IF(Foglio1!R116="",-10,Foglio1!R116),"") ->  | F116: =IF(ROW(F116)-1<=$J$5,IF(Foglio1!N116="",-10,Foglio1!N116),"") ->  | G116: =IF(ROW(G116)-1<=$J$5,IF(Foglio1!O116="",-10,Foglio1!O116),"") ->  | H116: =IF(ROW(H116)-1<=$J$5,IF(Foglio1!P116="",-10,Foglio1!P116),"") ->  | I116: =IF(ROW(I116)-1<=$J$5,IF(Foglio1!Q116="",-10,Foglio1!Q116),"") ->  | K116: =IF(ROW(K116)-1<=$J$5,K$1+COUNTIF(A$2:A116,A116)*$J$7,"") ->  | L116: =IF(ROW(L116)-1<=$J$5,L$1+COUNTIF(B$2:B116,B116)*$J$7,"") ->  | M116: =IF(ROW(M116)-1<=$J$5,M$1+COUNTIF(C$2:C116,C116)*$J$7,"") ->  | N116: =IF(ROW(N116)-1<=$J$5,N$1+COUNTIF(D$2:D116,D116)*$J$7,"") ->  | O116: =IF(ROW(O116)-1<=$J$5,O$1+COUNTIF(E$2:E116,E116)*$J$7,"") ->  | P116: =IF(ROW(P116)-1<=$J$5,P$1+COUNTIF(F$2:F116,F116)*$J$7,"") ->  | Q116: =IF(ROW(Q116)-1<=$J$5,Q$1+COUNTIF(G$2:G116,G116)*$J$7,"") ->  | R116: =IF(ROW(R116)-1<=$J$5,R$1+COUNTIF(H$2:H116,H116)*$J$7,"") ->  | S116: =IF(ROW(S116)-1<=$J$5,S$1+COUNTIF(I$2:I116,I116)*$J$7,"") -> 
A117: =IF(ROW(A117)-1<=$J$5,IF(Foglio1!I117="",-10,Foglio1!I117),"") ->  | B117: =IF(ROW(B117)-1<=$J$5,IF(Foglio1!J117="",-10,Foglio1!J117),"") ->  | C117: =IF(ROW(C117)-1<=$J$5,IF(Foglio1!K117="",-10,Foglio1!K117),"") ->  | D117: =IF(ROW(D117)-1<=$J$5,IF(Foglio1!L117="",-10,Foglio1!L117),"") ->  | E117: =IF(ROW(E117)-1<=$J$5,IF(Foglio1!R117="",-10,Foglio1!R117),"") ->  | F117: =IF(ROW(F117)-1<=$J$5,IF(Foglio1!N117="",-10,Foglio1!N117),"") ->  | G117: =IF(ROW(G117)-1<=$J$5,IF(Foglio1!O117="",-10,Foglio1!O117),"") ->  | H117: =IF(ROW(H117)-1<=$J$5,IF(Foglio1!P117="",-10,Foglio1!P117),"") ->  | I117: =IF(ROW(I117)-1<=$J$5,IF(Foglio1!Q117="",-10,Foglio1!Q117),"") ->  | K117: =IF(ROW(K117)-1<=$J$5,K$1+COUNTIF(A$2:A117,A117)*$J$7,"") ->  | L117: =IF(ROW(L117)-1<=$J$5,L$1+COUNTIF(B$2:B117,B117)*$J$7,"") ->  | M117: =IF(ROW(M117)-1<=$J$5,M$1+COUNTIF(C$2:C117,C117)*$J$7,"") ->  | N117: =IF(ROW(N117)-1<=$J$5,N$1+COUNTIF(D$2:D117,D117)*$J$7,"") ->  | O117: =IF(ROW(O117)-1<=$J$5,O$1+COUNTIF(E$2:E117,E117)*$J$7,"") ->  | P117: =IF(ROW(P117)-1<=$J$5,P$1+COUNTIF(F$2:F117,F117)*$J$7,"") ->  | Q117: =IF(ROW(Q117)-1<=$J$5,Q$1+COUNTIF(G$2:G117,G117)*$J$7,"") ->  | R117: =IF(ROW(R117)-1<=$J$5,R$1+COUNTIF(H$2:H117,H117)*$J$7,"") ->  | S117: =IF(ROW(S117)-1<=$J$5,S$1+COUNTIF(I$2:I117,I117)*$J$7,"") -> 
A118: =IF(ROW(A118)-1<=$J$5,IF(Foglio1!I118="",-10,Foglio1!I118),"") ->  | B118: =IF(ROW(B118)-1<=$J$5,IF(Foglio1!J118="",-10,Foglio1!J118),"") ->  | C118: =IF(ROW(C118)-1<=$J$5,IF(Foglio1!K118="",-10,Foglio1!K118),"") ->  | D118: =IF(ROW(D118)-1<=$J$5,IF(Foglio1!L118="",-10,Foglio1!L118),"") ->  | E118: =IF(ROW(E118)-1<=$J$5,IF(Foglio1!R118="",-10,Foglio1!R118),"") ->  | F118: =IF(ROW(F118)-1<=$J$5,IF(Foglio1!N118="",-10,Foglio1!N118),"") ->  | G118: =IF(ROW(G118)-1<=$J$5,IF(Foglio1!O118="",-10,Foglio1!O118),"") ->  | H118: =IF(ROW(H118)-1<=$J$5,IF(Foglio1!P118="",-10,Foglio1!P118),"") ->  | I118: =IF(ROW(I118)-1<=$J$5,IF(Foglio1!Q118="",-10,Foglio1!Q118),"") ->  | K118: =IF(ROW(K118)-1<=$J$5,K$1+COUNTIF(A$2:A118,A118)*$J$7,"") ->  | L118: =IF(ROW(L118)-1<=$J$5,L$1+COUNTIF(B$2:B118,B118)*$J$7,"") ->  | M118: =IF(ROW(M118)-1<=$J$5,M$1+COUNTIF(C$2:C118,C118)*$J$7,"") ->  | N118: =IF(ROW(N118)-1<=$J$5,N$1+COUNTIF(D$2:D118,D118)*$J$7,"") ->  | O118: =IF(ROW(O118)-1<=$J$5,O$1+COUNTIF(E$2:E118,E118)*$J$7,"") ->  | P118: =IF(ROW(P118)-1<=$J$5,P$1+COUNTIF(F$2:F118,F118)*$J$7,"") ->  | Q118: =IF(ROW(Q118)-1<=$J$5,Q$1+COUNTIF(G$2:G118,G118)*$J$7,"") ->  | R118: =IF(ROW(R118)-1<=$J$5,R$1+COUNTIF(H$2:H118,H118)*$J$7,"") ->  | S118: =IF(ROW(S118)-1<=$J$5,S$1+COUNTIF(I$2:I118,I118)*$J$7,"") -> 
A119: =IF(ROW(A119)-1<=$J$5,IF(Foglio1!I119="",-10,Foglio1!I119),"") ->  | B119: =IF(ROW(B119)-1<=$J$5,IF(Foglio1!J119="",-10,Foglio1!J119),"") ->  | C119: =IF(ROW(C119)-1<=$J$5,IF(Foglio1!K119="",-10,Foglio1!K119),"") ->  | D119: =IF(ROW(D119)-1<=$J$5,IF(Foglio1!L119="",-10,Foglio1!L119),"") ->  | E119: =IF(ROW(E119)-1<=$J$5,IF(Foglio1!R119="",-10,Foglio1!R119),"") ->  | F119: =IF(ROW(F119)-1<=$J$5,IF(Foglio1!N119="",-10,Foglio1!N119),"") ->  | G119: =IF(ROW(G119)-1<=$J$5,IF(Foglio1!O119="",-10,Foglio1!O119),"") ->  | H119: =IF(ROW(H119)-1<=$J$5,IF(Foglio1!P119="",-10,Foglio1!P119),"") ->  | I119: =IF(ROW(I119)-1<=$J$5,IF(Foglio1!Q119="",-10,Foglio1!Q119),"") ->  | K119: =IF(ROW(K119)-1<=$J$5,K$1+COUNTIF(A$2:A119,A119)*$J$7,"") ->  | L119: =IF(ROW(L119)-1<=$J$5,L$1+COUNTIF(B$2:B119,B119)*$J$7,"") ->  | M119: =IF(ROW(M119)-1<=$J$5,M$1+COUNTIF(C$2:C119,C119)*$J$7,"") ->  | N119: =IF(ROW(N119)-1<=$J$5,N$1+COUNTIF(D$2:D119,D119)*$J$7,"") ->  | O119: =IF(ROW(O119)-1<=$J$5,O$1+COUNTIF(E$2:E119,E119)*$J$7,"") ->  | P119: =IF(ROW(P119)-1<=$J$5,P$1+COUNTIF(F$2:F119,F119)*$J$7,"") ->  | Q119: =IF(ROW(Q119)-1<=$J$5,Q$1+COUNTIF(G$2:G119,G119)*$J$7,"") ->  | R119: =IF(ROW(R119)-1<=$J$5,R$1+COUNTIF(H$2:H119,H119)*$J$7,"") ->  | S119: =IF(ROW(S119)-1<=$J$5,S$1+COUNTIF(I$2:I119,I119)*$J$7,"") -> 
A120: =IF(ROW(A120)-1<=$J$5,IF(Foglio1!I120="",-10,Foglio1!I120),"") ->  | B120: =IF(ROW(B120)-1<=$J$5,IF(Foglio1!J120="",-10,Foglio1!J120),"") ->  | C120: =IF(ROW(C120)-1<=$J$5,IF(Foglio1!K120="",-10,Foglio1!K120),"") ->  | D120: =IF(ROW(D120)-1<=$J$5,IF(Foglio1!L120="",-10,Foglio1!L120),"") ->  | E120: =IF(ROW(E120)-1<=$J$5,IF(Foglio1!R120="",-10,Foglio1!R120),"") ->  | F120: =IF(ROW(F120)-1<=$J$5,IF(Foglio1!N120="",-10,Foglio1!N120),"") ->  | G120: =IF(ROW(G120)-1<=$J$5,IF(Foglio1!O120="",-10,Foglio1!O120),"") ->  | H120: =IF(ROW(H120)-1<=$J$5,IF(Foglio1!P120="",-10,Foglio1!P120),"") ->  | I120: =IF(ROW(I120)-1<=$J$5,IF(Foglio1!Q120="",-10,Foglio1!Q120),"") ->  | K120: =IF(ROW(K120)-1<=$J$5,K$1+COUNTIF(A$2:A120,A120)*$J$7,"") ->  | L120: =IF(ROW(L120)-1<=$J$5,L$1+COUNTIF(B$2:B120,B120)*$J$7,"") ->  | M120: =IF(ROW(M120)-1<=$J$5,M$1+COUNTIF(C$2:C120,C120)*$J$7,"") ->  | N120: =IF(ROW(N120)-1<=$J$5,N$1+COUNTIF(D$2:D120,D120)*$J$7,"") ->  | O120: =IF(ROW(O120)-1<=$J$5,O$1+COUNTIF(E$2:E120,E120)*$J$7,"") ->  | P120: =IF(ROW(P120)-1<=$J$5,P$1+COUNTIF(F$2:F120,F120)*$J$7,"") ->  | Q120: =IF(ROW(Q120)-1<=$J$5,Q$1+COUNTIF(G$2:G120,G120)*$J$7,"") ->  | R120: =IF(ROW(R120)-1<=$J$5,R$1+COUNTIF(H$2:H120,H120)*$J$7,"") ->  | S120: =IF(ROW(S120)-1<=$J$5,S$1+COUNTIF(I$2:I120,I120)*$J$7,"") -> 
A121: =IF(ROW(A121)-1<=$J$5,IF(Foglio1!I121="",-10,Foglio1!I121),"") ->  | B121: =IF(ROW(B121)-1<=$J$5,IF(Foglio1!J121="",-10,Foglio1!J121),"") ->  | C121: =IF(ROW(C121)-1<=$J$5,IF(Foglio1!K121="",-10,Foglio1!K121),"") ->  | D121: =IF(ROW(D121)-1<=$J$5,IF(Foglio1!L121="",-10,Foglio1!L121),"") ->  | E121: =IF(ROW(E121)-1<=$J$5,IF(Foglio1!R121="",-10,Foglio1!R121),"") ->  | F121: =IF(ROW(F121)-1<=$J$5,IF(Foglio1!N121="",-10,Foglio1!N121),"") ->  | G121: =IF(ROW(G121)-1<=$J$5,IF(Foglio1!O121="",-10,Foglio1!O121),"") ->  | H121: =IF(ROW(H121)-1<=$J$5,IF(Foglio1!P121="",-10,Foglio1!P121),"") ->  | I121: =IF(ROW(I121)-1<=$J$5,IF(Foglio1!Q121="",-10,Foglio1!Q121),"") ->  | K121: =IF(ROW(K121)-1<=$J$5,K$1+COUNTIF(A$2:A121,A121)*$J$7,"") ->  | L121: =IF(ROW(L121)-1<=$J$5,L$1+COUNTIF(B$2:B121,B121)*$J$7,"") ->  | M121: =IF(ROW(M121)-1<=$J$5,M$1+COUNTIF(C$2:C121,C121)*$J$7,"") ->  | N121: =IF(ROW(N121)-1<=$J$5,N$1+COUNTIF(D$2:D121,D121)*$J$7,"") ->  | O121: =IF(ROW(O121)-1<=$J$5,O$1+COUNTIF(E$2:E121,E121)*$J$7,"") ->  | P121: =IF(ROW(P121)-1<=$J$5,P$1+COUNTIF(F$2:F121,F121)*$J$7,"") ->  | Q121: =IF(ROW(Q121)-1<=$J$5,Q$1+COUNTIF(G$2:G121,G121)*$J$7,"") ->  | R121: =IF(ROW(R121)-1<=$J$5,R$1+COUNTIF(H$2:H121,H121)*$J$7,"") ->  | S121: =IF(ROW(S121)-1<=$J$5,S$1+COUNTIF(I$2:I121,I121)*$J$7,"") -> 
A122: =IF(ROW(A122)-1<=$J$5,IF(Foglio1!I122="",-10,Foglio1!I122),"") ->  | B122: =IF(ROW(B122)-1<=$J$5,IF(Foglio1!J122="",-10,Foglio1!J122),"") ->  | C122: =IF(ROW(C122)-1<=$J$5,IF(Foglio1!K122="",-10,Foglio1!K122),"") ->  | D122: =IF(ROW(D122)-1<=$J$5,IF(Foglio1!L122="",-10,Foglio1!L122),"") ->  | E122: =IF(ROW(E122)-1<=$J$5,IF(Foglio1!R122="",-10,Foglio1!R122),"") ->  | F122: =IF(ROW(F122)-1<=$J$5,IF(Foglio1!N122="",-10,Foglio1!N122),"") ->  | G122: =IF(ROW(G122)-1<=$J$5,IF(Foglio1!O122="",-10,Foglio1!O122),"") ->  | H122: =IF(ROW(H122)-1<=$J$5,IF(Foglio1!P122="",-10,Foglio1!P122),"") ->  | I122: =IF(ROW(I122)-1<=$J$5,IF(Foglio1!Q122="",-10,Foglio1!Q122),"") ->  | K122: =IF(ROW(K122)-1<=$J$5,K$1+COUNTIF(A$2:A122,A122)*$J$7,"") ->  | L122: =IF(ROW(L122)-1<=$J$5,L$1+COUNTIF(B$2:B122,B122)*$J$7,"") ->  | M122: =IF(ROW(M122)-1<=$J$5,M$1+COUNTIF(C$2:C122,C122)*$J$7,"") ->  | N122: =IF(ROW(N122)-1<=$J$5,N$1+COUNTIF(D$2:D122,D122)*$J$7,"") ->  | O122: =IF(ROW(O122)-1<=$J$5,O$1+COUNTIF(E$2:E122,E122)*$J$7,"") ->  | P122: =IF(ROW(P122)-1<=$J$5,P$1+COUNTIF(F$2:F122,F122)*$J$7,"") ->  | Q122: =IF(ROW(Q122)-1<=$J$5,Q$1+COUNTIF(G$2:G122,G122)*$J$7,"") ->  | R122: =IF(ROW(R122)-1<=$J$5,R$1+COUNTIF(H$2:H122,H122)*$J$7,"") ->  | S122: =IF(ROW(S122)-1<=$J$5,S$1+COUNTIF(I$2:I122,I122)*$J$7,"") -> 
A123: =IF(ROW(A123)-1<=$J$5,IF(Foglio1!I123="",-10,Foglio1!I123),"") ->  | B123: =IF(ROW(B123)-1<=$J$5,IF(Foglio1!J123="",-10,Foglio1!J123),"") ->  | C123: =IF(ROW(C123)-1<=$J$5,IF(Foglio1!K123="",-10,Foglio1!K123),"") ->  | D123: =IF(ROW(D123)-1<=$J$5,IF(Foglio1!L123="",-10,Foglio1!L123),"") ->  | E123: =IF(ROW(E123)-1<=$J$5,IF(Foglio1!R123="",-10,Foglio1!R123),"") ->  | F123: =IF(ROW(F123)-1<=$J$5,IF(Foglio1!N123="",-10,Foglio1!N123),"") ->  | G123: =IF(ROW(G123)-1<=$J$5,IF(Foglio1!O123="",-10,Foglio1!O123),"") ->  | H123: =IF(ROW(H123)-1<=$J$5,IF(Foglio1!P123="",-10,Foglio1!P123),"") ->  | I123: =IF(ROW(I123)-1<=$J$5,IF(Foglio1!Q123="",-10,Foglio1!Q123),"") ->  | K123: =IF(ROW(K123)-1<=$J$5,K$1+COUNTIF(A$2:A123,A123)*$J$7,"") ->  | L123: =IF(ROW(L123)-1<=$J$5,L$1+COUNTIF(B$2:B123,B123)*$J$7,"") ->  | M123: =IF(ROW(M123)-1<=$J$5,M$1+COUNTIF(C$2:C123,C123)*$J$7,"") ->  | N123: =IF(ROW(N123)-1<=$J$5,N$1+COUNTIF(D$2:D123,D123)*$J$7,"") ->  | O123: =IF(ROW(O123)-1<=$J$5,O$1+COUNTIF(E$2:E123,E123)*$J$7,"") ->  | P123: =IF(ROW(P123)-1<=$J$5,P$1+COUNTIF(F$2:F123,F123)*$J$7,"") ->  | Q123: =IF(ROW(Q123)-1<=$J$5,Q$1+COUNTIF(G$2:G123,G123)*$J$7,"") ->  | R123: =IF(ROW(R123)-1<=$J$5,R$1+COUNTIF(H$2:H123,H123)*$J$7,"") ->  | S123: =IF(ROW(S123)-1<=$J$5,S$1+COUNTIF(I$2:I123,I123)*$J$7,"") -> 
A124: =IF(ROW(A124)-1<=$J$5,IF(Foglio1!I124="",-10,Foglio1!I124),"") ->  | B124: =IF(ROW(B124)-1<=$J$5,IF(Foglio1!J124="",-10,Foglio1!J124),"") ->  | C124: =IF(ROW(C124)-1<=$J$5,IF(Foglio1!K124="",-10,Foglio1!K124),"") ->  | D124: =IF(ROW(D124)-1<=$J$5,IF(Foglio1!L124="",-10,Foglio1!L124),"") ->  | E124: =IF(ROW(E124)-1<=$J$5,IF(Foglio1!R124="",-10,Foglio1!R124),"") ->  | F124: =IF(ROW(F124)-1<=$J$5,IF(Foglio1!N124="",-10,Foglio1!N124),"") ->  | G124: =IF(ROW(G124)-1<=$J$5,IF(Foglio1!O124="",-10,Foglio1!O124),"") ->  | H124: =IF(ROW(H124)-1<=$J$5,IF(Foglio1!P124="",-10,Foglio1!P124),"") ->  | I124: =IF(ROW(I124)-1<=$J$5,IF(Foglio1!Q124="",-10,Foglio1!Q124),"") ->  | K124: =IF(ROW(K124)-1<=$J$5,K$1+COUNTIF(A$2:A124,A124)*$J$7,"") ->  | L124: =IF(ROW(L124)-1<=$J$5,L$1+COUNTIF(B$2:B124,B124)*$J$7,"") ->  | M124: =IF(ROW(M124)-1<=$J$5,M$1+COUNTIF(C$2:C124,C124)*$J$7,"") ->  | N124: =IF(ROW(N124)-1<=$J$5,N$1+COUNTIF(D$2:D124,D124)*$J$7,"") ->  | O124: =IF(ROW(O124)-1<=$J$5,O$1+COUNTIF(E$2:E124,E124)*$J$7,"") ->  | P124: =IF(ROW(P124)-1<=$J$5,P$1+COUNTIF(F$2:F124,F124)*$J$7,"") ->  | Q124: =IF(ROW(Q124)-1<=$J$5,Q$1+COUNTIF(G$2:G124,G124)*$J$7,"") ->  | R124: =IF(ROW(R124)-1<=$J$5,R$1+COUNTIF(H$2:H124,H124)*$J$7,"") ->  | S124: =IF(ROW(S124)-1<=$J$5,S$1+COUNTIF(I$2:I124,I124)*$J$7,"") -> 
A125: =IF(ROW(A125)-1<=$J$5,IF(Foglio1!I125="",-10,Foglio1!I125),"") ->  | B125: =IF(ROW(B125)-1<=$J$5,IF(Foglio1!J125="",-10,Foglio1!J125),"") ->  | C125: =IF(ROW(C125)-1<=$J$5,IF(Foglio1!K125="",-10,Foglio1!K125),"") ->  | D125: =IF(ROW(D125)-1<=$J$5,IF(Foglio1!L125="",-10,Foglio1!L125),"") ->  | E125: =IF(ROW(E125)-1<=$J$5,IF(Foglio1!R125="",-10,Foglio1!R125),"") ->  | F125: =IF(ROW(F125)-1<=$J$5,IF(Foglio1!N125="",-10,Foglio1!N125),"") ->  | G125: =IF(ROW(G125)-1<=$J$5,IF(Foglio1!O125="",-10,Foglio1!O125),"") ->  | H125: =IF(ROW(H125)-1<=$J$5,IF(Foglio1!P125="",-10,Foglio1!P125),"") ->  | I125: =IF(ROW(I125)-1<=$J$5,IF(Foglio1!Q125="",-10,Foglio1!Q125),"") ->  | K125: =IF(ROW(K125)-1<=$J$5,K$1+COUNTIF(A$2:A125,A125)*$J$7,"") ->  | L125: =IF(ROW(L125)-1<=$J$5,L$1+COUNTIF(B$2:B125,B125)*$J$7,"") ->  | M125: =IF(ROW(M125)-1<=$J$5,M$1+COUNTIF(C$2:C125,C125)*$J$7,"") ->  | N125: =IF(ROW(N125)-1<=$J$5,N$1+COUNTIF(D$2:D125,D125)*$J$7,"") ->  | O125: =IF(ROW(O125)-1<=$J$5,O$1+COUNTIF(E$2:E125,E125)*$J$7,"") ->  | P125: =IF(ROW(P125)-1<=$J$5,P$1+COUNTIF(F$2:F125,F125)*$J$7,"") ->  | Q125: =IF(ROW(Q125)-1<=$J$5,Q$1+COUNTIF(G$2:G125,G125)*$J$7,"") ->  | R125: =IF(ROW(R125)-1<=$J$5,R$1+COUNTIF(H$2:H125,H125)*$J$7,"") ->  | S125: =IF(ROW(S125)-1<=$J$5,S$1+COUNTIF(I$2:I125,I125)*$J$7,"") -> 
A126: =IF(ROW(A126)-1<=$J$5,IF(Foglio1!I126="",-10,Foglio1!I126),"") ->  | B126: =IF(ROW(B126)-1<=$J$5,IF(Foglio1!J126="",-10,Foglio1!J126),"") ->  | C126: =IF(ROW(C126)-1<=$J$5,IF(Foglio1!K126="",-10,Foglio1!K126),"") ->  | D126: =IF(ROW(D126)-1<=$J$5,IF(Foglio1!L126="",-10,Foglio1!L126),"") ->  | E126: =IF(ROW(E126)-1<=$J$5,IF(Foglio1!R126="",-10,Foglio1!R126),"") ->  | F126: =IF(ROW(F126)-1<=$J$5,IF(Foglio1!N126="",-10,Foglio1!N126),"") ->  | G126: =IF(ROW(G126)-1<=$J$5,IF(Foglio1!O126="",-10,Foglio1!O126),"") ->  | H126: =IF(ROW(H126)-1<=$J$5,IF(Foglio1!P126="",-10,Foglio1!P126),"") ->  | I126: =IF(ROW(I126)-1<=$J$5,IF(Foglio1!Q126="",-10,Foglio1!Q126),"") ->  | K126: =IF(ROW(K126)-1<=$J$5,K$1+COUNTIF(A$2:A126,A126)*$J$7,"") ->  | L126: =IF(ROW(L126)-1<=$J$5,L$1+COUNTIF(B$2:B126,B126)*$J$7,"") ->  | M126: =IF(ROW(M126)-1<=$J$5,M$1+COUNTIF(C$2:C126,C126)*$J$7,"") ->  | N126: =IF(ROW(N126)-1<=$J$5,N$1+COUNTIF(D$2:D126,D126)*$J$7,"") ->  | O126: =IF(ROW(O126)-1<=$J$5,O$1+COUNTIF(E$2:E126,E126)*$J$7,"") ->  | P126: =IF(ROW(P126)-1<=$J$5,P$1+COUNTIF(F$2:F126,F126)*$J$7,"") ->  | Q126: =IF(ROW(Q126)-1<=$J$5,Q$1+COUNTIF(G$2:G126,G126)*$J$7,"") ->  | R126: =IF(ROW(R126)-1<=$J$5,R$1+COUNTIF(H$2:H126,H126)*$J$7,"") ->  | S126: =IF(ROW(S126)-1<=$J$5,S$1+COUNTIF(I$2:I126,I126)*$J$7,"") -> 
A127: =IF(ROW(A127)-1<=$J$5,IF(Foglio1!I127="",-10,Foglio1!I127),"") ->  | B127: =IF(ROW(B127)-1<=$J$5,IF(Foglio1!J127="",-10,Foglio1!J127),"") ->  | C127: =IF(ROW(C127)-1<=$J$5,IF(Foglio1!K127="",-10,Foglio1!K127),"") ->  | D127: =IF(ROW(D127)-1<=$J$5,IF(Foglio1!L127="",-10,Foglio1!L127),"") ->  | E127: =IF(ROW(E127)-1<=$J$5,IF(Foglio1!R127="",-10,Foglio1!R127),"") ->  | F127: =IF(ROW(F127)-1<=$J$5,IF(Foglio1!N127="",-10,Foglio1!N127),"") ->  | G127: =IF(ROW(G127)-1<=$J$5,IF(Foglio1!O127="",-10,Foglio1!O127),"") ->  | H127: =IF(ROW(H127)-1<=$J$5,IF(Foglio1!P127="",-10,Foglio1!P127),"") ->  | I127: =IF(ROW(I127)-1<=$J$5,IF(Foglio1!Q127="",-10,Foglio1!Q127),"") ->  | K127: =IF(ROW(K127)-1<=$J$5,K$1+COUNTIF(A$2:A127,A127)*$J$7,"") ->  | L127: =IF(ROW(L127)-1<=$J$5,L$1+COUNTIF(B$2:B127,B127)*$J$7,"") ->  | M127: =IF(ROW(M127)-1<=$J$5,M$1+COUNTIF(C$2:C127,C127)*$J$7,"") ->  | N127: =IF(ROW(N127)-1<=$J$5,N$1+COUNTIF(D$2:D127,D127)*$J$7,"") ->  | O127: =IF(ROW(O127)-1<=$J$5,O$1+COUNTIF(E$2:E127,E127)*$J$7,"") ->  | P127: =IF(ROW(P127)-1<=$J$5,P$1+COUNTIF(F$2:F127,F127)*$J$7,"") ->  | Q127: =IF(ROW(Q127)-1<=$J$5,Q$1+COUNTIF(G$2:G127,G127)*$J$7,"") ->  | R127: =IF(ROW(R127)-1<=$J$5,R$1+COUNTIF(H$2:H127,H127)*$J$7,"") ->  | S127: =IF(ROW(S127)-1<=$J$5,S$1+COUNTIF(I$2:I127,I127)*$J$7,"") -> 
A128: =IF(ROW(A128)-1<=$J$5,IF(Foglio1!I128="",-10,Foglio1!I128),"") ->  | B128: =IF(ROW(B128)-1<=$J$5,IF(Foglio1!J128="",-10,Foglio1!J128),"") ->  | C128: =IF(ROW(C128)-1<=$J$5,IF(Foglio1!K128="",-10,Foglio1!K128),"") ->  | D128: =IF(ROW(D128)-1<=$J$5,IF(Foglio1!L128="",-10,Foglio1!L128),"") ->  | E128: =IF(ROW(E128)-1<=$J$5,IF(Foglio1!M128="",-10,Foglio1!M128),"") ->  | F128: =IF(ROW(F128)-1<=$J$5,IF(Foglio1!N128="",-10,Foglio1!N128),"") ->  | G128: =IF(ROW(G128)-1<=$J$5,IF(Foglio1!O128="",-10,Foglio1!O128),"") ->  | H128: =IF(ROW(H128)-1<=$J$5,IF(Foglio1!P128="",-10,Foglio1!P128),"") ->  | I128: =IF(ROW(I128)-1<=$J$5,IF(Foglio1!Q128="",-10,Foglio1!Q128),"") ->  | K128: =IF(ROW(K128)-1<=$J$5,K$1+COUNTIF(A$2:A128,A128)*$J$7,"") ->  | L128: =IF(ROW(L128)-1<=$J$5,L$1+COUNTIF(B$2:B128,B128)*$J$7,"") ->  | M128: =IF(ROW(M128)-1<=$J$5,M$1+COUNTIF(C$2:C128,C128)*$J$7,"") ->  | N128: =IF(ROW(N128)-1<=$J$5,N$1+COUNTIF(D$2:D128,D128)*$J$7,"") ->  | O128: =IF(ROW(O128)-1<=$J$5,O$1+COUNTIF(E$2:E128,E128)*$J$7,"") ->  | P128: =IF(ROW(P128)-1<=$J$5,P$1+COUNTIF(F$2:F128,F128)*$J$7,"") ->  | Q128: =IF(ROW(Q128)-1<=$J$5,Q$1+COUNTIF(G$2:G128,G128)*$J$7,"") ->  | R128: =IF(ROW(R128)-1<=$J$5,R$1+COUNTIF(H$2:H128,H128)*$J$7,"") ->  | S128: =IF(ROW(S128)-1<=$J$5,S$1+COUNTIF(I$2:I128,I128)*$J$7,"") -> 
A129: =IF(ROW(A129)-1<=$J$5,IF(Foglio1!I129="",-10,Foglio1!I129),"") ->  | B129: =IF(ROW(B129)-1<=$J$5,IF(Foglio1!J129="",-10,Foglio1!J129),"") ->  | C129: =IF(ROW(C129)-1<=$J$5,IF(Foglio1!K129="",-10,Foglio1!K129),"") ->  | D129: =IF(ROW(D129)-1<=$J$5,IF(Foglio1!L129="",-10,Foglio1!L129),"") ->  | E129: =IF(ROW(E129)-1<=$J$5,IF(Foglio1!M129="",-10,Foglio1!M129),"") ->  | F129: =IF(ROW(F129)-1<=$J$5,IF(Foglio1!N129="",-10,Foglio1!N129),"") ->  | G129: =IF(ROW(G129)-1<=$J$5,IF(Foglio1!O129="",-10,Foglio1!O129),"") ->  | H129: =IF(ROW(H129)-1<=$J$5,IF(Foglio1!P129="",-10,Foglio1!P129),"") ->  | I129: =IF(ROW(I129)-1<=$J$5,IF(Foglio1!Q129="",-10,Foglio1!Q129),"") ->  | K129: =IF(ROW(K129)-1<=$J$5,K$1+COUNTIF(A$2:A129,A129)*$J$7,"") ->  | L129: =IF(ROW(L129)-1<=$J$5,L$1+COUNTIF(B$2:B129,B129)*$J$7,"") ->  | M129: =IF(ROW(M129)-1<=$J$5,M$1+COUNTIF(C$2:C129,C129)*$J$7,"") ->  | N129: =IF(ROW(N129)-1<=$J$5,N$1+COUNTIF(D$2:D129,D129)*$J$7,"") ->  | O129: =IF(ROW(O129)-1<=$J$5,O$1+COUNTIF(E$2:E129,E129)*$J$7,"") ->  | P129: =IF(ROW(P129)-1<=$J$5,P$1+COUNTIF(F$2:F129,F129)*$J$7,"") ->  | Q129: =IF(ROW(Q129)-1<=$J$5,Q$1+COUNTIF(G$2:G129,G129)*$J$7,"") ->  | R129: =IF(ROW(R129)-1<=$J$5,R$1+COUNTIF(H$2:H129,H129)*$J$7,"") ->  | S129: =IF(ROW(S129)-1<=$J$5,S$1+COUNTIF(I$2:I129,I129)*$J$7,"") -> 
A130: =IF(ROW(A130)-1<=$J$5,IF(Foglio1!I130="",-10,Foglio1!I130),"") ->  | B130: =IF(ROW(B130)-1<=$J$5,IF(Foglio1!J130="",-10,Foglio1!J130),"") ->  | C130: =IF(ROW(C130)-1<=$J$5,IF(Foglio1!K130="",-10,Foglio1!K130),"") ->  | D130: =IF(ROW(D130)-1<=$J$5,IF(Foglio1!L130="",-10,Foglio1!L130),"") ->  | E130: =IF(ROW(E130)-1<=$J$5,IF(Foglio1!M130="",-10,Foglio1!M130),"") ->  | F130: =IF(ROW(F130)-1<=$J$5,IF(Foglio1!N130="",-10,Foglio1!N130),"") ->  | G130: =IF(ROW(G130)-1<=$J$5,IF(Foglio1!O130="",-10,Foglio1!O130),"") ->  | H130: =IF(ROW(H130)-1<=$J$5,IF(Foglio1!P130="",-10,Foglio1!P130),"") ->  | I130: =IF(ROW(I130)-1<=$J$5,IF(Foglio1!Q130="",-10,Foglio1!Q130),"") ->  | K130: =IF(ROW(K130)-1<=$J$5,K$1+COUNTIF(A$2:A130,A130)*$J$7,"") ->  | L130: =IF(ROW(L130)-1<=$J$5,L$1+COUNTIF(B$2:B130,B130)*$J$7,"") ->  | M130: =IF(ROW(M130)-1<=$J$5,M$1+COUNTIF(C$2:C130,C130)*$J$7,"") ->  | N130: =IF(ROW(N130)-1<=$J$5,N$1+COUNTIF(D$2:D130,D130)*$J$7,"") ->  | O130: =IF(ROW(O130)-1<=$J$5,O$1+COUNTIF(E$2:E130,E130)*$J$7,"") ->  | P130: =IF(ROW(P130)-1<=$J$5,P$1+COUNTIF(F$2:F130,F130)*$J$7,"") ->  | Q130: =IF(ROW(Q130)-1<=$J$5,Q$1+COUNTIF(G$2:G130,G130)*$J$7,"") ->  | R130: =IF(ROW(R130)-1<=$J$5,R$1+COUNTIF(H$2:H130,H130)*$J$7,"") ->  | S130: =IF(ROW(S130)-1<=$J$5,S$1+COUNTIF(I$2:I130,I130)*$J$7,"") -> 
